Workbook

Sheet Введение

Sheet Прогнозы группового этапа
C2: Прогнозы группового этапа
X3: Третьи команды
C4: Группа | D4: Команды | E4: Коррекция общего выступления | F4: Сыграно матчей | G4: Победы | H4: Ничьи | I4: Поражения | J4: Забито голов | K4: Пропущено голов | L4: +/- | M4: Очки | N4: Место по разнице | O4: Место в группе (квалифицируются 1 и 2) | P4: Место среди третьих (квалифицируются лучшие 4) | Q4: Очки (если занято третье место) | X4: Третьи команды | Y4: 1/8 финала
C5: A | D5: Франция | E5: 0% | F5: =COUNTIF('Матчи за текущий год'!$E$5:$G$41, D5) -> 3 | G5: =COUNTIF('Матчи за текущий год'!I:I, D5) -> 3 | H5: =COUNTIFS('Матчи за текущий год'!E:E, D5, 'Матчи за текущий год'!I:I, "Ничья")+COUNTIFS('Матчи за текущий год'!G:G, D5, 'Матчи за текущий год'!I:I, "Ничья") -> 0 | I5: =F5-SUM(G5:H5) -> 0 | J5: =SUM(SUMIF('Матчи за текущий год'!E:E, D5,'Матчи за текущий год'!L:L), SUMIF('Матчи за текущий год'!G:G,D5,'Матчи за текущий год'!M:M)) -> 6.72 | K5: =SUM(SUMIFS('Матчи за текущий год'!M:M,'Матчи за текущий год'!E:E,D5), SUMIFS('Матчи за текущий год'!L:L, 'Матчи за текущий год'!G:G,D5)) -> 2.98 | L5: =J5-K5 -> 3.74 | M5: =(G5*3)+(H5*1) -> 9 | N5: =M5+(L5*0.001)+(J5*0.0001) -> 9.00 | O5: =RANK(N5,N$5:N$8) -> 1 | P5: =IF(Q5:Q28=0,"",RANK(Q5:Q28,Q5:Q28)) ->  | Q5: =IF('Прогнозы группового этапа'!$O$5:$O$28=3,'Прогнозы группового этапа'!$N$5:$N$28,0) -> 0.00 | X5: A | Y5: =SUM(Место3A)<=4 -> TRUE
C6: А | D6: Республика Корея | E6: 0% | F6: =COUNTIF('Матчи за текущий год'!$E$5:$G$41, D6) -> 3 | G6: =COUNTIF('Матчи за текущий год'!I:I, D6) -> 1 | H6: =COUNTIFS('Матчи за текущий год'!E:E, D6, 'Матчи за текущий год'!I:I, "Ничья")+COUNTIFS('Матчи за текущий год'!G:G, D6, 'Матчи за текущий год'!I:I, "Ничья") -> 0 | I6: 2 | J6: =SUM(SUMIF('Матчи за текущий год'!E:E, D6,'Матчи за текущий год'!L:L), SUMIF('Матчи за текущий год'!G:G,D6,'Матчи за текущий год'!M:M)) -> 5.34 | K6: =SUM(SUMIFS('Матчи за текущий год'!M:M,'Матчи за текущий год'!E:E,D6), SUMIFS('Матчи за текущий год'!L:L, 'Матчи за текущий год'!G:G,D6)) -> 3.68 | L6: =J6-K6 -> 1.66 | M6: 3 | N6: =M6+(L6*0.001)+(J6*0.0001) -> 3.00 | O6: =RANK(N6,N$5:N$8) -> 3 | P6: 1 | Q6: 3.00 | X6: B | Y6: =SUM(Место3Б)<=4 -> TRUE
C7: А | D7: Нигерия | E7: 0% | F7: =COUNTIF('Матчи за текущий год'!$E$5:$G$41, D7) -> 3 | G7: =COUNTIF('Матчи за текущий год'!I:I, D7) -> 0 | H7: =COUNTIFS('Матчи за текущий год'!E:E, D7, 'Матчи за текущий год'!I:I, "Ничья")+COUNTIFS('Матчи за текущий год'!G:G, D7, 'Матчи за текущий год'!I:I, "Ничья") -> 0 | I7: 3 | J7: =SUM(SUMIF('Матчи за текущий год'!E:E, D7,'Матчи за текущий год'!L:L), SUMIF('Матчи за текущий год'!G:G,D7,'Матчи за текущий год'!M:M)) -> 1.82 | K7: =SUM(SUMIFS('Матчи за текущий год'!M:M,'Матчи за текущий год'!E:E,D7), SUMIFS('Матчи за текущий год'!L:L, 'Матчи за текущий год'!G:G,D7)) -> 9.28 | L7: -7.46 | M7: 0 | N7: -0.01 | O7: =RANK(N7,N$5:N$8) -> 4 | Q7: 0.00 | X7: C | Y7: =SUM(Место3C)<=4 -> FALSE
C8: A | D8: Норвегия | E8: 0% | F8: =COUNTIF('Матчи за текущий год'!$E$5:$G$41, D8) -> 3 | G8: =COUNTIF('Матчи за текущий год'!I:I, D8) -> 2 | H8: =COUNTIFS('Матчи за текущий год'!E:E, D8, 'Матчи за текущий год'!I:I, "Ничья")+COUNTIFS('Матчи за текущий год'!G:G, D8, 'Матчи за текущий год'!I:I, "Ничья") -> 0 | I8: 1 | J8: =SUM(SUMIF('Матчи за текущий год'!E:E, D8,'Матчи за текущий год'!L:L), SUMIF('Матчи за текущий год'!G:G,D8,'Матчи за текущий год'!M:M)) -> 5.58 | K8: =SUM(SUMIFS('Матчи за текущий год'!M:M,'Матчи за текущий год'!E:E,D8), SUMIFS('Матчи за текущий год'!L:L, 'Матчи за текущий год'!G:G,D8)) -> 3.52 | L8: 2.06 | M8: 6 | N8: 6.00 | O8: =RANK(N8,N$5:N$8) -> 2 | Q8: 0.00 | X8: D | Y8: =SUM(Место3D)<=4 -> TRUE
C9: B | D9: Китай | E9: 0% | F9: =COUNTIF('Матчи за текущий год'!$E$5:$G$41, D9) -> 3 | G9: =COUNTIF('Матчи за текущий год'!I:I, D9) -> 1 | H9: =COUNTIFS('Матчи за текущий год'!E:E, D9, 'Матчи за текущий год'!I:I, "Ничья")+COUNTIFS('Матчи за текущий год'!G:G, D9, 'Матчи за текущий год'!I:I, "Ничья") -> 0 | I9: 2 | J9: =SUM(SUMIF('Матчи за текущий год'!E:E, D9,'Матчи за текущий год'!L:L), SUMIF('Матчи за текущий год'!G:G,D9,'Матчи за текущий год'!M:M)) -> 5.00 | K9: =SUM(SUMIFS('Матчи за текущий год'!M:M,'Матчи за текущий год'!E:E,D9), SUMIFS('Матчи за текущий год'!L:L, 'Матчи за текущий год'!G:G,D9)) -> 3.46 | L9: 1.54 | M9: 3 | N9: 3.00 | O9: =RANK(N9,$N$9:$N$12) -> 3 | P9: 2 | Q9: 3.00 | X9: E | Y9: =SUM(Место3E)<=4 -> TRUE
C10: B | D10: Германия | E10: 0% | F10: =COUNTIF('Матчи за текущий год'!$E$5:$G$41, D10) -> 3 | G10: =COUNTIF('Матчи за текущий год'!I:I, D10) -> 3 | H10: =COUNTIFS('Матчи за текущий год'!E:E, D10, 'Матчи за текущий год'!I:I, "Ничья")+COUNTIFS('Матчи за текущий год'!G:G, D10, 'Матчи за текущий год'!I:I, "Ничья") -> 0 | I10: 0 | J10: =SUM(SUMIF('Матчи за текущий год'!E:E, D10,'Матчи за текущий год'!L:L), SUMIF('Матчи за текущий год'!G:G,D10,'Матчи за текущий год'!M:M)) -> 5.46 | K10: =SUM(SUMIFS('Матчи за текущий год'!M:M,'Матчи за текущий год'!E:E,D10), SUMIFS('Матчи за текущий год'!L:L, 'Матчи за текущий год'!G:G,D10)) -> 2.22 | L10: =J10-K10 -> 3.24 | M10: 9 | N10: 9.00 | O10: =RANK(N10,$N$9:$N$12) -> 1 | Q10: 0.00 | X10: F | Y10: =SUM(Место3F)<=4 -> FALSE
C11: B | D11: ЮАР | E11: 0% | F11: =COUNTIF('Матчи за текущий год'!$E$5:$G$41, D11) -> 3 | G11: =COUNTIF('Матчи за текущий год'!I:I, D11) -> 0 | H11: =COUNTIFS('Матчи за текущий год'!E:E, D11, 'Матчи за текущий год'!I:I, "Ничья")+COUNTIFS('Матчи за текущий год'!G:G, D11, 'Матчи за текущий год'!I:I, "Ничья") -> 0 | I11: 3 | J11: =SUM(SUMIF('Матчи за текущий год'!E:E, D11,'Матчи за текущий год'!L:L), SUMIF('Матчи за текущий год'!G:G,D11,'Матчи за текущий год'!M:M)) -> 1.10 | K11: =SUM(SUMIFS('Матчи за текущий год'!M:M,'Матчи за текущий год'!E:E,D11), SUMIFS('Матчи за текущий год'!L:L, 'Матчи за текущий год'!G:G,D11)) -> 7.54 | L11: =J11-K11 -> -6.44 | M11: 0 | N11: -0.01 | O11: =RANK(N11,$N$9:$N$12) -> 4 | Q11: 0.00
C12: B | D12: Испания | E12: 0% | F12: =COUNTIF('Матчи за текущий год'!$E$5:$G$41, D12) -> 3 | G12: =COUNTIF('Матчи за текущий год'!I:I, D12) -> 2 | H12: =COUNTIFS('Матчи за текущий год'!E:E, D12, 'Матчи за текущий год'!I:I, "Ничья")+COUNTIFS('Матчи за текущий год'!G:G, D12, 'Матчи за текущий год'!I:I, "Ничья") -> 0 | I12: 1 | J12: =SUM(SUMIF('Матчи за текущий год'!E:E, D12,'Матчи за текущий год'!L:L), SUMIF('Матчи за текущий год'!G:G,D12,'Матчи за текущий год'!M:M)) -> 5.20 | K12: =SUM(SUMIFS('Матчи за текущий год'!M:M,'Матчи за текущий год'!E:E,D12), SUMIFS('Матчи за текущий год'!L:L, 'Матчи за текущий год'!G:G,D12)) -> 3.54 | L12: =J12-K12 -> 1.66 | M12: 6 | N12: 6.00 | O12: =RANK(N12,$N$9:$N$12) -> 2 | Q12: 0.00 | X12: Вариант | Y12: =Y10*1+Y9*10+Y8*100+Y7*1000+Y6*10000+Y5*100000 -> 110110
C13: C | D13: Австралия | E13: 0% | F13: =COUNTIF('Матчи за текущий год'!$E$5:$G$41, D13) -> 3 | G13: =COUNTIF('Матчи за текущий год'!I:I, D13) -> 2 | H13: =COUNTIFS('Матчи за текущий год'!E:E, D13, 'Матчи за текущий год'!I:I, "Ничья")+COUNTIFS('Матчи за текущий год'!G:G, D13, 'Матчи за текущий год'!I:I, "Ничья") -> 0 | I13: 1 | J13: =SUM(SUMIF('Матчи за текущий год'!E:E, D13,'Матчи за текущий год'!L:L), SUMIF('Матчи за текущий год'!G:G,D13,'Матчи за текущий год'!M:M)) -> 8.62 | K13: =SUM(SUMIFS('Матчи за текущий год'!M:M,'Матчи за текущий год'!E:E,D13), SUMIFS('Матчи за текущий год'!L:L, 'Матчи за текущий год'!G:G,D13)) -> 2.96 | L13: 5.66 | M13: =(G13*3)+(H13*1) -> 6 | N13: 6.01 | O13: =RANK(N13, N$13:N$16) -> 2 | Q13: 0.00
C14: C | D14: Бразилия | E14: 0% | F14: =COUNTIF('Матчи за текущий год'!$E$5:$G$41, D14) -> 3 | G14: =COUNTIF('Матчи за текущий год'!I:I, D14) -> 3 | H14: =COUNTIFS('Матчи за текущий год'!E:E, D14, 'Матчи за текущий год'!I:I, "Ничья")+COUNTIFS('Матчи за текущий год'!G:G, D14, 'Матчи за текущий год'!I:I, "Ничья") -> 0 | I14: 0 | J14: =SUM(SUMIF('Матчи за текущий год'!E:E, D14,'Матчи за текущий год'!L:L), SUMIF('Матчи за текущий год'!G:G,D14,'Матчи за текущий год'!M:M)) -> 8.64 | K14: =SUM(SUMIFS('Матчи за текущий год'!M:M,'Матчи за текущий год'!E:E,D14), SUMIFS('Матчи за текущий год'!L:L, 'Матчи за текущий год'!G:G,D14)) -> 2.82 | L14: 5.82 | M14: 9 | N14: 9.01 | O14: =RANK(N14, N$13:N$16) -> 1 | Q14: 0.00
C15: C | D15: Италия | E15: 0% | F15: =COUNTIF('Матчи за текущий год'!$E$5:$G$41, D15) -> 3 | G15: =COUNTIF('Матчи за текущий год'!I:I, D15) -> 0 | H15: =COUNTIFS('Матчи за текущий год'!E:E, D15, 'Матчи за текущий год'!I:I, "Ничья")+COUNTIFS('Матчи за текущий год'!G:G, D15, 'Матчи за текущий год'!I:I, "Ничья") -> 0 | I15: 3 | J15: =SUM(SUMIF('Матчи за текущий год'!E:E, D15,'Матчи за текущий год'!L:L), SUMIF('Матчи за текущий год'!G:G,D15,'Матчи за текущий год'!M:M)) -> 3.64 | K15: =SUM(SUMIFS('Матчи за текущий год'!M:M,'Матчи за текущий год'!E:E,D15), SUMIFS('Матчи за текущий год'!L:L, 'Матчи за текущий год'!G:G,D15)) -> 5.14 | L15: -1.50 | M15: 0 | N15: -0.00 | O15: =RANK(N15, N$13:N$16) -> 4 | Q15: 0.00
C16: C | D16: Ямайка | E16: 0% | F16: =COUNTIF('Матчи за текущий год'!$E$5:$G$41, D16) -> 3 | G16: =COUNTIF('Матчи за текущий год'!I:I, D16) -> 1 | H16: =COUNTIFS('Матчи за текущий год'!E:E, D16, 'Матчи за текущий год'!I:I, "Ничья")+COUNTIFS('Матчи за текущий год'!G:G, D16, 'Матчи за текущий год'!I:I, "Ничья") -> 0 | I16: 2 | J16: =SUM(SUMIF('Матчи за текущий год'!E:E, D16,'Матчи за текущий год'!L:L), SUMIF('Матчи за текущий год'!G:G,D16,'Матчи за текущий год'!M:M)) -> 1.78 | K16: =SUM(SUMIFS('Матчи за текущий год'!M:M,'Матчи за текущий год'!E:E,D16), SUMIFS('Матчи за текущий год'!L:L, 'Матчи за текущий год'!G:G,D16)) -> 11.76 | L16: -9.98 | M16: 3 | N16: 2.99 | O16: =RANK(N16, N$13:N$16) -> 3 | P16: 6 | Q16: 2.99
C17: D | D17: Аргентина | E17: 0% | F17: =COUNTIF('Матчи за текущий год'!$E$5:$G$41, D17) -> 3 | G17: =COUNTIF('Матчи за текущий год'!I:I, D17) -> 0 | H17: =COUNTIFS('Матчи за текущий год'!E:E, D17, 'Матчи за текущий год'!I:I, "Ничья")+COUNTIFS('Матчи за текущий год'!G:G, D17, 'Матчи за текущий год'!I:I, "Ничья") -> 0 | I17: 3 | J17: =SUM(SUMIF('Матчи за текущий год'!E:E, D17,'Матчи за текущий год'!L:L), SUMIF('Матчи за текущий год'!G:G,D17,'Матчи за текущий год'!M:M)) -> 1.76 | K17: =SUM(SUMIFS('Матчи за текущий год'!M:M,'Матчи за текущий год'!E:E,D17), SUMIFS('Матчи за текущий год'!L:L, 'Матчи за текущий год'!G:G,D17)) -> 10.24 | L17: -8.48 | M17: 0 | N17: -0.01 | O17: =RANK(N17, N$17:N$20) -> 4 | Q17: 0.00
C18: D | D18: Англия | E18: 0% | F18: =COUNTIF('Матчи за текущий год'!$E$5:$G$41, D18) -> 3 | G18: =COUNTIF('Матчи за текущий год'!I:I, D18) -> 3 | H18: =COUNTIFS('Матчи за текущий год'!E:E, D18, 'Матчи за текущий год'!I:I, "Ничья")+COUNTIFS('Матчи за текущий год'!G:G, D18, 'Матчи за текущий год'!I:I, "Ничья") -> 0 | I18: 0 | J18: =SUM(SUMIF('Матчи за текущий год'!E:E, D18,'Матчи за текущий год'!L:L), SUMIF('Матчи за текущий год'!G:G,D18,'Матчи за текущий год'!M:M)) -> 7.20 | K18: =SUM(SUMIFS('Матчи за текущий год'!M:M,'Матчи за текущий год'!E:E,D18), SUMIFS('Матчи за текущий год'!L:L, 'Матчи за текущий год'!G:G,D18)) -> 3.24 | L18: 3.96 | M18: 9 | N18: 9.00 | O18: =RANK(N18, N$17:N$20) -> 1 | Q18: 0.00
C19: D | D19: Япония | E19: 0% | F19: =COUNTIF('Матчи за текущий год'!$E$5:$G$41, D19) -> 3 | G19: =COUNTIF('Матчи за текущий год'!I:I, D19) -> 2 | H19: =COUNTIFS('Матчи за текущий год'!E:E, D19, 'Матчи за текущий год'!I:I, "Ничья")+COUNTIFS('Матчи за текущий год'!G:G, D19, 'Матчи за текущий год'!I:I, "Ничья") -> 0 | I19: 1 | J19: =SUM(SUMIF('Матчи за текущий год'!E:E, D19,'Матчи за текущий год'!L:L), SUMIF('Матчи за текущий год'!G:G,D19,'Матчи за текущий год'!M:M)) -> 6.96 | K19: =SUM(SUMIFS('Матчи за текущий год'!M:M,'Матчи за текущий год'!E:E,D19), SUMIFS('Матчи за текущий год'!L:L, 'Матчи за текущий год'!G:G,D19)) -> 3.48 | L19: 3.48 | M19: 6 | N19: 6.00 | O19: =RANK(N19, N$17:N$20) -> 2 | Q19: 0.00
C20: D | D20: Шотландия | E20: 0% | F20: =COUNTIF('Матчи за текущий год'!$E$5:$G$41, D20) -> 3 | G20: =COUNTIF('Матчи за текущий год'!I:I, D20) -> 1 | H20: =COUNTIFS('Матчи за текущий год'!E:E, D20, 'Матчи за текущий год'!I:I, "Ничья")+COUNTIFS('Матчи за текущий год'!G:G, D20, 'Матчи за текущий год'!I:I, "Ничья") -> 0 | I20: 2 | J20: =SUM(SUMIF('Матчи за текущий год'!E:E, D20,'Матчи за текущий год'!L:L), SUMIF('Матчи за текущий год'!G:G,D20,'Матчи за текущий год'!M:M)) -> 5.54 | K20: =SUM(SUMIFS('Матчи за текущий год'!M:M,'Матчи за текущий год'!E:E,D20), SUMIFS('Матчи за текущий год'!L:L, 'Матчи за текущий год'!G:G,D20)) -> 4.50 | L20: 1.04 | M20: 3 | N20: 3.00 | O20: =RANK(N20, N$17:N$20) -> 3 | P20: 3 | Q20: 3.00
C21: E | D21: Камерун | E21: 0% | F21: =COUNTIF('Матчи за текущий год'!$E$5:$G$41, D21) -> 3 | G21: =COUNTIF('Матчи за текущий год'!I:I, D21) -> 0 | H21: =COUNTIFS('Матчи за текущий год'!E:E, D21, 'Матчи за текущий год'!I:I, "Ничья")+COUNTIFS('Матчи за текущий год'!G:G, D21, 'Матчи за текущий год'!I:I, "Ничья") -> 0 | I21: 3 | J21: =SUM(SUMIF('Матчи за текущий год'!E:E, D21,'Матчи за текущий год'!L:L), SUMIF('Матчи за текущий год'!G:G,D21,'Матчи за текущий год'!M:M)) -> 1.08 | K21: =SUM(SUMIFS('Матчи за текущий год'!M:M,'Матчи за текущий год'!E:E,D21), SUMIFS('Матчи за текущий год'!L:L, 'Матчи за текущий год'!G:G,D21)) -> 7.14 | L21: -6.06 | M21: =(G21*3)+(H21*1) -> 0 | N21: -0.01 | O21: =RANK(N21, N$21:N$24) -> 4 | Q21: 0.00
C22: E | D22: Канада | E22: 0% | F22: =COUNTIF('Матчи за текущий год'!$E$5:$G$41, D22) -> 3 | G22: =COUNTIF('Матчи за текущий год'!I:I, D22) -> 3 | H22: =COUNTIFS('Матчи за текущий год'!E:E, D22, 'Матчи за текущий год'!I:I, "Ничья")+COUNTIFS('Матчи за текущий год'!G:G, D22, 'Матчи за текущий год'!I:I, "Ничья") -> 0 | I22: 0 | J22: =SUM(SUMIF('Матчи за текущий год'!E:E, D22,'Матчи за текущий год'!L:L), SUMIF('Матчи за текущий год'!G:G,D22,'Матчи за текущий год'!M:M)) -> 5.50 | K22: =SUM(SUMIFS('Матчи за текущий год'!M:M,'Матчи за текущий год'!E:E,D22), SUMIFS('Матчи за текущий год'!L:L, 'Матчи за текущий год'!G:G,D22)) -> 2.68 | L22: 2.82 | M22: 9 | N22: 9.00 | O22: =RANK(N22, N$21:N$24) -> 1 | Q22: 0.00
C23: E | D23: Нидерланды | E23: 0% | F23: =COUNTIF('Матчи за текущий год'!$E$5:$G$41, D23) -> 3 | G23: =COUNTIF('Матчи за текущий год'!I:I, D23) -> 2 | H23: =COUNTIFS('Матчи за текущий год'!E:E, D23, 'Матчи за текущий год'!I:I, "Ничья")+COUNTIFS('Матчи за текущий год'!G:G, D23, 'Матчи за текущий год'!I:I, "Ничья") -> 0 | I23: 1 | J23: =SUM(SUMIF('Матчи за текущий год'!E:E, D23,'Матчи за текущий год'!L:L), SUMIF('Матчи за текущий год'!G:G,D23,'Матчи за текущий год'!M:M)) -> 5.42 | K23: =SUM(SUMIFS('Матчи за текущий год'!M:M,'Матчи за текущий год'!E:E,D23), SUMIFS('Матчи за текущий год'!L:L, 'Матчи за текущий год'!G:G,D23)) -> 3.08 | L23: 2.34 | M23: 6 | N23: 6.00 | O23: =RANK(N23, N$21:N$24) -> 2 | Q23: 0.00
C24: E | D24: Новая Зеландия | E24: 0% | F24: =COUNTIF('Матчи за текущий год'!$E$5:$G$41, D24) -> 3 | G24: =COUNTIF('Матчи за текущий год'!I:I, D24) -> 1 | H24: =COUNTIFS('Матчи за текущий год'!E:E, D24, 'Матчи за текущий год'!I:I, "Ничья")+COUNTIFS('Матчи за текущий год'!G:G, D24, 'Матчи за текущий год'!I:I, "Ничья") -> 0 | I24: 2 | J24: =SUM(SUMIF('Матчи за текущий год'!E:E, D24,'Матчи за текущий год'!L:L), SUMIF('Матчи за текущий год'!G:G,D24,'Матчи за текущий год'!M:M)) -> 4.32 | K24: =SUM(SUMIFS('Матчи за текущий год'!M:M,'Матчи за текущий год'!E:E,D24), SUMIFS('Матчи за текущий год'!L:L, 'Матчи за текущий год'!G:G,D24)) -> 3.42 | L24: 0.90 | M24: 3 | N24: 3.00 | O24: =RANK(N24, N$21:N$24) -> 3 | P24: 4 | Q24: 3.00
C25: F | D25: Чили | E25: 0% | F25: =COUNTIF('Матчи за текущий год'!$E$5:$G$41, D25) -> 3 | G25: =COUNTIF('Матчи за текущий год'!I:I, D25) -> 1 | H25: =COUNTIFS('Матчи за текущий год'!E:E, D25, 'Матчи за текущий год'!I:I, "Ничья")+COUNTIFS('Матчи за текущий год'!G:G, D25, 'Матчи за текущий год'!I:I, "Ничья") -> 0 | I25: 2 | J25: =SUM(SUMIF('Матчи за текущий год'!E:E, D25,'Матчи за текущий год'!L:L), SUMIF('Матчи за текущий год'!G:G,D25,'Матчи за текущий год'!M:M)) -> 2.56 | K25: =SUM(SUMIFS('Матчи за текущий год'!M:M,'Матчи за текущий год'!E:E,D25), SUMIFS('Матчи за текущий год'!L:L, 'Матчи за текущий год'!G:G,D25)) -> 8.68 | L25: -6.12 | M25: 3 | N25: 2.99 | O25: =RANK(N25, N$25:N$28) -> 3 | P25: 5 | Q25: 2.99
C26: F | D26: Швеция | E26: 0% | F26: =COUNTIF('Матчи за текущий год'!$E$5:$G$41, D26) -> 3 | G26: =COUNTIF('Матчи за текущий год'!I:I, D26) -> 2 | H26: =COUNTIFS('Матчи за текущий год'!E:E, D26, 'Матчи за текущий год'!I:I, "Ничья")+COUNTIFS('Матчи за текущий год'!G:G, D26, 'Матчи за текущий год'!I:I, "Ничья") -> 1 | I26: 0 | J26: =SUM(SUMIF('Матчи за текущий год'!E:E, D26,'Матчи за текущий год'!L:L), SUMIF('Матчи за текущий год'!G:G,D26,'Матчи за текущий год'!M:M)) -> 8.04 | K26: =SUM(SUMIFS('Матчи за текущий год'!M:M,'Матчи за текущий год'!E:E,D26), SUMIFS('Матчи за текущий год'!L:L, 'Матчи за текущий год'!G:G,D26)) -> 2.36 | L26: 5.68 | M26: 7 | N26: 7.01 | O26: =RANK(N26, N$25:N$28) -> 1 | Q26: 0.00
C27: F | D27: Таиланд | E27: 0% | F27: =COUNTIF('Матчи за текущий год'!$E$5:$G$41, D27) -> 3 | G27: =COUNTIF('Матчи за текущий год'!I:I, D27) -> 0 | H27: =COUNTIFS('Матчи за текущий год'!E:E, D27, 'Матчи за текущий год'!I:I, "Ничья")+COUNTIFS('Матчи за текущий год'!G:G, D27, 'Матчи за текущий год'!I:I, "Ничья") -> 0 | I27: 3 | J27: =SUM(SUMIF('Матчи за текущий год'!E:E, D27,'Матчи за текущий год'!L:L), SUMIF('Матчи за текущий год'!G:G,D27,'Матчи за текущий год'!M:M)) -> 2.36 | K27: =SUM(SUMIFS('Матчи за текущий год'!M:M,'Матчи за текущий год'!E:E,D27), SUMIFS('Матчи за текущий год'!L:L, 'Матчи за текущий год'!G:G,D27)) -> 7.56 | L27: -5.20 | M27: 0 | N27: -0.00 | O27: =RANK(N27, N$25:N$28) -> 4 | Q27: 0.00
C28: F | D28: США | E28: 0% | F28: =COUNTIF('Матчи за текущий год'!$E$5:$G$41, D28) -> 3 | G28: =COUNTIF('Матчи за текущий год'!I:I, D28) -> 2 | H28: =COUNTIFS('Матчи за текущий год'!E:E, D28, 'Матчи за текущий год'!I:I, "Ничья")+COUNTIFS('Матчи за текущий год'!G:G, D28, 'Матчи за текущий год'!I:I, "Ничья") -> 1 | I28: 0 | J28: =SUM(SUMIF('Матчи за текущий год'!E:E, D28,'Матчи за текущий год'!L:L), SUMIF('Матчи за текущий год'!G:G,D28,'Матчи за текущий год'!M:M)) -> 8.30 | K28: =SUM(SUMIFS('Матчи за текущий год'!M:M,'Матчи за текущий год'!E:E,D28), SUMIFS('Матчи за текущий год'!L:L, 'Матчи за текущий год'!G:G,D28)) -> 2.66 | L28: 5.64 | M28: 7 | N28: 7.01 | O28: =RANK(N28, N$25:N$28) -> 2 | Q28: 0.00

Sheet Матчи за текущий год
C2: Матчи за текущий год | P2: =_xlfn.POISSON.DIST({0,1,2,3,4,5,6,7,8,9},$O6, TRUE) -> 0.1685937746 | Q2: =_xlfn.POISSON.DIST(2,2, TRUE) -> 0.6766764162
C4: Матчи 2019 г. | J4: Ваши изменения | L4: Скрытый столбец A | M4: Скрытый столбец Б | O4: Входные данные из предыдущих этапов | Q4: Результаты моделирования -->
C5: Дата | D5: Группа | E5: Команда А | F5: Прогнозируемый результат А | G5: Команда Б | H5: Прогнозируемый результат Б | I5: Победитель | J5: Прогнозы команды А | K5: Прогнозы команды Б | L5: Столбец1 | M5: Столбец2 | N5: Столбец3 | O5: Среднее число голов, забиваемое командой А | P5: Среднее число голов, забиваемое командой Б | Q5: Итерация 1 команды A | R5: Итерация 2 команды A | S5: Итерация 3 команды A | T5: Итерация 4 команды A | U5: Итерация 5 команды A | V5: Итерация 6 команды A | W5: Итерация 7 команды A | X5: Итерация 8 команды A | Y5: Итерация 9 команды A | Z5: Итерация 10 команды A | AA5: Итерация 11 команды A | AB5: Итерация 12 команды A | AC5: Итерация 13 команды A | AD5: Итерация 14 команды A | AE5: Итерация 15 команды A | AF5: Итерация 16 команды A | AG5: Итерация 17 команды A | AH5: Итерация 18 команды A | AI5: Итерация 19 команды A | AJ5: Итерация 20 команды A | AK5: Итерация 21 команды A | AL5: Итерация 22 команды A | AM5: Итерация 23 команды A | AN5: Итерация 24 команды A | AO5: Итерация 25 команды A | AP5: Итерация 26 команды A | AQ5: Итерация 27 команды A | AR5: Итерация 28 команды A | AS5: Итерация 29 команды A | AT5: Итерация 30 команды A | AU5: Итерация 31 команды A | AV5: Итерация 32 команды A | AW5: Итерация 33 команды A | AX5: Итерация 34 команды A | AY5: Итерация 35 команды A | AZ5: Итерация 36 команды A | BA5: Итерация 37 команды A | BB5: Итерация 38 команды A | BC5: Итерация 39 команды A | BD5: Итерация 40 команды A | BE5: Итерация 41 команды A | BF5: Итерация 42 команды A | BG5: Итерация 43 команды A | BH5: Итерация 44 команды A | BI5: Итерация 45 команды A | BJ5: Итерация 46 команды A | BK5: Итерация 47 команды A | BL5: Итерация 48 команды A | BM5: Итерация 49 команды A | BN5: Итерация 50 команды A | BP5: Итерация 1 команды Б | BQ5: Итерация 2 команды Б | BR5: Итерация 3 команды Б | BS5: Итерация 4 команды Б | BT5: Итерация 5 команды Б | BU5: Итерация 6 команды Б | BV5: Итерация 7 команды Б | BW5: Итерация 8 команды Б | BX5: Итерация 9 команды Б | BY5: Итерация 10 команды Б | BZ5: Итерация 11 команды Б | CA5: Итерация 12 команды Б | CB5: Итерация 13 команды Б | CC5: Итерация 14 команды Б | CD5: Итерация 15 команды Б | CE5: Итерация 16 команды Б | CF5: Итерация 17 команды Б | CG5: Итерация 18 команды Б | CH5: Итерация 19 команды Б | CI5: Итерация 20 команды Б | CJ5: Итерация 21 команды Б | CK5: Итерация 22 команды Б | CL5: Итерация 23 команды Б | CM5: Итерация 24 команды Б | CN5: Итерация 25 команды Б | CO5: Итерация 26 команды Б | CP5: Итерация 27 команды Б | CQ5: Итерация 28 команды Б | CR5: Итерация 29 команды Б | CS5: Итерация 30 команды Б | CT5: Итерация 31 команды Б | CU5: Итерация 32 команды Б | CV5: Итерация 33 команды Б | CW5: Итерация 34 команды Б | CX5: Итерация 35 команды Б | CY5: Итерация 36 команды Б | CZ5: Итерация 37 команды Б | DA5: Итерация 38 команды Б | DB5: Итерация 39 команды Б | DC5: Итерация 40 команды Б | DD5: Итерация 41 команды Б | DE5: Итерация 42 команды Б | DF5: Итерация 43 команды Б | DG5: Итерация 44 команды Б | DH5: Итерация 45 команды Б | DI5: Итерация 46 команды Б | DJ5: Итерация 47 команды Б | DK5: Итерация 48 команды Б | DL5: Итерация 49 команды Б | DM5: Итерация 50 команды Б
C6: 2019-06-07 | D6: A | E6: Франция | F6: =(AVERAGE(Q6:BN6))*(1+INDEX('Прогнозы группового этапа'!$C$4:$O$28, MATCH('Матчи за текущий год'!E6,'Прогнозы группового этапа'!$D$4:$D$28,0),3)) -> 1.70 | G6: Республика Корея | H6: =(AVERAGE(BP6:DM6))*(1+INDEX('Прогнозы группового этапа'!$C$4:$O$28, MATCH('Матчи за текущий год'!G6,'Прогнозы группового этапа'!$D$4:$D$28,0),3)) -> 1.16 | I6: =IF(L6>M6,E6,IF(L6=M6,"Ничья",G6)) -> Франция | L6: =IF(ISBLANK(J6), F6,J6) -> 1.7 | M6: =IF(ISBLANK(K6), H6,K6) -> 1.16 | N6: =IF(L6>M6,E6,IF(L6=M6,"Ничья",G6)) -> Франция | O6: =(OFFSET('Прил. 3. Голы в группе'!$D$14,(INDEX('Прил. 1. Данные команды'!$C$13:$F$112,MATCH(G6,'Прил. 1. Данные команды'!$C$13:$C$112,0),4)/10),(INDEX('Прил. 1. Данные команды'!$C$13:$F$112,MATCH(E6,'Прил. 1. Данные команды'!$C$13:$C$112,0),4)/10))) -> 1.78 | P6: =OFFSET('Прил. 3. Голы в группе'!$D$14,(INDEX('Прил. 1. Данные команды'!$C$13:$F$112, MATCH(E6,'Прил. 1. Данные команды'!$C$13:$C$112,0),4)/10), (INDEX('Прил. 1. Данные команды'!$C$13:$F$112, MATCH(G6, 'Прил. 1. Данные команды'!$C$13:$C$112,0),4)/10)) -> 1.07 | Q6: =_xlfn.IFNA(MATCH(RAND(), _xlfn.POISSON.DIST({0,1,2,3,4,5,6,7,8,9},$O6, TRUE),1), 0) -> 0 | R6: =_xlfn.IFNA(MATCH(RAND(), _xlfn.POISSON.DIST({0,1,2,3,4,5,6,7,8,9},$O6, TRUE),1), 0) -> 4 | S6: =_xlfn.IFNA(MATCH(RAND(), _xlfn.POISSON.DIST({0,1,2,3,4,5,6,7,8,9},$O6, TRUE),1), 0) -> 3 | T6: =_xlfn.IFNA(MATCH(RAND(), _xlfn.POISSON.DIST({0,1,2,3,4,5,6,7,8,9},$O6, TRUE),1), 0) -> 1 | U6: =_xlfn.IFNA(MATCH(RAND(), _xlfn.POISSON.DIST({0,1,2,3,4,5,6,7,8,9},$O6, TRUE),1), 0) -> 1 | V6: =_xlfn.IFNA(MATCH(RAND(), _xlfn.POISSON.DIST({0,1,2,3,4,5,6,7,8,9},$O6, TRUE),1), 0) -> 1 | W6: =_xlfn.IFNA(MATCH(RAND(), _xlfn.POISSON.DIST({0,1,2,3,4,5,6,7,8,9},$O6, TRUE),1), 0) -> 1 | X6: =_xlfn.IFNA(MATCH(RAND(), _xlfn.POISSON.DIST({0,1,2,3,4,5,6,7,8,9},$O6, TRUE),1), 0) -> 2 | Y6: =_xlfn.IFNA(MATCH(RAND(), _xlfn.POISSON.DIST({0,1,2,3,4,5,6,7,8,9},$O6, TRUE),1), 0) -> 3 | Z6: =_xlfn.IFNA(MATCH(RAND(), _xlfn.POISSON.DIST({0,1,2,3,4,5,6,7,8,9},$O6, TRUE),1), 0) -> 0 | AA6: =_xlfn.IFNA(MATCH(RAND(), _xlfn.POISSON.DIST({0,1,2,3,4,5,6,7,8,9},$O6, TRUE),1), 0) -> 2 | AB6: =_xlfn.IFNA(MATCH(RAND(), _xlfn.POISSON.DIST({0,1,2,3,4,5,6,7,8,9},$O6, TRUE),1), 0) -> 1 | AC6: =_xlfn.IFNA(MATCH(RAND(), _xlfn.POISSON.DIST({0,1,2,3,4,5,6,7,8,9},$O6, TRUE),1), 0) -> 0 | AD6: =_xlfn.IFNA(MATCH(RAND(), _xlfn.POISSON.DIST({0,1,2,3,4,5,6,7,8,9},$O6, TRUE),1), 0) -> 4 | AE6: =_xlfn.IFNA(MATCH(RAND(), _xlfn.POISSON.DIST({0,1,2,3,4,5,6,7,8,9},$O6, TRUE),1), 0) -> 2 | AF6: =_xlfn.IFNA(MATCH(RAND(), _xlfn.POISSON.DIST({0,1,2,3,4,5,6,7,8,9},$O6, TRUE),1), 0) -> 3 | AG6: =_xlfn.IFNA(MATCH(RAND(), _xlfn.POISSON.DIST({0,1,2,3,4,5,6,7,8,9},$O6, TRUE),1), 0) -> 3 | AH6: =_xlfn.IFNA(MATCH(RAND(), _xlfn.POISSON.DIST({0,1,2,3,4,5,6,7,8,9},$O6, TRUE),1), 0) -> 2 | AI6: =_xlfn.IFNA(MATCH(RAND(), _xlfn.POISSON.DIST({0,1,2,3,4,5,6,7,8,9},$O6, TRUE),1), 0) -> 4 | AJ6: =_xlfn.IFNA(MATCH(RAND(), _xlfn.POISSON.DIST({0,1,2,3,4,5,6,7,8,9},$O6, TRUE),1), 0) -> 3 | AK6: =_xlfn.IFNA(MATCH(RAND(), _xlfn.POISSON.DIST({0,1,2,3,4,5,6,7,8,9},$O6, TRUE),1), 0) -> 0 | AL6: =_xlfn.IFNA(MATCH(RAND(), _xlfn.POISSON.DIST({0,1,2,3,4,5,6,7,8,9},$O6, TRUE),1), 0) -> 1 | AM6: =_xlfn.IFNA(MATCH(RAND(), _xlfn.POISSON.DIST({0,1,2,3,4,5,6,7,8,9},$O6, TRUE),1), 0) -> 3 | AN6: =_xlfn.IFNA(MATCH(RAND(), _xlfn.POISSON.DIST({0,1,2,3,4,5,6,7,8,9},$O6, TRUE),1), 0) -> 2 | AO6: =_xlfn.IFNA(MATCH(RAND(), _xlfn.POISSON.DIST({0,1,2,3,4,5,6,7,8,9},$O6, TRUE),1), 0) -> 0 | AP6: =_xlfn.IFNA(MATCH(RAND(), _xlfn.POISSON.DIST({0,1,2,3,4,5,6,7,8,9},$O6, TRUE),1), 0) -> 6 | AQ6: =_xlfn.IFNA(MATCH(RAND(), _xlfn.POISSON.DIST({0,1,2,3,4,5,6,7,8,9},$O6, TRUE),1), 0) -> 3 | AR6: =_xlfn.IFNA(MATCH(RAND(), _xlfn.POISSON.DIST({0,1,2,3,4,5,6,7,8,9},$O6, TRUE),1), 0) -> 1 | AS6: =_xlfn.IFNA(MATCH(RAND(), _xlfn.POISSON.DIST({0,1,2,3,4,5,6,7,8,9},$O6, TRUE),1), 0) -> 2 | AT6: =_xlfn.IFNA(MATCH(RAND(), _xlfn.POISSON.DIST({0,1,2,3,4,5,6,7,8,9},$O6, TRUE),1), 0) -> 1 | AU6: =_xlfn.IFNA(MATCH(RAND(), _xlfn.POISSON.DIST({0,1,2,3,4,5,6,7,8,9},$O6, TRUE),1), 0) -> 5 | AV6: =_xlfn.IFNA(MATCH(RAND(), _xlfn.POISSON.DIST({0,1,2,3,4,5,6,7,8,9},$O6, TRUE),1), 0) -> 1 | AW6: =_xlfn.IFNA(MATCH(RAND(), _xlfn.POISSON.DIST({0,1,2,3,4,5,6,7,8,9},$O6, TRUE),1), 0) -> 0 | AX6: =_xlfn.IFNA(MATCH(RAND(), _xlfn.POISSON.DIST({0,1,2,3,4,5,6,7,8,9},$O6, TRUE),1), 0) -> 2 | AY6: =_xlfn.IFNA(MATCH(RAND(), _xlfn.POISSON.DIST({0,1,2,3,4,5,6,7,8,9},$O6, TRUE),1), 0) -> 1 | AZ6: =_xlfn.IFNA(MATCH(RAND(), _xlfn.POISSON.DIST({0,1,2,3,4,5,6,7,8,9},$O6, TRUE),1), 0) -> 2 | BA6: =_xlfn.IFNA(MATCH(RAND(), _xlfn.POISSON.DIST({0,1,2,3,4,5,6,7,8,9},$O6, TRUE),1), 0) -> 2 | BB6: =_xlfn.IFNA(MATCH(RAND(), _xlfn.POISSON.DIST({0,1,2,3,4,5,6,7,8,9},$O6, TRUE),1), 0) -> 2 | BC6: =_xlfn.IFNA(MATCH(RAND(), _xlfn.POISSON.DIST({0,1,2,3,4,5,6,7,8,9},$O6, TRUE),1), 0) -> 0 | BD6: =_xlfn.IFNA(MATCH(RAND(), _xlfn.POISSON.DIST({0,1,2,3,4,5,6,7,8,9},$O6, TRUE),1), 0) -> 1 | BE6: =_xlfn.IFNA(MATCH(RAND(), _xlfn.POISSON.DIST({0,1,2,3,4,5,6,7,8,9},$O6, TRUE),1), 0) -> 2 | BF6: =_xlfn.IFNA(MATCH(RAND(), _xlfn.POISSON.DIST({0,1,2,3,4,5,6,7,8,9},$O6, TRUE),1), 0) -> 0 | BG6: =_xlfn.IFNA(MATCH(RAND(), _xlfn.POISSON.DIST({0,1,2,3,4,5,6,7,8,9},$O6, TRUE),1), 0) -> 2 | BH6: =_xlfn.IFNA(MATCH(RAND(), _xlfn.POISSON.DIST({0,1,2,3,4,5,6,7,8,9},$O6, TRUE),1), 0) -> 1 | BI6: =_xlfn.IFNA(MATCH(RAND(), _xlfn.POISSON.DIST({0,1,2,3,4,5,6,7,8,9},$O6, TRUE),1), 0) -> 0 | BJ6: =_xlfn.IFNA(MATCH(RAND(), _xlfn.POISSON.DIST({0,1,2,3,4,5,6,7,8,9},$O6, TRUE),1), 0) -> 3 | BK6: =_xlfn.IFNA(MATCH(RAND(), _xlfn.POISSON.DIST({0,1,2,3,4,5,6,7,8,9},$O6, TRUE),1), 0) -> 0 | BL6: =_xlfn.IFNA(MATCH(RAND(), _xlfn.POISSON.DIST({0,1,2,3,4,5,6,7,8,9},$O6, TRUE),1), 0) -> 1 | BM6: =_xlfn.IFNA(MATCH(RAND(), _xlfn.POISSON.DIST({0,1,2,3,4,5,6,7,8,9},$O6, TRUE),1), 0) -> 0 | BN6: =_xlfn.IFNA(MATCH(RAND(), _xlfn.POISSON.DIST({0,1,2,3,4,5,6,7,8,9},$O6, TRUE),1), 0) -> 1 | BP6: =_xlfn.IFNA(MATCH(RAND(), _xlfn.POISSON.DIST({0,1,2,3,4,5,6,7,8,9},$P6, TRUE),1), 0) -> 3 | BQ6: =_xlfn.IFNA(MATCH(RAND(), _xlfn.POISSON.DIST({0,1,2,3,4,5,6,7,8,9},$P6, TRUE),1), 0) -> 2 | BR6: =_xlfn.IFNA(MATCH(RAND(), _xlfn.POISSON.DIST({0,1,2,3,4,5,6,7,8,9},$P6, TRUE),1), 0) -> 2 | BS6: =_xlfn.IFNA(MATCH(RAND(), _xlfn.POISSON.DIST({0,1,2,3,4,5,6,7,8,9},$P6, TRUE),1), 0) -> 1 | BT6: =_xlfn.IFNA(MATCH(RAND(), _xlfn.POISSON.DIST({0,1,2,3,4,5,6,7,8,9},$P6, TRUE),1), 0) -> 0 | BU6: =_xlfn.IFNA(MATCH(RAND(), _xlfn.POISSON.DIST({0,1,2,3,4,5,6,7,8,9},$P6, TRUE),1), 0) -> 1 | BV6: =_xlfn.IFNA(MATCH(RAND(), _xlfn.POISSON.DIST({0,1,2,3,4,5,6,7,8,9},$P6, TRUE),1), 0) -> 2 | BW6: =_xlfn.IFNA(MATCH(RAND(), _xlfn.POISSON.DIST({0,1,2,3,4,5,6,7,8,9},$P6, TRUE),1), 0) -> 0 | BX6: =_xlfn.IFNA(MATCH(RAND(), _xlfn.POISSON.DIST({0,1,2,3,4,5,6,7,8,9},$P6, TRUE),1), 0) -> 0 | BY6: =_xlfn.IFNA(MATCH(RAND(), _xlfn.POISSON.DIST({0,1,2,3,4,5,6,7,8,9},$P6, TRUE),1), 0) -> 0 | BZ6: =_xlfn.IFNA(MATCH(RAND(), _xlfn.POISSON.DIST({0,1,2,3,4,5,6,7,8,9},$P6, TRUE),1), 0) -> 0 | CA6: =_xlfn.IFNA(MATCH(RAND(), _xlfn.POISSON.DIST({0,1,2,3,4,5,6,7,8,9},$P6, TRUE),1), 0) -> 1 | CB6: =_xlfn.IFNA(MATCH(RAND(), _xlfn.POISSON.DIST({0,1,2,3,4,5,6,7,8,9},$P6, TRUE),1), 0) -> 2 | CC6: =_xlfn.IFNA(MATCH(RAND(), _xlfn.POISSON.DIST({0,1,2,3,4,5,6,7,8,9},$P6, TRUE),1), 0) -> 1 | CD6: =_xlfn.IFNA(MATCH(RAND(), _xlfn.POISSON.DIST({0,1,2,3,4,5,6,7,8,9},$P6, TRUE),1), 0) -> 1 | CE6: =_xlfn.IFNA(MATCH(RAND(), _xlfn.POISSON.DIST({0,1,2,3,4,5,6,7,8,9},$P6, TRUE),1), 0) -> 2 | CF6: =_xlfn.IFNA(MATCH(RAND(), _xlfn.POISSON.DIST({0,1,2,3,4,5,6,7,8,9},$P6, TRUE),1), 0) -> 1 | CG6: =_xlfn.IFNA(MATCH(RAND(), _xlfn.POISSON.DIST({0,1,2,3,4,5,6,7,8,9},$P6, TRUE),1), 0) -> 3 | CH6: =_xlfn.IFNA(MATCH(RAND(), _xlfn.POISSON.DIST({0,1,2,3,4,5,6,7,8,9},$P6, TRUE),1), 0) -> 1 | CI6: =_xlfn.IFNA(MATCH(RAND(), _xlfn.POISSON.DIST({0,1,2,3,4,5,6,7,8,9},$P6, TRUE),1), 0) -> 0 | CJ6: =_xlfn.IFNA(MATCH(RAND(), _xlfn.POISSON.DIST({0,1,2,3,4,5,6,7,8,9},$P6, TRUE),1), 0) -> 0 | CK6: =_xlfn.IFNA(MATCH(RAND(), _xlfn.POISSON.DIST({0,1,2,3,4,5,6,7,8,9},$P6, TRUE),1), 0) -> 3 | CL6: =_xlfn.IFNA(MATCH(RAND(), _xlfn.POISSON.DIST({0,1,2,3,4,5,6,7,8,9},$P6, TRUE),1), 0) -> 1 | CM6: =_xlfn.IFNA(MATCH(RAND(), _xlfn.POISSON.DIST({0,1,2,3,4,5,6,7,8,9},$P6, TRUE),1), 0) -> 0 | CN6: =_xlfn.IFNA(MATCH(RAND(), _xlfn.POISSON.DIST({0,1,2,3,4,5,6,7,8,9},$P6, TRUE),1), 0) -> 1 | CO6: =_xlfn.IFNA(MATCH(RAND(), _xlfn.POISSON.DIST({0,1,2,3,4,5,6,7,8,9},$P6, TRUE),1), 0) -> 1 | CP6: =_xlfn.IFNA(MATCH(RAND(), _xlfn.POISSON.DIST({0,1,2,3,4,5,6,7,8,9},$P6, TRUE),1), 0) -> 3 | CQ6: =_xlfn.IFNA(MATCH(RAND(), _xlfn.POISSON.DIST({0,1,2,3,4,5,6,7,8,9},$P6, TRUE),1), 0) -> 0 | CR6: =_xlfn.IFNA(MATCH(RAND(), _xlfn.POISSON.DIST({0,1,2,3,4,5,6,7,8,9},$P6, TRUE),1), 0) -> 2 | CS6: =_xlfn.IFNA(MATCH(RAND(), _xlfn.POISSON.DIST({0,1,2,3,4,5,6,7,8,9},$P6, TRUE),1), 0) -> 0 | CT6: =_xlfn.IFNA(MATCH(RAND(), _xlfn.POISSON.DIST({0,1,2,3,4,5,6,7,8,9},$P6, TRUE),1), 0) -> 1 | CU6: =_xlfn.IFNA(MATCH(RAND(), _xlfn.POISSON.DIST({0,1,2,3,4,5,6,7,8,9},$P6, TRUE),1), 0) -> 1 | CV6: =_xlfn.IFNA(MATCH(RAND(), _xlfn.POISSON.DIST({0,1,2,3,4,5,6,7,8,9},$P6, TRUE),1), 0) -> 3 | CW6: =_xlfn.IFNA(MATCH(RAND(), _xlfn.POISSON.DIST({0,1,2,3,4,5,6,7,8,9},$P6, TRUE),1), 0) -> 4 | CX6: =_xlfn.IFNA(MATCH(RAND(), _xlfn.POISSON.DIST({0,1,2,3,4,5,6,7,8,9},$P6, TRUE),1), 0) -> 1 | CY6: =_xlfn.IFNA(MATCH(RAND(), _xlfn.POISSON.DIST({0,1,2,3,4,5,6,7,8,9},$P6, TRUE),1), 0) -> 1 | CZ6: =_xlfn.IFNA(MATCH(RAND(), _xlfn.POISSON.DIST({0,1,2,3,4,5,6,7,8,9},$P6, TRUE),1), 0) -> 2 | DA6: =_xlfn.IFNA(MATCH(RAND(), _xlfn.POISSON.DIST({0,1,2,3,4,5,6,7,8,9},$P6, TRUE),1), 0) -> 3 | DB6: =_xlfn.IFNA(MATCH(RAND(), _xlfn.POISSON.DIST({0,1,2,3,4,5,6,7,8,9},$P6, TRUE),1), 0) -> 2 | DC6: =_xlfn.IFNA(MATCH(RAND(), _xlfn.POISSON.DIST({0,1,2,3,4,5,6,7,8,9},$P6, TRUE),1), 0) -> 0 | DD6: =_xlfn.IFNA(MATCH(RAND(), _xlfn.POISSON.DIST({0,1,2,3,4,5,6,7,8,9},$P6, TRUE),1), 0) -> 2 | DE6: =_xlfn.IFNA(MATCH(RAND(), _xlfn.POISSON.DIST({0,1,2,3,4,5,6,7,8,9},$P6, TRUE),1), 0) -> 0 | DF6: =_xlfn.IFNA(MATCH(RAND(), _xlfn.POISSON.DIST({0,1,2,3,4,5,6,7,8,9},$P6, TRUE),1), 0) -> 0 | DG6: =_xlfn.IFNA(MATCH(RAND(), _xlfn.POISSON.DIST({0,1,2,3,4,5,6,7,8,9},$P6, TRUE),1), 0) -> 2 | DH6: =_xlfn.IFNA(MATCH(RAND(), _xlfn.POISSON.DIST({0,1,2,3,4,5,6,7,8,9},$P6, TRUE),1), 0) -> 0 | DI6: =_xlfn.IFNA(MATCH(RAND(), _xlfn.POISSON.DIST({0,1,2,3,4,5,6,7,8,9},$P6, TRUE),1), 0) -> 1 | DJ6: =_xlfn.IFNA(MATCH(RAND(), _xlfn.POISSON.DIST({0,1,2,3,4,5,6,7,8,9},$P6, TRUE),1), 0) -> 1 | DK6: =_xlfn.IFNA(MATCH(RAND(), _xlfn.POISSON.DIST({0,1,2,3,4,5,6,7,8,9},$P6, TRUE),1), 0) -> 0 | DL6: =_xlfn.IFNA(MATCH(RAND(), _xlfn.POISSON.DIST({0,1,2,3,4,5,6,7,8,9},$P6, TRUE),1), 0) -> 0 | DM6: =_xlfn.IFNA(MATCH(RAND(), _xlfn.POISSON.DIST({0,1,2,3,4,5,6,7,8,9},$P6, TRUE),1), 0) -> 0
C7: 2019-06-08 | D7: Б | E7: Германия | F7: =(AVERAGE(Q7:BN7))*(1+INDEX('Прогнозы группового этапа'!$C$4:$O$28, MATCH('Матчи за текущий год'!E7,'Прогнозы группового этапа'!$D$4:$D$28,0),3)) -> 1.58 | G7: Китай | H7: =(AVERAGE(BP7:DM7))*(1+INDEX('Прогнозы группового этапа'!$C$4:$O$28, MATCH('Матчи за текущий год'!G7,'Прогнозы группового этапа'!$D$4:$D$28,0),3)) -> 0.72 | I7: Германия | L7: 1.58 | M7: 0.72 | N7: Германия | O7: =(OFFSET('Прил. 3. Голы в группе'!$D$14,(INDEX('Прил. 1. Данные команды'!$C$13:$F$112,MATCH(G7,'Прил. 1. Данные команды'!$C$13:$C$112,0),4)/10),(INDEX('Прил. 1. Данные команды'!$C$13:$F$112,MATCH(E7,'Прил. 1. Данные команды'!$C$13:$C$112,0),4)/10))) -> 1.78 | P7: =OFFSET('Прил. 3. Голы в группе'!$D$14,(INDEX('Прил. 1. Данные команды'!$C$13:$F$112, MATCH(E7,'Прил. 1. Данные команды'!$C$13:$C$112,0),4)/10), (INDEX('Прил. 1. Данные команды'!$C$13:$F$112, MATCH(G7, 'Прил. 1. Данные команды'!$C$13:$C$112,0),4)/10)) -> 1.07 | Q7: =_xlfn.IFNA(MATCH(RAND(), _xlfn.POISSON.DIST({0,1,2,3,4,5,6,7,8,9},$O7, TRUE),1), 0) -> 2 | R7: =_xlfn.IFNA(MATCH(RAND(), _xlfn.POISSON.DIST({0,1,2,3,4,5,6,7,8,9},$O7, TRUE),1), 0) -> 2 | S7: =_xlfn.IFNA(MATCH(RAND(), _xlfn.POISSON.DIST({0,1,2,3,4,5,6,7,8,9},$O7, TRUE),1), 0) -> 1 | T7: =_xlfn.IFNA(MATCH(RAND(), _xlfn.POISSON.DIST({0,1,2,3,4,5,6,7,8,9},$O7, TRUE),1), 0) -> 5 | U7: =_xlfn.IFNA(MATCH(RAND(), _xlfn.POISSON.DIST({0,1,2,3,4,5,6,7,8,9},$O7, TRUE),1), 0) -> 3 | V7: =_xlfn.IFNA(MATCH(RAND(), _xlfn.POISSON.DIST({0,1,2,3,4,5,6,7,8,9},$O7, TRUE),1), 0) -> 3 | W7: =_xlfn.IFNA(MATCH(RAND(), _xlfn.POISSON.DIST({0,1,2,3,4,5,6,7,8,9},$O7, TRUE),1), 0) -> 0 | X7: =_xlfn.IFNA(MATCH(RAND(), _xlfn.POISSON.DIST({0,1,2,3,4,5,6,7,8,9},$O7, TRUE),1), 0) -> 1 | Y7: =_xlfn.IFNA(MATCH(RAND(), _xlfn.POISSON.DIST({0,1,2,3,4,5,6,7,8,9},$O7, TRUE),1), 0) -> 1 | Z7: =_xlfn.IFNA(MATCH(RAND(), _xlfn.POISSON.DIST({0,1,2,3,4,5,6,7,8,9},$O7, TRUE),1), 0) -> 2 | AA7: =_xlfn.IFNA(MATCH(RAND(), _xlfn.POISSON.DIST({0,1,2,3,4,5,6,7,8,9},$O7, TRUE),1), 0) -> 0 | AB7: =_xlfn.IFNA(MATCH(RAND(), _xlfn.POISSON.DIST({0,1,2,3,4,5,6,7,8,9},$O7, TRUE),1), 0) -> 0 | AC7: =_xlfn.IFNA(MATCH(RAND(), _xlfn.POISSON.DIST({0,1,2,3,4,5,6,7,8,9},$O7, TRUE),1), 0) -> 3 | AD7: =_xlfn.IFNA(MATCH(RAND(), _xlfn.POISSON.DIST({0,1,2,3,4,5,6,7,8,9},$O7, TRUE),1), 0) -> 3 | AE7: =_xlfn.IFNA(MATCH(RAND(), _xlfn.POISSON.DIST({0,1,2,3,4,5,6,7,8,9},$O7, TRUE),1), 0) -> 2 | AF7: =_xlfn.IFNA(MATCH(RAND(), _xlfn.POISSON.DIST({0,1,2,3,4,5,6,7,8,9},$O7, TRUE),1), 0) -> 1 | AG7: =_xlfn.IFNA(MATCH(RAND(), _xlfn.POISSON.DIST({0,1,2,3,4,5,6,7,8,9},$O7, TRUE),1), 0) -> 3 | AH7: =_xlfn.IFNA(MATCH(RAND(), _xlfn.POISSON.DIST({0,1,2,3,4,5,6,7,8,9},$O7, TRUE),1), 0) -> 0 | AI7: =_xlfn.IFNA(MATCH(RAND(), _xlfn.POISSON.DIST({0,1,2,3,4,5,6,7,8,9},$O7, TRUE),1), 0) -> 0 | AJ7: =_xlfn.IFNA(MATCH(RAND(), _xlfn.POISSON.DIST({0,1,2,3,4,5,6,7,8,9},$O7, TRUE),1), 0) -> 1 | AK7: =_xlfn.IFNA(MATCH(RAND(), _xlfn.POISSON.DIST({0,1,2,3,4,5,6,7,8,9},$O7, TRUE),1), 0) -> 3 | AL7: =_xlfn.IFNA(MATCH(RAND(), _xlfn.POISSON.DIST({0,1,2,3,4,5,6,7,8,9},$O7, TRUE),1), 0) -> 1 | AM7: =_xlfn.IFNA(MATCH(RAND(), _xlfn.POISSON.DIST({0,1,2,3,4,5,6,7,8,9},$O7, TRUE),1), 0) -> 1 | AN7: =_xlfn.IFNA(MATCH(RAND(), _xlfn.POISSON.DIST({0,1,2,3,4,5,6,7,8,9},$O7, TRUE),1), 0) -> 2 | AO7: =_xlfn.IFNA(MATCH(RAND(), _xlfn.POISSON.DIST({0,1,2,3,4,5,6,7,8,9},$O7, TRUE),1), 0) -> 2 | AP7: =_xlfn.IFNA(MATCH(RAND(), _xlfn.POISSON.DIST({0,1,2,3,4,5,6,7,8,9},$O7, TRUE),1), 0) -> 5 | AQ7: =_xlfn.IFNA(MATCH(RAND(), _xlfn.POISSON.DIST({0,1,2,3,4,5,6,7,8,9},$O7, TRUE),1), 0) -> 1 | AR7: =_xlfn.IFNA(MATCH(RAND(), _xlfn.POISSON.DIST({0,1,2,3,4,5,6,7,8,9},$O7, TRUE),1), 0) -> 1 | AS7: =_xlfn.IFNA(MATCH(RAND(), _xlfn.POISSON.DIST({0,1,2,3,4,5,6,7,8,9},$O7, TRUE),1), 0) -> 1 | AT7: =_xlfn.IFNA(MATCH(RAND(), _xlfn.POISSON.DIST({0,1,2,3,4,5,6,7,8,9},$O7, TRUE),1), 0) -> 0 | AU7: =_xlfn.IFNA(MATCH(RAND(), _xlfn.POISSON.DIST({0,1,2,3,4,5,6,7,8,9},$O7, TRUE),1), 0) -> 2 | AV7: =_xlfn.IFNA(MATCH(RAND(), _xlfn.POISSON.DIST({0,1,2,3,4,5,6,7,8,9},$O7, TRUE),1), 0) -> 1 | AW7: =_xlfn.IFNA(MATCH(RAND(), _xlfn.POISSON.DIST({0,1,2,3,4,5,6,7,8,9},$O7, TRUE),1), 0) -> 2 | AX7: =_xlfn.IFNA(MATCH(RAND(), _xlfn.POISSON.DIST({0,1,2,3,4,5,6,7,8,9},$O7, TRUE),1), 0) -> 1 | AY7: =_xlfn.IFNA(MATCH(RAND(), _xlfn.POISSON.DIST({0,1,2,3,4,5,6,7,8,9},$O7, TRUE),1), 0) -> 3 | AZ7: =_xlfn.IFNA(MATCH(RAND(), _xlfn.POISSON.DIST({0,1,2,3,4,5,6,7,8,9},$O7, TRUE),1), 0) -> 1 | BA7: =_xlfn.IFNA(MATCH(RAND(), _xlfn.POISSON.DIST({0,1,2,3,4,5,6,7,8,9},$O7, TRUE),1), 0) -> 2 | BB7: =_xlfn.IFNA(MATCH(RAND(), _xlfn.POISSON.DIST({0,1,2,3,4,5,6,7,8,9},$O7, TRUE),1), 0) -> 0 | BC7: =_xlfn.IFNA(MATCH(RAND(), _xlfn.POISSON.DIST({0,1,2,3,4,5,6,7,8,9},$O7, TRUE),1), 0) -> 1 | BD7: =_xlfn.IFNA(MATCH(RAND(), _xlfn.POISSON.DIST({0,1,2,3,4,5,6,7,8,9},$O7, TRUE),1), 0) -> 3 | BE7: =_xlfn.IFNA(MATCH(RAND(), _xlfn.POISSON.DIST({0,1,2,3,4,5,6,7,8,9},$O7, TRUE),1), 0) -> 3 | BF7: =_xlfn.IFNA(MATCH(RAND(), _xlfn.POISSON.DIST({0,1,2,3,4,5,6,7,8,9},$O7, TRUE),1), 0) -> 3 | BG7: =_xlfn.IFNA(MATCH(RAND(), _xlfn.POISSON.DIST({0,1,2,3,4,5,6,7,8,9},$O7, TRUE),1), 0) -> 1 | BH7: =_xlfn.IFNA(MATCH(RAND(), _xlfn.POISSON.DIST({0,1,2,3,4,5,6,7,8,9},$O7, TRUE),1), 0) -> 2 | BI7: =_xlfn.IFNA(MATCH(RAND(), _xlfn.POISSON.DIST({0,1,2,3,4,5,6,7,8,9},$O7, TRUE),1), 0) -> 1 | BJ7: =_xlfn.IFNA(MATCH(RAND(), _xlfn.POISSON.DIST({0,1,2,3,4,5,6,7,8,9},$O7, TRUE),1), 0) -> 0 | BK7: =_xlfn.IFNA(MATCH(RAND(), _xlfn.POISSON.DIST({0,1,2,3,4,5,6,7,8,9},$O7, TRUE),1), 0) -> 1 | BL7: =_xlfn.IFNA(MATCH(RAND(), _xlfn.POISSON.DIST({0,1,2,3,4,5,6,7,8,9},$O7, TRUE),1), 0) -> 0 | BM7: =_xlfn.IFNA(MATCH(RAND(), _xlfn.POISSON.DIST({0,1,2,3,4,5,6,7,8,9},$O7, TRUE),1), 0) -> 0 | BN7: =_xlfn.IFNA(MATCH(RAND(), _xlfn.POISSON.DIST({0,1,2,3,4,5,6,7,8,9},$O7, TRUE),1), 0) -> 2 | BP7: =_xlfn.IFNA(MATCH(RAND(), _xlfn.POISSON.DIST({0,1,2,3,4,5,6,7,8,9},$P7, TRUE),1), 0) -> 2 | BQ7: =_xlfn.IFNA(MATCH(RAND(), _xlfn.POISSON.DIST({0,1,2,3,4,5,6,7,8,9},$P7, TRUE),1), 0) -> 0 | BR7: =_xlfn.IFNA(MATCH(RAND(), _xlfn.POISSON.DIST({0,1,2,3,4,5,6,7,8,9},$P7, TRUE),1), 0) -> 1 | BS7: =_xlfn.IFNA(MATCH(RAND(), _xlfn.POISSON.DIST({0,1,2,3,4,5,6,7,8,9},$P7, TRUE),1), 0) -> 2 | BT7: =_xlfn.IFNA(MATCH(RAND(), _xlfn.POISSON.DIST({0,1,2,3,4,5,6,7,8,9},$P7, TRUE),1), 0) -> 0 | BU7: =_xlfn.IFNA(MATCH(RAND(), _xlfn.POISSON.DIST({0,1,2,3,4,5,6,7,8,9},$P7, TRUE),1), 0) -> 2 | BV7: =_xlfn.IFNA(MATCH(RAND(), _xlfn.POISSON.DIST({0,1,2,3,4,5,6,7,8,9},$P7, TRUE),1), 0) -> 1 | BW7: =_xlfn.IFNA(MATCH(RAND(), _xlfn.POISSON.DIST({0,1,2,3,4,5,6,7,8,9},$P7, TRUE),1), 0) -> 0 | BX7: =_xlfn.IFNA(MATCH(RAND(), _xlfn.POISSON.DIST({0,1,2,3,4,5,6,7,8,9},$P7, TRUE),1), 0) -> 0 | BY7: =_xlfn.IFNA(MATCH(RAND(), _xlfn.POISSON.DIST({0,1,2,3,4,5,6,7,8,9},$P7, TRUE),1), 0) -> 1 | BZ7: =_xlfn.IFNA(MATCH(RAND(), _xlfn.POISSON.DIST({0,1,2,3,4,5,6,7,8,9},$P7, TRUE),1), 0) -> 1 | CA7: =_xlfn.IFNA(MATCH(RAND(), _xlfn.POISSON.DIST({0,1,2,3,4,5,6,7,8,9},$P7, TRUE),1), 0) -> 0 | CB7: =_xlfn.IFNA(MATCH(RAND(), _xlfn.POISSON.DIST({0,1,2,3,4,5,6,7,8,9},$P7, TRUE),1), 0) -> 0 | CC7: =_xlfn.IFNA(MATCH(RAND(), _xlfn.POISSON.DIST({0,1,2,3,4,5,6,7,8,9},$P7, TRUE),1), 0) -> 0 | CD7: =_xlfn.IFNA(MATCH(RAND(), _xlfn.POISSON.DIST({0,1,2,3,4,5,6,7,8,9},$P7, TRUE),1), 0) -> 0 | CE7: =_xlfn.IFNA(MATCH(RAND(), _xlfn.POISSON.DIST({0,1,2,3,4,5,6,7,8,9},$P7, TRUE),1), 0) -> 0 | CF7: =_xlfn.IFNA(MATCH(RAND(), _xlfn.POISSON.DIST({0,1,2,3,4,5,6,7,8,9},$P7, TRUE),1), 0) -> 3 | CG7: =_xlfn.IFNA(MATCH(RAND(), _xlfn.POISSON.DIST({0,1,2,3,4,5,6,7,8,9},$P7, TRUE),1), 0) -> 1 | CH7: =_xlfn.IFNA(MATCH(RAND(), _xlfn.POISSON.DIST({0,1,2,3,4,5,6,7,8,9},$P7, TRUE),1), 0) -> 1 | CI7: =_xlfn.IFNA(MATCH(RAND(), _xlfn.POISSON.DIST({0,1,2,3,4,5,6,7,8,9},$P7, TRUE),1), 0) -> 1 | CJ7: =_xlfn.IFNA(MATCH(RAND(), _xlfn.POISSON.DIST({0,1,2,3,4,5,6,7,8,9},$P7, TRUE),1), 0) -> 0 | CK7: =_xlfn.IFNA(MATCH(RAND(), _xlfn.POISSON.DIST({0,1,2,3,4,5,6,7,8,9},$P7, TRUE),1), 0) -> 2 | CL7: =_xlfn.IFNA(MATCH(RAND(), _xlfn.POISSON.DIST({0,1,2,3,4,5,6,7,8,9},$P7, TRUE),1), 0) -> 2 | CM7: =_xlfn.IFNA(MATCH(RAND(), _xlfn.POISSON.DIST({0,1,2,3,4,5,6,7,8,9},$P7, TRUE),1), 0) -> 0 | CN7: =_xlfn.IFNA(MATCH(RAND(), _xlfn.POISSON.DIST({0,1,2,3,4,5,6,7,8,9},$P7, TRUE),1), 0) -> 1 | CO7: =_xlfn.IFNA(MATCH(RAND(), _xlfn.POISSON.DIST({0,1,2,3,4,5,6,7,8,9},$P7, TRUE),1), 0) -> 1 | CP7: =_xlfn.IFNA(MATCH(RAND(), _xlfn.POISSON.DIST({0,1,2,3,4,5,6,7,8,9},$P7, TRUE),1), 0) -> 1 | CQ7: =_xlfn.IFNA(MATCH(RAND(), _xlfn.POISSON.DIST({0,1,2,3,4,5,6,7,8,9},$P7, TRUE),1), 0) -> 0 | CR7: =_xlfn.IFNA(MATCH(RAND(), _xlfn.POISSON.DIST({0,1,2,3,4,5,6,7,8,9},$P7, TRUE),1), 0) -> 1 | CS7: =_xlfn.IFNA(MATCH(RAND(), _xlfn.POISSON.DIST({0,1,2,3,4,5,6,7,8,9},$P7, TRUE),1), 0) -> 1 | CT7: =_xlfn.IFNA(MATCH(RAND(), _xlfn.POISSON.DIST({0,1,2,3,4,5,6,7,8,9},$P7, TRUE),1), 0) -> 0 | CU7: =_xlfn.IFNA(MATCH(RAND(), _xlfn.POISSON.DIST({0,1,2,3,4,5,6,7,8,9},$P7, TRUE),1), 0) -> 1 | CV7: =_xlfn.IFNA(MATCH(RAND(), _xlfn.POISSON.DIST({0,1,2,3,4,5,6,7,8,9},$P7, TRUE),1), 0) -> 1 | CW7: =_xlfn.IFNA(MATCH(RAND(), _xlfn.POISSON.DIST({0,1,2,3,4,5,6,7,8,9},$P7, TRUE),1), 0) -> 0 | CX7: =_xlfn.IFNA(MATCH(RAND(), _xlfn.POISSON.DIST({0,1,2,3,4,5,6,7,8,9},$P7, TRUE),1), 0) -> 0 | CY7: =_xlfn.IFNA(MATCH(RAND(), _xlfn.POISSON.DIST({0,1,2,3,4,5,6,7,8,9},$P7, TRUE),1), 0) -> 2 | CZ7: =_xlfn.IFNA(MATCH(RAND(), _xlfn.POISSON.DIST({0,1,2,3,4,5,6,7,8,9},$P7, TRUE),1), 0) -> 0 | DA7: =_xlfn.IFNA(MATCH(RAND(), _xlfn.POISSON.DIST({0,1,2,3,4,5,6,7,8,9},$P7, TRUE),1), 0) -> 0 | DB7: =_xlfn.IFNA(MATCH(RAND(), _xlfn.POISSON.DIST({0,1,2,3,4,5,6,7,8,9},$P7, TRUE),1), 0) -> 0 | DC7: =_xlfn.IFNA(MATCH(RAND(), _xlfn.POISSON.DIST({0,1,2,3,4,5,6,7,8,9},$P7, TRUE),1), 0) -> 1 | DD7: =_xlfn.IFNA(MATCH(RAND(), _xlfn.POISSON.DIST({0,1,2,3,4,5,6,7,8,9},$P7, TRUE),1), 0) -> 0 | DE7: =_xlfn.IFNA(MATCH(RAND(), _xlfn.POISSON.DIST({0,1,2,3,4,5,6,7,8,9},$P7, TRUE),1), 0) -> 1 | DF7: =_xlfn.IFNA(MATCH(RAND(), _xlfn.POISSON.DIST({0,1,2,3,4,5,6,7,8,9},$P7, TRUE),1), 0) -> 0 | DG7: =_xlfn.IFNA(MATCH(RAND(), _xlfn.POISSON.DIST({0,1,2,3,4,5,6,7,8,9},$P7, TRUE),1), 0) -> 2 | DH7: =_xlfn.IFNA(MATCH(RAND(), _xlfn.POISSON.DIST({0,1,2,3,4,5,6,7,8,9},$P7, TRUE),1), 0) -> 0 | DI7: =_xlfn.IFNA(MATCH(RAND(), _xlfn.POISSON.DIST({0,1,2,3,4,5,6,7,8,9},$P7, TRUE),1), 0) -> 0 | DJ7: =_xlfn.IFNA(MATCH(RAND(), _xlfn.POISSON.DIST({0,1,2,3,4,5,6,7,8,9},$P7, TRUE),1), 0) -> 0 | DK7: =_xlfn.IFNA(MATCH(RAND(), _xlfn.POISSON.DIST({0,1,2,3,4,5,6,7,8,9},$P7, TRUE),1), 0) -> 1 | DL7: =_xlfn.IFNA(MATCH(RAND(), _xlfn.POISSON.DIST({0,1,2,3,4,5,6,7,8,9},$P7, TRUE),1), 0) -> 0 | DM7: =_xlfn.IFNA(MATCH(RAND(), _xlfn.POISSON.DIST({0,1,2,3,4,5,6,7,8,9},$P7, TRUE),1), 0) -> 2
C8: 2019-06-08 | D8: Б | E8: Испания | F8: =(AVERAGE(Q8:BN8))*(1+INDEX('Прогнозы группового этапа'!$C$4:$O$28, MATCH('Матчи за текущий год'!E8,'Прогнозы группового этапа'!$D$4:$D$28,0),3)) -> 2.56 | G8: ЮАР | H8: =(AVERAGE(BP8:DM8))*(1+INDEX('Прогнозы группового этапа'!$C$4:$O$28, MATCH('Матчи за текущий год'!G8,'Прогнозы группового этапа'!$D$4:$D$28,0),3)) -> 0.36 | I8: Испания | L8: 2.56 | M8: 0.36 | N8: Испания | O8: =(OFFSET('Прил. 3. Голы в группе'!$D$14,(INDEX('Прил. 1. Данные команды'!$C$13:$F$112,MATCH(G8,'Прил. 1. Данные команды'!$C$13:$C$112,0),4)/10),(INDEX('Прил. 1. Данные команды'!$C$13:$F$112,MATCH(E8,'Прил. 1. Данные команды'!$C$13:$C$112,0),4)/10))) -> 2.94 | P8: =OFFSET('Прил. 3. Голы в группе'!$D$14,(INDEX('Прил. 1. Данные команды'!$C$13:$F$112, MATCH(E8,'Прил. 1. Данные команды'!$C$13:$C$112,0),4)/10), (INDEX('Прил. 1. Данные команды'!$C$13:$F$112, MATCH(G8, 'Прил. 1. Данные команды'!$C$13:$C$112,0),4)/10)) -> 0.38 | Q8: =_xlfn.IFNA(MATCH(RAND(), _xlfn.POISSON.DIST({0,1,2,3,4,5,6,7,8,9},$O8, TRUE),1), 0) -> 3 | R8: =_xlfn.IFNA(MATCH(RAND(), _xlfn.POISSON.DIST({0,1,2,3,4,5,6,7,8,9},$O8, TRUE),1), 0) -> 0 | S8: =_xlfn.IFNA(MATCH(RAND(), _xlfn.POISSON.DIST({0,1,2,3,4,5,6,7,8,9},$O8, TRUE),1), 0) -> 2 | T8: =_xlfn.IFNA(MATCH(RAND(), _xlfn.POISSON.DIST({0,1,2,3,4,5,6,7,8,9},$O8, TRUE),1), 0) -> 0 | U8: =_xlfn.IFNA(MATCH(RAND(), _xlfn.POISSON.DIST({0,1,2,3,4,5,6,7,8,9},$O8, TRUE),1), 0) -> 2 | V8: =_xlfn.IFNA(MATCH(RAND(), _xlfn.POISSON.DIST({0,1,2,3,4,5,6,7,8,9},$O8, TRUE),1), 0) -> 5 | W8: =_xlfn.IFNA(MATCH(RAND(), _xlfn.POISSON.DIST({0,1,2,3,4,5,6,7,8,9},$O8, TRUE),1), 0) -> 5 | X8: =_xlfn.IFNA(MATCH(RAND(), _xlfn.POISSON.DIST({0,1,2,3,4,5,6,7,8,9},$O8, TRUE),1), 0) -> 4 | Y8: =_xlfn.IFNA(MATCH(RAND(), _xlfn.POISSON.DIST({0,1,2,3,4,5,6,7,8,9},$O8, TRUE),1), 0) -> 0 | Z8: =_xlfn.IFNA(MATCH(RAND(), _xlfn.POISSON.DIST({0,1,2,3,4,5,6,7,8,9},$O8, TRUE),1), 0) -> 2 | AA8: =_xlfn.IFNA(MATCH(RAND(), _xlfn.POISSON.DIST({0,1,2,3,4,5,6,7,8,9},$O8, TRUE),1), 0) -> 10 | AB8: =_xlfn.IFNA(MATCH(RAND(), _xlfn.POISSON.DIST({0,1,2,3,4,5,6,7,8,9},$O8, TRUE),1), 0) -> 4 | AC8: =_xlfn.IFNA(MATCH(RAND(), _xlfn.POISSON.DIST({0,1,2,3,4,5,6,7,8,9},$O8, TRUE),1), 0) -> 1 | AD8: =_xlfn.IFNA(MATCH(RAND(), _xlfn.POISSON.DIST({0,1,2,3,4,5,6,7,8,9},$O8, TRUE),1), 0) -> 1 | AE8: =_xlfn.IFNA(MATCH(RAND(), _xlfn.POISSON.DIST({0,1,2,3,4,5,6,7,8,9},$O8, TRUE),1), 0) -> 3 | AF8: =_xlfn.IFNA(MATCH(RAND(), _xlfn.POISSON.DIST({0,1,2,3,4,5,6,7,8,9},$O8, TRUE),1), 0) -> 5 | AG8: =_xlfn.IFNA(MATCH(RAND(), _xlfn.POISSON.DIST({0,1,2,3,4,5,6,7,8,9},$O8, TRUE),1), 0) -> 3 | AH8: =_xlfn.IFNA(MATCH(RAND(), _xlfn.POISSON.DIST({0,1,2,3,4,5,6,7,8,9},$O8, TRUE),1), 0) -> 0 | AI8: =_xlfn.IFNA(MATCH(RAND(), _xlfn.POISSON.DIST({0,1,2,3,4,5,6,7,8,9},$O8, TRUE),1), 0) -> 2 | AJ8: =_xlfn.IFNA(MATCH(RAND(), _xlfn.POISSON.DIST({0,1,2,3,4,5,6,7,8,9},$O8, TRUE),1), 0) -> 2 | AK8: =_xlfn.IFNA(MATCH(RAND(), _xlfn.POISSON.DIST({0,1,2,3,4,5,6,7,8,9},$O8, TRUE),1), 0) -> 4 | AL8: =_xlfn.IFNA(MATCH(RAND(), _xlfn.POISSON.DIST({0,1,2,3,4,5,6,7,8,9},$O8, TRUE),1), 0) -> 5 | AM8: =_xlfn.IFNA(MATCH(RAND(), _xlfn.POISSON.DIST({0,1,2,3,4,5,6,7,8,9},$O8, TRUE),1), 0) -> 4 | AN8: =_xlfn.IFNA(MATCH(RAND(), _xlfn.POISSON.DIST({0,1,2,3,4,5,6,7,8,9},$O8, TRUE),1), 0) -> 3 | AO8: =_xlfn.IFNA(MATCH(RAND(), _xlfn.POISSON.DIST({0,1,2,3,4,5,6,7,8,9},$O8, TRUE),1), 0) -> 1 | AP8: =_xlfn.IFNA(MATCH(RAND(), _xlfn.POISSON.DIST({0,1,2,3,4,5,6,7,8,9},$O8, TRUE),1), 0) -> 4 | AQ8: =_xlfn.IFNA(MATCH(RAND(), _xlfn.POISSON.DIST({0,1,2,3,4,5,6,7,8,9},$O8, TRUE),1), 0) -> 2 | AR8: =_xlfn.IFNA(MATCH(RAND(), _xlfn.POISSON.DIST({0,1,2,3,4,5,6,7,8,9},$O8, TRUE),1), 0) -> 1 | AS8: =_xlfn.IFNA(MATCH(RAND(), _xlfn.POISSON.DIST({0,1,2,3,4,5,6,7,8,9},$O8, TRUE),1), 0) -> 2 | AT8: =_xlfn.IFNA(MATCH(RAND(), _xlfn.POISSON.DIST({0,1,2,3,4,5,6,7,8,9},$O8, TRUE),1), 0) -> 4 | AU8: =_xlfn.IFNA(MATCH(RAND(), _xlfn.POISSON.DIST({0,1,2,3,4,5,6,7,8,9},$O8, TRUE),1), 0) -> 2 | AV8: =_xlfn.IFNA(MATCH(RAND(), _xlfn.POISSON.DIST({0,1,2,3,4,5,6,7,8,9},$O8, TRUE),1), 0) -> 3 | AW8: =_xlfn.IFNA(MATCH(RAND(), _xlfn.POISSON.DIST({0,1,2,3,4,5,6,7,8,9},$O8, TRUE),1), 0) -> 2 | AX8: =_xlfn.IFNA(MATCH(RAND(), _xlfn.POISSON.DIST({0,1,2,3,4,5,6,7,8,9},$O8, TRUE),1), 0) -> 1 | AY8: =_xlfn.IFNA(MATCH(RAND(), _xlfn.POISSON.DIST({0,1,2,3,4,5,6,7,8,9},$O8, TRUE),1), 0) -> 2 | AZ8: =_xlfn.IFNA(MATCH(RAND(), _xlfn.POISSON.DIST({0,1,2,3,4,5,6,7,8,9},$O8, TRUE),1), 0) -> 0 | BA8: =_xlfn.IFNA(MATCH(RAND(), _xlfn.POISSON.DIST({0,1,2,3,4,5,6,7,8,9},$O8, TRUE),1), 0) -> 0 | BB8: =_xlfn.IFNA(MATCH(RAND(), _xlfn.POISSON.DIST({0,1,2,3,4,5,6,7,8,9},$O8, TRUE),1), 0) -> 2 | BC8: =_xlfn.IFNA(MATCH(RAND(), _xlfn.POISSON.DIST({0,1,2,3,4,5,6,7,8,9},$O8, TRUE),1), 0) -> 1 | BD8: =_xlfn.IFNA(MATCH(RAND(), _xlfn.POISSON.DIST({0,1,2,3,4,5,6,7,8,9},$O8, TRUE),1), 0) -> 2 | BE8: =_xlfn.IFNA(MATCH(RAND(), _xlfn.POISSON.DIST({0,1,2,3,4,5,6,7,8,9},$O8, TRUE),1), 0) -> 2 | BF8: =_xlfn.IFNA(MATCH(RAND(), _xlfn.POISSON.DIST({0,1,2,3,4,5,6,7,8,9},$O8, TRUE),1), 0) -> 4 | BG8: =_xlfn.IFNA(MATCH(RAND(), _xlfn.POISSON.DIST({0,1,2,3,4,5,6,7,8,9},$O8, TRUE),1), 0) -> 3 | BH8: =_xlfn.IFNA(MATCH(RAND(), _xlfn.POISSON.DIST({0,1,2,3,4,5,6,7,8,9},$O8, TRUE),1), 0) -> 7 | BI8: =_xlfn.IFNA(MATCH(RAND(), _xlfn.POISSON.DIST({0,1,2,3,4,5,6,7,8,9},$O8, TRUE),1), 0) -> 3 | BJ8: =_xlfn.IFNA(MATCH(RAND(), _xlfn.POISSON.DIST({0,1,2,3,4,5,6,7,8,9},$O8, TRUE),1), 0) -> 0 | BK8: =_xlfn.IFNA(MATCH(RAND(), _xlfn.POISSON.DIST({0,1,2,3,4,5,6,7,8,9},$O8, TRUE),1), 0) -> 0 | BL8: =_xlfn.IFNA(MATCH(RAND(), _xlfn.POISSON.DIST({0,1,2,3,4,5,6,7,8,9},$O8, TRUE),1), 0) -> 3 | BM8: =_xlfn.IFNA(MATCH(RAND(), _xlfn.POISSON.DIST({0,1,2,3,4,5,6,7,8,9},$O8, TRUE),1), 0) -> 3 | BN8: =_xlfn.IFNA(MATCH(RAND(), _xlfn.POISSON.DIST({0,1,2,3,4,5,6,7,8,9},$O8, TRUE),1), 0) -> 4 | BP8: =_xlfn.IFNA(MATCH(RAND(), _xlfn.POISSON.DIST({0,1,2,3,4,5,6,7,8,9},$P8, TRUE),1), 0) -> 1 | BQ8: =_xlfn.IFNA(MATCH(RAND(), _xlfn.POISSON.DIST({0,1,2,3,4,5,6,7,8,9},$P8, TRUE),1), 0) -> 1 | BR8: =_xlfn.IFNA(MATCH(RAND(), _xlfn.POISSON.DIST({0,1,2,3,4,5,6,7,8,9},$P8, TRUE),1), 0) -> 0 | BS8: =_xlfn.IFNA(MATCH(RAND(), _xlfn.POISSON.DIST({0,1,2,3,4,5,6,7,8,9},$P8, TRUE),1), 0) -> 0 | BT8: =_xlfn.IFNA(MATCH(RAND(), _xlfn.POISSON.DIST({0,1,2,3,4,5,6,7,8,9},$P8, TRUE),1), 0) -> 0 | BU8: =_xlfn.IFNA(MATCH(RAND(), _xlfn.POISSON.DIST({0,1,2,3,4,5,6,7,8,9},$P8, TRUE),1), 0) -> 0 | BV8: =_xlfn.IFNA(MATCH(RAND(), _xlfn.POISSON.DIST({0,1,2,3,4,5,6,7,8,9},$P8, TRUE),1), 0) -> 0 | BW8: =_xlfn.IFNA(MATCH(RAND(), _xlfn.POISSON.DIST({0,1,2,3,4,5,6,7,8,9},$P8, TRUE),1), 0) -> 1 | BX8: =_xlfn.IFNA(MATCH(RAND(), _xlfn.POISSON.DIST({0,1,2,3,4,5,6,7,8,9},$P8, TRUE),1), 0) -> 0 | BY8: =_xlfn.IFNA(MATCH(RAND(), _xlfn.POISSON.DIST({0,1,2,3,4,5,6,7,8,9},$P8, TRUE),1), 0) -> 0 | BZ8: =_xlfn.IFNA(MATCH(RAND(), _xlfn.POISSON.DIST({0,1,2,3,4,5,6,7,8,9},$P8, TRUE),1), 0) -> 1 | CA8: =_xlfn.IFNA(MATCH(RAND(), _xlfn.POISSON.DIST({0,1,2,3,4,5,6,7,8,9},$P8, TRUE),1), 0) -> 2 | CB8: =_xlfn.IFNA(MATCH(RAND(), _xlfn.POISSON.DIST({0,1,2,3,4,5,6,7,8,9},$P8, TRUE),1), 0) -> 2 | CC8: =_xlfn.IFNA(MATCH(RAND(), _xlfn.POISSON.DIST({0,1,2,3,4,5,6,7,8,9},$P8, TRUE),1), 0) -> 1 | CD8: =_xlfn.IFNA(MATCH(RAND(), _xlfn.POISSON.DIST({0,1,2,3,4,5,6,7,8,9},$P8, TRUE),1), 0) -> 0 | CE8: =_xlfn.IFNA(MATCH(RAND(), _xlfn.POISSON.DIST({0,1,2,3,4,5,6,7,8,9},$P8, TRUE),1), 0) -> 0 | CF8: =_xlfn.IFNA(MATCH(RAND(), _xlfn.POISSON.DIST({0,1,2,3,4,5,6,7,8,9},$P8, TRUE),1), 0) -> 0 | CG8: =_xlfn.IFNA(MATCH(RAND(), _xlfn.POISSON.DIST({0,1,2,3,4,5,6,7,8,9},$P8, TRUE),1), 0) -> 0 | CH8: =_xlfn.IFNA(MATCH(RAND(), _xlfn.POISSON.DIST({0,1,2,3,4,5,6,7,8,9},$P8, TRUE),1), 0) -> 0 | CI8: =_xlfn.IFNA(MATCH(RAND(), _xlfn.POISSON.DIST({0,1,2,3,4,5,6,7,8,9},$P8, TRUE),1), 0) -> 0 | CJ8: =_xlfn.IFNA(MATCH(RAND(), _xlfn.POISSON.DIST({0,1,2,3,4,5,6,7,8,9},$P8, TRUE),1), 0) -> 0 | CK8: =_xlfn.IFNA(MATCH(RAND(), _xlfn.POISSON.DIST({0,1,2,3,4,5,6,7,8,9},$P8, TRUE),1), 0) -> 0 | CL8: =_xlfn.IFNA(MATCH(RAND(), _xlfn.POISSON.DIST({0,1,2,3,4,5,6,7,8,9},$P8, TRUE),1), 0) -> 0 | CM8: =_xlfn.IFNA(MATCH(RAND(), _xlfn.POISSON.DIST({0,1,2,3,4,5,6,7,8,9},$P8, TRUE),1), 0) -> 0 | CN8: =_xlfn.IFNA(MATCH(RAND(), _xlfn.POISSON.DIST({0,1,2,3,4,5,6,7,8,9},$P8, TRUE),1), 0) -> 1 | CO8: =_xlfn.IFNA(MATCH(RAND(), _xlfn.POISSON.DIST({0,1,2,3,4,5,6,7,8,9},$P8, TRUE),1), 0) -> 0 | CP8: =_xlfn.IFNA(MATCH(RAND(), _xlfn.POISSON.DIST({0,1,2,3,4,5,6,7,8,9},$P8, TRUE),1), 0) -> 0 | CQ8: =_xlfn.IFNA(MATCH(RAND(), _xlfn.POISSON.DIST({0,1,2,3,4,5,6,7,8,9},$P8, TRUE),1), 0) -> 1 | CR8: =_xlfn.IFNA(MATCH(RAND(), _xlfn.POISSON.DIST({0,1,2,3,4,5,6,7,8,9},$P8, TRUE),1), 0) -> 0 | CS8: =_xlfn.IFNA(MATCH(RAND(), _xlfn.POISSON.DIST({0,1,2,3,4,5,6,7,8,9},$P8, TRUE),1), 0) -> 0 | CT8: =_xlfn.IFNA(MATCH(RAND(), _xlfn.POISSON.DIST({0,1,2,3,4,5,6,7,8,9},$P8, TRUE),1), 0) -> 0 | CU8: =_xlfn.IFNA(MATCH(RAND(), _xlfn.POISSON.DIST({0,1,2,3,4,5,6,7,8,9},$P8, TRUE),1), 0) -> 0 | CV8: =_xlfn.IFNA(MATCH(RAND(), _xlfn.POISSON.DIST({0,1,2,3,4,5,6,7,8,9},$P8, TRUE),1), 0) -> 1 | CW8: =_xlfn.IFNA(MATCH(RAND(), _xlfn.POISSON.DIST({0,1,2,3,4,5,6,7,8,9},$P8, TRUE),1), 0) -> 0 | CX8: =_xlfn.IFNA(MATCH(RAND(), _xlfn.POISSON.DIST({0,1,2,3,4,5,6,7,8,9},$P8, TRUE),1), 0) -> 0 | CY8: =_xlfn.IFNA(MATCH(RAND(), _xlfn.POISSON.DIST({0,1,2,3,4,5,6,7,8,9},$P8, TRUE),1), 0) -> 1 | CZ8: =_xlfn.IFNA(MATCH(RAND(), _xlfn.POISSON.DIST({0,1,2,3,4,5,6,7,8,9},$P8, TRUE),1), 0) -> 1 | DA8: =_xlfn.IFNA(MATCH(RAND(), _xlfn.POISSON.DIST({0,1,2,3,4,5,6,7,8,9},$P8, TRUE),1), 0) -> 1 | DB8: =_xlfn.IFNA(MATCH(RAND(), _xlfn.POISSON.DIST({0,1,2,3,4,5,6,7,8,9},$P8, TRUE),1), 0) -> 0 | DC8: =_xlfn.IFNA(MATCH(RAND(), _xlfn.POISSON.DIST({0,1,2,3,4,5,6,7,8,9},$P8, TRUE),1), 0) -> 0 | DD8: =_xlfn.IFNA(MATCH(RAND(), _xlfn.POISSON.DIST({0,1,2,3,4,5,6,7,8,9},$P8, TRUE),1), 0) -> 0 | DE8: =_xlfn.IFNA(MATCH(RAND(), _xlfn.POISSON.DIST({0,1,2,3,4,5,6,7,8,9},$P8, TRUE),1), 0) -> 2 | DF8: =_xlfn.IFNA(MATCH(RAND(), _xlfn.POISSON.DIST({0,1,2,3,4,5,6,7,8,9},$P8, TRUE),1), 0) -> 0 | DG8: =_xlfn.IFNA(MATCH(RAND(), _xlfn.POISSON.DIST({0,1,2,3,4,5,6,7,8,9},$P8, TRUE),1), 0) -> 0 | DH8: =_xlfn.IFNA(MATCH(RAND(), _xlfn.POISSON.DIST({0,1,2,3,4,5,6,7,8,9},$P8, TRUE),1), 0) -> 0 | DI8: =_xlfn.IFNA(MATCH(RAND(), _xlfn.POISSON.DIST({0,1,2,3,4,5,6,7,8,9},$P8, TRUE),1), 0) -> 0 | DJ8: =_xlfn.IFNA(MATCH(RAND(), _xlfn.POISSON.DIST({0,1,2,3,4,5,6,7,8,9},$P8, TRUE),1), 0) -> 1 | DK8: =_xlfn.IFNA(MATCH(RAND(), _xlfn.POISSON.DIST({0,1,2,3,4,5,6,7,8,9},$P8, TRUE),1), 0) -> 0 | DL8: =_xlfn.IFNA(MATCH(RAND(), _xlfn.POISSON.DIST({0,1,2,3,4,5,6,7,8,9},$P8, TRUE),1), 0) -> 0 | DM8: =_xlfn.IFNA(MATCH(RAND(), _xlfn.POISSON.DIST({0,1,2,3,4,5,6,7,8,9},$P8, TRUE),1), 0) -> 0
C9: 2019-06-08 | D9: A | E9: Норвегия | F9: =(AVERAGE(Q9:BN9))*(1+INDEX('Прогнозы группового этапа'!$C$4:$O$28, MATCH('Матчи за текущий год'!E9,'Прогнозы группового этапа'!$D$4:$D$28,0),3)) -> 3.04 | G9: Нигерия | H9: =(AVERAGE(BP9:DM9))*(1+INDEX('Прогнозы группового этапа'!$C$4:$O$28, MATCH('Матчи за текущий год'!G9,'Прогнозы группового этапа'!$D$4:$D$28,0),3)) -> 0.56 | I9: Норвегия | L9: 3.04 | M9: 0.56 | N9: Норвегия | O9: =(OFFSET('Прил. 3. Голы в группе'!$D$14,(INDEX('Прил. 1. Данные команды'!$C$13:$F$112,MATCH(G9,'Прил. 1. Данные команды'!$C$13:$C$112,0),4)/10),(INDEX('Прил. 1. Данные команды'!$C$13:$F$112,MATCH(E9,'Прил. 1. Данные команды'!$C$13:$C$112,0),4)/10))) -> 3.11 | P9: =OFFSET('Прил. 3. Голы в группе'!$D$14,(INDEX('Прил. 1. Данные команды'!$C$13:$F$112, MATCH(E9,'Прил. 1. Данные команды'!$C$13:$C$112,0),4)/10), (INDEX('Прил. 1. Данные команды'!$C$13:$F$112, MATCH(G9, 'Прил. 1. Данные команды'!$C$13:$C$112,0),4)/10)) -> 0.54 | Q9: =_xlfn.IFNA(MATCH(RAND(), _xlfn.POISSON.DIST({0,1,2,3,4,5,6,7,8,9},$O9, TRUE),1), 0) -> 1 | R9: =_xlfn.IFNA(MATCH(RAND(), _xlfn.POISSON.DIST({0,1,2,3,4,5,6,7,8,9},$O9, TRUE),1), 0) -> 2 | S9: =_xlfn.IFNA(MATCH(RAND(), _xlfn.POISSON.DIST({0,1,2,3,4,5,6,7,8,9},$O9, TRUE),1), 0) -> 6 | T9: =_xlfn.IFNA(MATCH(RAND(), _xlfn.POISSON.DIST({0,1,2,3,4,5,6,7,8,9},$O9, TRUE),1), 0) -> 4 | U9: =_xlfn.IFNA(MATCH(RAND(), _xlfn.POISSON.DIST({0,1,2,3,4,5,6,7,8,9},$O9, TRUE),1), 0) -> 0 | V9: =_xlfn.IFNA(MATCH(RAND(), _xlfn.POISSON.DIST({0,1,2,3,4,5,6,7,8,9},$O9, TRUE),1), 0) -> 2 | W9: =_xlfn.IFNA(MATCH(RAND(), _xlfn.POISSON.DIST({0,1,2,3,4,5,6,7,8,9},$O9, TRUE),1), 0) -> 4 | X9: =_xlfn.IFNA(MATCH(RAND(), _xlfn.POISSON.DIST({0,1,2,3,4,5,6,7,8,9},$O9, TRUE),1), 0) -> 3 | Y9: =_xlfn.IFNA(MATCH(RAND(), _xlfn.POISSON.DIST({0,1,2,3,4,5,6,7,8,9},$O9, TRUE),1), 0) -> 1 | Z9: =_xlfn.IFNA(MATCH(RAND(), _xlfn.POISSON.DIST({0,1,2,3,4,5,6,7,8,9},$O9, TRUE),1), 0) -> 2 | AA9: =_xlfn.IFNA(MATCH(RAND(), _xlfn.POISSON.DIST({0,1,2,3,4,5,6,7,8,9},$O9, TRUE),1), 0) -> 0 | AB9: =_xlfn.IFNA(MATCH(RAND(), _xlfn.POISSON.DIST({0,1,2,3,4,5,6,7,8,9},$O9, TRUE),1), 0) -> 5 | AC9: =_xlfn.IFNA(MATCH(RAND(), _xlfn.POISSON.DIST({0,1,2,3,4,5,6,7,8,9},$O9, TRUE),1), 0) -> 6 | AD9: =_xlfn.IFNA(MATCH(RAND(), _xlfn.POISSON.DIST({0,1,2,3,4,5,6,7,8,9},$O9, TRUE),1), 0) -> 7 | AE9: =_xlfn.IFNA(MATCH(RAND(), _xlfn.POISSON.DIST({0,1,2,3,4,5,6,7,8,9},$O9, TRUE),1), 0) -> 3 | AF9: =_xlfn.IFNA(MATCH(RAND(), _xlfn.POISSON.DIST({0,1,2,3,4,5,6,7,8,9},$O9, TRUE),1), 0) -> 3 | AG9: =_xlfn.IFNA(MATCH(RAND(), _xlfn.POISSON.DIST({0,1,2,3,4,5,6,7,8,9},$O9, TRUE),1), 0) -> 1 | AH9: =_xlfn.IFNA(MATCH(RAND(), _xlfn.POISSON.DIST({0,1,2,3,4,5,6,7,8,9},$O9, TRUE),1), 0) -> 4 | AI9: =_xlfn.IFNA(MATCH(RAND(), _xlfn.POISSON.DIST({0,1,2,3,4,5,6,7,8,9},$O9, TRUE),1), 0) -> 4 | AJ9: =_xlfn.IFNA(MATCH(RAND(), _xlfn.POISSON.DIST({0,1,2,3,4,5,6,7,8,9},$O9, TRUE),1), 0) -> 3 | AK9: =_xlfn.IFNA(MATCH(RAND(), _xlfn.POISSON.DIST({0,1,2,3,4,5,6,7,8,9},$O9, TRUE),1), 0) -> 1 | AL9: =_xlfn.IFNA(MATCH(RAND(), _xlfn.POISSON.DIST({0,1,2,3,4,5,6,7,8,9},$O9, TRUE),1), 0) -> 4 | AM9: =_xlfn.IFNA(MATCH(RAND(), _xlfn.POISSON.DIST({0,1,2,3,4,5,6,7,8,9},$O9, TRUE),1), 0) -> 2 | AN9: =_xlfn.IFNA(MATCH(RAND(), _xlfn.POISSON.DIST({0,1,2,3,4,5,6,7,8,9},$O9, TRUE),1), 0) -> 2 | AO9: =_xlfn.IFNA(MATCH(RAND(), _xlfn.POISSON.DIST({0,1,2,3,4,5,6,7,8,9},$O9, TRUE),1), 0) -> 2 | AP9: =_xlfn.IFNA(MATCH(RAND(), _xlfn.POISSON.DIST({0,1,2,3,4,5,6,7,8,9},$O9, TRUE),1), 0) -> 4 | AQ9: =_xlfn.IFNA(MATCH(RAND(), _xlfn.POISSON.DIST({0,1,2,3,4,5,6,7,8,9},$O9, TRUE),1), 0) -> 4 | AR9: =_xlfn.IFNA(MATCH(RAND(), _xlfn.POISSON.DIST({0,1,2,3,4,5,6,7,8,9},$O9, TRUE),1), 0) -> 2 | AS9: =_xlfn.IFNA(MATCH(RAND(), _xlfn.POISSON.DIST({0,1,2,3,4,5,6,7,8,9},$O9, TRUE),1), 0) -> 4 | AT9: =_xlfn.IFNA(MATCH(RAND(), _xlfn.POISSON.DIST({0,1,2,3,4,5,6,7,8,9},$O9, TRUE),1), 0) -> 0 | AU9: =_xlfn.IFNA(MATCH(RAND(), _xlfn.POISSON.DIST({0,1,2,3,4,5,6,7,8,9},$O9, TRUE),1), 0) -> 2 | AV9: =_xlfn.IFNA(MATCH(RAND(), _xlfn.POISSON.DIST({0,1,2,3,4,5,6,7,8,9},$O9, TRUE),1), 0) -> 2 | AW9: =_xlfn.IFNA(MATCH(RAND(), _xlfn.POISSON.DIST({0,1,2,3,4,5,6,7,8,9},$O9, TRUE),1), 0) -> 8 | AX9: =_xlfn.IFNA(MATCH(RAND(), _xlfn.POISSON.DIST({0,1,2,3,4,5,6,7,8,9},$O9, TRUE),1), 0) -> 2 | AY9: =_xlfn.IFNA(MATCH(RAND(), _xlfn.POISSON.DIST({0,1,2,3,4,5,6,7,8,9},$O9, TRUE),1), 0) -> 3 | AZ9: =_xlfn.IFNA(MATCH(RAND(), _xlfn.POISSON.DIST({0,1,2,3,4,5,6,7,8,9},$O9, TRUE),1), 0) -> 2 | BA9: =_xlfn.IFNA(MATCH(RAND(), _xlfn.POISSON.DIST({0,1,2,3,4,5,6,7,8,9},$O9, TRUE),1), 0) -> 2 | BB9: =_xlfn.IFNA(MATCH(RAND(), _xlfn.POISSON.DIST({0,1,2,3,4,5,6,7,8,9},$O9, TRUE),1), 0) -> 2 | BC9: =_xlfn.IFNA(MATCH(RAND(), _xlfn.POISSON.DIST({0,1,2,3,4,5,6,7,8,9},$O9, TRUE),1), 0) -> 2 | BD9: =_xlfn.IFNA(MATCH(RAND(), _xlfn.POISSON.DIST({0,1,2,3,4,5,6,7,8,9},$O9, TRUE),1), 0) -> 8 | BE9: =_xlfn.IFNA(MATCH(RAND(), _xlfn.POISSON.DIST({0,1,2,3,4,5,6,7,8,9},$O9, TRUE),1), 0) -> 3 | BF9: =_xlfn.IFNA(MATCH(RAND(), _xlfn.POISSON.DIST({0,1,2,3,4,5,6,7,8,9},$O9, TRUE),1), 0) -> 2 | BG9: =_xlfn.IFNA(MATCH(RAND(), _xlfn.POISSON.DIST({0,1,2,3,4,5,6,7,8,9},$O9, TRUE),1), 0) -> 5 | BH9: =_xlfn.IFNA(MATCH(RAND(), _xlfn.POISSON.DIST({0,1,2,3,4,5,6,7,8,9},$O9, TRUE),1), 0) -> 4 | BI9: =_xlfn.IFNA(MATCH(RAND(), _xlfn.POISSON.DIST({0,1,2,3,4,5,6,7,8,9},$O9, TRUE),1), 0) -> 3 | BJ9: =_xlfn.IFNA(MATCH(RAND(), _xlfn.POISSON.DIST({0,1,2,3,4,5,6,7,8,9},$O9, TRUE),1), 0) -> 4 | BK9: =_xlfn.IFNA(MATCH(RAND(), _xlfn.POISSON.DIST({0,1,2,3,4,5,6,7,8,9},$O9, TRUE),1), 0) -> 2 | BL9: =_xlfn.IFNA(MATCH(RAND(), _xlfn.POISSON.DIST({0,1,2,3,4,5,6,7,8,9},$O9, TRUE),1), 0) -> 4 | BM9: =_xlfn.IFNA(MATCH(RAND(), _xlfn.POISSON.DIST({0,1,2,3,4,5,6,7,8,9},$O9, TRUE),1), 0) -> 1 | BN9: =_xlfn.IFNA(MATCH(RAND(), _xlfn.POISSON.DIST({0,1,2,3,4,5,6,7,8,9},$O9, TRUE),1), 0) -> 5 | BP9: =_xlfn.IFNA(MATCH(RAND(), _xlfn.POISSON.DIST({0,1,2,3,4,5,6,7,8,9},$P9, TRUE),1), 0) -> 1 | BQ9: =_xlfn.IFNA(MATCH(RAND(), _xlfn.POISSON.DIST({0,1,2,3,4,5,6,7,8,9},$P9, TRUE),1), 0) -> 0 | BR9: =_xlfn.IFNA(MATCH(RAND(), _xlfn.POISSON.DIST({0,1,2,3,4,5,6,7,8,9},$P9, TRUE),1), 0) -> 1 | BS9: =_xlfn.IFNA(MATCH(RAND(), _xlfn.POISSON.DIST({0,1,2,3,4,5,6,7,8,9},$P9, TRUE),1), 0) -> 1 | BT9: =_xlfn.IFNA(MATCH(RAND(), _xlfn.POISSON.DIST({0,1,2,3,4,5,6,7,8,9},$P9, TRUE),1), 0) -> 0 | BU9: =_xlfn.IFNA(MATCH(RAND(), _xlfn.POISSON.DIST({0,1,2,3,4,5,6,7,8,9},$P9, TRUE),1), 0) -> 0 | BV9: =_xlfn.IFNA(MATCH(RAND(), _xlfn.POISSON.DIST({0,1,2,3,4,5,6,7,8,9},$P9, TRUE),1), 0) -> 0 | BW9: =_xlfn.IFNA(MATCH(RAND(), _xlfn.POISSON.DIST({0,1,2,3,4,5,6,7,8,9},$P9, TRUE),1), 0) -> 0 | BX9: =_xlfn.IFNA(MATCH(RAND(), _xlfn.POISSON.DIST({0,1,2,3,4,5,6,7,8,9},$P9, TRUE),1), 0) -> 0 | BY9: =_xlfn.IFNA(MATCH(RAND(), _xlfn.POISSON.DIST({0,1,2,3,4,5,6,7,8,9},$P9, TRUE),1), 0) -> 1 | BZ9: =_xlfn.IFNA(MATCH(RAND(), _xlfn.POISSON.DIST({0,1,2,3,4,5,6,7,8,9},$P9, TRUE),1), 0) -> 0 | CA9: =_xlfn.IFNA(MATCH(RAND(), _xlfn.POISSON.DIST({0,1,2,3,4,5,6,7,8,9},$P9, TRUE),1), 0) -> 0 | CB9: =_xlfn.IFNA(MATCH(RAND(), _xlfn.POISSON.DIST({0,1,2,3,4,5,6,7,8,9},$P9, TRUE),1), 0) -> 1 | CC9: =_xlfn.IFNA(MATCH(RAND(), _xlfn.POISSON.DIST({0,1,2,3,4,5,6,7,8,9},$P9, TRUE),1), 0) -> 1 | CD9: =_xlfn.IFNA(MATCH(RAND(), _xlfn.POISSON.DIST({0,1,2,3,4,5,6,7,8,9},$P9, TRUE),1), 0) -> 0 | CE9: =_xlfn.IFNA(MATCH(RAND(), _xlfn.POISSON.DIST({0,1,2,3,4,5,6,7,8,9},$P9, TRUE),1), 0) -> 0 | CF9: =_xlfn.IFNA(MATCH(RAND(), _xlfn.POISSON.DIST({0,1,2,3,4,5,6,7,8,9},$P9, TRUE),1), 0) -> 1 | CG9: =_xlfn.IFNA(MATCH(RAND(), _xlfn.POISSON.DIST({0,1,2,3,4,5,6,7,8,9},$P9, TRUE),1), 0) -> 0 | CH9: =_xlfn.IFNA(MATCH(RAND(), _xlfn.POISSON.DIST({0,1,2,3,4,5,6,7,8,9},$P9, TRUE),1), 0) -> 0 | CI9: =_xlfn.IFNA(MATCH(RAND(), _xlfn.POISSON.DIST({0,1,2,3,4,5,6,7,8,9},$P9, TRUE),1), 0) -> 1 | CJ9: =_xlfn.IFNA(MATCH(RAND(), _xlfn.POISSON.DIST({0,1,2,3,4,5,6,7,8,9},$P9, TRUE),1), 0) -> 0 | CK9: =_xlfn.IFNA(MATCH(RAND(), _xlfn.POISSON.DIST({0,1,2,3,4,5,6,7,8,9},$P9, TRUE),1), 0) -> 0 | CL9: =_xlfn.IFNA(MATCH(RAND(), _xlfn.POISSON.DIST({0,1,2,3,4,5,6,7,8,9},$P9, TRUE),1), 0) -> 1 | CM9: =_xlfn.IFNA(MATCH(RAND(), _xlfn.POISSON.DIST({0,1,2,3,4,5,6,7,8,9},$P9, TRUE),1), 0) -> 1 | CN9: =_xlfn.IFNA(MATCH(RAND(), _xlfn.POISSON.DIST({0,1,2,3,4,5,6,7,8,9},$P9, TRUE),1), 0) -> 1 | CO9: =_xlfn.IFNA(MATCH(RAND(), _xlfn.POISSON.DIST({0,1,2,3,4,5,6,7,8,9},$P9, TRUE),1), 0) -> 0 | CP9: =_xlfn.IFNA(MATCH(RAND(), _xlfn.POISSON.DIST({0,1,2,3,4,5,6,7,8,9},$P9, TRUE),1), 0) -> 0 | CQ9: =_xlfn.IFNA(MATCH(RAND(), _xlfn.POISSON.DIST({0,1,2,3,4,5,6,7,8,9},$P9, TRUE),1), 0) -> 1 | CR9: =_xlfn.IFNA(MATCH(RAND(), _xlfn.POISSON.DIST({0,1,2,3,4,5,6,7,8,9},$P9, TRUE),1), 0) -> 1 | CS9: =_xlfn.IFNA(MATCH(RAND(), _xlfn.POISSON.DIST({0,1,2,3,4,5,6,7,8,9},$P9, TRUE),1), 0) -> 1 | CT9: =_xlfn.IFNA(MATCH(RAND(), _xlfn.POISSON.DIST({0,1,2,3,4,5,6,7,8,9},$P9, TRUE),1), 0) -> 0 | CU9: =_xlfn.IFNA(MATCH(RAND(), _xlfn.POISSON.DIST({0,1,2,3,4,5,6,7,8,9},$P9, TRUE),1), 0) -> 0 | CV9: =_xlfn.IFNA(MATCH(RAND(), _xlfn.POISSON.DIST({0,1,2,3,4,5,6,7,8,9},$P9, TRUE),1), 0) -> 2 | CW9: =_xlfn.IFNA(MATCH(RAND(), _xlfn.POISSON.DIST({0,1,2,3,4,5,6,7,8,9},$P9, TRUE),1), 0) -> 0 | CX9: =_xlfn.IFNA(MATCH(RAND(), _xlfn.POISSON.DIST({0,1,2,3,4,5,6,7,8,9},$P9, TRUE),1), 0) -> 1 | CY9: =_xlfn.IFNA(MATCH(RAND(), _xlfn.POISSON.DIST({0,1,2,3,4,5,6,7,8,9},$P9, TRUE),1), 0) -> 2 | CZ9: =_xlfn.IFNA(MATCH(RAND(), _xlfn.POISSON.DIST({0,1,2,3,4,5,6,7,8,9},$P9, TRUE),1), 0) -> 1 | DA9: =_xlfn.IFNA(MATCH(RAND(), _xlfn.POISSON.DIST({0,1,2,3,4,5,6,7,8,9},$P9, TRUE),1), 0) -> 2 | DB9: =_xlfn.IFNA(MATCH(RAND(), _xlfn.POISSON.DIST({0,1,2,3,4,5,6,7,8,9},$P9, TRUE),1), 0) -> 0 | DC9: =_xlfn.IFNA(MATCH(RAND(), _xlfn.POISSON.DIST({0,1,2,3,4,5,6,7,8,9},$P9, TRUE),1), 0) -> 0 | DD9: =_xlfn.IFNA(MATCH(RAND(), _xlfn.POISSON.DIST({0,1,2,3,4,5,6,7,8,9},$P9, TRUE),1), 0) -> 0 | DE9: =_xlfn.IFNA(MATCH(RAND(), _xlfn.POISSON.DIST({0,1,2,3,4,5,6,7,8,9},$P9, TRUE),1), 0) -> 2 | DF9: =_xlfn.IFNA(MATCH(RAND(), _xlfn.POISSON.DIST({0,1,2,3,4,5,6,7,8,9},$P9, TRUE),1), 0) -> 1 | DG9: =_xlfn.IFNA(MATCH(RAND(), _xlfn.POISSON.DIST({0,1,2,3,4,5,6,7,8,9},$P9, TRUE),1), 0) -> 0 | DH9: =_xlfn.IFNA(MATCH(RAND(), _xlfn.POISSON.DIST({0,1,2,3,4,5,6,7,8,9},$P9, TRUE),1), 0) -> 0 | DI9: =_xlfn.IFNA(MATCH(RAND(), _xlfn.POISSON.DIST({0,1,2,3,4,5,6,7,8,9},$P9, TRUE),1), 0) -> 0 | DJ9: =_xlfn.IFNA(MATCH(RAND(), _xlfn.POISSON.DIST({0,1,2,3,4,5,6,7,8,9},$P9, TRUE),1), 0) -> 1 | DK9: =_xlfn.IFNA(MATCH(RAND(), _xlfn.POISSON.DIST({0,1,2,3,4,5,6,7,8,9},$P9, TRUE),1), 0) -> 0 | DL9: =_xlfn.IFNA(MATCH(RAND(), _xlfn.POISSON.DIST({0,1,2,3,4,5,6,7,8,9},$P9, TRUE),1), 0) -> 0 | DM9: =_xlfn.IFNA(MATCH(RAND(), _xlfn.POISSON.DIST({0,1,2,3,4,5,6,7,8,9},$P9, TRUE),1), 0) -> 2
C10: 2019-06-09 | D10: C | E10: Австралия | F10: =(AVERAGE(Q10:BN10))*(1+INDEX('Прогнозы группового этапа'!$C$4:$O$28, MATCH('Матчи за текущий год'!E10,'Прогнозы группового этапа'!$D$4:$D$28,0),3)) -> 1.78 | G10: Италия | H10: =(AVERAGE(BP10:DM10))*(1+INDEX('Прогнозы группового этапа'!$C$4:$O$28, MATCH('Матчи за текущий год'!G10,'Прогнозы группового этапа'!$D$4:$D$28,0),3)) -> 1.16 | I10: Австралия | L10: 1.78 | M10: 1.16 | N10: Австралия | O10: =(OFFSET('Прил. 3. Голы в группе'!$D$14,(INDEX('Прил. 1. Данные команды'!$C$13:$F$112,MATCH(G10,'Прил. 1. Данные команды'!$C$13:$C$112,0),4)/10),(INDEX('Прил. 1. Данные команды'!$C$13:$F$112,MATCH(E10,'Прил. 1. Данные команды'!$C$13:$C$112,0),4)/10))) -> 1.78 | P10: =OFFSET('Прил. 3. Голы в группе'!$D$14,(INDEX('Прил. 1. Данные команды'!$C$13:$F$112, MATCH(E10,'Прил. 1. Данные команды'!$C$13:$C$112,0),4)/10), (INDEX('Прил. 1. Данные команды'!$C$13:$F$112, MATCH(G10, 'Прил. 1. Данные команды'!$C$13:$C$112,0),4)/10)) -> 1.07 | Q10: =_xlfn.IFNA(MATCH(RAND(), _xlfn.POISSON.DIST({0,1,2,3,4,5,6,7,8,9},$O10, TRUE),1), 0) -> 1 | R10: =_xlfn.IFNA(MATCH(RAND(), _xlfn.POISSON.DIST({0,1,2,3,4,5,6,7,8,9},$O10, TRUE),1), 0) -> 0 | S10: =_xlfn.IFNA(MATCH(RAND(), _xlfn.POISSON.DIST({0,1,2,3,4,5,6,7,8,9},$O10, TRUE),1), 0) -> 1 | T10: =_xlfn.IFNA(MATCH(RAND(), _xlfn.POISSON.DIST({0,1,2,3,4,5,6,7,8,9},$O10, TRUE),1), 0) -> 3 | U10: =_xlfn.IFNA(MATCH(RAND(), _xlfn.POISSON.DIST({0,1,2,3,4,5,6,7,8,9},$O10, TRUE),1), 0) -> 2 | V10: =_xlfn.IFNA(MATCH(RAND(), _xlfn.POISSON.DIST({0,1,2,3,4,5,6,7,8,9},$O10, TRUE),1), 0) -> 2 | W10: =_xlfn.IFNA(MATCH(RAND(), _xlfn.POISSON.DIST({0,1,2,3,4,5,6,7,8,9},$O10, TRUE),1), 0) -> 4 | X10: =_xlfn.IFNA(MATCH(RAND(), _xlfn.POISSON.DIST({0,1,2,3,4,5,6,7,8,9},$O10, TRUE),1), 0) -> 3 | Y10: =_xlfn.IFNA(MATCH(RAND(), _xlfn.POISSON.DIST({0,1,2,3,4,5,6,7,8,9},$O10, TRUE),1), 0) -> 1 | Z10: =_xlfn.IFNA(MATCH(RAND(), _xlfn.POISSON.DIST({0,1,2,3,4,5,6,7,8,9},$O10, TRUE),1), 0) -> 2 | AA10: =_xlfn.IFNA(MATCH(RAND(), _xlfn.POISSON.DIST({0,1,2,3,4,5,6,7,8,9},$O10, TRUE),1), 0) -> 1 | AB10: =_xlfn.IFNA(MATCH(RAND(), _xlfn.POISSON.DIST({0,1,2,3,4,5,6,7,8,9},$O10, TRUE),1), 0) -> 4 | AC10: =_xlfn.IFNA(MATCH(RAND(), _xlfn.POISSON.DIST({0,1,2,3,4,5,6,7,8,9},$O10, TRUE),1), 0) -> 3 | AD10: =_xlfn.IFNA(MATCH(RAND(), _xlfn.POISSON.DIST({0,1,2,3,4,5,6,7,8,9},$O10, TRUE),1), 0) -> 1 | AE10: =_xlfn.IFNA(MATCH(RAND(), _xlfn.POISSON.DIST({0,1,2,3,4,5,6,7,8,9},$O10, TRUE),1), 0) -> 0 | AF10: =_xlfn.IFNA(MATCH(RAND(), _xlfn.POISSON.DIST({0,1,2,3,4,5,6,7,8,9},$O10, TRUE),1), 0) -> 2 | AG10: =_xlfn.IFNA(MATCH(RAND(), _xlfn.POISSON.DIST({0,1,2,3,4,5,6,7,8,9},$O10, TRUE),1), 0) -> 1 | AH10: =_xlfn.IFNA(MATCH(RAND(), _xlfn.POISSON.DIST({0,1,2,3,4,5,6,7,8,9},$O10, TRUE),1), 0) -> 2 | AI10: =_xlfn.IFNA(MATCH(RAND(), _xlfn.POISSON.DIST({0,1,2,3,4,5,6,7,8,9},$O10, TRUE),1), 0) -> 2 | AJ10: =_xlfn.IFNA(MATCH(RAND(), _xlfn.POISSON.DIST({0,1,2,3,4,5,6,7,8,9},$O10, TRUE),1), 0) -> 1 | AK10: =_xlfn.IFNA(MATCH(RAND(), _xlfn.POISSON.DIST({0,1,2,3,4,5,6,7,8,9},$O10, TRUE),1), 0) -> 0 | AL10: =_xlfn.IFNA(MATCH(RAND(), _xlfn.POISSON.DIST({0,1,2,3,4,5,6,7,8,9},$O10, TRUE),1), 0) -> 4 | AM10: =_xlfn.IFNA(MATCH(RAND(), _xlfn.POISSON.DIST({0,1,2,3,4,5,6,7,8,9},$O10, TRUE),1), 0) -> 3 | AN10: =_xlfn.IFNA(MATCH(RAND(), _xlfn.POISSON.DIST({0,1,2,3,4,5,6,7,8,9},$O10, TRUE),1), 0) -> 0 | AO10: =_xlfn.IFNA(MATCH(RAND(), _xlfn.POISSON.DIST({0,1,2,3,4,5,6,7,8,9},$O10, TRUE),1), 0) -> 0 | AP10: =_xlfn.IFNA(MATCH(RAND(), _xlfn.POISSON.DIST({0,1,2,3,4,5,6,7,8,9},$O10, TRUE),1), 0) -> 3 | AQ10: =_xlfn.IFNA(MATCH(RAND(), _xlfn.POISSON.DIST({0,1,2,3,4,5,6,7,8,9},$O10, TRUE),1), 0) -> 2 | AR10: =_xlfn.IFNA(MATCH(RAND(), _xlfn.POISSON.DIST({0,1,2,3,4,5,6,7,8,9},$O10, TRUE),1), 0) -> 2 | AS10: =_xlfn.IFNA(MATCH(RAND(), _xlfn.POISSON.DIST({0,1,2,3,4,5,6,7,8,9},$O10, TRUE),1), 0) -> 0 | AT10: =_xlfn.IFNA(MATCH(RAND(), _xlfn.POISSON.DIST({0,1,2,3,4,5,6,7,8,9},$O10, TRUE),1), 0) -> 0 | AU10: =_xlfn.IFNA(MATCH(RAND(), _xlfn.POISSON.DIST({0,1,2,3,4,5,6,7,8,9},$O10, TRUE),1), 0) -> 1 | AV10: =_xlfn.IFNA(MATCH(RAND(), _xlfn.POISSON.DIST({0,1,2,3,4,5,6,7,8,9},$O10, TRUE),1), 0) -> 2 | AW10: =_xlfn.IFNA(MATCH(RAND(), _xlfn.POISSON.DIST({0,1,2,3,4,5,6,7,8,9},$O10, TRUE),1), 0) -> 2 | AX10: =_xlfn.IFNA(MATCH(RAND(), _xlfn.POISSON.DIST({0,1,2,3,4,5,6,7,8,9},$O10, TRUE),1), 0) -> 1 | AY10: =_xlfn.IFNA(MATCH(RAND(), _xlfn.POISSON.DIST({0,1,2,3,4,5,6,7,8,9},$O10, TRUE),1), 0) -> 2 | AZ10: =_xlfn.IFNA(MATCH(RAND(), _xlfn.POISSON.DIST({0,1,2,3,4,5,6,7,8,9},$O10, TRUE),1), 0) -> 1 | BA10: =_xlfn.IFNA(MATCH(RAND(), _xlfn.POISSON.DIST({0,1,2,3,4,5,6,7,8,9},$O10, TRUE),1), 0) -> 0 | BB10: =_xlfn.IFNA(MATCH(RAND(), _xlfn.POISSON.DIST({0,1,2,3,4,5,6,7,8,9},$O10, TRUE),1), 0) -> 3 | BC10: =_xlfn.IFNA(MATCH(RAND(), _xlfn.POISSON.DIST({0,1,2,3,4,5,6,7,8,9},$O10, TRUE),1), 0) -> 4 | BD10: =_xlfn.IFNA(MATCH(RAND(), _xlfn.POISSON.DIST({0,1,2,3,4,5,6,7,8,9},$O10, TRUE),1), 0) -> 2 | BE10: =_xlfn.IFNA(MATCH(RAND(), _xlfn.POISSON.DIST({0,1,2,3,4,5,6,7,8,9},$O10, TRUE),1), 0) -> 2 | BF10: =_xlfn.IFNA(MATCH(RAND(), _xlfn.POISSON.DIST({0,1,2,3,4,5,6,7,8,9},$O10, TRUE),1), 0) -> 1 | BG10: =_xlfn.IFNA(MATCH(RAND(), _xlfn.POISSON.DIST({0,1,2,3,4,5,6,7,8,9},$O10, TRUE),1), 0) -> 4 | BH10: =_xlfn.IFNA(MATCH(RAND(), _xlfn.POISSON.DIST({0,1,2,3,4,5,6,7,8,9},$O10, TRUE),1), 0) -> 1 | BI10: =_xlfn.IFNA(MATCH(RAND(), _xlfn.POISSON.DIST({0,1,2,3,4,5,6,7,8,9},$O10, TRUE),1), 0) -> 1 | BJ10: =_xlfn.IFNA(MATCH(RAND(), _xlfn.POISSON.DIST({0,1,2,3,4,5,6,7,8,9},$O10, TRUE),1), 0) -> 1 | BK10: =_xlfn.IFNA(MATCH(RAND(), _xlfn.POISSON.DIST({0,1,2,3,4,5,6,7,8,9},$O10, TRUE),1), 0) -> 2 | BL10: =_xlfn.IFNA(MATCH(RAND(), _xlfn.POISSON.DIST({0,1,2,3,4,5,6,7,8,9},$O10, TRUE),1), 0) -> 2 | BM10: =_xlfn.IFNA(MATCH(RAND(), _xlfn.POISSON.DIST({0,1,2,3,4,5,6,7,8,9},$O10, TRUE),1), 0) -> 3 | BN10: =_xlfn.IFNA(MATCH(RAND(), _xlfn.POISSON.DIST({0,1,2,3,4,5,6,7,8,9},$O10, TRUE),1), 0) -> 4 | BP10: =_xlfn.IFNA(MATCH(RAND(), _xlfn.POISSON.DIST({0,1,2,3,4,5,6,7,8,9},$P10, TRUE),1), 0) -> 1 | BQ10: =_xlfn.IFNA(MATCH(RAND(), _xlfn.POISSON.DIST({0,1,2,3,4,5,6,7,8,9},$P10, TRUE),1), 0) -> 0 | BR10: =_xlfn.IFNA(MATCH(RAND(), _xlfn.POISSON.DIST({0,1,2,3,4,5,6,7,8,9},$P10, TRUE),1), 0) -> 1 | BS10: =_xlfn.IFNA(MATCH(RAND(), _xlfn.POISSON.DIST({0,1,2,3,4,5,6,7,8,9},$P10, TRUE),1), 0) -> 1 | BT10: =_xlfn.IFNA(MATCH(RAND(), _xlfn.POISSON.DIST({0,1,2,3,4,5,6,7,8,9},$P10, TRUE),1), 0) -> 1 | BU10: =_xlfn.IFNA(MATCH(RAND(), _xlfn.POISSON.DIST({0,1,2,3,4,5,6,7,8,9},$P10, TRUE),1), 0) -> 0 | BV10: =_xlfn.IFNA(MATCH(RAND(), _xlfn.POISSON.DIST({0,1,2,3,4,5,6,7,8,9},$P10, TRUE),1), 0) -> 1 | BW10: =_xlfn.IFNA(MATCH(RAND(), _xlfn.POISSON.DIST({0,1,2,3,4,5,6,7,8,9},$P10, TRUE),1), 0) -> 0 | BX10: =_xlfn.IFNA(MATCH(RAND(), _xlfn.POISSON.DIST({0,1,2,3,4,5,6,7,8,9},$P10, TRUE),1), 0) -> 4 | BY10: =_xlfn.IFNA(MATCH(RAND(), _xlfn.POISSON.DIST({0,1,2,3,4,5,6,7,8,9},$P10, TRUE),1), 0) -> 3 | BZ10: =_xlfn.IFNA(MATCH(RAND(), _xlfn.POISSON.DIST({0,1,2,3,4,5,6,7,8,9},$P10, TRUE),1), 0) -> 0 | CA10: =_xlfn.IFNA(MATCH(RAND(), _xlfn.POISSON.DIST({0,1,2,3,4,5,6,7,8,9},$P10, TRUE),1), 0) -> 0 | CB10: =_xlfn.IFNA(MATCH(RAND(), _xlfn.POISSON.DIST({0,1,2,3,4,5,6,7,8,9},$P10, TRUE),1), 0) -> 1 | CC10: =_xlfn.IFNA(MATCH(RAND(), _xlfn.POISSON.DIST({0,1,2,3,4,5,6,7,8,9},$P10, TRUE),1), 0) -> 1 | CD10: =_xlfn.IFNA(MATCH(RAND(), _xlfn.POISSON.DIST({0,1,2,3,4,5,6,7,8,9},$P10, TRUE),1), 0) -> 2 | CE10: =_xlfn.IFNA(MATCH(RAND(), _xlfn.POISSON.DIST({0,1,2,3,4,5,6,7,8,9},$P10, TRUE),1), 0) -> 1 | CF10: =_xlfn.IFNA(MATCH(RAND(), _xlfn.POISSON.DIST({0,1,2,3,4,5,6,7,8,9},$P10, TRUE),1), 0) -> 1 | CG10: =_xlfn.IFNA(MATCH(RAND(), _xlfn.POISSON.DIST({0,1,2,3,4,5,6,7,8,9},$P10, TRUE),1), 0) -> 1 | CH10: =_xlfn.IFNA(MATCH(RAND(), _xlfn.POISSON.DIST({0,1,2,3,4,5,6,7,8,9},$P10, TRUE),1), 0) -> 0 | CI10: =_xlfn.IFNA(MATCH(RAND(), _xlfn.POISSON.DIST({0,1,2,3,4,5,6,7,8,9},$P10, TRUE),1), 0) -> 2 | CJ10: =_xlfn.IFNA(MATCH(RAND(), _xlfn.POISSON.DIST({0,1,2,3,4,5,6,7,8,9},$P10, TRUE),1), 0) -> 1 | CK10: =_xlfn.IFNA(MATCH(RAND(), _xlfn.POISSON.DIST({0,1,2,3,4,5,6,7,8,9},$P10, TRUE),1), 0) -> 2 | CL10: =_xlfn.IFNA(MATCH(RAND(), _xlfn.POISSON.DIST({0,1,2,3,4,5,6,7,8,9},$P10, TRUE),1), 0) -> 1 | CM10: =_xlfn.IFNA(MATCH(RAND(), _xlfn.POISSON.DIST({0,1,2,3,4,5,6,7,8,9},$P10, TRUE),1), 0) -> 2 | CN10: =_xlfn.IFNA(MATCH(RAND(), _xlfn.POISSON.DIST({0,1,2,3,4,5,6,7,8,9},$P10, TRUE),1), 0) -> 2 | CO10: =_xlfn.IFNA(MATCH(RAND(), _xlfn.POISSON.DIST({0,1,2,3,4,5,6,7,8,9},$P10, TRUE),1), 0) -> 2 | CP10: =_xlfn.IFNA(MATCH(RAND(), _xlfn.POISSON.DIST({0,1,2,3,4,5,6,7,8,9},$P10, TRUE),1), 0) -> 0 | CQ10: =_xlfn.IFNA(MATCH(RAND(), _xlfn.POISSON.DIST({0,1,2,3,4,5,6,7,8,9},$P10, TRUE),1), 0) -> 0 | CR10: =_xlfn.IFNA(MATCH(RAND(), _xlfn.POISSON.DIST({0,1,2,3,4,5,6,7,8,9},$P10, TRUE),1), 0) -> 1 | CS10: =_xlfn.IFNA(MATCH(RAND(), _xlfn.POISSON.DIST({0,1,2,3,4,5,6,7,8,9},$P10, TRUE),1), 0) -> 1 | CT10: =_xlfn.IFNA(MATCH(RAND(), _xlfn.POISSON.DIST({0,1,2,3,4,5,6,7,8,9},$P10, TRUE),1), 0) -> 1 | CU10: =_xlfn.IFNA(MATCH(RAND(), _xlfn.POISSON.DIST({0,1,2,3,4,5,6,7,8,9},$P10, TRUE),1), 0) -> 3 | CV10: =_xlfn.IFNA(MATCH(RAND(), _xlfn.POISSON.DIST({0,1,2,3,4,5,6,7,8,9},$P10, TRUE),1), 0) -> 0 | CW10: =_xlfn.IFNA(MATCH(RAND(), _xlfn.POISSON.DIST({0,1,2,3,4,5,6,7,8,9},$P10, TRUE),1), 0) -> 1 | CX10: =_xlfn.IFNA(MATCH(RAND(), _xlfn.POISSON.DIST({0,1,2,3,4,5,6,7,8,9},$P10, TRUE),1), 0) -> 0 | CY10: =_xlfn.IFNA(MATCH(RAND(), _xlfn.POISSON.DIST({0,1,2,3,4,5,6,7,8,9},$P10, TRUE),1), 0) -> 1 | CZ10: =_xlfn.IFNA(MATCH(RAND(), _xlfn.POISSON.DIST({0,1,2,3,4,5,6,7,8,9},$P10, TRUE),1), 0) -> 0 | DA10: =_xlfn.IFNA(MATCH(RAND(), _xlfn.POISSON.DIST({0,1,2,3,4,5,6,7,8,9},$P10, TRUE),1), 0) -> 0 | DB10: =_xlfn.IFNA(MATCH(RAND(), _xlfn.POISSON.DIST({0,1,2,3,4,5,6,7,8,9},$P10, TRUE),1), 0) -> 2 | DC10: =_xlfn.IFNA(MATCH(RAND(), _xlfn.POISSON.DIST({0,1,2,3,4,5,6,7,8,9},$P10, TRUE),1), 0) -> 2 | DD10: =_xlfn.IFNA(MATCH(RAND(), _xlfn.POISSON.DIST({0,1,2,3,4,5,6,7,8,9},$P10, TRUE),1), 0) -> 1 | DE10: =_xlfn.IFNA(MATCH(RAND(), _xlfn.POISSON.DIST({0,1,2,3,4,5,6,7,8,9},$P10, TRUE),1), 0) -> 0 | DF10: =_xlfn.IFNA(MATCH(RAND(), _xlfn.POISSON.DIST({0,1,2,3,4,5,6,7,8,9},$P10, TRUE),1), 0) -> 1 | DG10: =_xlfn.IFNA(MATCH(RAND(), _xlfn.POISSON.DIST({0,1,2,3,4,5,6,7,8,9},$P10, TRUE),1), 0) -> 1 | DH10: =_xlfn.IFNA(MATCH(RAND(), _xlfn.POISSON.DIST({0,1,2,3,4,5,6,7,8,9},$P10, TRUE),1), 0) -> 0 | DI10: =_xlfn.IFNA(MATCH(RAND(), _xlfn.POISSON.DIST({0,1,2,3,4,5,6,7,8,9},$P10, TRUE),1), 0) -> 0 | DJ10: =_xlfn.IFNA(MATCH(RAND(), _xlfn.POISSON.DIST({0,1,2,3,4,5,6,7,8,9},$P10, TRUE),1), 0) -> 3 | DK10: =_xlfn.IFNA(MATCH(RAND(), _xlfn.POISSON.DIST({0,1,2,3,4,5,6,7,8,9},$P10, TRUE),1), 0) -> 2 | DL10: =_xlfn.IFNA(MATCH(RAND(), _xlfn.POISSON.DIST({0,1,2,3,4,5,6,7,8,9},$P10, TRUE),1), 0) -> 4 | DM10: =_xlfn.IFNA(MATCH(RAND(), _xlfn.POISSON.DIST({0,1,2,3,4,5,6,7,8,9},$P10, TRUE),1), 0) -> 3
C11: 2019-06-09 | D11: C | E11: Бразилия | F11: =(AVERAGE(Q11:BN11))*(1+INDEX('Прогнозы группового этапа'!$C$4:$O$28, MATCH('Матчи за текущий год'!E11,'Прогнозы группового этапа'!$D$4:$D$28,0),3)) -> 5.06 | G11: Ямайка | H11: =(AVERAGE(BP11:DM11))*(1+INDEX('Прогнозы группового этапа'!$C$4:$O$28, MATCH('Матчи за текущий год'!G11,'Прогнозы группового этапа'!$D$4:$D$28,0),3)) -> 0.20 | I11: Бразилия | L11: 5.06 | M11: 0.2 | N11: Бразилия | O11: =(OFFSET('Прил. 3. Голы в группе'!$D$14,(INDEX('Прил. 1. Данные команды'!$C$13:$F$112,MATCH(G11,'Прил. 1. Данные команды'!$C$13:$C$112,0),4)/10),(INDEX('Прил. 1. Данные команды'!$C$13:$F$112,MATCH(E11,'Прил. 1. Данные команды'!$C$13:$C$112,0),4)/10))) -> 5.67 | P11: =OFFSET('Прил. 3. Голы в группе'!$D$14,(INDEX('Прил. 1. Данные команды'!$C$13:$F$112, MATCH(E11,'Прил. 1. Данные команды'!$C$13:$C$112,0),4)/10), (INDEX('Прил. 1. Данные команды'!$C$13:$F$112, MATCH(G11, 'Прил. 1. Данные команды'!$C$13:$C$112,0),4)/10)) -> 0.17 | Q11: =_xlfn.IFNA(MATCH(RAND(), _xlfn.POISSON.DIST({0,1,2,3,4,5,6,7,8,9},$O11, TRUE),1), 0) -> 3 | R11: =_xlfn.IFNA(MATCH(RAND(), _xlfn.POISSON.DIST({0,1,2,3,4,5,6,7,8,9},$O11, TRUE),1), 0) -> 1 | S11: =_xlfn.IFNA(MATCH(RAND(), _xlfn.POISSON.DIST({0,1,2,3,4,5,6,7,8,9},$O11, TRUE),1), 0) -> 6 | T11: =_xlfn.IFNA(MATCH(RAND(), _xlfn.POISSON.DIST({0,1,2,3,4,5,6,7,8,9},$O11, TRUE),1), 0) -> 0 | U11: =_xlfn.IFNA(MATCH(RAND(), _xlfn.POISSON.DIST({0,1,2,3,4,5,6,7,8,9},$O11, TRUE),1), 0) -> 5 | V11: =_xlfn.IFNA(MATCH(RAND(), _xlfn.POISSON.DIST({0,1,2,3,4,5,6,7,8,9},$O11, TRUE),1), 0) -> 9 | W11: =_xlfn.IFNA(MATCH(RAND(), _xlfn.POISSON.DIST({0,1,2,3,4,5,6,7,8,9},$O11, TRUE),1), 0) -> 5 | X11: =_xlfn.IFNA(MATCH(RAND(), _xlfn.POISSON.DIST({0,1,2,3,4,5,6,7,8,9},$O11, TRUE),1), 0) -> 6 | Y11: =_xlfn.IFNA(MATCH(RAND(), _xlfn.POISSON.DIST({0,1,2,3,4,5,6,7,8,9},$O11, TRUE),1), 0) -> 6 | Z11: =_xlfn.IFNA(MATCH(RAND(), _xlfn.POISSON.DIST({0,1,2,3,4,5,6,7,8,9},$O11, TRUE),1), 0) -> 3 | AA11: =_xlfn.IFNA(MATCH(RAND(), _xlfn.POISSON.DIST({0,1,2,3,4,5,6,7,8,9},$O11, TRUE),1), 0) -> 3 | AB11: =_xlfn.IFNA(MATCH(RAND(), _xlfn.POISSON.DIST({0,1,2,3,4,5,6,7,8,9},$O11, TRUE),1), 0) -> 5 | AC11: =_xlfn.IFNA(MATCH(RAND(), _xlfn.POISSON.DIST({0,1,2,3,4,5,6,7,8,9},$O11, TRUE),1), 0) -> 6 | AD11: =_xlfn.IFNA(MATCH(RAND(), _xlfn.POISSON.DIST({0,1,2,3,4,5,6,7,8,9},$O11, TRUE),1), 0) -> 6 | AE11: =_xlfn.IFNA(MATCH(RAND(), _xlfn.POISSON.DIST({0,1,2,3,4,5,6,7,8,9},$O11, TRUE),1), 0) -> 8 | AF11: =_xlfn.IFNA(MATCH(RAND(), _xlfn.POISSON.DIST({0,1,2,3,4,5,6,7,8,9},$O11, TRUE),1), 0) -> 2 | AG11: =_xlfn.IFNA(MATCH(RAND(), _xlfn.POISSON.DIST({0,1,2,3,4,5,6,7,8,9},$O11, TRUE),1), 0) -> 6 | AH11: =_xlfn.IFNA(MATCH(RAND(), _xlfn.POISSON.DIST({0,1,2,3,4,5,6,7,8,9},$O11, TRUE),1), 0) -> 7 | AI11: =_xlfn.IFNA(MATCH(RAND(), _xlfn.POISSON.DIST({0,1,2,3,4,5,6,7,8,9},$O11, TRUE),1), 0) -> 6 | AJ11: =_xlfn.IFNA(MATCH(RAND(), _xlfn.POISSON.DIST({0,1,2,3,4,5,6,7,8,9},$O11, TRUE),1), 0) -> 5 | AK11: =_xlfn.IFNA(MATCH(RAND(), _xlfn.POISSON.DIST({0,1,2,3,4,5,6,7,8,9},$O11, TRUE),1), 0) -> 8 | AL11: =_xlfn.IFNA(MATCH(RAND(), _xlfn.POISSON.DIST({0,1,2,3,4,5,6,7,8,9},$O11, TRUE),1), 0) -> 1 | AM11: =_xlfn.IFNA(MATCH(RAND(), _xlfn.POISSON.DIST({0,1,2,3,4,5,6,7,8,9},$O11, TRUE),1), 0) -> 6 | AN11: =_xlfn.IFNA(MATCH(RAND(), _xlfn.POISSON.DIST({0,1,2,3,4,5,6,7,8,9},$O11, TRUE),1), 0) -> 10 | AO11: =_xlfn.IFNA(MATCH(RAND(), _xlfn.POISSON.DIST({0,1,2,3,4,5,6,7,8,9},$O11, TRUE),1), 0) -> 4 | AP11: =_xlfn.IFNA(MATCH(RAND(), _xlfn.POISSON.DIST({0,1,2,3,4,5,6,7,8,9},$O11, TRUE),1), 0) -> 5 | AQ11: =_xlfn.IFNA(MATCH(RAND(), _xlfn.POISSON.DIST({0,1,2,3,4,5,6,7,8,9},$O11, TRUE),1), 0) -> 1 | AR11: =_xlfn.IFNA(MATCH(RAND(), _xlfn.POISSON.DIST({0,1,2,3,4,5,6,7,8,9},$O11, TRUE),1), 0) -> 6 | AS11: =_xlfn.IFNA(MATCH(RAND(), _xlfn.POISSON.DIST({0,1,2,3,4,5,6,7,8,9},$O11, TRUE),1), 0) -> 7 | AT11: =_xlfn.IFNA(MATCH(RAND(), _xlfn.POISSON.DIST({0,1,2,3,4,5,6,7,8,9},$O11, TRUE),1), 0) -> 3 | AU11: =_xlfn.IFNA(MATCH(RAND(), _xlfn.POISSON.DIST({0,1,2,3,4,5,6,7,8,9},$O11, TRUE),1), 0) -> 5 | AV11: =_xlfn.IFNA(MATCH(RAND(), _xlfn.POISSON.DIST({0,1,2,3,4,5,6,7,8,9},$O11, TRUE),1), 0) -> 3 | AW11: =_xlfn.IFNA(MATCH(RAND(), _xlfn.POISSON.DIST({0,1,2,3,4,5,6,7,8,9},$O11, TRUE),1), 0) -> 5 | AX11: =_xlfn.IFNA(MATCH(RAND(), _xlfn.POISSON.DIST({0,1,2,3,4,5,6,7,8,9},$O11, TRUE),1), 0) -> 8 | AY11: =_xlfn.IFNA(MATCH(RAND(), _xlfn.POISSON.DIST({0,1,2,3,4,5,6,7,8,9},$O11, TRUE),1), 0) -> 4 | AZ11: =_xlfn.IFNA(MATCH(RAND(), _xlfn.POISSON.DIST({0,1,2,3,4,5,6,7,8,9},$O11, TRUE),1), 0) -> 7 | BA11: =_xlfn.IFNA(MATCH(RAND(), _xlfn.POISSON.DIST({0,1,2,3,4,5,6,7,8,9},$O11, TRUE),1), 0) -> 5 | BB11: =_xlfn.IFNA(MATCH(RAND(), _xlfn.POISSON.DIST({0,1,2,3,4,5,6,7,8,9},$O11, TRUE),1), 0) -> 5 | BC11: =_xlfn.IFNA(MATCH(RAND(), _xlfn.POISSON.DIST({0,1,2,3,4,5,6,7,8,9},$O11, TRUE),1), 0) -> 3 | BD11: =_xlfn.IFNA(MATCH(RAND(), _xlfn.POISSON.DIST({0,1,2,3,4,5,6,7,8,9},$O11, TRUE),1), 0) -> 4 | BE11: =_xlfn.IFNA(MATCH(RAND(), _xlfn.POISSON.DIST({0,1,2,3,4,5,6,7,8,9},$O11, TRUE),1), 0) -> 6 | BF11: =_xlfn.IFNA(MATCH(RAND(), _xlfn.POISSON.DIST({0,1,2,3,4,5,6,7,8,9},$O11, TRUE),1), 0) -> 5 | BG11: =_xlfn.IFNA(MATCH(RAND(), _xlfn.POISSON.DIST({0,1,2,3,4,5,6,7,8,9},$O11, TRUE),1), 0) -> 3 | BH11: =_xlfn.IFNA(MATCH(RAND(), _xlfn.POISSON.DIST({0,1,2,3,4,5,6,7,8,9},$O11, TRUE),1), 0) -> 10 | BI11: =_xlfn.IFNA(MATCH(RAND(), _xlfn.POISSON.DIST({0,1,2,3,4,5,6,7,8,9},$O11, TRUE),1), 0) -> 6 | BJ11: =_xlfn.IFNA(MATCH(RAND(), _xlfn.POISSON.DIST({0,1,2,3,4,5,6,7,8,9},$O11, TRUE),1), 0) -> 6 | BK11: =_xlfn.IFNA(MATCH(RAND(), _xlfn.POISSON.DIST({0,1,2,3,4,5,6,7,8,9},$O11, TRUE),1), 0) -> 2 | BL11: =_xlfn.IFNA(MATCH(RAND(), _xlfn.POISSON.DIST({0,1,2,3,4,5,6,7,8,9},$O11, TRUE),1), 0) -> 7 | BM11: =_xlfn.IFNA(MATCH(RAND(), _xlfn.POISSON.DIST({0,1,2,3,4,5,6,7,8,9},$O11, TRUE),1), 0) -> 5 | BN11: =_xlfn.IFNA(MATCH(RAND(), _xlfn.POISSON.DIST({0,1,2,3,4,5,6,7,8,9},$O11, TRUE),1), 0) -> 5 | BP11: =_xlfn.IFNA(MATCH(RAND(), _xlfn.POISSON.DIST({0,1,2,3,4,5,6,7,8,9},$P11, TRUE),1), 0) -> 0 | BQ11: =_xlfn.IFNA(MATCH(RAND(), _xlfn.POISSON.DIST({0,1,2,3,4,5,6,7,8,9},$P11, TRUE),1), 0) -> 0 | BR11: =_xlfn.IFNA(MATCH(RAND(), _xlfn.POISSON.DIST({0,1,2,3,4,5,6,7,8,9},$P11, TRUE),1), 0) -> 0 | BS11: =_xlfn.IFNA(MATCH(RAND(), _xlfn.POISSON.DIST({0,1,2,3,4,5,6,7,8,9},$P11, TRUE),1), 0) -> 0 | BT11: =_xlfn.IFNA(MATCH(RAND(), _xlfn.POISSON.DIST({0,1,2,3,4,5,6,7,8,9},$P11, TRUE),1), 0) -> 0 | BU11: =_xlfn.IFNA(MATCH(RAND(), _xlfn.POISSON.DIST({0,1,2,3,4,5,6,7,8,9},$P11, TRUE),1), 0) -> 0 | BV11: =_xlfn.IFNA(MATCH(RAND(), _xlfn.POISSON.DIST({0,1,2,3,4,5,6,7,8,9},$P11, TRUE),1), 0) -> 0 | BW11: =_xlfn.IFNA(MATCH(RAND(), _xlfn.POISSON.DIST({0,1,2,3,4,5,6,7,8,9},$P11, TRUE),1), 0) -> 1 | BX11: =_xlfn.IFNA(MATCH(RAND(), _xlfn.POISSON.DIST({0,1,2,3,4,5,6,7,8,9},$P11, TRUE),1), 0) -> 0 | BY11: =_xlfn.IFNA(MATCH(RAND(), _xlfn.POISSON.DIST({0,1,2,3,4,5,6,7,8,9},$P11, TRUE),1), 0) -> 0 | BZ11: =_xlfn.IFNA(MATCH(RAND(), _xlfn.POISSON.DIST({0,1,2,3,4,5,6,7,8,9},$P11, TRUE),1), 0) -> 0 | CA11: =_xlfn.IFNA(MATCH(RAND(), _xlfn.POISSON.DIST({0,1,2,3,4,5,6,7,8,9},$P11, TRUE),1), 0) -> 1 | CB11: =_xlfn.IFNA(MATCH(RAND(), _xlfn.POISSON.DIST({0,1,2,3,4,5,6,7,8,9},$P11, TRUE),1), 0) -> 0 | CC11: =_xlfn.IFNA(MATCH(RAND(), _xlfn.POISSON.DIST({0,1,2,3,4,5,6,7,8,9},$P11, TRUE),1), 0) -> 0 | CD11: =_xlfn.IFNA(MATCH(RAND(), _xlfn.POISSON.DIST({0,1,2,3,4,5,6,7,8,9},$P11, TRUE),1), 0) -> 0 | CE11: =_xlfn.IFNA(MATCH(RAND(), _xlfn.POISSON.DIST({0,1,2,3,4,5,6,7,8,9},$P11, TRUE),1), 0) -> 0 | CF11: =_xlfn.IFNA(MATCH(RAND(), _xlfn.POISSON.DIST({0,1,2,3,4,5,6,7,8,9},$P11, TRUE),1), 0) -> 0 | CG11: =_xlfn.IFNA(MATCH(RAND(), _xlfn.POISSON.DIST({0,1,2,3,4,5,6,7,8,9},$P11, TRUE),1), 0) -> 0 | CH11: =_xlfn.IFNA(MATCH(RAND(), _xlfn.POISSON.DIST({0,1,2,3,4,5,6,7,8,9},$P11, TRUE),1), 0) -> 0 | CI11: =_xlfn.IFNA(MATCH(RAND(), _xlfn.POISSON.DIST({0,1,2,3,4,5,6,7,8,9},$P11, TRUE),1), 0) -> 0 | CJ11: =_xlfn.IFNA(MATCH(RAND(), _xlfn.POISSON.DIST({0,1,2,3,4,5,6,7,8,9},$P11, TRUE),1), 0) -> 0 | CK11: =_xlfn.IFNA(MATCH(RAND(), _xlfn.POISSON.DIST({0,1,2,3,4,5,6,7,8,9},$P11, TRUE),1), 0) -> 0 | CL11: =_xlfn.IFNA(MATCH(RAND(), _xlfn.POISSON.DIST({0,1,2,3,4,5,6,7,8,9},$P11, TRUE),1), 0) -> 0 | CM11: =_xlfn.IFNA(MATCH(RAND(), _xlfn.POISSON.DIST({0,1,2,3,4,5,6,7,8,9},$P11, TRUE),1), 0) -> 0 | CN11: =_xlfn.IFNA(MATCH(RAND(), _xlfn.POISSON.DIST({0,1,2,3,4,5,6,7,8,9},$P11, TRUE),1), 0) -> 0 | CO11: =_xlfn.IFNA(MATCH(RAND(), _xlfn.POISSON.DIST({0,1,2,3,4,5,6,7,8,9},$P11, TRUE),1), 0) -> 2 | CP11: =_xlfn.IFNA(MATCH(RAND(), _xlfn.POISSON.DIST({0,1,2,3,4,5,6,7,8,9},$P11, TRUE),1), 0) -> 1 | CQ11: =_xlfn.IFNA(MATCH(RAND(), _xlfn.POISSON.DIST({0,1,2,3,4,5,6,7,8,9},$P11, TRUE),1), 0) -> 1 | CR11: =_xlfn.IFNA(MATCH(RAND(), _xlfn.POISSON.DIST({0,1,2,3,4,5,6,7,8,9},$P11, TRUE),1), 0) -> 0 | CS11: =_xlfn.IFNA(MATCH(RAND(), _xlfn.POISSON.DIST({0,1,2,3,4,5,6,7,8,9},$P11, TRUE),1), 0) -> 0 | CT11: =_xlfn.IFNA(MATCH(RAND(), _xlfn.POISSON.DIST({0,1,2,3,4,5,6,7,8,9},$P11, TRUE),1), 0) -> 0 | CU11: =_xlfn.IFNA(MATCH(RAND(), _xlfn.POISSON.DIST({0,1,2,3,4,5,6,7,8,9},$P11, TRUE),1), 0) -> 0 | CV11: =_xlfn.IFNA(MATCH(RAND(), _xlfn.POISSON.DIST({0,1,2,3,4,5,6,7,8,9},$P11, TRUE),1), 0) -> 0 | CW11: =_xlfn.IFNA(MATCH(RAND(), _xlfn.POISSON.DIST({0,1,2,3,4,5,6,7,8,9},$P11, TRUE),1), 0) -> 0 | CX11: =_xlfn.IFNA(MATCH(RAND(), _xlfn.POISSON.DIST({0,1,2,3,4,5,6,7,8,9},$P11, TRUE),1), 0) -> 1 | CY11: =_xlfn.IFNA(MATCH(RAND(), _xlfn.POISSON.DIST({0,1,2,3,4,5,6,7,8,9},$P11, TRUE),1), 0) -> 0 | CZ11: =_xlfn.IFNA(MATCH(RAND(), _xlfn.POISSON.DIST({0,1,2,3,4,5,6,7,8,9},$P11, TRUE),1), 0) -> 0 | DA11: =_xlfn.IFNA(MATCH(RAND(), _xlfn.POISSON.DIST({0,1,2,3,4,5,6,7,8,9},$P11, TRUE),1), 0) -> 0 | DB11: =_xlfn.IFNA(MATCH(RAND(), _xlfn.POISSON.DIST({0,1,2,3,4,5,6,7,8,9},$P11, TRUE),1), 0) -> 0 | DC11: =_xlfn.IFNA(MATCH(RAND(), _xlfn.POISSON.DIST({0,1,2,3,4,5,6,7,8,9},$P11, TRUE),1), 0) -> 0 | DD11: =_xlfn.IFNA(MATCH(RAND(), _xlfn.POISSON.DIST({0,1,2,3,4,5,6,7,8,9},$P11, TRUE),1), 0) -> 0 | DE11: =_xlfn.IFNA(MATCH(RAND(), _xlfn.POISSON.DIST({0,1,2,3,4,5,6,7,8,9},$P11, TRUE),1), 0) -> 0 | DF11: =_xlfn.IFNA(MATCH(RAND(), _xlfn.POISSON.DIST({0,1,2,3,4,5,6,7,8,9},$P11, TRUE),1), 0) -> 0 | DG11: =_xlfn.IFNA(MATCH(RAND(), _xlfn.POISSON.DIST({0,1,2,3,4,5,6,7,8,9},$P11, TRUE),1), 0) -> 0 | DH11: =_xlfn.IFNA(MATCH(RAND(), _xlfn.POISSON.DIST({0,1,2,3,4,5,6,7,8,9},$P11, TRUE),1), 0) -> 0 | DI11: =_xlfn.IFNA(MATCH(RAND(), _xlfn.POISSON.DIST({0,1,2,3,4,5,6,7,8,9},$P11, TRUE),1), 0) -> 0 | DJ11: =_xlfn.IFNA(MATCH(RAND(), _xlfn.POISSON.DIST({0,1,2,3,4,5,6,7,8,9},$P11, TRUE),1), 0) -> 1 | DK11: =_xlfn.IFNA(MATCH(RAND(), _xlfn.POISSON.DIST({0,1,2,3,4,5,6,7,8,9},$P11, TRUE),1), 0) -> 1 | DL11: =_xlfn.IFNA(MATCH(RAND(), _xlfn.POISSON.DIST({0,1,2,3,4,5,6,7,8,9},$P11, TRUE),1), 0) -> 1 | DM11: =_xlfn.IFNA(MATCH(RAND(), _xlfn.POISSON.DIST({0,1,2,3,4,5,6,7,8,9},$P11, TRUE),1), 0) -> 0
C12: 2019-06-09 | D12: D | E12: Англия | F12: =(AVERAGE(Q12:BN12))*(1+INDEX('Прогнозы группового этапа'!$C$4:$O$28, MATCH('Матчи за текущий год'!E12,'Прогнозы группового этапа'!$D$4:$D$28,0),3)) -> 1.76 | G12: Шотландия | H12: =(AVERAGE(BP12:DM12))*(1+INDEX('Прогнозы группового этапа'!$C$4:$O$28, MATCH('Матчи за текущий год'!G12,'Прогнозы группового этапа'!$D$4:$D$28,0),3)) -> 1.32 | I12: Англия | L12: 1.76 | M12: 1.32 | N12: Англия | O12: =(OFFSET('Прил. 3. Голы в группе'!$D$14,(INDEX('Прил. 1. Данные команды'!$C$13:$F$112,MATCH(G12,'Прил. 1. Данные команды'!$C$13:$C$112,0),4)/10),(INDEX('Прил. 1. Данные команды'!$C$13:$F$112,MATCH(E12,'Прил. 1. Данные команды'!$C$13:$C$112,0),4)/10))) -> 1.78 | P12: =OFFSET('Прил. 3. Голы в группе'!$D$14,(INDEX('Прил. 1. Данные команды'!$C$13:$F$112, MATCH(E12,'Прил. 1. Данные команды'!$C$13:$C$112,0),4)/10), (INDEX('Прил. 1. Данные команды'!$C$13:$F$112, MATCH(G12, 'Прил. 1. Данные команды'!$C$13:$C$112,0),4)/10)) -> 1.07 | Q12: =_xlfn.IFNA(MATCH(RAND(), _xlfn.POISSON.DIST({0,1,2,3,4,5,6,7,8,9},$O12, TRUE),1), 0) -> 3 | R12: =_xlfn.IFNA(MATCH(RAND(), _xlfn.POISSON.DIST({0,1,2,3,4,5,6,7,8,9},$O12, TRUE),1), 0) -> 4 | S12: =_xlfn.IFNA(MATCH(RAND(), _xlfn.POISSON.DIST({0,1,2,3,4,5,6,7,8,9},$O12, TRUE),1), 0) -> 1 | T12: =_xlfn.IFNA(MATCH(RAND(), _xlfn.POISSON.DIST({0,1,2,3,4,5,6,7,8,9},$O12, TRUE),1), 0) -> 0 | U12: =_xlfn.IFNA(MATCH(RAND(), _xlfn.POISSON.DIST({0,1,2,3,4,5,6,7,8,9},$O12, TRUE),1), 0) -> 2 | V12: =_xlfn.IFNA(MATCH(RAND(), _xlfn.POISSON.DIST({0,1,2,3,4,5,6,7,8,9},$O12, TRUE),1), 0) -> 0 | W12: =_xlfn.IFNA(MATCH(RAND(), _xlfn.POISSON.DIST({0,1,2,3,4,5,6,7,8,9},$O12, TRUE),1), 0) -> 2 | X12: =_xlfn.IFNA(MATCH(RAND(), _xlfn.POISSON.DIST({0,1,2,3,4,5,6,7,8,9},$O12, TRUE),1), 0) -> 0 | Y12: =_xlfn.IFNA(MATCH(RAND(), _xlfn.POISSON.DIST({0,1,2,3,4,5,6,7,8,9},$O12, TRUE),1), 0) -> 2 | Z12: =_xlfn.IFNA(MATCH(RAND(), _xlfn.POISSON.DIST({0,1,2,3,4,5,6,7,8,9},$O12, TRUE),1), 0) -> 3 | AA12: =_xlfn.IFNA(MATCH(RAND(), _xlfn.POISSON.DIST({0,1,2,3,4,5,6,7,8,9},$O12, TRUE),1), 0) -> 1 | AB12: =_xlfn.IFNA(MATCH(RAND(), _xlfn.POISSON.DIST({0,1,2,3,4,5,6,7,8,9},$O12, TRUE),1), 0) -> 1 | AC12: =_xlfn.IFNA(MATCH(RAND(), _xlfn.POISSON.DIST({0,1,2,3,4,5,6,7,8,9},$O12, TRUE),1), 0) -> 1 | AD12: =_xlfn.IFNA(MATCH(RAND(), _xlfn.POISSON.DIST({0,1,2,3,4,5,6,7,8,9},$O12, TRUE),1), 0) -> 0 | AE12: =_xlfn.IFNA(MATCH(RAND(), _xlfn.POISSON.DIST({0,1,2,3,4,5,6,7,8,9},$O12, TRUE),1), 0) -> 3 | AF12: =_xlfn.IFNA(MATCH(RAND(), _xlfn.POISSON.DIST({0,1,2,3,4,5,6,7,8,9},$O12, TRUE),1), 0) -> 1 | AG12: =_xlfn.IFNA(MATCH(RAND(), _xlfn.POISSON.DIST({0,1,2,3,4,5,6,7,8,9},$O12, TRUE),1), 0) -> 3 | AH12: =_xlfn.IFNA(MATCH(RAND(), _xlfn.POISSON.DIST({0,1,2,3,4,5,6,7,8,9},$O12, TRUE),1), 0) -> 2 | AI12: =_xlfn.IFNA(MATCH(RAND(), _xlfn.POISSON.DIST({0,1,2,3,4,5,6,7,8,9},$O12, TRUE),1), 0) -> 3 | AJ12: =_xlfn.IFNA(MATCH(RAND(), _xlfn.POISSON.DIST({0,1,2,3,4,5,6,7,8,9},$O12, TRUE),1), 0) -> 2 | AK12: =_xlfn.IFNA(MATCH(RAND(), _xlfn.POISSON.DIST({0,1,2,3,4,5,6,7,8,9},$O12, TRUE),1), 0) -> 1 | AL12: =_xlfn.IFNA(MATCH(RAND(), _xlfn.POISSON.DIST({0,1,2,3,4,5,6,7,8,9},$O12, TRUE),1), 0) -> 1 | AM12: =_xlfn.IFNA(MATCH(RAND(), _xlfn.POISSON.DIST({0,1,2,3,4,5,6,7,8,9},$O12, TRUE),1), 0) -> 1 | AN12: =_xlfn.IFNA(MATCH(RAND(), _xlfn.POISSON.DIST({0,1,2,3,4,5,6,7,8,9},$O12, TRUE),1), 0) -> 1 | AO12: =_xlfn.IFNA(MATCH(RAND(), _xlfn.POISSON.DIST({0,1,2,3,4,5,6,7,8,9},$O12, TRUE),1), 0) -> 2 | AP12: =_xlfn.IFNA(MATCH(RAND(), _xlfn.POISSON.DIST({0,1,2,3,4,5,6,7,8,9},$O12, TRUE),1), 0) -> 0 | AQ12: =_xlfn.IFNA(MATCH(RAND(), _xlfn.POISSON.DIST({0,1,2,3,4,5,6,7,8,9},$O12, TRUE),1), 0) -> 3 | AR12: =_xlfn.IFNA(MATCH(RAND(), _xlfn.POISSON.DIST({0,1,2,3,4,5,6,7,8,9},$O12, TRUE),1), 0) -> 2 | AS12: =_xlfn.IFNA(MATCH(RAND(), _xlfn.POISSON.DIST({0,1,2,3,4,5,6,7,8,9},$O12, TRUE),1), 0) -> 1 | AT12: =_xlfn.IFNA(MATCH(RAND(), _xlfn.POISSON.DIST({0,1,2,3,4,5,6,7,8,9},$O12, TRUE),1), 0) -> 5 | AU12: =_xlfn.IFNA(MATCH(RAND(), _xlfn.POISSON.DIST({0,1,2,3,4,5,6,7,8,9},$O12, TRUE),1), 0) -> 2 | AV12: =_xlfn.IFNA(MATCH(RAND(), _xlfn.POISSON.DIST({0,1,2,3,4,5,6,7,8,9},$O12, TRUE),1), 0) -> 2 | AW12: =_xlfn.IFNA(MATCH(RAND(), _xlfn.POISSON.DIST({0,1,2,3,4,5,6,7,8,9},$O12, TRUE),1), 0) -> 1 | AX12: =_xlfn.IFNA(MATCH(RAND(), _xlfn.POISSON.DIST({0,1,2,3,4,5,6,7,8,9},$O12, TRUE),1), 0) -> 4 | AY12: =_xlfn.IFNA(MATCH(RAND(), _xlfn.POISSON.DIST({0,1,2,3,4,5,6,7,8,9},$O12, TRUE),1), 0) -> 0 | AZ12: =_xlfn.IFNA(MATCH(RAND(), _xlfn.POISSON.DIST({0,1,2,3,4,5,6,7,8,9},$O12, TRUE),1), 0) -> 1 | BA12: =_xlfn.IFNA(MATCH(RAND(), _xlfn.POISSON.DIST({0,1,2,3,4,5,6,7,8,9},$O12, TRUE),1), 0) -> 4 | BB12: =_xlfn.IFNA(MATCH(RAND(), _xlfn.POISSON.DIST({0,1,2,3,4,5,6,7,8,9},$O12, TRUE),1), 0) -> 1 | BC12: =_xlfn.IFNA(MATCH(RAND(), _xlfn.POISSON.DIST({0,1,2,3,4,5,6,7,8,9},$O12, TRUE),1), 0) -> 3 | BD12: =_xlfn.IFNA(MATCH(RAND(), _xlfn.POISSON.DIST({0,1,2,3,4,5,6,7,8,9},$O12, TRUE),1), 0) -> 0 | BE12: =_xlfn.IFNA(MATCH(RAND(), _xlfn.POISSON.DIST({0,1,2,3,4,5,6,7,8,9},$O12, TRUE),1), 0) -> 3 | BF12: =_xlfn.IFNA(MATCH(RAND(), _xlfn.POISSON.DIST({0,1,2,3,4,5,6,7,8,9},$O12, TRUE),1), 0) -> 2 | BG12: =_xlfn.IFNA(MATCH(RAND(), _xlfn.POISSON.DIST({0,1,2,3,4,5,6,7,8,9},$O12, TRUE),1), 0) -> 4 | BH12: =_xlfn.IFNA(MATCH(RAND(), _xlfn.POISSON.DIST({0,1,2,3,4,5,6,7,8,9},$O12, TRUE),1), 0) -> 0 | BI12: =_xlfn.IFNA(MATCH(RAND(), _xlfn.POISSON.DIST({0,1,2,3,4,5,6,7,8,9},$O12, TRUE),1), 0) -> 1 | BJ12: =_xlfn.IFNA(MATCH(RAND(), _xlfn.POISSON.DIST({0,1,2,3,4,5,6,7,8,9},$O12, TRUE),1), 0) -> 1 | BK12: =_xlfn.IFNA(MATCH(RAND(), _xlfn.POISSON.DIST({0,1,2,3,4,5,6,7,8,9},$O12, TRUE),1), 0) -> 3 | BL12: =_xlfn.IFNA(MATCH(RAND(), _xlfn.POISSON.DIST({0,1,2,3,4,5,6,7,8,9},$O12, TRUE),1), 0) -> 2 | BM12: =_xlfn.IFNA(MATCH(RAND(), _xlfn.POISSON.DIST({0,1,2,3,4,5,6,7,8,9},$O12, TRUE),1), 0) -> 2 | BN12: =_xlfn.IFNA(MATCH(RAND(), _xlfn.POISSON.DIST({0,1,2,3,4,5,6,7,8,9},$O12, TRUE),1), 0) -> 1 | BP12: =_xlfn.IFNA(MATCH(RAND(), _xlfn.POISSON.DIST({0,1,2,3,4,5,6,7,8,9},$P12, TRUE),1), 0) -> 3 | BQ12: =_xlfn.IFNA(MATCH(RAND(), _xlfn.POISSON.DIST({0,1,2,3,4,5,6,7,8,9},$P12, TRUE),1), 0) -> 1 | BR12: =_xlfn.IFNA(MATCH(RAND(), _xlfn.POISSON.DIST({0,1,2,3,4,5,6,7,8,9},$P12, TRUE),1), 0) -> 0 | BS12: =_xlfn.IFNA(MATCH(RAND(), _xlfn.POISSON.DIST({0,1,2,3,4,5,6,7,8,9},$P12, TRUE),1), 0) -> 0 | BT12: =_xlfn.IFNA(MATCH(RAND(), _xlfn.POISSON.DIST({0,1,2,3,4,5,6,7,8,9},$P12, TRUE),1), 0) -> 2 | BU12: =_xlfn.IFNA(MATCH(RAND(), _xlfn.POISSON.DIST({0,1,2,3,4,5,6,7,8,9},$P12, TRUE),1), 0) -> 2 | BV12: =_xlfn.IFNA(MATCH(RAND(), _xlfn.POISSON.DIST({0,1,2,3,4,5,6,7,8,9},$P12, TRUE),1), 0) -> 0 | BW12: =_xlfn.IFNA(MATCH(RAND(), _xlfn.POISSON.DIST({0,1,2,3,4,5,6,7,8,9},$P12, TRUE),1), 0) -> 0 | BX12: =_xlfn.IFNA(MATCH(RAND(), _xlfn.POISSON.DIST({0,1,2,3,4,5,6,7,8,9},$P12, TRUE),1), 0) -> 0 | BY12: =_xlfn.IFNA(MATCH(RAND(), _xlfn.POISSON.DIST({0,1,2,3,4,5,6,7,8,9},$P12, TRUE),1), 0) -> 1 | BZ12: =_xlfn.IFNA(MATCH(RAND(), _xlfn.POISSON.DIST({0,1,2,3,4,5,6,7,8,9},$P12, TRUE),1), 0) -> 4 | CA12: =_xlfn.IFNA(MATCH(RAND(), _xlfn.POISSON.DIST({0,1,2,3,4,5,6,7,8,9},$P12, TRUE),1), 0) -> 1 | CB12: =_xlfn.IFNA(MATCH(RAND(), _xlfn.POISSON.DIST({0,1,2,3,4,5,6,7,8,9},$P12, TRUE),1), 0) -> 3 | CC12: =_xlfn.IFNA(MATCH(RAND(), _xlfn.POISSON.DIST({0,1,2,3,4,5,6,7,8,9},$P12, TRUE),1), 0) -> 3 | CD12: =_xlfn.IFNA(MATCH(RAND(), _xlfn.POISSON.DIST({0,1,2,3,4,5,6,7,8,9},$P12, TRUE),1), 0) -> 1 | CE12: =_xlfn.IFNA(MATCH(RAND(), _xlfn.POISSON.DIST({0,1,2,3,4,5,6,7,8,9},$P12, TRUE),1), 0) -> 3 | CF12: =_xlfn.IFNA(MATCH(RAND(), _xlfn.POISSON.DIST({0,1,2,3,4,5,6,7,8,9},$P12, TRUE),1), 0) -> 1 | CG12: =_xlfn.IFNA(MATCH(RAND(), _xlfn.POISSON.DIST({0,1,2,3,4,5,6,7,8,9},$P12, TRUE),1), 0) -> 4 | CH12: =_xlfn.IFNA(MATCH(RAND(), _xlfn.POISSON.DIST({0,1,2,3,4,5,6,7,8,9},$P12, TRUE),1), 0) -> 4 | CI12: =_xlfn.IFNA(MATCH(RAND(), _xlfn.POISSON.DIST({0,1,2,3,4,5,6,7,8,9},$P12, TRUE),1), 0) -> 0 | CJ12: =_xlfn.IFNA(MATCH(RAND(), _xlfn.POISSON.DIST({0,1,2,3,4,5,6,7,8,9},$P12, TRUE),1), 0) -> 1 | CK12: =_xlfn.IFNA(MATCH(RAND(), _xlfn.POISSON.DIST({0,1,2,3,4,5,6,7,8,9},$P12, TRUE),1), 0) -> 3 | CL12: =_xlfn.IFNA(MATCH(RAND(), _xlfn.POISSON.DIST({0,1,2,3,4,5,6,7,8,9},$P12, TRUE),1), 0) -> 0 | CM12: =_xlfn.IFNA(MATCH(RAND(), _xlfn.POISSON.DIST({0,1,2,3,4,5,6,7,8,9},$P12, TRUE),1), 0) -> 3 | CN12: =_xlfn.IFNA(MATCH(RAND(), _xlfn.POISSON.DIST({0,1,2,3,4,5,6,7,8,9},$P12, TRUE),1), 0) -> 0 | CO12: =_xlfn.IFNA(MATCH(RAND(), _xlfn.POISSON.DIST({0,1,2,3,4,5,6,7,8,9},$P12, TRUE),1), 0) -> 2 | CP12: =_xlfn.IFNA(MATCH(RAND(), _xlfn.POISSON.DIST({0,1,2,3,4,5,6,7,8,9},$P12, TRUE),1), 0) -> 0 | CQ12: =_xlfn.IFNA(MATCH(RAND(), _xlfn.POISSON.DIST({0,1,2,3,4,5,6,7,8,9},$P12, TRUE),1), 0) -> 1 | CR12: =_xlfn.IFNA(MATCH(RAND(), _xlfn.POISSON.DIST({0,1,2,3,4,5,6,7,8,9},$P12, TRUE),1), 0) -> 0 | CS12: =_xlfn.IFNA(MATCH(RAND(), _xlfn.POISSON.DIST({0,1,2,3,4,5,6,7,8,9},$P12, TRUE),1), 0) -> 0 | CT12: =_xlfn.IFNA(MATCH(RAND(), _xlfn.POISSON.DIST({0,1,2,3,4,5,6,7,8,9},$P12, TRUE),1), 0) -> 1 | CU12: =_xlfn.IFNA(MATCH(RAND(), _xlfn.POISSON.DIST({0,1,2,3,4,5,6,7,8,9},$P12, TRUE),1), 0) -> 3 | CV12: =_xlfn.IFNA(MATCH(RAND(), _xlfn.POISSON.DIST({0,1,2,3,4,5,6,7,8,9},$P12, TRUE),1), 0) -> 3 | CW12: =_xlfn.IFNA(MATCH(RAND(), _xlfn.POISSON.DIST({0,1,2,3,4,5,6,7,8,9},$P12, TRUE),1), 0) -> 0 | CX12: =_xlfn.IFNA(MATCH(RAND(), _xlfn.POISSON.DIST({0,1,2,3,4,5,6,7,8,9},$P12, TRUE),1), 0) -> 0 | CY12: =_xlfn.IFNA(MATCH(RAND(), _xlfn.POISSON.DIST({0,1,2,3,4,5,6,7,8,9},$P12, TRUE),1), 0) -> 1 | CZ12: =_xlfn.IFNA(MATCH(RAND(), _xlfn.POISSON.DIST({0,1,2,3,4,5,6,7,8,9},$P12, TRUE),1), 0) -> 2 | DA12: =_xlfn.IFNA(MATCH(RAND(), _xlfn.POISSON.DIST({0,1,2,3,4,5,6,7,8,9},$P12, TRUE),1), 0) -> 0 | DB12: =_xlfn.IFNA(MATCH(RAND(), _xlfn.POISSON.DIST({0,1,2,3,4,5,6,7,8,9},$P12, TRUE),1), 0) -> 0 | DC12: =_xlfn.IFNA(MATCH(RAND(), _xlfn.POISSON.DIST({0,1,2,3,4,5,6,7,8,9},$P12, TRUE),1), 0) -> 2 | DD12: =_xlfn.IFNA(MATCH(RAND(), _xlfn.POISSON.DIST({0,1,2,3,4,5,6,7,8,9},$P12, TRUE),1), 0) -> 1 | DE12: =_xlfn.IFNA(MATCH(RAND(), _xlfn.POISSON.DIST({0,1,2,3,4,5,6,7,8,9},$P12, TRUE),1), 0) -> 0 | DF12: =_xlfn.IFNA(MATCH(RAND(), _xlfn.POISSON.DIST({0,1,2,3,4,5,6,7,8,9},$P12, TRUE),1), 0) -> 1 | DG12: =_xlfn.IFNA(MATCH(RAND(), _xlfn.POISSON.DIST({0,1,2,3,4,5,6,7,8,9},$P12, TRUE),1), 0) -> 1 | DH12: =_xlfn.IFNA(MATCH(RAND(), _xlfn.POISSON.DIST({0,1,2,3,4,5,6,7,8,9},$P12, TRUE),1), 0) -> 1 | DI12: =_xlfn.IFNA(MATCH(RAND(), _xlfn.POISSON.DIST({0,1,2,3,4,5,6,7,8,9},$P12, TRUE),1), 0) -> 2 | DJ12: =_xlfn.IFNA(MATCH(RAND(), _xlfn.POISSON.DIST({0,1,2,3,4,5,6,7,8,9},$P12, TRUE),1), 0) -> 2 | DK12: =_xlfn.IFNA(MATCH(RAND(), _xlfn.POISSON.DIST({0,1,2,3,4,5,6,7,8,9},$P12, TRUE),1), 0) -> 0 | DL12: =_xlfn.IFNA(MATCH(RAND(), _xlfn.POISSON.DIST({0,1,2,3,4,5,6,7,8,9},$P12, TRUE),1), 0) -> 3 | DM12: =_xlfn.IFNA(MATCH(RAND(), _xlfn.POISSON.DIST({0,1,2,3,4,5,6,7,8,9},$P12, TRUE),1), 0) -> 0
C13: 2019-06-10 | D13: D | E13: Аргентина | F13: =(AVERAGE(Q13:BN13))*(1+INDEX('Прогнозы группового этапа'!$C$4:$O$28, MATCH('Матчи за текущий год'!E13,'Прогнозы группового этапа'!$D$4:$D$28,0),3)) -> 0.64 | G13: Япония | H13: =(AVERAGE(BP13:DM13))*(1+INDEX('Прогнозы группового этапа'!$C$4:$O$28, MATCH('Матчи за текущий год'!G13,'Прогнозы группового этапа'!$D$4:$D$28,0),3)) -> 3.42 | I13: Япония | L13: 0.64 | M13: 3.42 | N13: Япония | O13: =(OFFSET('Прил. 3. Голы в группе'!$D$14,(INDEX('Прил. 1. Данные команды'!$C$13:$F$112,MATCH(G13,'Прил. 1. Данные команды'!$C$13:$C$112,0),4)/10),(INDEX('Прил. 1. Данные команды'!$C$13:$F$112,MATCH(E13,'Прил. 1. Данные команды'!$C$13:$C$112,0),4)/10))) -> 0.59 | P13: =OFFSET('Прил. 3. Голы в группе'!$D$14,(INDEX('Прил. 1. Данные команды'!$C$13:$F$112, MATCH(E13,'Прил. 1. Данные команды'!$C$13:$C$112,0),4)/10), (INDEX('Прил. 1. Данные команды'!$C$13:$F$112, MATCH(G13, 'Прил. 1. Данные команды'!$C$13:$C$112,0),4)/10)) -> 3.38 | Q13: =_xlfn.IFNA(MATCH(RAND(), _xlfn.POISSON.DIST({0,1,2,3,4,5,6,7,8,9},$O13, TRUE),1), 0) -> 0 | R13: =_xlfn.IFNA(MATCH(RAND(), _xlfn.POISSON.DIST({0,1,2,3,4,5,6,7,8,9},$O13, TRUE),1), 0) -> 1 | S13: =_xlfn.IFNA(MATCH(RAND(), _xlfn.POISSON.DIST({0,1,2,3,4,5,6,7,8,9},$O13, TRUE),1), 0) -> 0 | T13: =_xlfn.IFNA(MATCH(RAND(), _xlfn.POISSON.DIST({0,1,2,3,4,5,6,7,8,9},$O13, TRUE),1), 0) -> 1 | U13: =_xlfn.IFNA(MATCH(RAND(), _xlfn.POISSON.DIST({0,1,2,3,4,5,6,7,8,9},$O13, TRUE),1), 0) -> 0 | V13: =_xlfn.IFNA(MATCH(RAND(), _xlfn.POISSON.DIST({0,1,2,3,4,5,6,7,8,9},$O13, TRUE),1), 0) -> 1 | W13: =_xlfn.IFNA(MATCH(RAND(), _xlfn.POISSON.DIST({0,1,2,3,4,5,6,7,8,9},$O13, TRUE),1), 0) -> 0 | X13: =_xlfn.IFNA(MATCH(RAND(), _xlfn.POISSON.DIST({0,1,2,3,4,5,6,7,8,9},$O13, TRUE),1), 0) -> 0 | Y13: =_xlfn.IFNA(MATCH(RAND(), _xlfn.POISSON.DIST({0,1,2,3,4,5,6,7,8,9},$O13, TRUE),1), 0) -> 1 | Z13: =_xlfn.IFNA(MATCH(RAND(), _xlfn.POISSON.DIST({0,1,2,3,4,5,6,7,8,9},$O13, TRUE),1), 0) -> 0 | AA13: =_xlfn.IFNA(MATCH(RAND(), _xlfn.POISSON.DIST({0,1,2,3,4,5,6,7,8,9},$O13, TRUE),1), 0) -> 0 | AB13: =_xlfn.IFNA(MATCH(RAND(), _xlfn.POISSON.DIST({0,1,2,3,4,5,6,7,8,9},$O13, TRUE),1), 0) -> 2 | AC13: =_xlfn.IFNA(MATCH(RAND(), _xlfn.POISSON.DIST({0,1,2,3,4,5,6,7,8,9},$O13, TRUE),1), 0) -> 0 | AD13: =_xlfn.IFNA(MATCH(RAND(), _xlfn.POISSON.DIST({0,1,2,3,4,5,6,7,8,9},$O13, TRUE),1), 0) -> 0 | AE13: =_xlfn.IFNA(MATCH(RAND(), _xlfn.POISSON.DIST({0,1,2,3,4,5,6,7,8,9},$O13, TRUE),1), 0) -> 0 | AF13: =_xlfn.IFNA(MATCH(RAND(), _xlfn.POISSON.DIST({0,1,2,3,4,5,6,7,8,9},$O13, TRUE),1), 0) -> 1 | AG13: =_xlfn.IFNA(MATCH(RAND(), _xlfn.POISSON.DIST({0,1,2,3,4,5,6,7,8,9},$O13, TRUE),1), 0) -> 0 | AH13: =_xlfn.IFNA(MATCH(RAND(), _xlfn.POISSON.DIST({0,1,2,3,4,5,6,7,8,9},$O13, TRUE),1), 0) -> 0 | AI13: =_xlfn.IFNA(MATCH(RAND(), _xlfn.POISSON.DIST({0,1,2,3,4,5,6,7,8,9},$O13, TRUE),1), 0) -> 0 | AJ13: =_xlfn.IFNA(MATCH(RAND(), _xlfn.POISSON.DIST({0,1,2,3,4,5,6,7,8,9},$O13, TRUE),1), 0) -> 1 | AK13: =_xlfn.IFNA(MATCH(RAND(), _xlfn.POISSON.DIST({0,1,2,3,4,5,6,7,8,9},$O13, TRUE),1), 0) -> 1 | AL13: =_xlfn.IFNA(MATCH(RAND(), _xlfn.POISSON.DIST({0,1,2,3,4,5,6,7,8,9},$O13, TRUE),1), 0) -> 0 | AM13: =_xlfn.IFNA(MATCH(RAND(), _xlfn.POISSON.DIST({0,1,2,3,4,5,6,7,8,9},$O13, TRUE),1), 0) -> 2 | AN13: =_xlfn.IFNA(MATCH(RAND(), _xlfn.POISSON.DIST({0,1,2,3,4,5,6,7,8,9},$O13, TRUE),1), 0) -> 0 | AO13: =_xlfn.IFNA(MATCH(RAND(), _xlfn.POISSON.DIST({0,1,2,3,4,5,6,7,8,9},$O13, TRUE),1), 0) -> 1 | AP13: =_xlfn.IFNA(MATCH(RAND(), _xlfn.POISSON.DIST({0,1,2,3,4,5,6,7,8,9},$O13, TRUE),1), 0) -> 0 | AQ13: =_xlfn.IFNA(MATCH(RAND(), _xlfn.POISSON.DIST({0,1,2,3,4,5,6,7,8,9},$O13, TRUE),1), 0) -> 0 | AR13: =_xlfn.IFNA(MATCH(RAND(), _xlfn.POISSON.DIST({0,1,2,3,4,5,6,7,8,9},$O13, TRUE),1), 0) -> 0 | AS13: =_xlfn.IFNA(MATCH(RAND(), _xlfn.POISSON.DIST({0,1,2,3,4,5,6,7,8,9},$O13, TRUE),1), 0) -> 2 | AT13: =_xlfn.IFNA(MATCH(RAND(), _xlfn.POISSON.DIST({0,1,2,3,4,5,6,7,8,9},$O13, TRUE),1), 0) -> 3 | AU13: =_xlfn.IFNA(MATCH(RAND(), _xlfn.POISSON.DIST({0,1,2,3,4,5,6,7,8,9},$O13, TRUE),1), 0) -> 0 | AV13: =_xlfn.IFNA(MATCH(RAND(), _xlfn.POISSON.DIST({0,1,2,3,4,5,6,7,8,9},$O13, TRUE),1), 0) -> 0 | AW13: =_xlfn.IFNA(MATCH(RAND(), _xlfn.POISSON.DIST({0,1,2,3,4,5,6,7,8,9},$O13, TRUE),1), 0) -> 3 | AX13: =_xlfn.IFNA(MATCH(RAND(), _xlfn.POISSON.DIST({0,1,2,3,4,5,6,7,8,9},$O13, TRUE),1), 0) -> 0 | AY13: =_xlfn.IFNA(MATCH(RAND(), _xlfn.POISSON.DIST({0,1,2,3,4,5,6,7,8,9},$O13, TRUE),1), 0) -> 0 | AZ13: =_xlfn.IFNA(MATCH(RAND(), _xlfn.POISSON.DIST({0,1,2,3,4,5,6,7,8,9},$O13, TRUE),1), 0) -> 3 | BA13: =_xlfn.IFNA(MATCH(RAND(), _xlfn.POISSON.DIST({0,1,2,3,4,5,6,7,8,9},$O13, TRUE),1), 0) -> 0 | BB13: =_xlfn.IFNA(MATCH(RAND(), _xlfn.POISSON.DIST({0,1,2,3,4,5,6,7,8,9},$O13, TRUE),1), 0) -> 0 | BC13: =_xlfn.IFNA(MATCH(RAND(), _xlfn.POISSON.DIST({0,1,2,3,4,5,6,7,8,9},$O13, TRUE),1), 0) -> 1 | BD13: =_xlfn.IFNA(MATCH(RAND(), _xlfn.POISSON.DIST({0,1,2,3,4,5,6,7,8,9},$O13, TRUE),1), 0) -> 2 | BE13: =_xlfn.IFNA(MATCH(RAND(), _xlfn.POISSON.DIST({0,1,2,3,4,5,6,7,8,9},$O13, TRUE),1), 0) -> 1 | BF13: =_xlfn.IFNA(MATCH(RAND(), _xlfn.POISSON.DIST({0,1,2,3,4,5,6,7,8,9},$O13, TRUE),1), 0) -> 1 | BG13: =_xlfn.IFNA(MATCH(RAND(), _xlfn.POISSON.DIST({0,1,2,3,4,5,6,7,8,9},$O13, TRUE),1), 0) -> 1 | BH13: =_xlfn.IFNA(MATCH(RAND(), _xlfn.POISSON.DIST({0,1,2,3,4,5,6,7,8,9},$O13, TRUE),1), 0) -> 1 | BI13: =_xlfn.IFNA(MATCH(RAND(), _xlfn.POISSON.DIST({0,1,2,3,4,5,6,7,8,9},$O13, TRUE),1), 0) -> 0 | BJ13: =_xlfn.IFNA(MATCH(RAND(), _xlfn.POISSON.DIST({0,1,2,3,4,5,6,7,8,9},$O13, TRUE),1), 0) -> 1 | BK13: =_xlfn.IFNA(MATCH(RAND(), _xlfn.POISSON.DIST({0,1,2,3,4,5,6,7,8,9},$O13, TRUE),1), 0) -> 0 | BL13: =_xlfn.IFNA(MATCH(RAND(), _xlfn.POISSON.DIST({0,1,2,3,4,5,6,7,8,9},$O13, TRUE),1), 0) -> 0 | BM13: =_xlfn.IFNA(MATCH(RAND(), _xlfn.POISSON.DIST({0,1,2,3,4,5,6,7,8,9},$O13, TRUE),1), 0) -> 0 | BN13: =_xlfn.IFNA(MATCH(RAND(), _xlfn.POISSON.DIST({0,1,2,3,4,5,6,7,8,9},$O13, TRUE),1), 0) -> 1 | BP13: =_xlfn.IFNA(MATCH(RAND(), _xlfn.POISSON.DIST({0,1,2,3,4,5,6,7,8,9},$P13, TRUE),1), 0) -> 4 | BQ13: =_xlfn.IFNA(MATCH(RAND(), _xlfn.POISSON.DIST({0,1,2,3,4,5,6,7,8,9},$P13, TRUE),1), 0) -> 2 | BR13: =_xlfn.IFNA(MATCH(RAND(), _xlfn.POISSON.DIST({0,1,2,3,4,5,6,7,8,9},$P13, TRUE),1), 0) -> 4 | BS13: =_xlfn.IFNA(MATCH(RAND(), _xlfn.POISSON.DIST({0,1,2,3,4,5,6,7,8,9},$P13, TRUE),1), 0) -> 2 | BT13: =_xlfn.IFNA(MATCH(RAND(), _xlfn.POISSON.DIST({0,1,2,3,4,5,6,7,8,9},$P13, TRUE),1), 0) -> 5 | BU13: =_xlfn.IFNA(MATCH(RAND(), _xlfn.POISSON.DIST({0,1,2,3,4,5,6,7,8,9},$P13, TRUE),1), 0) -> 6 | BV13: =_xlfn.IFNA(MATCH(RAND(), _xlfn.POISSON.DIST({0,1,2,3,4,5,6,7,8,9},$P13, TRUE),1), 0) -> 4 | BW13: =_xlfn.IFNA(MATCH(RAND(), _xlfn.POISSON.DIST({0,1,2,3,4,5,6,7,8,9},$P13, TRUE),1), 0) -> 6 | BX13: =_xlfn.IFNA(MATCH(RAND(), _xlfn.POISSON.DIST({0,1,2,3,4,5,6,7,8,9},$P13, TRUE),1), 0) -> 0 | BY13: =_xlfn.IFNA(MATCH(RAND(), _xlfn.POISSON.DIST({0,1,2,3,4,5,6,7,8,9},$P13, TRUE),1), 0) -> 5 | BZ13: =_xlfn.IFNA(MATCH(RAND(), _xlfn.POISSON.DIST({0,1,2,3,4,5,6,7,8,9},$P13, TRUE),1), 0) -> 4 | CA13: =_xlfn.IFNA(MATCH(RAND(), _xlfn.POISSON.DIST({0,1,2,3,4,5,6,7,8,9},$P13, TRUE),1), 0) -> 2 | CB13: =_xlfn.IFNA(MATCH(RAND(), _xlfn.POISSON.DIST({0,1,2,3,4,5,6,7,8,9},$P13, TRUE),1), 0) -> 2 | CC13: =_xlfn.IFNA(MATCH(RAND(), _xlfn.POISSON.DIST({0,1,2,3,4,5,6,7,8,9},$P13, TRUE),1), 0) -> 2 | CD13: =_xlfn.IFNA(MATCH(RAND(), _xlfn.POISSON.DIST({0,1,2,3,4,5,6,7,8,9},$P13, TRUE),1), 0) -> 3 | CE13: =_xlfn.IFNA(MATCH(RAND(), _xlfn.POISSON.DIST({0,1,2,3,4,5,6,7,8,9},$P13, TRUE),1), 0) -> 3 | CF13: =_xlfn.IFNA(MATCH(RAND(), _xlfn.POISSON.DIST({0,1,2,3,4,5,6,7,8,9},$P13, TRUE),1), 0) -> 5 | CG13: =_xlfn.IFNA(MATCH(RAND(), _xlfn.POISSON.DIST({0,1,2,3,4,5,6,7,8,9},$P13, TRUE),1), 0) -> 8 | CH13: =_xlfn.IFNA(MATCH(RAND(), _xlfn.POISSON.DIST({0,1,2,3,4,5,6,7,8,9},$P13, TRUE),1), 0) -> 3 | CI13: =_xlfn.IFNA(MATCH(RAND(), _xlfn.POISSON.DIST({0,1,2,3,4,5,6,7,8,9},$P13, TRUE),1), 0) -> 1 | CJ13: =_xlfn.IFNA(MATCH(RAND(), _xlfn.POISSON.DIST({0,1,2,3,4,5,6,7,8,9},$P13, TRUE),1), 0) -> 5 | CK13: =_xlfn.IFNA(MATCH(RAND(), _xlfn.POISSON.DIST({0,1,2,3,4,5,6,7,8,9},$P13, TRUE),1), 0) -> 4 | CL13: =_xlfn.IFNA(MATCH(RAND(), _xlfn.POISSON.DIST({0,1,2,3,4,5,6,7,8,9},$P13, TRUE),1), 0) -> 3 | CM13: =_xlfn.IFNA(MATCH(RAND(), _xlfn.POISSON.DIST({0,1,2,3,4,5,6,7,8,9},$P13, TRUE),1), 0) -> 2 | CN13: =_xlfn.IFNA(MATCH(RAND(), _xlfn.POISSON.DIST({0,1,2,3,4,5,6,7,8,9},$P13, TRUE),1), 0) -> 4 | CO13: =_xlfn.IFNA(MATCH(RAND(), _xlfn.POISSON.DIST({0,1,2,3,4,5,6,7,8,9},$P13, TRUE),1), 0) -> 6 | CP13: =_xlfn.IFNA(MATCH(RAND(), _xlfn.POISSON.DIST({0,1,2,3,4,5,6,7,8,9},$P13, TRUE),1), 0) -> 5 | CQ13: =_xlfn.IFNA(MATCH(RAND(), _xlfn.POISSON.DIST({0,1,2,3,4,5,6,7,8,9},$P13, TRUE),1), 0) -> 2 | CR13: =_xlfn.IFNA(MATCH(RAND(), _xlfn.POISSON.DIST({0,1,2,3,4,5,6,7,8,9},$P13, TRUE),1), 0) -> 3 | CS13: =_xlfn.IFNA(MATCH(RAND(), _xlfn.POISSON.DIST({0,1,2,3,4,5,6,7,8,9},$P13, TRUE),1), 0) -> 3 | CT13: =_xlfn.IFNA(MATCH(RAND(), _xlfn.POISSON.DIST({0,1,2,3,4,5,6,7,8,9},$P13, TRUE),1), 0) -> 3 | CU13: =_xlfn.IFNA(MATCH(RAND(), _xlfn.POISSON.DIST({0,1,2,3,4,5,6,7,8,9},$P13, TRUE),1), 0) -> 5 | CV13: =_xlfn.IFNA(MATCH(RAND(), _xlfn.POISSON.DIST({0,1,2,3,4,5,6,7,8,9},$P13, TRUE),1), 0) -> 2 | CW13: =_xlfn.IFNA(MATCH(RAND(), _xlfn.POISSON.DIST({0,1,2,3,4,5,6,7,8,9},$P13, TRUE),1), 0) -> 3 | CX13: =_xlfn.IFNA(MATCH(RAND(), _xlfn.POISSON.DIST({0,1,2,3,4,5,6,7,8,9},$P13, TRUE),1), 0) -> 3 | CY13: =_xlfn.IFNA(MATCH(RAND(), _xlfn.POISSON.DIST({0,1,2,3,4,5,6,7,8,9},$P13, TRUE),1), 0) -> 3 | CZ13: =_xlfn.IFNA(MATCH(RAND(), _xlfn.POISSON.DIST({0,1,2,3,4,5,6,7,8,9},$P13, TRUE),1), 0) -> 6 | DA13: =_xlfn.IFNA(MATCH(RAND(), _xlfn.POISSON.DIST({0,1,2,3,4,5,6,7,8,9},$P13, TRUE),1), 0) -> 1 | DB13: =_xlfn.IFNA(MATCH(RAND(), _xlfn.POISSON.DIST({0,1,2,3,4,5,6,7,8,9},$P13, TRUE),1), 0) -> 2 | DC13: =_xlfn.IFNA(MATCH(RAND(), _xlfn.POISSON.DIST({0,1,2,3,4,5,6,7,8,9},$P13, TRUE),1), 0) -> 4 | DD13: =_xlfn.IFNA(MATCH(RAND(), _xlfn.POISSON.DIST({0,1,2,3,4,5,6,7,8,9},$P13, TRUE),1), 0) -> 0 | DE13: =_xlfn.IFNA(MATCH(RAND(), _xlfn.POISSON.DIST({0,1,2,3,4,5,6,7,8,9},$P13, TRUE),1), 0) -> 3 | DF13: =_xlfn.IFNA(MATCH(RAND(), _xlfn.POISSON.DIST({0,1,2,3,4,5,6,7,8,9},$P13, TRUE),1), 0) -> 2 | DG13: =_xlfn.IFNA(MATCH(RAND(), _xlfn.POISSON.DIST({0,1,2,3,4,5,6,7,8,9},$P13, TRUE),1), 0) -> 2 | DH13: =_xlfn.IFNA(MATCH(RAND(), _xlfn.POISSON.DIST({0,1,2,3,4,5,6,7,8,9},$P13, TRUE),1), 0) -> 4 | DI13: =_xlfn.IFNA(MATCH(RAND(), _xlfn.POISSON.DIST({0,1,2,3,4,5,6,7,8,9},$P13, TRUE),1), 0) -> 2 | DJ13: =_xlfn.IFNA(MATCH(RAND(), _xlfn.POISSON.DIST({0,1,2,3,4,5,6,7,8,9},$P13, TRUE),1), 0) -> 5 | DK13: =_xlfn.IFNA(MATCH(RAND(), _xlfn.POISSON.DIST({0,1,2,3,4,5,6,7,8,9},$P13, TRUE),1), 0) -> 4 | DL13: =_xlfn.IFNA(MATCH(RAND(), _xlfn.POISSON.DIST({0,1,2,3,4,5,6,7,8,9},$P13, TRUE),1), 0) -> 4 | DM13: =_xlfn.IFNA(MATCH(RAND(), _xlfn.POISSON.DIST({0,1,2,3,4,5,6,7,8,9},$P13, TRUE),1), 0) -> 5
C14: 2019-06-10 | D14: E | E14: Канада | F14: =(AVERAGE(Q14:BN14))*(1+INDEX('Прогнозы группового этапа'!$C$4:$O$28, MATCH('Матчи за текущий год'!E14,'Прогнозы группового этапа'!$D$4:$D$28,0),3)) -> 2.22 | G14: Камерун | H14: =(AVERAGE(BP14:DM14))*(1+INDEX('Прогнозы группового этапа'!$C$4:$O$28, MATCH('Матчи за текущий год'!G14,'Прогнозы группового этапа'!$D$4:$D$28,0),3)) -> 0.24 | I14: Канада | L14: 2.22 | M14: 0.24 | N14: Канада | O14: =(OFFSET('Прил. 3. Голы в группе'!$D$14,(INDEX('Прил. 1. Данные команды'!$C$13:$F$112,MATCH(G14,'Прил. 1. Данные команды'!$C$13:$C$112,0),4)/10),(INDEX('Прил. 1. Данные команды'!$C$13:$F$112,MATCH(E14,'Прил. 1. Данные команды'!$C$13:$C$112,0),4)/10))) -> 2.46 | P14: =OFFSET('Прил. 3. Голы в группе'!$D$14,(INDEX('Прил. 1. Данные команды'!$C$13:$F$112, MATCH(E14,'Прил. 1. Данные команды'!$C$13:$C$112,0),4)/10), (INDEX('Прил. 1. Данные команды'!$C$13:$F$112, MATCH(G14, 'Прил. 1. Данные команды'!$C$13:$C$112,0),4)/10)) -> 0.38 | Q14: =_xlfn.IFNA(MATCH(RAND(), _xlfn.POISSON.DIST({0,1,2,3,4,5,6,7,8,9},$O14, TRUE),1), 0) -> 3 | R14: =_xlfn.IFNA(MATCH(RAND(), _xlfn.POISSON.DIST({0,1,2,3,4,5,6,7,8,9},$O14, TRUE),1), 0) -> 5 | S14: =_xlfn.IFNA(MATCH(RAND(), _xlfn.POISSON.DIST({0,1,2,3,4,5,6,7,8,9},$O14, TRUE),1), 0) -> 7 | T14: =_xlfn.IFNA(MATCH(RAND(), _xlfn.POISSON.DIST({0,1,2,3,4,5,6,7,8,9},$O14, TRUE),1), 0) -> 1 | U14: =_xlfn.IFNA(MATCH(RAND(), _xlfn.POISSON.DIST({0,1,2,3,4,5,6,7,8,9},$O14, TRUE),1), 0) -> 2 | V14: =_xlfn.IFNA(MATCH(RAND(), _xlfn.POISSON.DIST({0,1,2,3,4,5,6,7,8,9},$O14, TRUE),1), 0) -> 0 | W14: =_xlfn.IFNA(MATCH(RAND(), _xlfn.POISSON.DIST({0,1,2,3,4,5,6,7,8,9},$O14, TRUE),1), 0) -> 2 | X14: =_xlfn.IFNA(MATCH(RAND(), _xlfn.POISSON.DIST({0,1,2,3,4,5,6,7,8,9},$O14, TRUE),1), 0) -> 2 | Y14: =_xlfn.IFNA(MATCH(RAND(), _xlfn.POISSON.DIST({0,1,2,3,4,5,6,7,8,9},$O14, TRUE),1), 0) -> 1 | Z14: =_xlfn.IFNA(MATCH(RAND(), _xlfn.POISSON.DIST({0,1,2,3,4,5,6,7,8,9},$O14, TRUE),1), 0) -> 3 | AA14: =_xlfn.IFNA(MATCH(RAND(), _xlfn.POISSON.DIST({0,1,2,3,4,5,6,7,8,9},$O14, TRUE),1), 0) -> 1 | AB14: =_xlfn.IFNA(MATCH(RAND(), _xlfn.POISSON.DIST({0,1,2,3,4,5,6,7,8,9},$O14, TRUE),1), 0) -> 1 | AC14: =_xlfn.IFNA(MATCH(RAND(), _xlfn.POISSON.DIST({0,1,2,3,4,5,6,7,8,9},$O14, TRUE),1), 0) -> 2 | AD14: =_xlfn.IFNA(MATCH(RAND(), _xlfn.POISSON.DIST({0,1,2,3,4,5,6,7,8,9},$O14, TRUE),1), 0) -> 1 | AE14: =_xlfn.IFNA(MATCH(RAND(), _xlfn.POISSON.DIST({0,1,2,3,4,5,6,7,8,9},$O14, TRUE),1), 0) -> 0 | AF14: =_xlfn.IFNA(MATCH(RAND(), _xlfn.POISSON.DIST({0,1,2,3,4,5,6,7,8,9},$O14, TRUE),1), 0) -> 1 | AG14: =_xlfn.IFNA(MATCH(RAND(), _xlfn.POISSON.DIST({0,1,2,3,4,5,6,7,8,9},$O14, TRUE),1), 0) -> 2 | AH14: =_xlfn.IFNA(MATCH(RAND(), _xlfn.POISSON.DIST({0,1,2,3,4,5,6,7,8,9},$O14, TRUE),1), 0) -> 3 | AI14: =_xlfn.IFNA(MATCH(RAND(), _xlfn.POISSON.DIST({0,1,2,3,4,5,6,7,8,9},$O14, TRUE),1), 0) -> 2 | AJ14: =_xlfn.IFNA(MATCH(RAND(), _xlfn.POISSON.DIST({0,1,2,3,4,5,6,7,8,9},$O14, TRUE),1), 0) -> 1 | AK14: =_xlfn.IFNA(MATCH(RAND(), _xlfn.POISSON.DIST({0,1,2,3,4,5,6,7,8,9},$O14, TRUE),1), 0) -> 3 | AL14: =_xlfn.IFNA(MATCH(RAND(), _xlfn.POISSON.DIST({0,1,2,3,4,5,6,7,8,9},$O14, TRUE),1), 0) -> 4 | AM14: =_xlfn.IFNA(MATCH(RAND(), _xlfn.POISSON.DIST({0,1,2,3,4,5,6,7,8,9},$O14, TRUE),1), 0) -> 2 | AN14: =_xlfn.IFNA(MATCH(RAND(), _xlfn.POISSON.DIST({0,1,2,3,4,5,6,7,8,9},$O14, TRUE),1), 0) -> 2 | AO14: =_xlfn.IFNA(MATCH(RAND(), _xlfn.POISSON.DIST({0,1,2,3,4,5,6,7,8,9},$O14, TRUE),1), 0) -> 2 | AP14: =_xlfn.IFNA(MATCH(RAND(), _xlfn.POISSON.DIST({0,1,2,3,4,5,6,7,8,9},$O14, TRUE),1), 0) -> 3 | AQ14: =_xlfn.IFNA(MATCH(RAND(), _xlfn.POISSON.DIST({0,1,2,3,4,5,6,7,8,9},$O14, TRUE),1), 0) -> 2 | AR14: =_xlfn.IFNA(MATCH(RAND(), _xlfn.POISSON.DIST({0,1,2,3,4,5,6,7,8,9},$O14, TRUE),1), 0) -> 3 | AS14: =_xlfn.IFNA(MATCH(RAND(), _xlfn.POISSON.DIST({0,1,2,3,4,5,6,7,8,9},$O14, TRUE),1), 0) -> 2 | AT14: =_xlfn.IFNA(MATCH(RAND(), _xlfn.POISSON.DIST({0,1,2,3,4,5,6,7,8,9},$O14, TRUE),1), 0) -> 3 | AU14: =_xlfn.IFNA(MATCH(RAND(), _xlfn.POISSON.DIST({0,1,2,3,4,5,6,7,8,9},$O14, TRUE),1), 0) -> 1 | AV14: =_xlfn.IFNA(MATCH(RAND(), _xlfn.POISSON.DIST({0,1,2,3,4,5,6,7,8,9},$O14, TRUE),1), 0) -> 1 | AW14: =_xlfn.IFNA(MATCH(RAND(), _xlfn.POISSON.DIST({0,1,2,3,4,5,6,7,8,9},$O14, TRUE),1), 0) -> 4 | AX14: =_xlfn.IFNA(MATCH(RAND(), _xlfn.POISSON.DIST({0,1,2,3,4,5,6,7,8,9},$O14, TRUE),1), 0) -> 2 | AY14: =_xlfn.IFNA(MATCH(RAND(), _xlfn.POISSON.DIST({0,1,2,3,4,5,6,7,8,9},$O14, TRUE),1), 0) -> 2 | AZ14: =_xlfn.IFNA(MATCH(RAND(), _xlfn.POISSON.DIST({0,1,2,3,4,5,6,7,8,9},$O14, TRUE),1), 0) -> 3 | BA14: =_xlfn.IFNA(MATCH(RAND(), _xlfn.POISSON.DIST({0,1,2,3,4,5,6,7,8,9},$O14, TRUE),1), 0) -> 2 | BB14: =_xlfn.IFNA(MATCH(RAND(), _xlfn.POISSON.DIST({0,1,2,3,4,5,6,7,8,9},$O14, TRUE),1), 0) -> 1 | BC14: =_xlfn.IFNA(MATCH(RAND(), _xlfn.POISSON.DIST({0,1,2,3,4,5,6,7,8,9},$O14, TRUE),1), 0) -> 1 | BD14: =_xlfn.IFNA(MATCH(RAND(), _xlfn.POISSON.DIST({0,1,2,3,4,5,6,7,8,9},$O14, TRUE),1), 0) -> 2 | BE14: =_xlfn.IFNA(MATCH(RAND(), _xlfn.POISSON.DIST({0,1,2,3,4,5,6,7,8,9},$O14, TRUE),1), 0) -> 1 | BF14: =_xlfn.IFNA(MATCH(RAND(), _xlfn.POISSON.DIST({0,1,2,3,4,5,6,7,8,9},$O14, TRUE),1), 0) -> 2 | BG14: =_xlfn.IFNA(MATCH(RAND(), _xlfn.POISSON.DIST({0,1,2,3,4,5,6,7,8,9},$O14, TRUE),1), 0) -> 2 | BH14: =_xlfn.IFNA(MATCH(RAND(), _xlfn.POISSON.DIST({0,1,2,3,4,5,6,7,8,9},$O14, TRUE),1), 0) -> 2 | BI14: =_xlfn.IFNA(MATCH(RAND(), _xlfn.POISSON.DIST({0,1,2,3,4,5,6,7,8,9},$O14, TRUE),1), 0) -> 1 | BJ14: =_xlfn.IFNA(MATCH(RAND(), _xlfn.POISSON.DIST({0,1,2,3,4,5,6,7,8,9},$O14, TRUE),1), 0) -> 6 | BK14: =_xlfn.IFNA(MATCH(RAND(), _xlfn.POISSON.DIST({0,1,2,3,4,5,6,7,8,9},$O14, TRUE),1), 0) -> 4 | BL14: =_xlfn.IFNA(MATCH(RAND(), _xlfn.POISSON.DIST({0,1,2,3,4,5,6,7,8,9},$O14, TRUE),1), 0) -> 2 | BM14: =_xlfn.IFNA(MATCH(RAND(), _xlfn.POISSON.DIST({0,1,2,3,4,5,6,7,8,9},$O14, TRUE),1), 0) -> 4 | BN14: =_xlfn.IFNA(MATCH(RAND(), _xlfn.POISSON.DIST({0,1,2,3,4,5,6,7,8,9},$O14, TRUE),1), 0) -> 2 | BP14: =_xlfn.IFNA(MATCH(RAND(), _xlfn.POISSON.DIST({0,1,2,3,4,5,6,7,8,9},$P14, TRUE),1), 0) -> 0 | BQ14: =_xlfn.IFNA(MATCH(RAND(), _xlfn.POISSON.DIST({0,1,2,3,4,5,6,7,8,9},$P14, TRUE),1), 0) -> 0 | BR14: =_xlfn.IFNA(MATCH(RAND(), _xlfn.POISSON.DIST({0,1,2,3,4,5,6,7,8,9},$P14, TRUE),1), 0) -> 0 | BS14: =_xlfn.IFNA(MATCH(RAND(), _xlfn.POISSON.DIST({0,1,2,3,4,5,6,7,8,9},$P14, TRUE),1), 0) -> 1 | BT14: =_xlfn.IFNA(MATCH(RAND(), _xlfn.POISSON.DIST({0,1,2,3,4,5,6,7,8,9},$P14, TRUE),1), 0) -> 0 | BU14: =_xlfn.IFNA(MATCH(RAND(), _xlfn.POISSON.DIST({0,1,2,3,4,5,6,7,8,9},$P14, TRUE),1), 0) -> 1 | BV14: =_xlfn.IFNA(MATCH(RAND(), _xlfn.POISSON.DIST({0,1,2,3,4,5,6,7,8,9},$P14, TRUE),1), 0) -> 1 | BW14: =_xlfn.IFNA(MATCH(RAND(), _xlfn.POISSON.DIST({0,1,2,3,4,5,6,7,8,9},$P14, TRUE),1), 0) -> 0 | BX14: =_xlfn.IFNA(MATCH(RAND(), _xlfn.POISSON.DIST({0,1,2,3,4,5,6,7,8,9},$P14, TRUE),1), 0) -> 1 | BY14: =_xlfn.IFNA(MATCH(RAND(), _xlfn.POISSON.DIST({0,1,2,3,4,5,6,7,8,9},$P14, TRUE),1), 0) -> 0 | BZ14: =_xlfn.IFNA(MATCH(RAND(), _xlfn.POISSON.DIST({0,1,2,3,4,5,6,7,8,9},$P14, TRUE),1), 0) -> 0 | CA14: =_xlfn.IFNA(MATCH(RAND(), _xlfn.POISSON.DIST({0,1,2,3,4,5,6,7,8,9},$P14, TRUE),1), 0) -> 0 | CB14: =_xlfn.IFNA(MATCH(RAND(), _xlfn.POISSON.DIST({0,1,2,3,4,5,6,7,8,9},$P14, TRUE),1), 0) -> 0 | CC14: =_xlfn.IFNA(MATCH(RAND(), _xlfn.POISSON.DIST({0,1,2,3,4,5,6,7,8,9},$P14, TRUE),1), 0) -> 0 | CD14: =_xlfn.IFNA(MATCH(RAND(), _xlfn.POISSON.DIST({0,1,2,3,4,5,6,7,8,9},$P14, TRUE),1), 0) -> 1 | CE14: =_xlfn.IFNA(MATCH(RAND(), _xlfn.POISSON.DIST({0,1,2,3,4,5,6,7,8,9},$P14, TRUE),1), 0) -> 2 | CF14: =_xlfn.IFNA(MATCH(RAND(), _xlfn.POISSON.DIST({0,1,2,3,4,5,6,7,8,9},$P14, TRUE),1), 0) -> 0 | CG14: =_xlfn.IFNA(MATCH(RAND(), _xlfn.POISSON.DIST({0,1,2,3,4,5,6,7,8,9},$P14, TRUE),1), 0) -> 0 | CH14: =_xlfn.IFNA(MATCH(RAND(), _xlfn.POISSON.DIST({0,1,2,3,4,5,6,7,8,9},$P14, TRUE),1), 0) -> 0 | CI14: =_xlfn.IFNA(MATCH(RAND(), _xlfn.POISSON.DIST({0,1,2,3,4,5,6,7,8,9},$P14, TRUE),1), 0) -> 0 | CJ14: =_xlfn.IFNA(MATCH(RAND(), _xlfn.POISSON.DIST({0,1,2,3,4,5,6,7,8,9},$P14, TRUE),1), 0) -> 0 | CK14: =_xlfn.IFNA(MATCH(RAND(), _xlfn.POISSON.DIST({0,1,2,3,4,5,6,7,8,9},$P14, TRUE),1), 0) -> 1 | CL14: =_xlfn.IFNA(MATCH(RAND(), _xlfn.POISSON.DIST({0,1,2,3,4,5,6,7,8,9},$P14, TRUE),1), 0) -> 0 | CM14: =_xlfn.IFNA(MATCH(RAND(), _xlfn.POISSON.DIST({0,1,2,3,4,5,6,7,8,9},$P14, TRUE),1), 0) -> 0 | CN14: =_xlfn.IFNA(MATCH(RAND(), _xlfn.POISSON.DIST({0,1,2,3,4,5,6,7,8,9},$P14, TRUE),1), 0) -> 0 | CO14: =_xlfn.IFNA(MATCH(RAND(), _xlfn.POISSON.DIST({0,1,2,3,4,5,6,7,8,9},$P14, TRUE),1), 0) -> 0 | CP14: =_xlfn.IFNA(MATCH(RAND(), _xlfn.POISSON.DIST({0,1,2,3,4,5,6,7,8,9},$P14, TRUE),1), 0) -> 0 | CQ14: =_xlfn.IFNA(MATCH(RAND(), _xlfn.POISSON.DIST({0,1,2,3,4,5,6,7,8,9},$P14, TRUE),1), 0) -> 1 | CR14: =_xlfn.IFNA(MATCH(RAND(), _xlfn.POISSON.DIST({0,1,2,3,4,5,6,7,8,9},$P14, TRUE),1), 0) -> 1 | CS14: =_xlfn.IFNA(MATCH(RAND(), _xlfn.POISSON.DIST({0,1,2,3,4,5,6,7,8,9},$P14, TRUE),1), 0) -> 0 | CT14: =_xlfn.IFNA(MATCH(RAND(), _xlfn.POISSON.DIST({0,1,2,3,4,5,6,7,8,9},$P14, TRUE),1), 0) -> 0 | CU14: =_xlfn.IFNA(MATCH(RAND(), _xlfn.POISSON.DIST({0,1,2,3,4,5,6,7,8,9},$P14, TRUE),1), 0) -> 0 | CV14: =_xlfn.IFNA(MATCH(RAND(), _xlfn.POISSON.DIST({0,1,2,3,4,5,6,7,8,9},$P14, TRUE),1), 0) -> 0 | CW14: =_xlfn.IFNA(MATCH(RAND(), _xlfn.POISSON.DIST({0,1,2,3,4,5,6,7,8,9},$P14, TRUE),1), 0) -> 0 | CX14: =_xlfn.IFNA(MATCH(RAND(), _xlfn.POISSON.DIST({0,1,2,3,4,5,6,7,8,9},$P14, TRUE),1), 0) -> 0 | CY14: =_xlfn.IFNA(MATCH(RAND(), _xlfn.POISSON.DIST({0,1,2,3,4,5,6,7,8,9},$P14, TRUE),1), 0) -> 0 | CZ14: =_xlfn.IFNA(MATCH(RAND(), _xlfn.POISSON.DIST({0,1,2,3,4,5,6,7,8,9},$P14, TRUE),1), 0) -> 0 | DA14: =_xlfn.IFNA(MATCH(RAND(), _xlfn.POISSON.DIST({0,1,2,3,4,5,6,7,8,9},$P14, TRUE),1), 0) -> 0 | DB14: =_xlfn.IFNA(MATCH(RAND(), _xlfn.POISSON.DIST({0,1,2,3,4,5,6,7,8,9},$P14, TRUE),1), 0) -> 1 | DC14: =_xlfn.IFNA(MATCH(RAND(), _xlfn.POISSON.DIST({0,1,2,3,4,5,6,7,8,9},$P14, TRUE),1), 0) -> 1 | DD14: =_xlfn.IFNA(MATCH(RAND(), _xlfn.POISSON.DIST({0,1,2,3,4,5,6,7,8,9},$P14, TRUE),1), 0) -> 0 | DE14: =_xlfn.IFNA(MATCH(RAND(), _xlfn.POISSON.DIST({0,1,2,3,4,5,6,7,8,9},$P14, TRUE),1), 0) -> 0 | DF14: =_xlfn.IFNA(MATCH(RAND(), _xlfn.POISSON.DIST({0,1,2,3,4,5,6,7,8,9},$P14, TRUE),1), 0) -> 0 | DG14: =_xlfn.IFNA(MATCH(RAND(), _xlfn.POISSON.DIST({0,1,2,3,4,5,6,7,8,9},$P14, TRUE),1), 0) -> 0 | DH14: =_xlfn.IFNA(MATCH(RAND(), _xlfn.POISSON.DIST({0,1,2,3,4,5,6,7,8,9},$P14, TRUE),1), 0) -> 0 | DI14: =_xlfn.IFNA(MATCH(RAND(), _xlfn.POISSON.DIST({0,1,2,3,4,5,6,7,8,9},$P14, TRUE),1), 0) -> 0 | DJ14: =_xlfn.IFNA(MATCH(RAND(), _xlfn.POISSON.DIST({0,1,2,3,4,5,6,7,8,9},$P14, TRUE),1), 0) -> 0 | DK14: =_xlfn.IFNA(MATCH(RAND(), _xlfn.POISSON.DIST({0,1,2,3,4,5,6,7,8,9},$P14, TRUE),1), 0) -> 0 | DL14: =_xlfn.IFNA(MATCH(RAND(), _xlfn.POISSON.DIST({0,1,2,3,4,5,6,7,8,9},$P14, TRUE),1), 0) -> 0 | DM14: =_xlfn.IFNA(MATCH(RAND(), _xlfn.POISSON.DIST({0,1,2,3,4,5,6,7,8,9},$P14, TRUE),1), 0) -> 0
C15: 2019-06-11 | D15: E | E15: Новая Зеландия | F15: =(AVERAGE(Q15:BN15))*(1+INDEX('Прогнозы группового этапа'!$C$4:$O$28, MATCH('Матчи за текущий год'!E15,'Прогнозы группового этапа'!$D$4:$D$28,0),3)) -> 0.92 | G15: Нидерланды | H15: =(AVERAGE(BP15:DM15))*(1+INDEX('Прогнозы группового этапа'!$C$4:$O$28, MATCH('Матчи за текущий год'!G15,'Прогнозы группового этапа'!$D$4:$D$28,0),3)) -> 1.46 | I15: Нидерланды | L15: 0.92 | M15: 1.46 | N15: Нидерланды | O15: =(OFFSET('Прил. 3. Голы в группе'!$D$14,(INDEX('Прил. 1. Данные команды'!$C$13:$F$112,MATCH(G15,'Прил. 1. Данные команды'!$C$13:$C$112,0),4)/10),(INDEX('Прил. 1. Данные команды'!$C$13:$F$112,MATCH(E15,'Прил. 1. Данные команды'!$C$13:$C$112,0),4)/10))) -> 1.07 | P15: =OFFSET('Прил. 3. Голы в группе'!$D$14,(INDEX('Прил. 1. Данные команды'!$C$13:$F$112, MATCH(E15,'Прил. 1. Данные команды'!$C$13:$C$112,0),4)/10), (INDEX('Прил. 1. Данные команды'!$C$13:$F$112, MATCH(G15, 'Прил. 1. Данные команды'!$C$13:$C$112,0),4)/10)) -> 1.78 | Q15: =_xlfn.IFNA(MATCH(RAND(), _xlfn.POISSON.DIST({0,1,2,3,4,5,6,7,8,9},$O15, TRUE),1), 0) -> 0 | R15: =_xlfn.IFNA(MATCH(RAND(), _xlfn.POISSON.DIST({0,1,2,3,4,5,6,7,8,9},$O15, TRUE),1), 0) -> 2 | S15: =_xlfn.IFNA(MATCH(RAND(), _xlfn.POISSON.DIST({0,1,2,3,4,5,6,7,8,9},$O15, TRUE),1), 0) -> 1 | T15: =_xlfn.IFNA(MATCH(RAND(), _xlfn.POISSON.DIST({0,1,2,3,4,5,6,7,8,9},$O15, TRUE),1), 0) -> 0 | U15: =_xlfn.IFNA(MATCH(RAND(), _xlfn.POISSON.DIST({0,1,2,3,4,5,6,7,8,9},$O15, TRUE),1), 0) -> 1 | V15: =_xlfn.IFNA(MATCH(RAND(), _xlfn.POISSON.DIST({0,1,2,3,4,5,6,7,8,9},$O15, TRUE),1), 0) -> 4 | W15: =_xlfn.IFNA(MATCH(RAND(), _xlfn.POISSON.DIST({0,1,2,3,4,5,6,7,8,9},$O15, TRUE),1), 0) -> 2 | X15: =_xlfn.IFNA(MATCH(RAND(), _xlfn.POISSON.DIST({0,1,2,3,4,5,6,7,8,9},$O15, TRUE),1), 0) -> 1 | Y15: =_xlfn.IFNA(MATCH(RAND(), _xlfn.POISSON.DIST({0,1,2,3,4,5,6,7,8,9},$O15, TRUE),1), 0) -> 1 | Z15: =_xlfn.IFNA(MATCH(RAND(), _xlfn.POISSON.DIST({0,1,2,3,4,5,6,7,8,9},$O15, TRUE),1), 0) -> 2 | AA15: =_xlfn.IFNA(MATCH(RAND(), _xlfn.POISSON.DIST({0,1,2,3,4,5,6,7,8,9},$O15, TRUE),1), 0) -> 0 | AB15: =_xlfn.IFNA(MATCH(RAND(), _xlfn.POISSON.DIST({0,1,2,3,4,5,6,7,8,9},$O15, TRUE),1), 0) -> 1 | AC15: =_xlfn.IFNA(MATCH(RAND(), _xlfn.POISSON.DIST({0,1,2,3,4,5,6,7,8,9},$O15, TRUE),1), 0) -> 0 | AD15: =_xlfn.IFNA(MATCH(RAND(), _xlfn.POISSON.DIST({0,1,2,3,4,5,6,7,8,9},$O15, TRUE),1), 0) -> 0 | AE15: =_xlfn.IFNA(MATCH(RAND(), _xlfn.POISSON.DIST({0,1,2,3,4,5,6,7,8,9},$O15, TRUE),1), 0) -> 0 | AF15: =_xlfn.IFNA(MATCH(RAND(), _xlfn.POISSON.DIST({0,1,2,3,4,5,6,7,8,9},$O15, TRUE),1), 0) -> 0 | AG15: =_xlfn.IFNA(MATCH(RAND(), _xlfn.POISSON.DIST({0,1,2,3,4,5,6,7,8,9},$O15, TRUE),1), 0) -> 1 | AH15: =_xlfn.IFNA(MATCH(RAND(), _xlfn.POISSON.DIST({0,1,2,3,4,5,6,7,8,9},$O15, TRUE),1), 0) -> 0 | AI15: =_xlfn.IFNA(MATCH(RAND(), _xlfn.POISSON.DIST({0,1,2,3,4,5,6,7,8,9},$O15, TRUE),1), 0) -> 1 | AJ15: =_xlfn.IFNA(MATCH(RAND(), _xlfn.POISSON.DIST({0,1,2,3,4,5,6,7,8,9},$O15, TRUE),1), 0) -> 1 | AK15: =_xlfn.IFNA(MATCH(RAND(), _xlfn.POISSON.DIST({0,1,2,3,4,5,6,7,8,9},$O15, TRUE),1), 0) -> 0 | AL15: =_xlfn.IFNA(MATCH(RAND(), _xlfn.POISSON.DIST({0,1,2,3,4,5,6,7,8,9},$O15, TRUE),1), 0) -> 0 | AM15: =_xlfn.IFNA(MATCH(RAND(), _xlfn.POISSON.DIST({0,1,2,3,4,5,6,7,8,9},$O15, TRUE),1), 0) -> 1 | AN15: =_xlfn.IFNA(MATCH(RAND(), _xlfn.POISSON.DIST({0,1,2,3,4,5,6,7,8,9},$O15, TRUE),1), 0) -> 1 | AO15: =_xlfn.IFNA(MATCH(RAND(), _xlfn.POISSON.DIST({0,1,2,3,4,5,6,7,8,9},$O15, TRUE),1), 0) -> 1 | AP15: =_xlfn.IFNA(MATCH(RAND(), _xlfn.POISSON.DIST({0,1,2,3,4,5,6,7,8,9},$O15, TRUE),1), 0) -> 1 | AQ15: =_xlfn.IFNA(MATCH(RAND(), _xlfn.POISSON.DIST({0,1,2,3,4,5,6,7,8,9},$O15, TRUE),1), 0) -> 0 | AR15: =_xlfn.IFNA(MATCH(RAND(), _xlfn.POISSON.DIST({0,1,2,3,4,5,6,7,8,9},$O15, TRUE),1), 0) -> 0 | AS15: =_xlfn.IFNA(MATCH(RAND(), _xlfn.POISSON.DIST({0,1,2,3,4,5,6,7,8,9},$O15, TRUE),1), 0) -> 1 | AT15: =_xlfn.IFNA(MATCH(RAND(), _xlfn.POISSON.DIST({0,1,2,3,4,5,6,7,8,9},$O15, TRUE),1), 0) -> 0 | AU15: =_xlfn.IFNA(MATCH(RAND(), _xlfn.POISSON.DIST({0,1,2,3,4,5,6,7,8,9},$O15, TRUE),1), 0) -> 1 | AV15: =_xlfn.IFNA(MATCH(RAND(), _xlfn.POISSON.DIST({0,1,2,3,4,5,6,7,8,9},$O15, TRUE),1), 0) -> 1 | AW15: =_xlfn.IFNA(MATCH(RAND(), _xlfn.POISSON.DIST({0,1,2,3,4,5,6,7,8,9},$O15, TRUE),1), 0) -> 1 | AX15: =_xlfn.IFNA(MATCH(RAND(), _xlfn.POISSON.DIST({0,1,2,3,4,5,6,7,8,9},$O15, TRUE),1), 0) -> 2 | AY15: =_xlfn.IFNA(MATCH(RAND(), _xlfn.POISSON.DIST({0,1,2,3,4,5,6,7,8,9},$O15, TRUE),1), 0) -> 1 | AZ15: =_xlfn.IFNA(MATCH(RAND(), _xlfn.POISSON.DIST({0,1,2,3,4,5,6,7,8,9},$O15, TRUE),1), 0) -> 1 | BA15: =_xlfn.IFNA(MATCH(RAND(), _xlfn.POISSON.DIST({0,1,2,3,4,5,6,7,8,9},$O15, TRUE),1), 0) -> 1 | BB15: =_xlfn.IFNA(MATCH(RAND(), _xlfn.POISSON.DIST({0,1,2,3,4,5,6,7,8,9},$O15, TRUE),1), 0) -> 0 | BC15: =_xlfn.IFNA(MATCH(RAND(), _xlfn.POISSON.DIST({0,1,2,3,4,5,6,7,8,9},$O15, TRUE),1), 0) -> 2 | BD15: =_xlfn.IFNA(MATCH(RAND(), _xlfn.POISSON.DIST({0,1,2,3,4,5,6,7,8,9},$O15, TRUE),1), 0) -> 2 | BE15: =_xlfn.IFNA(MATCH(RAND(), _xlfn.POISSON.DIST({0,1,2,3,4,5,6,7,8,9},$O15, TRUE),1), 0) -> 1 | BF15: =_xlfn.IFNA(MATCH(RAND(), _xlfn.POISSON.DIST({0,1,2,3,4,5,6,7,8,9},$O15, TRUE),1), 0) -> 2 | BG15: =_xlfn.IFNA(MATCH(RAND(), _xlfn.POISSON.DIST({0,1,2,3,4,5,6,7,8,9},$O15, TRUE),1), 0) -> 3 | BH15: =_xlfn.IFNA(MATCH(RAND(), _xlfn.POISSON.DIST({0,1,2,3,4,5,6,7,8,9},$O15, TRUE),1), 0) -> 0 | BI15: =_xlfn.IFNA(MATCH(RAND(), _xlfn.POISSON.DIST({0,1,2,3,4,5,6,7,8,9},$O15, TRUE),1), 0) -> 0 | BJ15: =_xlfn.IFNA(MATCH(RAND(), _xlfn.POISSON.DIST({0,1,2,3,4,5,6,7,8,9},$O15, TRUE),1), 0) -> 3 | BK15: =_xlfn.IFNA(MATCH(RAND(), _xlfn.POISSON.DIST({0,1,2,3,4,5,6,7,8,9},$O15, TRUE),1), 0) -> 0 | BL15: =_xlfn.IFNA(MATCH(RAND(), _xlfn.POISSON.DIST({0,1,2,3,4,5,6,7,8,9},$O15, TRUE),1), 0) -> 0 | BM15: =_xlfn.IFNA(MATCH(RAND(), _xlfn.POISSON.DIST({0,1,2,3,4,5,6,7,8,9},$O15, TRUE),1), 0) -> 0 | BN15: =_xlfn.IFNA(MATCH(RAND(), _xlfn.POISSON.DIST({0,1,2,3,4,5,6,7,8,9},$O15, TRUE),1), 0) -> 2 | BP15: =_xlfn.IFNA(MATCH(RAND(), _xlfn.POISSON.DIST({0,1,2,3,4,5,6,7,8,9},$P15, TRUE),1), 0) -> 4 | BQ15: =_xlfn.IFNA(MATCH(RAND(), _xlfn.POISSON.DIST({0,1,2,3,4,5,6,7,8,9},$P15, TRUE),1), 0) -> 0 | BR15: =_xlfn.IFNA(MATCH(RAND(), _xlfn.POISSON.DIST({0,1,2,3,4,5,6,7,8,9},$P15, TRUE),1), 0) -> 3 | BS15: =_xlfn.IFNA(MATCH(RAND(), _xlfn.POISSON.DIST({0,1,2,3,4,5,6,7,8,9},$P15, TRUE),1), 0) -> 1 | BT15: =_xlfn.IFNA(MATCH(RAND(), _xlfn.POISSON.DIST({0,1,2,3,4,5,6,7,8,9},$P15, TRUE),1), 0) -> 2 | BU15: =_xlfn.IFNA(MATCH(RAND(), _xlfn.POISSON.DIST({0,1,2,3,4,5,6,7,8,9},$P15, TRUE),1), 0) -> 2 | BV15: =_xlfn.IFNA(MATCH(RAND(), _xlfn.POISSON.DIST({0,1,2,3,4,5,6,7,8,9},$P15, TRUE),1), 0) -> 1 | BW15: =_xlfn.IFNA(MATCH(RAND(), _xlfn.POISSON.DIST({0,1,2,3,4,5,6,7,8,9},$P15, TRUE),1), 0) -> 3 | BX15: =_xlfn.IFNA(MATCH(RAND(), _xlfn.POISSON.DIST({0,1,2,3,4,5,6,7,8,9},$P15, TRUE),1), 0) -> 3 | BY15: =_xlfn.IFNA(MATCH(RAND(), _xlfn.POISSON.DIST({0,1,2,3,4,5,6,7,8,9},$P15, TRUE),1), 0) -> 0 | BZ15: =_xlfn.IFNA(MATCH(RAND(), _xlfn.POISSON.DIST({0,1,2,3,4,5,6,7,8,9},$P15, TRUE),1), 0) -> 2 | CA15: =_xlfn.IFNA(MATCH(RAND(), _xlfn.POISSON.DIST({0,1,2,3,4,5,6,7,8,9},$P15, TRUE),1), 0) -> 0 | CB15: =_xlfn.IFNA(MATCH(RAND(), _xlfn.POISSON.DIST({0,1,2,3,4,5,6,7,8,9},$P15, TRUE),1), 0) -> 3 | CC15: =_xlfn.IFNA(MATCH(RAND(), _xlfn.POISSON.DIST({0,1,2,3,4,5,6,7,8,9},$P15, TRUE),1), 0) -> 2 | CD15: =_xlfn.IFNA(MATCH(RAND(), _xlfn.POISSON.DIST({0,1,2,3,4,5,6,7,8,9},$P15, TRUE),1), 0) -> 2 | CE15: =_xlfn.IFNA(MATCH(RAND(), _xlfn.POISSON.DIST({0,1,2,3,4,5,6,7,8,9},$P15, TRUE),1), 0) -> 1 | CF15: =_xlfn.IFNA(MATCH(RAND(), _xlfn.POISSON.DIST({0,1,2,3,4,5,6,7,8,9},$P15, TRUE),1), 0) -> 3 | CG15: =_xlfn.IFNA(MATCH(RAND(), _xlfn.POISSON.DIST({0,1,2,3,4,5,6,7,8,9},$P15, TRUE),1), 0) -> 1 | CH15: =_xlfn.IFNA(MATCH(RAND(), _xlfn.POISSON.DIST({0,1,2,3,4,5,6,7,8,9},$P15, TRUE),1), 0) -> 0 | CI15: =_xlfn.IFNA(MATCH(RAND(), _xlfn.POISSON.DIST({0,1,2,3,4,5,6,7,8,9},$P15, TRUE),1), 0) -> 0 | CJ15: =_xlfn.IFNA(MATCH(RAND(), _xlfn.POISSON.DIST({0,1,2,3,4,5,6,7,8,9},$P15, TRUE),1), 0) -> 0 | CK15: =_xlfn.IFNA(MATCH(RAND(), _xlfn.POISSON.DIST({0,1,2,3,4,5,6,7,8,9},$P15, TRUE),1), 0) -> 3 | CL15: =_xlfn.IFNA(MATCH(RAND(), _xlfn.POISSON.DIST({0,1,2,3,4,5,6,7,8,9},$P15, TRUE),1), 0) -> 0 | CM15: =_xlfn.IFNA(MATCH(RAND(), _xlfn.POISSON.DIST({0,1,2,3,4,5,6,7,8,9},$P15, TRUE),1), 0) -> 2 | CN15: =_xlfn.IFNA(MATCH(RAND(), _xlfn.POISSON.DIST({0,1,2,3,4,5,6,7,8,9},$P15, TRUE),1), 0) -> 1 | CO15: =_xlfn.IFNA(MATCH(RAND(), _xlfn.POISSON.DIST({0,1,2,3,4,5,6,7,8,9},$P15, TRUE),1), 0) -> 1 | CP15: =_xlfn.IFNA(MATCH(RAND(), _xlfn.POISSON.DIST({0,1,2,3,4,5,6,7,8,9},$P15, TRUE),1), 0) -> 0 | CQ15: =_xlfn.IFNA(MATCH(RAND(), _xlfn.POISSON.DIST({0,1,2,3,4,5,6,7,8,9},$P15, TRUE),1), 0) -> 2 | CR15: =_xlfn.IFNA(MATCH(RAND(), _xlfn.POISSON.DIST({0,1,2,3,4,5,6,7,8,9},$P15, TRUE),1), 0) -> 1 | CS15: =_xlfn.IFNA(MATCH(RAND(), _xlfn.POISSON.DIST({0,1,2,3,4,5,6,7,8,9},$P15, TRUE),1), 0) -> 1 | CT15: =_xlfn.IFNA(MATCH(RAND(), _xlfn.POISSON.DIST({0,1,2,3,4,5,6,7,8,9},$P15, TRUE),1), 0) -> 2 | CU15: =_xlfn.IFNA(MATCH(RAND(), _xlfn.POISSON.DIST({0,1,2,3,4,5,6,7,8,9},$P15, TRUE),1), 0) -> 2 | CV15: =_xlfn.IFNA(MATCH(RAND(), _xlfn.POISSON.DIST({0,1,2,3,4,5,6,7,8,9},$P15, TRUE),1), 0) -> 1 | CW15: =_xlfn.IFNA(MATCH(RAND(), _xlfn.POISSON.DIST({0,1,2,3,4,5,6,7,8,9},$P15, TRUE),1), 0) -> 1 | CX15: =_xlfn.IFNA(MATCH(RAND(), _xlfn.POISSON.DIST({0,1,2,3,4,5,6,7,8,9},$P15, TRUE),1), 0) -> 3 | CY15: =_xlfn.IFNA(MATCH(RAND(), _xlfn.POISSON.DIST({0,1,2,3,4,5,6,7,8,9},$P15, TRUE),1), 0) -> 4 | CZ15: =_xlfn.IFNA(MATCH(RAND(), _xlfn.POISSON.DIST({0,1,2,3,4,5,6,7,8,9},$P15, TRUE),1), 0) -> 1 | DA15: =_xlfn.IFNA(MATCH(RAND(), _xlfn.POISSON.DIST({0,1,2,3,4,5,6,7,8,9},$P15, TRUE),1), 0) -> 0 | DB15: =_xlfn.IFNA(MATCH(RAND(), _xlfn.POISSON.DIST({0,1,2,3,4,5,6,7,8,9},$P15, TRUE),1), 0) -> 0 | DC15: =_xlfn.IFNA(MATCH(RAND(), _xlfn.POISSON.DIST({0,1,2,3,4,5,6,7,8,9},$P15, TRUE),1), 0) -> 0 | DD15: =_xlfn.IFNA(MATCH(RAND(), _xlfn.POISSON.DIST({0,1,2,3,4,5,6,7,8,9},$P15, TRUE),1), 0) -> 2 | DE15: =_xlfn.IFNA(MATCH(RAND(), _xlfn.POISSON.DIST({0,1,2,3,4,5,6,7,8,9},$P15, TRUE),1), 0) -> 1 | DF15: =_xlfn.IFNA(MATCH(RAND(), _xlfn.POISSON.DIST({0,1,2,3,4,5,6,7,8,9},$P15, TRUE),1), 0) -> 1 | DG15: =_xlfn.IFNA(MATCH(RAND(), _xlfn.POISSON.DIST({0,1,2,3,4,5,6,7,8,9},$P15, TRUE),1), 0) -> 3 | DH15: =_xlfn.IFNA(MATCH(RAND(), _xlfn.POISSON.DIST({0,1,2,3,4,5,6,7,8,9},$P15, TRUE),1), 0) -> 1 | DI15: =_xlfn.IFNA(MATCH(RAND(), _xlfn.POISSON.DIST({0,1,2,3,4,5,6,7,8,9},$P15, TRUE),1), 0) -> 1 | DJ15: =_xlfn.IFNA(MATCH(RAND(), _xlfn.POISSON.DIST({0,1,2,3,4,5,6,7,8,9},$P15, TRUE),1), 0) -> 5 | DK15: =_xlfn.IFNA(MATCH(RAND(), _xlfn.POISSON.DIST({0,1,2,3,4,5,6,7,8,9},$P15, TRUE),1), 0) -> 0 | DL15: =_xlfn.IFNA(MATCH(RAND(), _xlfn.POISSON.DIST({0,1,2,3,4,5,6,7,8,9},$P15, TRUE),1), 0) -> 0 | DM15: =_xlfn.IFNA(MATCH(RAND(), _xlfn.POISSON.DIST({0,1,2,3,4,5,6,7,8,9},$P15, TRUE),1), 0) -> 1
C16: 2019-06-11 | D16: F | E16: Чили | F16: =(AVERAGE(Q16:BN16))*(1+INDEX('Прогнозы группового этапа'!$C$4:$O$28, MATCH('Матчи за текущий год'!E16,'Прогнозы группового этапа'!$D$4:$D$28,0),3)) -> 0.50 | G16: Швеция | H16: =(AVERAGE(BP16:DM16))*(1+INDEX('Прогнозы группового этапа'!$C$4:$O$28, MATCH('Матчи за текущий год'!G16,'Прогнозы группового этапа'!$D$4:$D$28,0),3)) -> 3.60 | I16: Швеция | L16: 0.5 | M16: 3.6 | N16: Швеция | O16: =(OFFSET('Прил. 3. Голы в группе'!$D$14,(INDEX('Прил. 1. Данные команды'!$C$13:$F$112,MATCH(G16,'Прил. 1. Данные команды'!$C$13:$C$112,0),4)/10),(INDEX('Прил. 1. Данные команды'!$C$13:$F$112,MATCH(E16,'Прил. 1. Данные команды'!$C$13:$C$112,0),4)/10))) -> 0.59 | P16: =OFFSET('Прил. 3. Голы в группе'!$D$14,(INDEX('Прил. 1. Данные команды'!$C$13:$F$112, MATCH(E16,'Прил. 1. Данные команды'!$C$13:$C$112,0),4)/10), (INDEX('Прил. 1. Данные команды'!$C$13:$F$112, MATCH(G16, 'Прил. 1. Данные команды'!$C$13:$C$112,0),4)/10)) -> 3.38 | Q16: =_xlfn.IFNA(MATCH(RAND(), _xlfn.POISSON.DIST({0,1,2,3,4,5,6,7,8,9},$O16, TRUE),1), 0) -> 1 | R16: =_xlfn.IFNA(MATCH(RAND(), _xlfn.POISSON.DIST({0,1,2,3,4,5,6,7,8,9},$O16, TRUE),1), 0) -> 0 | S16: =_xlfn.IFNA(MATCH(RAND(), _xlfn.POISSON.DIST({0,1,2,3,4,5,6,7,8,9},$O16, TRUE),1), 0) -> 1 | T16: =_xlfn.IFNA(MATCH(RAND(), _xlfn.POISSON.DIST({0,1,2,3,4,5,6,7,8,9},$O16, TRUE),1), 0) -> 2 | U16: =_xlfn.IFNA(MATCH(RAND(), _xlfn.POISSON.DIST({0,1,2,3,4,5,6,7,8,9},$O16, TRUE),1), 0) -> 0 | V16: =_xlfn.IFNA(MATCH(RAND(), _xlfn.POISSON.DIST({0,1,2,3,4,5,6,7,8,9},$O16, TRUE),1), 0) -> 2 | W16: =_xlfn.IFNA(MATCH(RAND(), _xlfn.POISSON.DIST({0,1,2,3,4,5,6,7,8,9},$O16, TRUE),1), 0) -> 1 | X16: =_xlfn.IFNA(MATCH(RAND(), _xlfn.POISSON.DIST({0,1,2,3,4,5,6,7,8,9},$O16, TRUE),1), 0) -> 1 | Y16: =_xlfn.IFNA(MATCH(RAND(), _xlfn.POISSON.DIST({0,1,2,3,4,5,6,7,8,9},$O16, TRUE),1), 0) -> 0 | Z16: =_xlfn.IFNA(MATCH(RAND(), _xlfn.POISSON.DIST({0,1,2,3,4,5,6,7,8,9},$O16, TRUE),1), 0) -> 0 | AA16: =_xlfn.IFNA(MATCH(RAND(), _xlfn.POISSON.DIST({0,1,2,3,4,5,6,7,8,9},$O16, TRUE),1), 0) -> 0 | AB16: =_xlfn.IFNA(MATCH(RAND(), _xlfn.POISSON.DIST({0,1,2,3,4,5,6,7,8,9},$O16, TRUE),1), 0) -> 0 | AC16: =_xlfn.IFNA(MATCH(RAND(), _xlfn.POISSON.DIST({0,1,2,3,4,5,6,7,8,9},$O16, TRUE),1), 0) -> 0 | AD16: =_xlfn.IFNA(MATCH(RAND(), _xlfn.POISSON.DIST({0,1,2,3,4,5,6,7,8,9},$O16, TRUE),1), 0) -> 1 | AE16: =_xlfn.IFNA(MATCH(RAND(), _xlfn.POISSON.DIST({0,1,2,3,4,5,6,7,8,9},$O16, TRUE),1), 0) -> 0 | AF16: =_xlfn.IFNA(MATCH(RAND(), _xlfn.POISSON.DIST({0,1,2,3,4,5,6,7,8,9},$O16, TRUE),1), 0) -> 0 | AG16: =_xlfn.IFNA(MATCH(RAND(), _xlfn.POISSON.DIST({0,1,2,3,4,5,6,7,8,9},$O16, TRUE),1), 0) -> 0 | AH16: =_xlfn.IFNA(MATCH(RAND(), _xlfn.POISSON.DIST({0,1,2,3,4,5,6,7,8,9},$O16, TRUE),1), 0) -> 0 | AI16: =_xlfn.IFNA(MATCH(RAND(), _xlfn.POISSON.DIST({0,1,2,3,4,5,6,7,8,9},$O16, TRUE),1), 0) -> 0 | AJ16: =_xlfn.IFNA(MATCH(RAND(), _xlfn.POISSON.DIST({0,1,2,3,4,5,6,7,8,9},$O16, TRUE),1), 0) -> 1 | AK16: =_xlfn.IFNA(MATCH(RAND(), _xlfn.POISSON.DIST({0,1,2,3,4,5,6,7,8,9},$O16, TRUE),1), 0) -> 1 | AL16: =_xlfn.IFNA(MATCH(RAND(), _xlfn.POISSON.DIST({0,1,2,3,4,5,6,7,8,9},$O16, TRUE),1), 0) -> 0 | AM16: =_xlfn.IFNA(MATCH(RAND(), _xlfn.POISSON.DIST({0,1,2,3,4,5,6,7,8,9},$O16, TRUE),1), 0) -> 2 | AN16: =_xlfn.IFNA(MATCH(RAND(), _xlfn.POISSON.DIST({0,1,2,3,4,5,6,7,8,9},$O16, TRUE),1), 0) -> 0 | AO16: =_xlfn.IFNA(MATCH(RAND(), _xlfn.POISSON.DIST({0,1,2,3,4,5,6,7,8,9},$O16, TRUE),1), 0) -> 1 | AP16: =_xlfn.IFNA(MATCH(RAND(), _xlfn.POISSON.DIST({0,1,2,3,4,5,6,7,8,9},$O16, TRUE),1), 0) -> 0 | AQ16: =_xlfn.IFNA(MATCH(RAND(), _xlfn.POISSON.DIST({0,1,2,3,4,5,6,7,8,9},$O16, TRUE),1), 0) -> 1 | AR16: =_xlfn.IFNA(MATCH(RAND(), _xlfn.POISSON.DIST({0,1,2,3,4,5,6,7,8,9},$O16, TRUE),1), 0) -> 0 | AS16: =_xlfn.IFNA(MATCH(RAND(), _xlfn.POISSON.DIST({0,1,2,3,4,5,6,7,8,9},$O16, TRUE),1), 0) -> 1 | AT16: =_xlfn.IFNA(MATCH(RAND(), _xlfn.POISSON.DIST({0,1,2,3,4,5,6,7,8,9},$O16, TRUE),1), 0) -> 2 | AU16: =_xlfn.IFNA(MATCH(RAND(), _xlfn.POISSON.DIST({0,1,2,3,4,5,6,7,8,9},$O16, TRUE),1), 0) -> 0 | AV16: =_xlfn.IFNA(MATCH(RAND(), _xlfn.POISSON.DIST({0,1,2,3,4,5,6,7,8,9},$O16, TRUE),1), 0) -> 0 | AW16: =_xlfn.IFNA(MATCH(RAND(), _xlfn.POISSON.DIST({0,1,2,3,4,5,6,7,8,9},$O16, TRUE),1), 0) -> 0 | AX16: =_xlfn.IFNA(MATCH(RAND(), _xlfn.POISSON.DIST({0,1,2,3,4,5,6,7,8,9},$O16, TRUE),1), 0) -> 0 | AY16: =_xlfn.IFNA(MATCH(RAND(), _xlfn.POISSON.DIST({0,1,2,3,4,5,6,7,8,9},$O16, TRUE),1), 0) -> 0 | AZ16: =_xlfn.IFNA(MATCH(RAND(), _xlfn.POISSON.DIST({0,1,2,3,4,5,6,7,8,9},$O16, TRUE),1), 0) -> 0 | BA16: =_xlfn.IFNA(MATCH(RAND(), _xlfn.POISSON.DIST({0,1,2,3,4,5,6,7,8,9},$O16, TRUE),1), 0) -> 1 | BB16: =_xlfn.IFNA(MATCH(RAND(), _xlfn.POISSON.DIST({0,1,2,3,4,5,6,7,8,9},$O16, TRUE),1), 0) -> 0 | BC16: =_xlfn.IFNA(MATCH(RAND(), _xlfn.POISSON.DIST({0,1,2,3,4,5,6,7,8,9},$O16, TRUE),1), 0) -> 1 | BD16: =_xlfn.IFNA(MATCH(RAND(), _xlfn.POISSON.DIST({0,1,2,3,4,5,6,7,8,9},$O16, TRUE),1), 0) -> 1 | BE16: =_xlfn.IFNA(MATCH(RAND(), _xlfn.POISSON.DIST({0,1,2,3,4,5,6,7,8,9},$O16, TRUE),1), 0) -> 1 | BF16: =_xlfn.IFNA(MATCH(RAND(), _xlfn.POISSON.DIST({0,1,2,3,4,5,6,7,8,9},$O16, TRUE),1), 0) -> 0 | BG16: =_xlfn.IFNA(MATCH(RAND(), _xlfn.POISSON.DIST({0,1,2,3,4,5,6,7,8,9},$O16, TRUE),1), 0) -> 1 | BH16: =_xlfn.IFNA(MATCH(RAND(), _xlfn.POISSON.DIST({0,1,2,3,4,5,6,7,8,9},$O16, TRUE),1), 0) -> 0 | BI16: =_xlfn.IFNA(MATCH(RAND(), _xlfn.POISSON.DIST({0,1,2,3,4,5,6,7,8,9},$O16, TRUE),1), 0) -> 0 | BJ16: =_xlfn.IFNA(MATCH(RAND(), _xlfn.POISSON.DIST({0,1,2,3,4,5,6,7,8,9},$O16, TRUE),1), 0) -> 0 | BK16: =_xlfn.IFNA(MATCH(RAND(), _xlfn.POISSON.DIST({0,1,2,3,4,5,6,7,8,9},$O16, TRUE),1), 0) -> 0 | BL16: =_xlfn.IFNA(MATCH(RAND(), _xlfn.POISSON.DIST({0,1,2,3,4,5,6,7,8,9},$O16, TRUE),1), 0) -> 1 | BM16: =_xlfn.IFNA(MATCH(RAND(), _xlfn.POISSON.DIST({0,1,2,3,4,5,6,7,8,9},$O16, TRUE),1), 0) -> 1 | BN16: =_xlfn.IFNA(MATCH(RAND(), _xlfn.POISSON.DIST({0,1,2,3,4,5,6,7,8,9},$O16, TRUE),1), 0) -> 0 | BP16: =_xlfn.IFNA(MATCH(RAND(), _xlfn.POISSON.DIST({0,1,2,3,4,5,6,7,8,9},$P16, TRUE),1), 0) -> 4 | BQ16: =_xlfn.IFNA(MATCH(RAND(), _xlfn.POISSON.DIST({0,1,2,3,4,5,6,7,8,9},$P16, TRUE),1), 0) -> 4 | BR16: =_xlfn.IFNA(MATCH(RAND(), _xlfn.POISSON.DIST({0,1,2,3,4,5,6,7,8,9},$P16, TRUE),1), 0) -> 6 | BS16: =_xlfn.IFNA(MATCH(RAND(), _xlfn.POISSON.DIST({0,1,2,3,4,5,6,7,8,9},$P16, TRUE),1), 0) -> 8 | BT16: =_xlfn.IFNA(MATCH(RAND(), _xlfn.POISSON.DIST({0,1,2,3,4,5,6,7,8,9},$P16, TRUE),1), 0) -> 2 | BU16: =_xlfn.IFNA(MATCH(RAND(), _xlfn.POISSON.DIST({0,1,2,3,4,5,6,7,8,9},$P16, TRUE),1), 0) -> 5 | BV16: =_xlfn.IFNA(MATCH(RAND(), _xlfn.POISSON.DIST({0,1,2,3,4,5,6,7,8,9},$P16, TRUE),1), 0) -> 4 | BW16: =_xlfn.IFNA(MATCH(RAND(), _xlfn.POISSON.DIST({0,1,2,3,4,5,6,7,8,9},$P16, TRUE),1), 0) -> 6 | BX16: =_xlfn.IFNA(MATCH(RAND(), _xlfn.POISSON.DIST({0,1,2,3,4,5,6,7,8,9},$P16, TRUE),1), 0) -> 6 | BY16: =_xlfn.IFNA(MATCH(RAND(), _xlfn.POISSON.DIST({0,1,2,3,4,5,6,7,8,9},$P16, TRUE),1), 0) -> 4 | BZ16: =_xlfn.IFNA(MATCH(RAND(), _xlfn.POISSON.DIST({0,1,2,3,4,5,6,7,8,9},$P16, TRUE),1), 0) -> 4 | CA16: =_xlfn.IFNA(MATCH(RAND(), _xlfn.POISSON.DIST({0,1,2,3,4,5,6,7,8,9},$P16, TRUE),1), 0) -> 2 | CB16: =_xlfn.IFNA(MATCH(RAND(), _xlfn.POISSON.DIST({0,1,2,3,4,5,6,7,8,9},$P16, TRUE),1), 0) -> 3 | CC16: =_xlfn.IFNA(MATCH(RAND(), _xlfn.POISSON.DIST({0,1,2,3,4,5,6,7,8,9},$P16, TRUE),1), 0) -> 5 | CD16: =_xlfn.IFNA(MATCH(RAND(), _xlfn.POISSON.DIST({0,1,2,3,4,5,6,7,8,9},$P16, TRUE),1), 0) -> 4 | CE16: =_xlfn.IFNA(MATCH(RAND(), _xlfn.POISSON.DIST({0,1,2,3,4,5,6,7,8,9},$P16, TRUE),1), 0) -> 3 | CF16: =_xlfn.IFNA(MATCH(RAND(), _xlfn.POISSON.DIST({0,1,2,3,4,5,6,7,8,9},$P16, TRUE),1), 0) -> 5 | CG16: =_xlfn.IFNA(MATCH(RAND(), _xlfn.POISSON.DIST({0,1,2,3,4,5,6,7,8,9},$P16, TRUE),1), 0) -> 6 | CH16: =_xlfn.IFNA(MATCH(RAND(), _xlfn.POISSON.DIST({0,1,2,3,4,5,6,7,8,9},$P16, TRUE),1), 0) -> 1 | CI16: =_xlfn.IFNA(MATCH(RAND(), _xlfn.POISSON.DIST({0,1,2,3,4,5,6,7,8,9},$P16, TRUE),1), 0) -> 3 | CJ16: =_xlfn.IFNA(MATCH(RAND(), _xlfn.POISSON.DIST({0,1,2,3,4,5,6,7,8,9},$P16, TRUE),1), 0) -> 4 | CK16: =_xlfn.IFNA(MATCH(RAND(), _xlfn.POISSON.DIST({0,1,2,3,4,5,6,7,8,9},$P16, TRUE),1), 0) -> 2 | CL16: =_xlfn.IFNA(MATCH(RAND(), _xlfn.POISSON.DIST({0,1,2,3,4,5,6,7,8,9},$P16, TRUE),1), 0) -> 4 | CM16: =_xlfn.IFNA(MATCH(RAND(), _xlfn.POISSON.DIST({0,1,2,3,4,5,6,7,8,9},$P16, TRUE),1), 0) -> 4 | CN16: =_xlfn.IFNA(MATCH(RAND(), _xlfn.POISSON.DIST({0,1,2,3,4,5,6,7,8,9},$P16, TRUE),1), 0) -> 2 | CO16: =_xlfn.IFNA(MATCH(RAND(), _xlfn.POISSON.DIST({0,1,2,3,4,5,6,7,8,9},$P16, TRUE),1), 0) -> 5 | CP16: =_xlfn.IFNA(MATCH(RAND(), _xlfn.POISSON.DIST({0,1,2,3,4,5,6,7,8,9},$P16, TRUE),1), 0) -> 4 | CQ16: =_xlfn.IFNA(MATCH(RAND(), _xlfn.POISSON.DIST({0,1,2,3,4,5,6,7,8,9},$P16, TRUE),1), 0) -> 4 | CR16: =_xlfn.IFNA(MATCH(RAND(), _xlfn.POISSON.DIST({0,1,2,3,4,5,6,7,8,9},$P16, TRUE),1), 0) -> 1 | CS16: =_xlfn.IFNA(MATCH(RAND(), _xlfn.POISSON.DIST({0,1,2,3,4,5,6,7,8,9},$P16, TRUE),1), 0) -> 4 | CT16: =_xlfn.IFNA(MATCH(RAND(), _xlfn.POISSON.DIST({0,1,2,3,4,5,6,7,8,9},$P16, TRUE),1), 0) -> 2 | CU16: =_xlfn.IFNA(MATCH(RAND(), _xlfn.POISSON.DIST({0,1,2,3,4,5,6,7,8,9},$P16, TRUE),1), 0) -> 1 | CV16: =_xlfn.IFNA(MATCH(RAND(), _xlfn.POISSON.DIST({0,1,2,3,4,5,6,7,8,9},$P16, TRUE),1), 0) -> 6 | CW16: =_xlfn.IFNA(MATCH(RAND(), _xlfn.POISSON.DIST({0,1,2,3,4,5,6,7,8,9},$P16, TRUE),1), 0) -> 2 | CX16: =_xlfn.IFNA(MATCH(RAND(), _xlfn.POISSON.DIST({0,1,2,3,4,5,6,7,8,9},$P16, TRUE),1), 0) -> 2 | CY16: =_xlfn.IFNA(MATCH(RAND(), _xlfn.POISSON.DIST({0,1,2,3,4,5,6,7,8,9},$P16, TRUE),1), 0) -> 7 | CZ16: =_xlfn.IFNA(MATCH(RAND(), _xlfn.POISSON.DIST({0,1,2,3,4,5,6,7,8,9},$P16, TRUE),1), 0) -> 2 | DA16: =_xlfn.IFNA(MATCH(RAND(), _xlfn.POISSON.DIST({0,1,2,3,4,5,6,7,8,9},$P16, TRUE),1), 0) -> 2 | DB16: =_xlfn.IFNA(MATCH(RAND(), _xlfn.POISSON.DIST({0,1,2,3,4,5,6,7,8,9},$P16, TRUE),1), 0) -> 1 | DC16: =_xlfn.IFNA(MATCH(RAND(), _xlfn.POISSON.DIST({0,1,2,3,4,5,6,7,8,9},$P16, TRUE),1), 0) -> 4 | DD16: =_xlfn.IFNA(MATCH(RAND(), _xlfn.POISSON.DIST({0,1,2,3,4,5,6,7,8,9},$P16, TRUE),1), 0) -> 0 | DE16: =_xlfn.IFNA(MATCH(RAND(), _xlfn.POISSON.DIST({0,1,2,3,4,5,6,7,8,9},$P16, TRUE),1), 0) -> 8 | DF16: =_xlfn.IFNA(MATCH(RAND(), _xlfn.POISSON.DIST({0,1,2,3,4,5,6,7,8,9},$P16, TRUE),1), 0) -> 2 | DG16: =_xlfn.IFNA(MATCH(RAND(), _xlfn.POISSON.DIST({0,1,2,3,4,5,6,7,8,9},$P16, TRUE),1), 0) -> 2 | DH16: =_xlfn.IFNA(MATCH(RAND(), _xlfn.POISSON.DIST({0,1,2,3,4,5,6,7,8,9},$P16, TRUE),1), 0) -> 2 | DI16: =_xlfn.IFNA(MATCH(RAND(), _xlfn.POISSON.DIST({0,1,2,3,4,5,6,7,8,9},$P16, TRUE),1), 0) -> 4 | DJ16: =_xlfn.IFNA(MATCH(RAND(), _xlfn.POISSON.DIST({0,1,2,3,4,5,6,7,8,9},$P16, TRUE),1), 0) -> 3 | DK16: =_xlfn.IFNA(MATCH(RAND(), _xlfn.POISSON.DIST({0,1,2,3,4,5,6,7,8,9},$P16, TRUE),1), 0) -> 2 | DL16: =_xlfn.IFNA(MATCH(RAND(), _xlfn.POISSON.DIST({0,1,2,3,4,5,6,7,8,9},$P16, TRUE),1), 0) -> 1 | DM16: =_xlfn.IFNA(MATCH(RAND(), _xlfn.POISSON.DIST({0,1,2,3,4,5,6,7,8,9},$P16, TRUE),1), 0) -> 8
C17: 2019-06-11 | D17: F | E17: США | F17: =(AVERAGE(Q17:BN17))*(1+INDEX('Прогнозы группового этапа'!$C$4:$O$28, MATCH('Матчи за текущий год'!E17,'Прогнозы группового этапа'!$D$4:$D$28,0),3)) -> 3.16 | G17: Таиланд | H17: =(AVERAGE(BP17:DM17))*(1+INDEX('Прогнозы группового этапа'!$C$4:$O$28, MATCH('Матчи за текущий год'!G17,'Прогнозы группового этапа'!$D$4:$D$28,0),3)) -> 0.56 | I17: США | L17: 3.16 | M17: 0.56 | N17: США | O17: =(OFFSET('Прил. 3. Голы в группе'!$D$14,(INDEX('Прил. 1. Данные команды'!$C$13:$F$112,MATCH(G17,'Прил. 1. Данные команды'!$C$13:$C$112,0),4)/10),(INDEX('Прил. 1. Данные команды'!$C$13:$F$112,MATCH(E17,'Прил. 1. Данные команды'!$C$13:$C$112,0),4)/10))) -> 3.38 | P17: =OFFSET('Прил. 3. Голы в группе'!$D$14,(INDEX('Прил. 1. Данные команды'!$C$13:$F$112, MATCH(E17,'Прил. 1. Данные команды'!$C$13:$C$112,0),4)/10), (INDEX('Прил. 1. Данные команды'!$C$13:$F$112, MATCH(G17, 'Прил. 1. Данные команды'!$C$13:$C$112,0),4)/10)) -> 0.59 | Q17: =_xlfn.IFNA(MATCH(RAND(), _xlfn.POISSON.DIST({0,1,2,3,4,5,6,7,8,9},$O17, TRUE),1), 0) -> 4 | R17: =_xlfn.IFNA(MATCH(RAND(), _xlfn.POISSON.DIST({0,1,2,3,4,5,6,7,8,9},$O17, TRUE),1), 0) -> 8 | S17: =_xlfn.IFNA(MATCH(RAND(), _xlfn.POISSON.DIST({0,1,2,3,4,5,6,7,8,9},$O17, TRUE),1), 0) -> 3 | T17: =_xlfn.IFNA(MATCH(RAND(), _xlfn.POISSON.DIST({0,1,2,3,4,5,6,7,8,9},$O17, TRUE),1), 0) -> 4 | U17: =_xlfn.IFNA(MATCH(RAND(), _xlfn.POISSON.DIST({0,1,2,3,4,5,6,7,8,9},$O17, TRUE),1), 0) -> 1 | V17: =_xlfn.IFNA(MATCH(RAND(), _xlfn.POISSON.DIST({0,1,2,3,4,5,6,7,8,9},$O17, TRUE),1), 0) -> 0 | W17: =_xlfn.IFNA(MATCH(RAND(), _xlfn.POISSON.DIST({0,1,2,3,4,5,6,7,8,9},$O17, TRUE),1), 0) -> 1 | X17: =_xlfn.IFNA(MATCH(RAND(), _xlfn.POISSON.DIST({0,1,2,3,4,5,6,7,8,9},$O17, TRUE),1), 0) -> 1 | Y17: =_xlfn.IFNA(MATCH(RAND(), _xlfn.POISSON.DIST({0,1,2,3,4,5,6,7,8,9},$O17, TRUE),1), 0) -> 4 | Z17: =_xlfn.IFNA(MATCH(RAND(), _xlfn.POISSON.DIST({0,1,2,3,4,5,6,7,8,9},$O17, TRUE),1), 0) -> 4 | AA17: =_xlfn.IFNA(MATCH(RAND(), _xlfn.POISSON.DIST({0,1,2,3,4,5,6,7,8,9},$O17, TRUE),1), 0) -> 1 | AB17: =_xlfn.IFNA(MATCH(RAND(), _xlfn.POISSON.DIST({0,1,2,3,4,5,6,7,8,9},$O17, TRUE),1), 0) -> 2 | AC17: =_xlfn.IFNA(MATCH(RAND(), _xlfn.POISSON.DIST({0,1,2,3,4,5,6,7,8,9},$O17, TRUE),1), 0) -> 1 | AD17: =_xlfn.IFNA(MATCH(RAND(), _xlfn.POISSON.DIST({0,1,2,3,4,5,6,7,8,9},$O17, TRUE),1), 0) -> 1 | AE17: =_xlfn.IFNA(MATCH(RAND(), _xlfn.POISSON.DIST({0,1,2,3,4,5,6,7,8,9},$O17, TRUE),1), 0) -> 3 | AF17: =_xlfn.IFNA(MATCH(RAND(), _xlfn.POISSON.DIST({0,1,2,3,4,5,6,7,8,9},$O17, TRUE),1), 0) -> 1 | AG17: =_xlfn.IFNA(MATCH(RAND(), _xlfn.POISSON.DIST({0,1,2,3,4,5,6,7,8,9},$O17, TRUE),1), 0) -> 3 | AH17: =_xlfn.IFNA(MATCH(RAND(), _xlfn.POISSON.DIST({0,1,2,3,4,5,6,7,8,9},$O17, TRUE),1), 0) -> 2 | AI17: =_xlfn.IFNA(MATCH(RAND(), _xlfn.POISSON.DIST({0,1,2,3,4,5,6,7,8,9},$O17, TRUE),1), 0) -> 7 | AJ17: =_xlfn.IFNA(MATCH(RAND(), _xlfn.POISSON.DIST({0,1,2,3,4,5,6,7,8,9},$O17, TRUE),1), 0) -> 3 | AK17: =_xlfn.IFNA(MATCH(RAND(), _xlfn.POISSON.DIST({0,1,2,3,4,5,6,7,8,9},$O17, TRUE),1), 0) -> 2 | AL17: =_xlfn.IFNA(MATCH(RAND(), _xlfn.POISSON.DIST({0,1,2,3,4,5,6,7,8,9},$O17, TRUE),1), 0) -> 4 | AM17: =_xlfn.IFNA(MATCH(RAND(), _xlfn.POISSON.DIST({0,1,2,3,4,5,6,7,8,9},$O17, TRUE),1), 0) -> 3 | AN17: =_xlfn.IFNA(MATCH(RAND(), _xlfn.POISSON.DIST({0,1,2,3,4,5,6,7,8,9},$O17, TRUE),1), 0) -> 2 | AO17: =_xlfn.IFNA(MATCH(RAND(), _xlfn.POISSON.DIST({0,1,2,3,4,5,6,7,8,9},$O17, TRUE),1), 0) -> 0 | AP17: =_xlfn.IFNA(MATCH(RAND(), _xlfn.POISSON.DIST({0,1,2,3,4,5,6,7,8,9},$O17, TRUE),1), 0) -> 4 | AQ17: =_xlfn.IFNA(MATCH(RAND(), _xlfn.POISSON.DIST({0,1,2,3,4,5,6,7,8,9},$O17, TRUE),1), 0) -> 4 | AR17: =_xlfn.IFNA(MATCH(RAND(), _xlfn.POISSON.DIST({0,1,2,3,4,5,6,7,8,9},$O17, TRUE),1), 0) -> 3 | AS17: =_xlfn.IFNA(MATCH(RAND(), _xlfn.POISSON.DIST({0,1,2,3,4,5,6,7,8,9},$O17, TRUE),1), 0) -> 9 | AT17: =_xlfn.IFNA(MATCH(RAND(), _xlfn.POISSON.DIST({0,1,2,3,4,5,6,7,8,9},$O17, TRUE),1), 0) -> 2 | AU17: =_xlfn.IFNA(MATCH(RAND(), _xlfn.POISSON.DIST({0,1,2,3,4,5,6,7,8,9},$O17, TRUE),1), 0) -> 5 | AV17: =_xlfn.IFNA(MATCH(RAND(), _xlfn.POISSON.DIST({0,1,2,3,4,5,6,7,8,9},$O17, TRUE),1), 0) -> 5 | AW17: =_xlfn.IFNA(MATCH(RAND(), _xlfn.POISSON.DIST({0,1,2,3,4,5,6,7,8,9},$O17, TRUE),1), 0) -> 2 | AX17: =_xlfn.IFNA(MATCH(RAND(), _xlfn.POISSON.DIST({0,1,2,3,4,5,6,7,8,9},$O17, TRUE),1), 0) -> 1 | AY17: =_xlfn.IFNA(MATCH(RAND(), _xlfn.POISSON.DIST({0,1,2,3,4,5,6,7,8,9},$O17, TRUE),1), 0) -> 7 | AZ17: =_xlfn.IFNA(MATCH(RAND(), _xlfn.POISSON.DIST({0,1,2,3,4,5,6,7,8,9},$O17, TRUE),1), 0) -> 2 | BA17: =_xlfn.IFNA(MATCH(RAND(), _xlfn.POISSON.DIST({0,1,2,3,4,5,6,7,8,9},$O17, TRUE),1), 0) -> 1 | BB17: =_xlfn.IFNA(MATCH(RAND(), _xlfn.POISSON.DIST({0,1,2,3,4,5,6,7,8,9},$O17, TRUE),1), 0) -> 6 | BC17: =_xlfn.IFNA(MATCH(RAND(), _xlfn.POISSON.DIST({0,1,2,3,4,5,6,7,8,9},$O17, TRUE),1), 0) -> 9 | BD17: =_xlfn.IFNA(MATCH(RAND(), _xlfn.POISSON.DIST({0,1,2,3,4,5,6,7,8,9},$O17, TRUE),1), 0) -> 5 | BE17: =_xlfn.IFNA(MATCH(RAND(), _xlfn.POISSON.DIST({0,1,2,3,4,5,6,7,8,9},$O17, TRUE),1), 0) -> 2 | BF17: =_xlfn.IFNA(MATCH(RAND(), _xlfn.POISSON.DIST({0,1,2,3,4,5,6,7,8,9},$O17, TRUE),1), 0) -> 2 | BG17: =_xlfn.IFNA(MATCH(RAND(), _xlfn.POISSON.DIST({0,1,2,3,4,5,6,7,8,9},$O17, TRUE),1), 0) -> 2 | BH17: =_xlfn.IFNA(MATCH(RAND(), _xlfn.POISSON.DIST({0,1,2,3,4,5,6,7,8,9},$O17, TRUE),1), 0) -> 2 | BI17: =_xlfn.IFNA(MATCH(RAND(), _xlfn.POISSON.DIST({0,1,2,3,4,5,6,7,8,9},$O17, TRUE),1), 0) -> 3 | BJ17: =_xlfn.IFNA(MATCH(RAND(), _xlfn.POISSON.DIST({0,1,2,3,4,5,6,7,8,9},$O17, TRUE),1), 0) -> 5 | BK17: =_xlfn.IFNA(MATCH(RAND(), _xlfn.POISSON.DIST({0,1,2,3,4,5,6,7,8,9},$O17, TRUE),1), 0) -> 5 | BL17: =_xlfn.IFNA(MATCH(RAND(), _xlfn.POISSON.DIST({0,1,2,3,4,5,6,7,8,9},$O17, TRUE),1), 0) -> 3 | BM17: =_xlfn.IFNA(MATCH(RAND(), _xlfn.POISSON.DIST({0,1,2,3,4,5,6,7,8,9},$O17, TRUE),1), 0) -> 2 | BN17: =_xlfn.IFNA(MATCH(RAND(), _xlfn.POISSON.DIST({0,1,2,3,4,5,6,7,8,9},$O17, TRUE),1), 0) -> 2 | BP17: =_xlfn.IFNA(MATCH(RAND(), _xlfn.POISSON.DIST({0,1,2,3,4,5,6,7,8,9},$P17, TRUE),1), 0) -> 0 | BQ17: =_xlfn.IFNA(MATCH(RAND(), _xlfn.POISSON.DIST({0,1,2,3,4,5,6,7,8,9},$P17, TRUE),1), 0) -> 0 | BR17: =_xlfn.IFNA(MATCH(RAND(), _xlfn.POISSON.DIST({0,1,2,3,4,5,6,7,8,9},$P17, TRUE),1), 0) -> 0 | BS17: =_xlfn.IFNA(MATCH(RAND(), _xlfn.POISSON.DIST({0,1,2,3,4,5,6,7,8,9},$P17, TRUE),1), 0) -> 0 | BT17: =_xlfn.IFNA(MATCH(RAND(), _xlfn.POISSON.DIST({0,1,2,3,4,5,6,7,8,9},$P17, TRUE),1), 0) -> 0 | BU17: =_xlfn.IFNA(MATCH(RAND(), _xlfn.POISSON.DIST({0,1,2,3,4,5,6,7,8,9},$P17, TRUE),1), 0) -> 1 | BV17: =_xlfn.IFNA(MATCH(RAND(), _xlfn.POISSON.DIST({0,1,2,3,4,5,6,7,8,9},$P17, TRUE),1), 0) -> 0 | BW17: =_xlfn.IFNA(MATCH(RAND(), _xlfn.POISSON.DIST({0,1,2,3,4,5,6,7,8,9},$P17, TRUE),1), 0) -> 1 | BX17: =_xlfn.IFNA(MATCH(RAND(), _xlfn.POISSON.DIST({0,1,2,3,4,5,6,7,8,9},$P17, TRUE),1), 0) -> 1 | BY17: =_xlfn.IFNA(MATCH(RAND(), _xlfn.POISSON.DIST({0,1,2,3,4,5,6,7,8,9},$P17, TRUE),1), 0) -> 0 | BZ17: =_xlfn.IFNA(MATCH(RAND(), _xlfn.POISSON.DIST({0,1,2,3,4,5,6,7,8,9},$P17, TRUE),1), 0) -> 1 | CA17: =_xlfn.IFNA(MATCH(RAND(), _xlfn.POISSON.DIST({0,1,2,3,4,5,6,7,8,9},$P17, TRUE),1), 0) -> 2 | CB17: =_xlfn.IFNA(MATCH(RAND(), _xlfn.POISSON.DIST({0,1,2,3,4,5,6,7,8,9},$P17, TRUE),1), 0) -> 0 | CC17: =_xlfn.IFNA(MATCH(RAND(), _xlfn.POISSON.DIST({0,1,2,3,4,5,6,7,8,9},$P17, TRUE),1), 0) -> 0 | CD17: =_xlfn.IFNA(MATCH(RAND(), _xlfn.POISSON.DIST({0,1,2,3,4,5,6,7,8,9},$P17, TRUE),1), 0) -> 2 | CE17: =_xlfn.IFNA(MATCH(RAND(), _xlfn.POISSON.DIST({0,1,2,3,4,5,6,7,8,9},$P17, TRUE),1), 0) -> 0 | CF17: =_xlfn.IFNA(MATCH(RAND(), _xlfn.POISSON.DIST({0,1,2,3,4,5,6,7,8,9},$P17, TRUE),1), 0) -> 0 | CG17: =_xlfn.IFNA(MATCH(RAND(), _xlfn.POISSON.DIST({0,1,2,3,4,5,6,7,8,9},$P17, TRUE),1), 0) -> 1 | CH17: =_xlfn.IFNA(MATCH(RAND(), _xlfn.POISSON.DIST({0,1,2,3,4,5,6,7,8,9},$P17, TRUE),1), 0) -> 0 | CI17: =_xlfn.IFNA(MATCH(RAND(), _xlfn.POISSON.DIST({0,1,2,3,4,5,6,7,8,9},$P17, TRUE),1), 0) -> 1 | CJ17: =_xlfn.IFNA(MATCH(RAND(), _xlfn.POISSON.DIST({0,1,2,3,4,5,6,7,8,9},$P17, TRUE),1), 0) -> 1 | CK17: =_xlfn.IFNA(MATCH(RAND(), _xlfn.POISSON.DIST({0,1,2,3,4,5,6,7,8,9},$P17, TRUE),1), 0) -> 0 | CL17: =_xlfn.IFNA(MATCH(RAND(), _xlfn.POISSON.DIST({0,1,2,3,4,5,6,7,8,9},$P17, TRUE),1), 0) -> 1 | CM17: =_xlfn.IFNA(MATCH(RAND(), _xlfn.POISSON.DIST({0,1,2,3,4,5,6,7,8,9},$P17, TRUE),1), 0) -> 1 | CN17: =_xlfn.IFNA(MATCH(RAND(), _xlfn.POISSON.DIST({0,1,2,3,4,5,6,7,8,9},$P17, TRUE),1), 0) -> 0 | CO17: =_xlfn.IFNA(MATCH(RAND(), _xlfn.POISSON.DIST({0,1,2,3,4,5,6,7,8,9},$P17, TRUE),1), 0) -> 0 | CP17: =_xlfn.IFNA(MATCH(RAND(), _xlfn.POISSON.DIST({0,1,2,3,4,5,6,7,8,9},$P17, TRUE),1), 0) -> 0 | CQ17: =_xlfn.IFNA(MATCH(RAND(), _xlfn.POISSON.DIST({0,1,2,3,4,5,6,7,8,9},$P17, TRUE),1), 0) -> 3 | CR17: =_xlfn.IFNA(MATCH(RAND(), _xlfn.POISSON.DIST({0,1,2,3,4,5,6,7,8,9},$P17, TRUE),1), 0) -> 2 | CS17: =_xlfn.IFNA(MATCH(RAND(), _xlfn.POISSON.DIST({0,1,2,3,4,5,6,7,8,9},$P17, TRUE),1), 0) -> 0 | CT17: =_xlfn.IFNA(MATCH(RAND(), _xlfn.POISSON.DIST({0,1,2,3,4,5,6,7,8,9},$P17, TRUE),1), 0) -> 0 | CU17: =_xlfn.IFNA(MATCH(RAND(), _xlfn.POISSON.DIST({0,1,2,3,4,5,6,7,8,9},$P17, TRUE),1), 0) -> 0 | CV17: =_xlfn.IFNA(MATCH(RAND(), _xlfn.POISSON.DIST({0,1,2,3,4,5,6,7,8,9},$P17, TRUE),1), 0) -> 0 | CW17: =_xlfn.IFNA(MATCH(RAND(), _xlfn.POISSON.DIST({0,1,2,3,4,5,6,7,8,9},$P17, TRUE),1), 0) -> 1 | CX17: =_xlfn.IFNA(MATCH(RAND(), _xlfn.POISSON.DIST({0,1,2,3,4,5,6,7,8,9},$P17, TRUE),1), 0) -> 2 | CY17: =_xlfn.IFNA(MATCH(RAND(), _xlfn.POISSON.DIST({0,1,2,3,4,5,6,7,8,9},$P17, TRUE),1), 0) -> 0 | CZ17: =_xlfn.IFNA(MATCH(RAND(), _xlfn.POISSON.DIST({0,1,2,3,4,5,6,7,8,9},$P17, TRUE),1), 0) -> 0 | DA17: =_xlfn.IFNA(MATCH(RAND(), _xlfn.POISSON.DIST({0,1,2,3,4,5,6,7,8,9},$P17, TRUE),1), 0) -> 0 | DB17: =_xlfn.IFNA(MATCH(RAND(), _xlfn.POISSON.DIST({0,1,2,3,4,5,6,7,8,9},$P17, TRUE),1), 0) -> 1 | DC17: =_xlfn.IFNA(MATCH(RAND(), _xlfn.POISSON.DIST({0,1,2,3,4,5,6,7,8,9},$P17, TRUE),1), 0) -> 0 | DD17: =_xlfn.IFNA(MATCH(RAND(), _xlfn.POISSON.DIST({0,1,2,3,4,5,6,7,8,9},$P17, TRUE),1), 0) -> 0 | DE17: =_xlfn.IFNA(MATCH(RAND(), _xlfn.POISSON.DIST({0,1,2,3,4,5,6,7,8,9},$P17, TRUE),1), 0) -> 0 | DF17: =_xlfn.IFNA(MATCH(RAND(), _xlfn.POISSON.DIST({0,1,2,3,4,5,6,7,8,9},$P17, TRUE),1), 0) -> 0 | DG17: =_xlfn.IFNA(MATCH(RAND(), _xlfn.POISSON.DIST({0,1,2,3,4,5,6,7,8,9},$P17, TRUE),1), 0) -> 3 | DH17: =_xlfn.IFNA(MATCH(RAND(), _xlfn.POISSON.DIST({0,1,2,3,4,5,6,7,8,9},$P17, TRUE),1), 0) -> 0 | DI17: =_xlfn.IFNA(MATCH(RAND(), _xlfn.POISSON.DIST({0,1,2,3,4,5,6,7,8,9},$P17, TRUE),1), 0) -> 0 | DJ17: =_xlfn.IFNA(MATCH(RAND(), _xlfn.POISSON.DIST({0,1,2,3,4,5,6,7,8,9},$P17, TRUE),1), 0) -> 1 | DK17: =_xlfn.IFNA(MATCH(RAND(), _xlfn.POISSON.DIST({0,1,2,3,4,5,6,7,8,9},$P17, TRUE),1), 0) -> 1 | DL17: =_xlfn.IFNA(MATCH(RAND(), _xlfn.POISSON.DIST({0,1,2,3,4,5,6,7,8,9},$P17, TRUE),1), 0) -> 0 | DM17: =_xlfn.IFNA(MATCH(RAND(), _xlfn.POISSON.DIST({0,1,2,3,4,5,6,7,8,9},$P17, TRUE),1), 0) -> 1
C18: 2019-06-12 | D18: A | E18: Нигерия | F18: =(AVERAGE(Q18:BN18))*(1+INDEX('Прогнозы группового этапа'!$C$4:$O$28, MATCH('Матчи за текущий год'!E18,'Прогнозы группового этапа'!$D$4:$D$28,0),3)) -> 0.70 | G18: Республика Корея | H18: =(AVERAGE(BP18:DM18))*(1+INDEX('Прогнозы группового этапа'!$C$4:$O$28, MATCH('Матчи за текущий год'!G18,'Прогнозы группового этапа'!$D$4:$D$28,0),3)) -> 3.04 | I18: Республика Корея | L18: 0.7 | M18: 3.04 | N18: Республика Корея | O18: =(OFFSET('Прил. 3. Голы в группе'!$D$14,(INDEX('Прил. 1. Данные команды'!$C$13:$F$112,MATCH(G18,'Прил. 1. Данные команды'!$C$13:$C$112,0),4)/10),(INDEX('Прил. 1. Данные команды'!$C$13:$F$112,MATCH(E18,'Прил. 1. Данные команды'!$C$13:$C$112,0),4)/10))) -> 0.54 | P18: =OFFSET('Прил. 3. Голы в группе'!$D$14,(INDEX('Прил. 1. Данные команды'!$C$13:$F$112, MATCH(E18,'Прил. 1. Данные команды'!$C$13:$C$112,0),4)/10), (INDEX('Прил. 1. Данные команды'!$C$13:$F$112, MATCH(G18, 'Прил. 1. Данные команды'!$C$13:$C$112,0),4)/10)) -> 3.11 | Q18: =_xlfn.IFNA(MATCH(RAND(), _xlfn.POISSON.DIST({0,1,2,3,4,5,6,7,8,9},$O18, TRUE),1), 0) -> 0 | R18: =_xlfn.IFNA(MATCH(RAND(), _xlfn.POISSON.DIST({0,1,2,3,4,5,6,7,8,9},$O18, TRUE),1), 0) -> 2 | S18: =_xlfn.IFNA(MATCH(RAND(), _xlfn.POISSON.DIST({0,1,2,3,4,5,6,7,8,9},$O18, TRUE),1), 0) -> 0 | T18: =_xlfn.IFNA(MATCH(RAND(), _xlfn.POISSON.DIST({0,1,2,3,4,5,6,7,8,9},$O18, TRUE),1), 0) -> 0 | U18: =_xlfn.IFNA(MATCH(RAND(), _xlfn.POISSON.DIST({0,1,2,3,4,5,6,7,8,9},$O18, TRUE),1), 0) -> 0 | V18: =_xlfn.IFNA(MATCH(RAND(), _xlfn.POISSON.DIST({0,1,2,3,4,5,6,7,8,9},$O18, TRUE),1), 0) -> 0 | W18: =_xlfn.IFNA(MATCH(RAND(), _xlfn.POISSON.DIST({0,1,2,3,4,5,6,7,8,9},$O18, TRUE),1), 0) -> 0 | X18: =_xlfn.IFNA(MATCH(RAND(), _xlfn.POISSON.DIST({0,1,2,3,4,5,6,7,8,9},$O18, TRUE),1), 0) -> 0 | Y18: =_xlfn.IFNA(MATCH(RAND(), _xlfn.POISSON.DIST({0,1,2,3,4,5,6,7,8,9},$O18, TRUE),1), 0) -> 0 | Z18: =_xlfn.IFNA(MATCH(RAND(), _xlfn.POISSON.DIST({0,1,2,3,4,5,6,7,8,9},$O18, TRUE),1), 0) -> 1 | AA18: =_xlfn.IFNA(MATCH(RAND(), _xlfn.POISSON.DIST({0,1,2,3,4,5,6,7,8,9},$O18, TRUE),1), 0) -> 1 | AB18: =_xlfn.IFNA(MATCH(RAND(), _xlfn.POISSON.DIST({0,1,2,3,4,5,6,7,8,9},$O18, TRUE),1), 0) -> 0 | AC18: =_xlfn.IFNA(MATCH(RAND(), _xlfn.POISSON.DIST({0,1,2,3,4,5,6,7,8,9},$O18, TRUE),1), 0) -> 1 | AD18: =_xlfn.IFNA(MATCH(RAND(), _xlfn.POISSON.DIST({0,1,2,3,4,5,6,7,8,9},$O18, TRUE),1), 0) -> 1 | AE18: =_xlfn.IFNA(MATCH(RAND(), _xlfn.POISSON.DIST({0,1,2,3,4,5,6,7,8,9},$O18, TRUE),1), 0) -> 0 | AF18: =_xlfn.IFNA(MATCH(RAND(), _xlfn.POISSON.DIST({0,1,2,3,4,5,6,7,8,9},$O18, TRUE),1), 0) -> 0 | AG18: =_xlfn.IFNA(MATCH(RAND(), _xlfn.POISSON.DIST({0,1,2,3,4,5,6,7,8,9},$O18, TRUE),1), 0) -> 0 | AH18: =_xlfn.IFNA(MATCH(RAND(), _xlfn.POISSON.DIST({0,1,2,3,4,5,6,7,8,9},$O18, TRUE),1), 0) -> 2 | AI18: =_xlfn.IFNA(MATCH(RAND(), _xlfn.POISSON.DIST({0,1,2,3,4,5,6,7,8,9},$O18, TRUE),1), 0) -> 1 | AJ18: =_xlfn.IFNA(MATCH(RAND(), _xlfn.POISSON.DIST({0,1,2,3,4,5,6,7,8,9},$O18, TRUE),1), 0) -> 1 | AK18: =_xlfn.IFNA(MATCH(RAND(), _xlfn.POISSON.DIST({0,1,2,3,4,5,6,7,8,9},$O18, TRUE),1), 0) -> 0 | AL18: =_xlfn.IFNA(MATCH(RAND(), _xlfn.POISSON.DIST({0,1,2,3,4,5,6,7,8,9},$O18, TRUE),1), 0) -> 1 | AM18: =_xlfn.IFNA(MATCH(RAND(), _xlfn.POISSON.DIST({0,1,2,3,4,5,6,7,8,9},$O18, TRUE),1), 0) -> 0 | AN18: =_xlfn.IFNA(MATCH(RAND(), _xlfn.POISSON.DIST({0,1,2,3,4,5,6,7,8,9},$O18, TRUE),1), 0) -> 0 | AO18: =_xlfn.IFNA(MATCH(RAND(), _xlfn.POISSON.DIST({0,1,2,3,4,5,6,7,8,9},$O18, TRUE),1), 0) -> 0 | AP18: =_xlfn.IFNA(MATCH(RAND(), _xlfn.POISSON.DIST({0,1,2,3,4,5,6,7,8,9},$O18, TRUE),1), 0) -> 0 | AQ18: =_xlfn.IFNA(MATCH(RAND(), _xlfn.POISSON.DIST({0,1,2,3,4,5,6,7,8,9},$O18, TRUE),1), 0) -> 1 | AR18: =_xlfn.IFNA(MATCH(RAND(), _xlfn.POISSON.DIST({0,1,2,3,4,5,6,7,8,9},$O18, TRUE),1), 0) -> 0 | AS18: =_xlfn.IFNA(MATCH(RAND(), _xlfn.POISSON.DIST({0,1,2,3,4,5,6,7,8,9},$O18, TRUE),1), 0) -> 2 | AT18: =_xlfn.IFNA(MATCH(RAND(), _xlfn.POISSON.DIST({0,1,2,3,4,5,6,7,8,9},$O18, TRUE),1), 0) -> 2 | AU18: =_xlfn.IFNA(MATCH(RAND(), _xlfn.POISSON.DIST({0,1,2,3,4,5,6,7,8,9},$O18, TRUE),1), 0) -> 2 | AV18: =_xlfn.IFNA(MATCH(RAND(), _xlfn.POISSON.DIST({0,1,2,3,4,5,6,7,8,9},$O18, TRUE),1), 0) -> 1 | AW18: =_xlfn.IFNA(MATCH(RAND(), _xlfn.POISSON.DIST({0,1,2,3,4,5,6,7,8,9},$O18, TRUE),1), 0) -> 0 | AX18: =_xlfn.IFNA(MATCH(RAND(), _xlfn.POISSON.DIST({0,1,2,3,4,5,6,7,8,9},$O18, TRUE),1), 0) -> 1 | AY18: =_xlfn.IFNA(MATCH(RAND(), _xlfn.POISSON.DIST({0,1,2,3,4,5,6,7,8,9},$O18, TRUE),1), 0) -> 1 | AZ18: =_xlfn.IFNA(MATCH(RAND(), _xlfn.POISSON.DIST({0,1,2,3,4,5,6,7,8,9},$O18, TRUE),1), 0) -> 1 | BA18: =_xlfn.IFNA(MATCH(RAND(), _xlfn.POISSON.DIST({0,1,2,3,4,5,6,7,8,9},$O18, TRUE),1), 0) -> 1 | BB18: =_xlfn.IFNA(MATCH(RAND(), _xlfn.POISSON.DIST({0,1,2,3,4,5,6,7,8,9},$O18, TRUE),1), 0) -> 0 | BC18: =_xlfn.IFNA(MATCH(RAND(), _xlfn.POISSON.DIST({0,1,2,3,4,5,6,7,8,9},$O18, TRUE),1), 0) -> 0 | BD18: =_xlfn.IFNA(MATCH(RAND(), _xlfn.POISSON.DIST({0,1,2,3,4,5,6,7,8,9},$O18, TRUE),1), 0) -> 2 | BE18: =_xlfn.IFNA(MATCH(RAND(), _xlfn.POISSON.DIST({0,1,2,3,4,5,6,7,8,9},$O18, TRUE),1), 0) -> 0 | BF18: =_xlfn.IFNA(MATCH(RAND(), _xlfn.POISSON.DIST({0,1,2,3,4,5,6,7,8,9},$O18, TRUE),1), 0) -> 1 | BG18: =_xlfn.IFNA(MATCH(RAND(), _xlfn.POISSON.DIST({0,1,2,3,4,5,6,7,8,9},$O18, TRUE),1), 0) -> 1 | BH18: =_xlfn.IFNA(MATCH(RAND(), _xlfn.POISSON.DIST({0,1,2,3,4,5,6,7,8,9},$O18, TRUE),1), 0) -> 1 | BI18: =_xlfn.IFNA(MATCH(RAND(), _xlfn.POISSON.DIST({0,1,2,3,4,5,6,7,8,9},$O18, TRUE),1), 0) -> 1 | BJ18: =_xlfn.IFNA(MATCH(RAND(), _xlfn.POISSON.DIST({0,1,2,3,4,5,6,7,8,9},$O18, TRUE),1), 0) -> 1 | BK18: =_xlfn.IFNA(MATCH(RAND(), _xlfn.POISSON.DIST({0,1,2,3,4,5,6,7,8,9},$O18, TRUE),1), 0) -> 0 | BL18: =_xlfn.IFNA(MATCH(RAND(), _xlfn.POISSON.DIST({0,1,2,3,4,5,6,7,8,9},$O18, TRUE),1), 0) -> 3 | BM18: =_xlfn.IFNA(MATCH(RAND(), _xlfn.POISSON.DIST({0,1,2,3,4,5,6,7,8,9},$O18, TRUE),1), 0) -> 0 | BN18: =_xlfn.IFNA(MATCH(RAND(), _xlfn.POISSON.DIST({0,1,2,3,4,5,6,7,8,9},$O18, TRUE),1), 0) -> 2 | BP18: =_xlfn.IFNA(MATCH(RAND(), _xlfn.POISSON.DIST({0,1,2,3,4,5,6,7,8,9},$P18, TRUE),1), 0) -> 2 | BQ18: =_xlfn.IFNA(MATCH(RAND(), _xlfn.POISSON.DIST({0,1,2,3,4,5,6,7,8,9},$P18, TRUE),1), 0) -> 4 | BR18: =_xlfn.IFNA(MATCH(RAND(), _xlfn.POISSON.DIST({0,1,2,3,4,5,6,7,8,9},$P18, TRUE),1), 0) -> 1 | BS18: =_xlfn.IFNA(MATCH(RAND(), _xlfn.POISSON.DIST({0,1,2,3,4,5,6,7,8,9},$P18, TRUE),1), 0) -> 2 | BT18: =_xlfn.IFNA(MATCH(RAND(), _xlfn.POISSON.DIST({0,1,2,3,4,5,6,7,8,9},$P18, TRUE),1), 0) -> 6 | BU18: =_xlfn.IFNA(MATCH(RAND(), _xlfn.POISSON.DIST({0,1,2,3,4,5,6,7,8,9},$P18, TRUE),1), 0) -> 2 | BV18: =_xlfn.IFNA(MATCH(RAND(), _xlfn.POISSON.DIST({0,1,2,3,4,5,6,7,8,9},$P18, TRUE),1), 0) -> 1 | BW18: =_xlfn.IFNA(MATCH(RAND(), _xlfn.POISSON.DIST({0,1,2,3,4,5,6,7,8,9},$P18, TRUE),1), 0) -> 5 | BX18: =_xlfn.IFNA(MATCH(RAND(), _xlfn.POISSON.DIST({0,1,2,3,4,5,6,7,8,9},$P18, TRUE),1), 0) -> 3 | BY18: =_xlfn.IFNA(MATCH(RAND(), _xlfn.POISSON.DIST({0,1,2,3,4,5,6,7,8,9},$P18, TRUE),1), 0) -> 6 | BZ18: =_xlfn.IFNA(MATCH(RAND(), _xlfn.POISSON.DIST({0,1,2,3,4,5,6,7,8,9},$P18, TRUE),1), 0) -> 6 | CA18: =_xlfn.IFNA(MATCH(RAND(), _xlfn.POISSON.DIST({0,1,2,3,4,5,6,7,8,9},$P18, TRUE),1), 0) -> 3 | CB18: =_xlfn.IFNA(MATCH(RAND(), _xlfn.POISSON.DIST({0,1,2,3,4,5,6,7,8,9},$P18, TRUE),1), 0) -> 6 | CC18: =_xlfn.IFNA(MATCH(RAND(), _xlfn.POISSON.DIST({0,1,2,3,4,5,6,7,8,9},$P18, TRUE),1), 0) -> 2 | CD18: =_xlfn.IFNA(MATCH(RAND(), _xlfn.POISSON.DIST({0,1,2,3,4,5,6,7,8,9},$P18, TRUE),1), 0) -> 3 | CE18: =_xlfn.IFNA(MATCH(RAND(), _xlfn.POISSON.DIST({0,1,2,3,4,5,6,7,8,9},$P18, TRUE),1), 0) -> 4 | CF18: =_xlfn.IFNA(MATCH(RAND(), _xlfn.POISSON.DIST({0,1,2,3,4,5,6,7,8,9},$P18, TRUE),1), 0) -> 3 | CG18: =_xlfn.IFNA(MATCH(RAND(), _xlfn.POISSON.DIST({0,1,2,3,4,5,6,7,8,9},$P18, TRUE),1), 0) -> 1 | CH18: =_xlfn.IFNA(MATCH(RAND(), _xlfn.POISSON.DIST({0,1,2,3,4,5,6,7,8,9},$P18, TRUE),1), 0) -> 1 | CI18: =_xlfn.IFNA(MATCH(RAND(), _xlfn.POISSON.DIST({0,1,2,3,4,5,6,7,8,9},$P18, TRUE),1), 0) -> 0 | CJ18: =_xlfn.IFNA(MATCH(RAND(), _xlfn.POISSON.DIST({0,1,2,3,4,5,6,7,8,9},$P18, TRUE),1), 0) -> 6 | CK18: =_xlfn.IFNA(MATCH(RAND(), _xlfn.POISSON.DIST({0,1,2,3,4,5,6,7,8,9},$P18, TRUE),1), 0) -> 5 | CL18: =_xlfn.IFNA(MATCH(RAND(), _xlfn.POISSON.DIST({0,1,2,3,4,5,6,7,8,9},$P18, TRUE),1), 0) -> 5 | CM18: =_xlfn.IFNA(MATCH(RAND(), _xlfn.POISSON.DIST({0,1,2,3,4,5,6,7,8,9},$P18, TRUE),1), 0) -> 7 | CN18: =_xlfn.IFNA(MATCH(RAND(), _xlfn.POISSON.DIST({0,1,2,3,4,5,6,7,8,9},$P18, TRUE),1), 0) -> 2 | CO18: =_xlfn.IFNA(MATCH(RAND(), _xlfn.POISSON.DIST({0,1,2,3,4,5,6,7,8,9},$P18, TRUE),1), 0) -> 3 | CP18: =_xlfn.IFNA(MATCH(RAND(), _xlfn.POISSON.DIST({0,1,2,3,4,5,6,7,8,9},$P18, TRUE),1), 0) -> 1 | CQ18: =_xlfn.IFNA(MATCH(RAND(), _xlfn.POISSON.DIST({0,1,2,3,4,5,6,7,8,9},$P18, TRUE),1), 0) -> 3 | CR18: =_xlfn.IFNA(MATCH(RAND(), _xlfn.POISSON.DIST({0,1,2,3,4,5,6,7,8,9},$P18, TRUE),1), 0) -> 0 | CS18: =_xlfn.IFNA(MATCH(RAND(), _xlfn.POISSON.DIST({0,1,2,3,4,5,6,7,8,9},$P18, TRUE),1), 0) -> 1 | CT18: =_xlfn.IFNA(MATCH(RAND(), _xlfn.POISSON.DIST({0,1,2,3,4,5,6,7,8,9},$P18, TRUE),1), 0) -> 4 | CU18: =_xlfn.IFNA(MATCH(RAND(), _xlfn.POISSON.DIST({0,1,2,3,4,5,6,7,8,9},$P18, TRUE),1), 0) -> 1 | CV18: =_xlfn.IFNA(MATCH(RAND(), _xlfn.POISSON.DIST({0,1,2,3,4,5,6,7,8,9},$P18, TRUE),1), 0) -> 2 | CW18: =_xlfn.IFNA(MATCH(RAND(), _xlfn.POISSON.DIST({0,1,2,3,4,5,6,7,8,9},$P18, TRUE),1), 0) -> 4 | CX18: =_xlfn.IFNA(MATCH(RAND(), _xlfn.POISSON.DIST({0,1,2,3,4,5,6,7,8,9},$P18, TRUE),1), 0) -> 2 | CY18: =_xlfn.IFNA(MATCH(RAND(), _xlfn.POISSON.DIST({0,1,2,3,4,5,6,7,8,9},$P18, TRUE),1), 0) -> 2 | CZ18: =_xlfn.IFNA(MATCH(RAND(), _xlfn.POISSON.DIST({0,1,2,3,4,5,6,7,8,9},$P18, TRUE),1), 0) -> 2 | DA18: =_xlfn.IFNA(MATCH(RAND(), _xlfn.POISSON.DIST({0,1,2,3,4,5,6,7,8,9},$P18, TRUE),1), 0) -> 3 | DB18: =_xlfn.IFNA(MATCH(RAND(), _xlfn.POISSON.DIST({0,1,2,3,4,5,6,7,8,9},$P18, TRUE),1), 0) -> 2 | DC18: =_xlfn.IFNA(MATCH(RAND(), _xlfn.POISSON.DIST({0,1,2,3,4,5,6,7,8,9},$P18, TRUE),1), 0) -> 4 | DD18: =_xlfn.IFNA(MATCH(RAND(), _xlfn.POISSON.DIST({0,1,2,3,4,5,6,7,8,9},$P18, TRUE),1), 0) -> 2 | DE18: =_xlfn.IFNA(MATCH(RAND(), _xlfn.POISSON.DIST({0,1,2,3,4,5,6,7,8,9},$P18, TRUE),1), 0) -> 2 | DF18: =_xlfn.IFNA(MATCH(RAND(), _xlfn.POISSON.DIST({0,1,2,3,4,5,6,7,8,9},$P18, TRUE),1), 0) -> 5 | DG18: =_xlfn.IFNA(MATCH(RAND(), _xlfn.POISSON.DIST({0,1,2,3,4,5,6,7,8,9},$P18, TRUE),1), 0) -> 1 | DH18: =_xlfn.IFNA(MATCH(RAND(), _xlfn.POISSON.DIST({0,1,2,3,4,5,6,7,8,9},$P18, TRUE),1), 0) -> 4 | DI18: =_xlfn.IFNA(MATCH(RAND(), _xlfn.POISSON.DIST({0,1,2,3,4,5,6,7,8,9},$P18, TRUE),1), 0) -> 3 | DJ18: =_xlfn.IFNA(MATCH(RAND(), _xlfn.POISSON.DIST({0,1,2,3,4,5,6,7,8,9},$P18, TRUE),1), 0) -> 6 | DK18: =_xlfn.IFNA(MATCH(RAND(), _xlfn.POISSON.DIST({0,1,2,3,4,5,6,7,8,9},$P18, TRUE),1), 0) -> 1 | DL18: =_xlfn.IFNA(MATCH(RAND(), _xlfn.POISSON.DIST({0,1,2,3,4,5,6,7,8,9},$P18, TRUE),1), 0) -> 3 | DM18: =_xlfn.IFNA(MATCH(RAND(), _xlfn.POISSON.DIST({0,1,2,3,4,5,6,7,8,9},$P18, TRUE),1), 0) -> 5
C19: 2019-06-12 | D19: Б | E19: Германия | F19: =(AVERAGE(Q19:BN19))*(1+INDEX('Прогнозы группового этапа'!$C$4:$O$28, MATCH('Матчи за текущий год'!E19,'Прогнозы группового этапа'!$D$4:$D$28,0),3)) -> 1.70 | G19: Испания | H19: =(AVERAGE(BP19:DM19))*(1+INDEX('Прогнозы группового этапа'!$C$4:$O$28, MATCH('Матчи за текущий год'!G19,'Прогнозы группового этапа'!$D$4:$D$28,0),3)) -> 1.12 | I19: Германия | L19: 1.7 | M19: 1.12 | N19: Германия | O19: =(OFFSET('Прил. 3. Голы в группе'!$D$14,(INDEX('Прил. 1. Данные команды'!$C$13:$F$112,MATCH(G19,'Прил. 1. Данные команды'!$C$13:$C$112,0),4)/10),(INDEX('Прил. 1. Данные команды'!$C$13:$F$112,MATCH(E19,'Прил. 1. Данные команды'!$C$13:$C$112,0),4)/10))) -> 1.78 | P19: =OFFSET('Прил. 3. Голы в группе'!$D$14,(INDEX('Прил. 1. Данные команды'!$C$13:$F$112, MATCH(E19,'Прил. 1. Данные команды'!$C$13:$C$112,0),4)/10), (INDEX('Прил. 1. Данные команды'!$C$13:$F$112, MATCH(G19, 'Прил. 1. Данные команды'!$C$13:$C$112,0),4)/10)) -> 1.07 | Q19: =_xlfn.IFNA(MATCH(RAND(), _xlfn.POISSON.DIST({0,1,2,3,4,5,6,7,8,9},$O19, TRUE),1), 0) -> 2 | R19: =_xlfn.IFNA(MATCH(RAND(), _xlfn.POISSON.DIST({0,1,2,3,4,5,6,7,8,9},$O19, TRUE),1), 0) -> 1 | S19: =_xlfn.IFNA(MATCH(RAND(), _xlfn.POISSON.DIST({0,1,2,3,4,5,6,7,8,9},$O19, TRUE),1), 0) -> 3 | T19: =_xlfn.IFNA(MATCH(RAND(), _xlfn.POISSON.DIST({0,1,2,3,4,5,6,7,8,9},$O19, TRUE),1), 0) -> 1 | U19: =_xlfn.IFNA(MATCH(RAND(), _xlfn.POISSON.DIST({0,1,2,3,4,5,6,7,8,9},$O19, TRUE),1), 0) -> 2 | V19: =_xlfn.IFNA(MATCH(RAND(), _xlfn.POISSON.DIST({0,1,2,3,4,5,6,7,8,9},$O19, TRUE),1), 0) -> 1 | W19: =_xlfn.IFNA(MATCH(RAND(), _xlfn.POISSON.DIST({0,1,2,3,4,5,6,7,8,9},$O19, TRUE),1), 0) -> 1 | X19: =_xlfn.IFNA(MATCH(RAND(), _xlfn.POISSON.DIST({0,1,2,3,4,5,6,7,8,9},$O19, TRUE),1), 0) -> 1 | Y19: =_xlfn.IFNA(MATCH(RAND(), _xlfn.POISSON.DIST({0,1,2,3,4,5,6,7,8,9},$O19, TRUE),1), 0) -> 6 | Z19: =_xlfn.IFNA(MATCH(RAND(), _xlfn.POISSON.DIST({0,1,2,3,4,5,6,7,8,9},$O19, TRUE),1), 0) -> 2 | AA19: =_xlfn.IFNA(MATCH(RAND(), _xlfn.POISSON.DIST({0,1,2,3,4,5,6,7,8,9},$O19, TRUE),1), 0) -> 1 | AB19: =_xlfn.IFNA(MATCH(RAND(), _xlfn.POISSON.DIST({0,1,2,3,4,5,6,7,8,9},$O19, TRUE),1), 0) -> 3 | AC19: =_xlfn.IFNA(MATCH(RAND(), _xlfn.POISSON.DIST({0,1,2,3,4,5,6,7,8,9},$O19, TRUE),1), 0) -> 1 | AD19: =_xlfn.IFNA(MATCH(RAND(), _xlfn.POISSON.DIST({0,1,2,3,4,5,6,7,8,9},$O19, TRUE),1), 0) -> 2 | AE19: =_xlfn.IFNA(MATCH(RAND(), _xlfn.POISSON.DIST({0,1,2,3,4,5,6,7,8,9},$O19, TRUE),1), 0) -> 2 | AF19: =_xlfn.IFNA(MATCH(RAND(), _xlfn.POISSON.DIST({0,1,2,3,4,5,6,7,8,9},$O19, TRUE),1), 0) -> 0 | AG19: =_xlfn.IFNA(MATCH(RAND(), _xlfn.POISSON.DIST({0,1,2,3,4,5,6,7,8,9},$O19, TRUE),1), 0) -> 1 | AH19: =_xlfn.IFNA(MATCH(RAND(), _xlfn.POISSON.DIST({0,1,2,3,4,5,6,7,8,9},$O19, TRUE),1), 0) -> 2 | AI19: =_xlfn.IFNA(MATCH(RAND(), _xlfn.POISSON.DIST({0,1,2,3,4,5,6,7,8,9},$O19, TRUE),1), 0) -> 0 | AJ19: =_xlfn.IFNA(MATCH(RAND(), _xlfn.POISSON.DIST({0,1,2,3,4,5,6,7,8,9},$O19, TRUE),1), 0) -> 3 | AK19: =_xlfn.IFNA(MATCH(RAND(), _xlfn.POISSON.DIST({0,1,2,3,4,5,6,7,8,9},$O19, TRUE),1), 0) -> 2 | AL19: =_xlfn.IFNA(MATCH(RAND(), _xlfn.POISSON.DIST({0,1,2,3,4,5,6,7,8,9},$O19, TRUE),1), 0) -> 1 | AM19: =_xlfn.IFNA(MATCH(RAND(), _xlfn.POISSON.DIST({0,1,2,3,4,5,6,7,8,9},$O19, TRUE),1), 0) -> 2 | AN19: =_xlfn.IFNA(MATCH(RAND(), _xlfn.POISSON.DIST({0,1,2,3,4,5,6,7,8,9},$O19, TRUE),1), 0) -> 1 | AO19: =_xlfn.IFNA(MATCH(RAND(), _xlfn.POISSON.DIST({0,1,2,3,4,5,6,7,8,9},$O19, TRUE),1), 0) -> 2 | AP19: =_xlfn.IFNA(MATCH(RAND(), _xlfn.POISSON.DIST({0,1,2,3,4,5,6,7,8,9},$O19, TRUE),1), 0) -> 2 | AQ19: =_xlfn.IFNA(MATCH(RAND(), _xlfn.POISSON.DIST({0,1,2,3,4,5,6,7,8,9},$O19, TRUE),1), 0) -> 3 | AR19: =_xlfn.IFNA(MATCH(RAND(), _xlfn.POISSON.DIST({0,1,2,3,4,5,6,7,8,9},$O19, TRUE),1), 0) -> 3 | AS19: =_xlfn.IFNA(MATCH(RAND(), _xlfn.POISSON.DIST({0,1,2,3,4,5,6,7,8,9},$O19, TRUE),1), 0) -> 2 | AT19: =_xlfn.IFNA(MATCH(RAND(), _xlfn.POISSON.DIST({0,1,2,3,4,5,6,7,8,9},$O19, TRUE),1), 0) -> 2 | AU19: =_xlfn.IFNA(MATCH(RAND(), _xlfn.POISSON.DIST({0,1,2,3,4,5,6,7,8,9},$O19, TRUE),1), 0) -> 0 | AV19: =_xlfn.IFNA(MATCH(RAND(), _xlfn.POISSON.DIST({0,1,2,3,4,5,6,7,8,9},$O19, TRUE),1), 0) -> 1 | AW19: =_xlfn.IFNA(MATCH(RAND(), _xlfn.POISSON.DIST({0,1,2,3,4,5,6,7,8,9},$O19, TRUE),1), 0) -> 1 | AX19: =_xlfn.IFNA(MATCH(RAND(), _xlfn.POISSON.DIST({0,1,2,3,4,5,6,7,8,9},$O19, TRUE),1), 0) -> 1 | AY19: =_xlfn.IFNA(MATCH(RAND(), _xlfn.POISSON.DIST({0,1,2,3,4,5,6,7,8,9},$O19, TRUE),1), 0) -> 1 | AZ19: =_xlfn.IFNA(MATCH(RAND(), _xlfn.POISSON.DIST({0,1,2,3,4,5,6,7,8,9},$O19, TRUE),1), 0) -> 3 | BA19: =_xlfn.IFNA(MATCH(RAND(), _xlfn.POISSON.DIST({0,1,2,3,4,5,6,7,8,9},$O19, TRUE),1), 0) -> 2 | BB19: =_xlfn.IFNA(MATCH(RAND(), _xlfn.POISSON.DIST({0,1,2,3,4,5,6,7,8,9},$O19, TRUE),1), 0) -> 2 | BC19: =_xlfn.IFNA(MATCH(RAND(), _xlfn.POISSON.DIST({0,1,2,3,4,5,6,7,8,9},$O19, TRUE),1), 0) -> 1 | BD19: =_xlfn.IFNA(MATCH(RAND(), _xlfn.POISSON.DIST({0,1,2,3,4,5,6,7,8,9},$O19, TRUE),1), 0) -> 1 | BE19: =_xlfn.IFNA(MATCH(RAND(), _xlfn.POISSON.DIST({0,1,2,3,4,5,6,7,8,9},$O19, TRUE),1), 0) -> 3 | BF19: =_xlfn.IFNA(MATCH(RAND(), _xlfn.POISSON.DIST({0,1,2,3,4,5,6,7,8,9},$O19, TRUE),1), 0) -> 1 | BG19: =_xlfn.IFNA(MATCH(RAND(), _xlfn.POISSON.DIST({0,1,2,3,4,5,6,7,8,9},$O19, TRUE),1), 0) -> 2 | BH19: =_xlfn.IFNA(MATCH(RAND(), _xlfn.POISSON.DIST({0,1,2,3,4,5,6,7,8,9},$O19, TRUE),1), 0) -> 0 | BI19: =_xlfn.IFNA(MATCH(RAND(), _xlfn.POISSON.DIST({0,1,2,3,4,5,6,7,8,9},$O19, TRUE),1), 0) -> 2 | BJ19: =_xlfn.IFNA(MATCH(RAND(), _xlfn.POISSON.DIST({0,1,2,3,4,5,6,7,8,9},$O19, TRUE),1), 0) -> 4 | BK19: =_xlfn.IFNA(MATCH(RAND(), _xlfn.POISSON.DIST({0,1,2,3,4,5,6,7,8,9},$O19, TRUE),1), 0) -> 2 | BL19: =_xlfn.IFNA(MATCH(RAND(), _xlfn.POISSON.DIST({0,1,2,3,4,5,6,7,8,9},$O19, TRUE),1), 0) -> 1 | BM19: =_xlfn.IFNA(MATCH(RAND(), _xlfn.POISSON.DIST({0,1,2,3,4,5,6,7,8,9},$O19, TRUE),1), 0) -> 0 | BN19: =_xlfn.IFNA(MATCH(RAND(), _xlfn.POISSON.DIST({0,1,2,3,4,5,6,7,8,9},$O19, TRUE),1), 0) -> 2 | BP19: =_xlfn.IFNA(MATCH(RAND(), _xlfn.POISSON.DIST({0,1,2,3,4,5,6,7,8,9},$P19, TRUE),1), 0) -> 2 | BQ19: =_xlfn.IFNA(MATCH(RAND(), _xlfn.POISSON.DIST({0,1,2,3,4,5,6,7,8,9},$P19, TRUE),1), 0) -> 0 | BR19: =_xlfn.IFNA(MATCH(RAND(), _xlfn.POISSON.DIST({0,1,2,3,4,5,6,7,8,9},$P19, TRUE),1), 0) -> 0 | BS19: =_xlfn.IFNA(MATCH(RAND(), _xlfn.POISSON.DIST({0,1,2,3,4,5,6,7,8,9},$P19, TRUE),1), 0) -> 4 | BT19: =_xlfn.IFNA(MATCH(RAND(), _xlfn.POISSON.DIST({0,1,2,3,4,5,6,7,8,9},$P19, TRUE),1), 0) -> 0 | BU19: =_xlfn.IFNA(MATCH(RAND(), _xlfn.POISSON.DIST({0,1,2,3,4,5,6,7,8,9},$P19, TRUE),1), 0) -> 1 | BV19: =_xlfn.IFNA(MATCH(RAND(), _xlfn.POISSON.DIST({0,1,2,3,4,5,6,7,8,9},$P19, TRUE),1), 0) -> 1 | BW19: =_xlfn.IFNA(MATCH(RAND(), _xlfn.POISSON.DIST({0,1,2,3,4,5,6,7,8,9},$P19, TRUE),1), 0) -> 0 | BX19: =_xlfn.IFNA(MATCH(RAND(), _xlfn.POISSON.DIST({0,1,2,3,4,5,6,7,8,9},$P19, TRUE),1), 0) -> 1 | BY19: =_xlfn.IFNA(MATCH(RAND(), _xlfn.POISSON.DIST({0,1,2,3,4,5,6,7,8,9},$P19, TRUE),1), 0) -> 2 | BZ19: =_xlfn.IFNA(MATCH(RAND(), _xlfn.POISSON.DIST({0,1,2,3,4,5,6,7,8,9},$P19, TRUE),1), 0) -> 0 | CA19: =_xlfn.IFNA(MATCH(RAND(), _xlfn.POISSON.DIST({0,1,2,3,4,5,6,7,8,9},$P19, TRUE),1), 0) -> 0 | CB19: =_xlfn.IFNA(MATCH(RAND(), _xlfn.POISSON.DIST({0,1,2,3,4,5,6,7,8,9},$P19, TRUE),1), 0) -> 2 | CC19: =_xlfn.IFNA(MATCH(RAND(), _xlfn.POISSON.DIST({0,1,2,3,4,5,6,7,8,9},$P19, TRUE),1), 0) -> 3 | CD19: =_xlfn.IFNA(MATCH(RAND(), _xlfn.POISSON.DIST({0,1,2,3,4,5,6,7,8,9},$P19, TRUE),1), 0) -> 1 | CE19: =_xlfn.IFNA(MATCH(RAND(), _xlfn.POISSON.DIST({0,1,2,3,4,5,6,7,8,9},$P19, TRUE),1), 0) -> 2 | CF19: =_xlfn.IFNA(MATCH(RAND(), _xlfn.POISSON.DIST({0,1,2,3,4,5,6,7,8,9},$P19, TRUE),1), 0) -> 1 | CG19: =_xlfn.IFNA(MATCH(RAND(), _xlfn.POISSON.DIST({0,1,2,3,4,5,6,7,8,9},$P19, TRUE),1), 0) -> 1 | CH19: =_xlfn.IFNA(MATCH(RAND(), _xlfn.POISSON.DIST({0,1,2,3,4,5,6,7,8,9},$P19, TRUE),1), 0) -> 0 | CI19: =_xlfn.IFNA(MATCH(RAND(), _xlfn.POISSON.DIST({0,1,2,3,4,5,6,7,8,9},$P19, TRUE),1), 0) -> 0 | CJ19: =_xlfn.IFNA(MATCH(RAND(), _xlfn.POISSON.DIST({0,1,2,3,4,5,6,7,8,9},$P19, TRUE),1), 0) -> 1 | CK19: =_xlfn.IFNA(MATCH(RAND(), _xlfn.POISSON.DIST({0,1,2,3,4,5,6,7,8,9},$P19, TRUE),1), 0) -> 0 | CL19: =_xlfn.IFNA(MATCH(RAND(), _xlfn.POISSON.DIST({0,1,2,3,4,5,6,7,8,9},$P19, TRUE),1), 0) -> 1 | CM19: =_xlfn.IFNA(MATCH(RAND(), _xlfn.POISSON.DIST({0,1,2,3,4,5,6,7,8,9},$P19, TRUE),1), 0) -> 0 | CN19: =_xlfn.IFNA(MATCH(RAND(), _xlfn.POISSON.DIST({0,1,2,3,4,5,6,7,8,9},$P19, TRUE),1), 0) -> 2 | CO19: =_xlfn.IFNA(MATCH(RAND(), _xlfn.POISSON.DIST({0,1,2,3,4,5,6,7,8,9},$P19, TRUE),1), 0) -> 0 | CP19: =_xlfn.IFNA(MATCH(RAND(), _xlfn.POISSON.DIST({0,1,2,3,4,5,6,7,8,9},$P19, TRUE),1), 0) -> 2 | CQ19: =_xlfn.IFNA(MATCH(RAND(), _xlfn.POISSON.DIST({0,1,2,3,4,5,6,7,8,9},$P19, TRUE),1), 0) -> 0 | CR19: =_xlfn.IFNA(MATCH(RAND(), _xlfn.POISSON.DIST({0,1,2,3,4,5,6,7,8,9},$P19, TRUE),1), 0) -> 1 | CS19: =_xlfn.IFNA(MATCH(RAND(), _xlfn.POISSON.DIST({0,1,2,3,4,5,6,7,8,9},$P19, TRUE),1), 0) -> 1 | CT19: =_xlfn.IFNA(MATCH(RAND(), _xlfn.POISSON.DIST({0,1,2,3,4,5,6,7,8,9},$P19, TRUE),1), 0) -> 2 | CU19: =_xlfn.IFNA(MATCH(RAND(), _xlfn.POISSON.DIST({0,1,2,3,4,5,6,7,8,9},$P19, TRUE),1), 0) -> 2 | CV19: =_xlfn.IFNA(MATCH(RAND(), _xlfn.POISSON.DIST({0,1,2,3,4,5,6,7,8,9},$P19, TRUE),1), 0) -> 4 | CW19: =_xlfn.IFNA(MATCH(RAND(), _xlfn.POISSON.DIST({0,1,2,3,4,5,6,7,8,9},$P19, TRUE),1), 0) -> 1 | CX19: =_xlfn.IFNA(MATCH(RAND(), _xlfn.POISSON.DIST({0,1,2,3,4,5,6,7,8,9},$P19, TRUE),1), 0) -> 2 | CY19: =_xlfn.IFNA(MATCH(RAND(), _xlfn.POISSON.DIST({0,1,2,3,4,5,6,7,8,9},$P19, TRUE),1), 0) -> 1 | CZ19: =_xlfn.IFNA(MATCH(RAND(), _xlfn.POISSON.DIST({0,1,2,3,4,5,6,7,8,9},$P19, TRUE),1), 0) -> 1 | DA19: =_xlfn.IFNA(MATCH(RAND(), _xlfn.POISSON.DIST({0,1,2,3,4,5,6,7,8,9},$P19, TRUE),1), 0) -> 3 | DB19: =_xlfn.IFNA(MATCH(RAND(), _xlfn.POISSON.DIST({0,1,2,3,4,5,6,7,8,9},$P19, TRUE),1), 0) -> 0 | DC19: =_xlfn.IFNA(MATCH(RAND(), _xlfn.POISSON.DIST({0,1,2,3,4,5,6,7,8,9},$P19, TRUE),1), 0) -> 2 | DD19: =_xlfn.IFNA(MATCH(RAND(), _xlfn.POISSON.DIST({0,1,2,3,4,5,6,7,8,9},$P19, TRUE),1), 0) -> 2 | DE19: =_xlfn.IFNA(MATCH(RAND(), _xlfn.POISSON.DIST({0,1,2,3,4,5,6,7,8,9},$P19, TRUE),1), 0) -> 2 | DF19: =_xlfn.IFNA(MATCH(RAND(), _xlfn.POISSON.DIST({0,1,2,3,4,5,6,7,8,9},$P19, TRUE),1), 0) -> 1 | DG19: =_xlfn.IFNA(MATCH(RAND(), _xlfn.POISSON.DIST({0,1,2,3,4,5,6,7,8,9},$P19, TRUE),1), 0) -> 0 | DH19: =_xlfn.IFNA(MATCH(RAND(), _xlfn.POISSON.DIST({0,1,2,3,4,5,6,7,8,9},$P19, TRUE),1), 0) -> 0 | DI19: =_xlfn.IFNA(MATCH(RAND(), _xlfn.POISSON.DIST({0,1,2,3,4,5,6,7,8,9},$P19, TRUE),1), 0) -> 0 | DJ19: =_xlfn.IFNA(MATCH(RAND(), _xlfn.POISSON.DIST({0,1,2,3,4,5,6,7,8,9},$P19, TRUE),1), 0) -> 1 | DK19: =_xlfn.IFNA(MATCH(RAND(), _xlfn.POISSON.DIST({0,1,2,3,4,5,6,7,8,9},$P19, TRUE),1), 0) -> 1 | DL19: =_xlfn.IFNA(MATCH(RAND(), _xlfn.POISSON.DIST({0,1,2,3,4,5,6,7,8,9},$P19, TRUE),1), 0) -> 1 | DM19: =_xlfn.IFNA(MATCH(RAND(), _xlfn.POISSON.DIST({0,1,2,3,4,5,6,7,8,9},$P19, TRUE),1), 0) -> 1
C20: 2019-06-12 | D20: A | E20: Франция | F20: =(AVERAGE(Q20:BN20))*(1+INDEX('Прогнозы группового этапа'!$C$4:$O$28, MATCH('Матчи за текущий год'!E20,'Прогнозы группового этапа'!$D$4:$D$28,0),3)) -> 1.82 | G20: Норвегия | H20: =(AVERAGE(BP20:DM20))*(1+INDEX('Прогнозы группового этапа'!$C$4:$O$28, MATCH('Матчи за текущий год'!G20,'Прогнозы группового этапа'!$D$4:$D$28,0),3)) -> 1.26 | I20: Франция | L20: 1.82 | M20: 1.26 | N20: Франция | O20: =(OFFSET('Прил. 3. Голы в группе'!$D$14,(INDEX('Прил. 1. Данные команды'!$C$13:$F$112,MATCH(G20,'Прил. 1. Данные команды'!$C$13:$C$112,0),4)/10),(INDEX('Прил. 1. Данные команды'!$C$13:$F$112,MATCH(E20,'Прил. 1. Данные команды'!$C$13:$C$112,0),4)/10))) -> 1.78 | P20: =OFFSET('Прил. 3. Голы в группе'!$D$14,(INDEX('Прил. 1. Данные команды'!$C$13:$F$112, MATCH(E20,'Прил. 1. Данные команды'!$C$13:$C$112,0),4)/10), (INDEX('Прил. 1. Данные команды'!$C$13:$F$112, MATCH(G20, 'Прил. 1. Данные команды'!$C$13:$C$112,0),4)/10)) -> 1.07 | Q20: =_xlfn.IFNA(MATCH(RAND(), _xlfn.POISSON.DIST({0,1,2,3,4,5,6,7,8,9},$O20, TRUE),1), 0) -> 1 | R20: =_xlfn.IFNA(MATCH(RAND(), _xlfn.POISSON.DIST({0,1,2,3,4,5,6,7,8,9},$O20, TRUE),1), 0) -> 1 | S20: =_xlfn.IFNA(MATCH(RAND(), _xlfn.POISSON.DIST({0,1,2,3,4,5,6,7,8,9},$O20, TRUE),1), 0) -> 3 | T20: =_xlfn.IFNA(MATCH(RAND(), _xlfn.POISSON.DIST({0,1,2,3,4,5,6,7,8,9},$O20, TRUE),1), 0) -> 0 | U20: =_xlfn.IFNA(MATCH(RAND(), _xlfn.POISSON.DIST({0,1,2,3,4,5,6,7,8,9},$O20, TRUE),1), 0) -> 1 | V20: =_xlfn.IFNA(MATCH(RAND(), _xlfn.POISSON.DIST({0,1,2,3,4,5,6,7,8,9},$O20, TRUE),1), 0) -> 2 | W20: =_xlfn.IFNA(MATCH(RAND(), _xlfn.POISSON.DIST({0,1,2,3,4,5,6,7,8,9},$O20, TRUE),1), 0) -> 0 | X20: =_xlfn.IFNA(MATCH(RAND(), _xlfn.POISSON.DIST({0,1,2,3,4,5,6,7,8,9},$O20, TRUE),1), 0) -> 0 | Y20: =_xlfn.IFNA(MATCH(RAND(), _xlfn.POISSON.DIST({0,1,2,3,4,5,6,7,8,9},$O20, TRUE),1), 0) -> 2 | Z20: =_xlfn.IFNA(MATCH(RAND(), _xlfn.POISSON.DIST({0,1,2,3,4,5,6,7,8,9},$O20, TRUE),1), 0) -> 3 | AA20: =_xlfn.IFNA(MATCH(RAND(), _xlfn.POISSON.DIST({0,1,2,3,4,5,6,7,8,9},$O20, TRUE),1), 0) -> 2 | AB20: =_xlfn.IFNA(MATCH(RAND(), _xlfn.POISSON.DIST({0,1,2,3,4,5,6,7,8,9},$O20, TRUE),1), 0) -> 2 | AC20: =_xlfn.IFNA(MATCH(RAND(), _xlfn.POISSON.DIST({0,1,2,3,4,5,6,7,8,9},$O20, TRUE),1), 0) -> 1 | AD20: =_xlfn.IFNA(MATCH(RAND(), _xlfn.POISSON.DIST({0,1,2,3,4,5,6,7,8,9},$O20, TRUE),1), 0) -> 2 | AE20: =_xlfn.IFNA(MATCH(RAND(), _xlfn.POISSON.DIST({0,1,2,3,4,5,6,7,8,9},$O20, TRUE),1), 0) -> 3 | AF20: =_xlfn.IFNA(MATCH(RAND(), _xlfn.POISSON.DIST({0,1,2,3,4,5,6,7,8,9},$O20, TRUE),1), 0) -> 3 | AG20: =_xlfn.IFNA(MATCH(RAND(), _xlfn.POISSON.DIST({0,1,2,3,4,5,6,7,8,9},$O20, TRUE),1), 0) -> 3 | AH20: =_xlfn.IFNA(MATCH(RAND(), _xlfn.POISSON.DIST({0,1,2,3,4,5,6,7,8,9},$O20, TRUE),1), 0) -> 2 | AI20: =_xlfn.IFNA(MATCH(RAND(), _xlfn.POISSON.DIST({0,1,2,3,4,5,6,7,8,9},$O20, TRUE),1), 0) -> 3 | AJ20: =_xlfn.IFNA(MATCH(RAND(), _xlfn.POISSON.DIST({0,1,2,3,4,5,6,7,8,9},$O20, TRUE),1), 0) -> 2 | AK20: =_xlfn.IFNA(MATCH(RAND(), _xlfn.POISSON.DIST({0,1,2,3,4,5,6,7,8,9},$O20, TRUE),1), 0) -> 3 | AL20: =_xlfn.IFNA(MATCH(RAND(), _xlfn.POISSON.DIST({0,1,2,3,4,5,6,7,8,9},$O20, TRUE),1), 0) -> 2 | AM20: =_xlfn.IFNA(MATCH(RAND(), _xlfn.POISSON.DIST({0,1,2,3,4,5,6,7,8,9},$O20, TRUE),1), 0) -> 3 | AN20: =_xlfn.IFNA(MATCH(RAND(), _xlfn.POISSON.DIST({0,1,2,3,4,5,6,7,8,9},$O20, TRUE),1), 0) -> 3 | AO20: =_xlfn.IFNA(MATCH(RAND(), _xlfn.POISSON.DIST({0,1,2,3,4,5,6,7,8,9},$O20, TRUE),1), 0) -> 1 | AP20: =_xlfn.IFNA(MATCH(RAND(), _xlfn.POISSON.DIST({0,1,2,3,4,5,6,7,8,9},$O20, TRUE),1), 0) -> 2 | AQ20: =_xlfn.IFNA(MATCH(RAND(), _xlfn.POISSON.DIST({0,1,2,3,4,5,6,7,8,9},$O20, TRUE),1), 0) -> 0 | AR20: =_xlfn.IFNA(MATCH(RAND(), _xlfn.POISSON.DIST({0,1,2,3,4,5,6,7,8,9},$O20, TRUE),1), 0) -> 1 | AS20: =_xlfn.IFNA(MATCH(RAND(), _xlfn.POISSON.DIST({0,1,2,3,4,5,6,7,8,9},$O20, TRUE),1), 0) -> 2 | AT20: =_xlfn.IFNA(MATCH(RAND(), _xlfn.POISSON.DIST({0,1,2,3,4,5,6,7,8,9},$O20, TRUE),1), 0) -> 1 | AU20: =_xlfn.IFNA(MATCH(RAND(), _xlfn.POISSON.DIST({0,1,2,3,4,5,6,7,8,9},$O20, TRUE),1), 0) -> 1 | AV20: =_xlfn.IFNA(MATCH(RAND(), _xlfn.POISSON.DIST({0,1,2,3,4,5,6,7,8,9},$O20, TRUE),1), 0) -> 2 | AW20: =_xlfn.IFNA(MATCH(RAND(), _xlfn.POISSON.DIST({0,1,2,3,4,5,6,7,8,9},$O20, TRUE),1), 0) -> 2 | AX20: =_xlfn.IFNA(MATCH(RAND(), _xlfn.POISSON.DIST({0,1,2,3,4,5,6,7,8,9},$O20, TRUE),1), 0) -> 1 | AY20: =_xlfn.IFNA(MATCH(RAND(), _xlfn.POISSON.DIST({0,1,2,3,4,5,6,7,8,9},$O20, TRUE),1), 0) -> 1 | AZ20: =_xlfn.IFNA(MATCH(RAND(), _xlfn.POISSON.DIST({0,1,2,3,4,5,6,7,8,9},$O20, TRUE),1), 0) -> 1 | BA20: =_xlfn.IFNA(MATCH(RAND(), _xlfn.POISSON.DIST({0,1,2,3,4,5,6,7,8,9},$O20, TRUE),1), 0) -> 2 | BB20: =_xlfn.IFNA(MATCH(RAND(), _xlfn.POISSON.DIST({0,1,2,3,4,5,6,7,8,9},$O20, TRUE),1), 0) -> 0 | BC20: =_xlfn.IFNA(MATCH(RAND(), _xlfn.POISSON.DIST({0,1,2,3,4,5,6,7,8,9},$O20, TRUE),1), 0) -> 3 | BD20: =_xlfn.IFNA(MATCH(RAND(), _xlfn.POISSON.DIST({0,1,2,3,4,5,6,7,8,9},$O20, TRUE),1), 0) -> 2 | BE20: =_xlfn.IFNA(MATCH(RAND(), _xlfn.POISSON.DIST({0,1,2,3,4,5,6,7,8,9},$O20, TRUE),1), 0) -> 4 | BF20: =_xlfn.IFNA(MATCH(RAND(), _xlfn.POISSON.DIST({0,1,2,3,4,5,6,7,8,9},$O20, TRUE),1), 0) -> 3 | BG20: =_xlfn.IFNA(MATCH(RAND(), _xlfn.POISSON.DIST({0,1,2,3,4,5,6,7,8,9},$O20, TRUE),1), 0) -> 2 | BH20: =_xlfn.IFNA(MATCH(RAND(), _xlfn.POISSON.DIST({0,1,2,3,4,5,6,7,8,9},$O20, TRUE),1), 0) -> 3 | BI20: =_xlfn.IFNA(MATCH(RAND(), _xlfn.POISSON.DIST({0,1,2,3,4,5,6,7,8,9},$O20, TRUE),1), 0) -> 0 | BJ20: =_xlfn.IFNA(MATCH(RAND(), _xlfn.POISSON.DIST({0,1,2,3,4,5,6,7,8,9},$O20, TRUE),1), 0) -> 0 | BK20: =_xlfn.IFNA(MATCH(RAND(), _xlfn.POISSON.DIST({0,1,2,3,4,5,6,7,8,9},$O20, TRUE),1), 0) -> 2 | BL20: =_xlfn.IFNA(MATCH(RAND(), _xlfn.POISSON.DIST({0,1,2,3,4,5,6,7,8,9},$O20, TRUE),1), 0) -> 4 | BM20: =_xlfn.IFNA(MATCH(RAND(), _xlfn.POISSON.DIST({0,1,2,3,4,5,6,7,8,9},$O20, TRUE),1), 0) -> 3 | BN20: =_xlfn.IFNA(MATCH(RAND(), _xlfn.POISSON.DIST({0,1,2,3,4,5,6,7,8,9},$O20, TRUE),1), 0) -> 1 | BP20: =_xlfn.IFNA(MATCH(RAND(), _xlfn.POISSON.DIST({0,1,2,3,4,5,6,7,8,9},$P20, TRUE),1), 0) -> 0 | BQ20: =_xlfn.IFNA(MATCH(RAND(), _xlfn.POISSON.DIST({0,1,2,3,4,5,6,7,8,9},$P20, TRUE),1), 0) -> 3 | BR20: =_xlfn.IFNA(MATCH(RAND(), _xlfn.POISSON.DIST({0,1,2,3,4,5,6,7,8,9},$P20, TRUE),1), 0) -> 0 | BS20: =_xlfn.IFNA(MATCH(RAND(), _xlfn.POISSON.DIST({0,1,2,3,4,5,6,7,8,9},$P20, TRUE),1), 0) -> 1 | BT20: =_xlfn.IFNA(MATCH(RAND(), _xlfn.POISSON.DIST({0,1,2,3,4,5,6,7,8,9},$P20, TRUE),1), 0) -> 0 | BU20: =_xlfn.IFNA(MATCH(RAND(), _xlfn.POISSON.DIST({0,1,2,3,4,5,6,7,8,9},$P20, TRUE),1), 0) -> 2 | BV20: =_xlfn.IFNA(MATCH(RAND(), _xlfn.POISSON.DIST({0,1,2,3,4,5,6,7,8,9},$P20, TRUE),1), 0) -> 1 | BW20: =_xlfn.IFNA(MATCH(RAND(), _xlfn.POISSON.DIST({0,1,2,3,4,5,6,7,8,9},$P20, TRUE),1), 0) -> 2 | BX20: =_xlfn.IFNA(MATCH(RAND(), _xlfn.POISSON.DIST({0,1,2,3,4,5,6,7,8,9},$P20, TRUE),1), 0) -> 1 | BY20: =_xlfn.IFNA(MATCH(RAND(), _xlfn.POISSON.DIST({0,1,2,3,4,5,6,7,8,9},$P20, TRUE),1), 0) -> 1 | BZ20: =_xlfn.IFNA(MATCH(RAND(), _xlfn.POISSON.DIST({0,1,2,3,4,5,6,7,8,9},$P20, TRUE),1), 0) -> 2 | CA20: =_xlfn.IFNA(MATCH(RAND(), _xlfn.POISSON.DIST({0,1,2,3,4,5,6,7,8,9},$P20, TRUE),1), 0) -> 1 | CB20: =_xlfn.IFNA(MATCH(RAND(), _xlfn.POISSON.DIST({0,1,2,3,4,5,6,7,8,9},$P20, TRUE),1), 0) -> 4 | CC20: =_xlfn.IFNA(MATCH(RAND(), _xlfn.POISSON.DIST({0,1,2,3,4,5,6,7,8,9},$P20, TRUE),1), 0) -> 1 | CD20: =_xlfn.IFNA(MATCH(RAND(), _xlfn.POISSON.DIST({0,1,2,3,4,5,6,7,8,9},$P20, TRUE),1), 0) -> 1 | CE20: =_xlfn.IFNA(MATCH(RAND(), _xlfn.POISSON.DIST({0,1,2,3,4,5,6,7,8,9},$P20, TRUE),1), 0) -> 2 | CF20: =_xlfn.IFNA(MATCH(RAND(), _xlfn.POISSON.DIST({0,1,2,3,4,5,6,7,8,9},$P20, TRUE),1), 0) -> 0 | CG20: =_xlfn.IFNA(MATCH(RAND(), _xlfn.POISSON.DIST({0,1,2,3,4,5,6,7,8,9},$P20, TRUE),1), 0) -> 1 | CH20: =_xlfn.IFNA(MATCH(RAND(), _xlfn.POISSON.DIST({0,1,2,3,4,5,6,7,8,9},$P20, TRUE),1), 0) -> 0 | CI20: =_xlfn.IFNA(MATCH(RAND(), _xlfn.POISSON.DIST({0,1,2,3,4,5,6,7,8,9},$P20, TRUE),1), 0) -> 4 | CJ20: =_xlfn.IFNA(MATCH(RAND(), _xlfn.POISSON.DIST({0,1,2,3,4,5,6,7,8,9},$P20, TRUE),1), 0) -> 1 | CK20: =_xlfn.IFNA(MATCH(RAND(), _xlfn.POISSON.DIST({0,1,2,3,4,5,6,7,8,9},$P20, TRUE),1), 0) -> 0 | CL20: =_xlfn.IFNA(MATCH(RAND(), _xlfn.POISSON.DIST({0,1,2,3,4,5,6,7,8,9},$P20, TRUE),1), 0) -> 3 | CM20: =_xlfn.IFNA(MATCH(RAND(), _xlfn.POISSON.DIST({0,1,2,3,4,5,6,7,8,9},$P20, TRUE),1), 0) -> 3 | CN20: =_xlfn.IFNA(MATCH(RAND(), _xlfn.POISSON.DIST({0,1,2,3,4,5,6,7,8,9},$P20, TRUE),1), 0) -> 1 | CO20: =_xlfn.IFNA(MATCH(RAND(), _xlfn.POISSON.DIST({0,1,2,3,4,5,6,7,8,9},$P20, TRUE),1), 0) -> 1 | CP20: =_xlfn.IFNA(MATCH(RAND(), _xlfn.POISSON.DIST({0,1,2,3,4,5,6,7,8,9},$P20, TRUE),1), 0) -> 0 | CQ20: =_xlfn.IFNA(MATCH(RAND(), _xlfn.POISSON.DIST({0,1,2,3,4,5,6,7,8,9},$P20, TRUE),1), 0) -> 0 | CR20: =_xlfn.IFNA(MATCH(RAND(), _xlfn.POISSON.DIST({0,1,2,3,4,5,6,7,8,9},$P20, TRUE),1), 0) -> 2 | CS20: =_xlfn.IFNA(MATCH(RAND(), _xlfn.POISSON.DIST({0,1,2,3,4,5,6,7,8,9},$P20, TRUE),1), 0) -> 0 | CT20: =_xlfn.IFNA(MATCH(RAND(), _xlfn.POISSON.DIST({0,1,2,3,4,5,6,7,8,9},$P20, TRUE),1), 0) -> 1 | CU20: =_xlfn.IFNA(MATCH(RAND(), _xlfn.POISSON.DIST({0,1,2,3,4,5,6,7,8,9},$P20, TRUE),1), 0) -> 1 | CV20: =_xlfn.IFNA(MATCH(RAND(), _xlfn.POISSON.DIST({0,1,2,3,4,5,6,7,8,9},$P20, TRUE),1), 0) -> 2 | CW20: =_xlfn.IFNA(MATCH(RAND(), _xlfn.POISSON.DIST({0,1,2,3,4,5,6,7,8,9},$P20, TRUE),1), 0) -> 0 | CX20: =_xlfn.IFNA(MATCH(RAND(), _xlfn.POISSON.DIST({0,1,2,3,4,5,6,7,8,9},$P20, TRUE),1), 0) -> 0 | CY20: =_xlfn.IFNA(MATCH(RAND(), _xlfn.POISSON.DIST({0,1,2,3,4,5,6,7,8,9},$P20, TRUE),1), 0) -> 1 | CZ20: =_xlfn.IFNA(MATCH(RAND(), _xlfn.POISSON.DIST({0,1,2,3,4,5,6,7,8,9},$P20, TRUE),1), 0) -> 0 | DA20: =_xlfn.IFNA(MATCH(RAND(), _xlfn.POISSON.DIST({0,1,2,3,4,5,6,7,8,9},$P20, TRUE),1), 0) -> 1 | DB20: =_xlfn.IFNA(MATCH(RAND(), _xlfn.POISSON.DIST({0,1,2,3,4,5,6,7,8,9},$P20, TRUE),1), 0) -> 2 | DC20: =_xlfn.IFNA(MATCH(RAND(), _xlfn.POISSON.DIST({0,1,2,3,4,5,6,7,8,9},$P20, TRUE),1), 0) -> 1 | DD20: =_xlfn.IFNA(MATCH(RAND(), _xlfn.POISSON.DIST({0,1,2,3,4,5,6,7,8,9},$P20, TRUE),1), 0) -> 0 | DE20: =_xlfn.IFNA(MATCH(RAND(), _xlfn.POISSON.DIST({0,1,2,3,4,5,6,7,8,9},$P20, TRUE),1), 0) -> 1 | DF20: =_xlfn.IFNA(MATCH(RAND(), _xlfn.POISSON.DIST({0,1,2,3,4,5,6,7,8,9},$P20, TRUE),1), 0) -> 2 | DG20: =_xlfn.IFNA(MATCH(RAND(), _xlfn.POISSON.DIST({0,1,2,3,4,5,6,7,8,9},$P20, TRUE),1), 0) -> 3 | DH20: =_xlfn.IFNA(MATCH(RAND(), _xlfn.POISSON.DIST({0,1,2,3,4,5,6,7,8,9},$P20, TRUE),1), 0) -> 0 | DI20: =_xlfn.IFNA(MATCH(RAND(), _xlfn.POISSON.DIST({0,1,2,3,4,5,6,7,8,9},$P20, TRUE),1), 0) -> 3 | DJ20: =_xlfn.IFNA(MATCH(RAND(), _xlfn.POISSON.DIST({0,1,2,3,4,5,6,7,8,9},$P20, TRUE),1), 0) -> 0 | DK20: =_xlfn.IFNA(MATCH(RAND(), _xlfn.POISSON.DIST({0,1,2,3,4,5,6,7,8,9},$P20, TRUE),1), 0) -> 2 | DL20: =_xlfn.IFNA(MATCH(RAND(), _xlfn.POISSON.DIST({0,1,2,3,4,5,6,7,8,9},$P20, TRUE),1), 0) -> 2 | DM20: =_xlfn.IFNA(MATCH(RAND(), _xlfn.POISSON.DIST({0,1,2,3,4,5,6,7,8,9},$P20, TRUE),1), 0) -> 3
C21: 2019-06-13 | D21: C | E21: Австралия | F21: =(AVERAGE(Q21:BN21))*(1+INDEX('Прогнозы группового этапа'!$C$4:$O$28, MATCH('Матчи за текущий год'!E21,'Прогнозы группового этапа'!$D$4:$D$28,0),3)) -> 1.52 | G21: Бразилия | H21: =(AVERAGE(BP21:DM21))*(1+INDEX('Прогнозы группового этапа'!$C$4:$O$28, MATCH('Матчи за текущий год'!G21,'Прогнозы группового этапа'!$D$4:$D$28,0),3)) -> 1.66 | I21: Бразилия | L21: 1.52 | M21: 1.66 | N21: Бразилия | O21: =(OFFSET('Прил. 3. Голы в группе'!$D$14,(INDEX('Прил. 1. Данные команды'!$C$13:$F$112,MATCH(G21,'Прил. 1. Данные команды'!$C$13:$C$112,0),4)/10),(INDEX('Прил. 1. Данные команды'!$C$13:$F$112,MATCH(E21,'Прил. 1. Данные команды'!$C$13:$C$112,0),4)/10))) -> 1.50 | P21: =OFFSET('Прил. 3. Голы в группе'!$D$14,(INDEX('Прил. 1. Данные команды'!$C$13:$F$112, MATCH(E21,'Прил. 1. Данные команды'!$C$13:$C$112,0),4)/10), (INDEX('Прил. 1. Данные команды'!$C$13:$F$112, MATCH(G21, 'Прил. 1. Данные команды'!$C$13:$C$112,0),4)/10)) -> 1.50 | Q21: =_xlfn.IFNA(MATCH(RAND(), _xlfn.POISSON.DIST({0,1,2,3,4,5,6,7,8,9},$O21, TRUE),1), 0) -> 3 | R21: =_xlfn.IFNA(MATCH(RAND(), _xlfn.POISSON.DIST({0,1,2,3,4,5,6,7,8,9},$O21, TRUE),1), 0) -> 2 | S21: =_xlfn.IFNA(MATCH(RAND(), _xlfn.POISSON.DIST({0,1,2,3,4,5,6,7,8,9},$O21, TRUE),1), 0) -> 1 | T21: =_xlfn.IFNA(MATCH(RAND(), _xlfn.POISSON.DIST({0,1,2,3,4,5,6,7,8,9},$O21, TRUE),1), 0) -> 0 | U21: =_xlfn.IFNA(MATCH(RAND(), _xlfn.POISSON.DIST({0,1,2,3,4,5,6,7,8,9},$O21, TRUE),1), 0) -> 2 | V21: =_xlfn.IFNA(MATCH(RAND(), _xlfn.POISSON.DIST({0,1,2,3,4,5,6,7,8,9},$O21, TRUE),1), 0) -> 0 | W21: =_xlfn.IFNA(MATCH(RAND(), _xlfn.POISSON.DIST({0,1,2,3,4,5,6,7,8,9},$O21, TRUE),1), 0) -> 2 | X21: =_xlfn.IFNA(MATCH(RAND(), _xlfn.POISSON.DIST({0,1,2,3,4,5,6,7,8,9},$O21, TRUE),1), 0) -> 1 | Y21: =_xlfn.IFNA(MATCH(RAND(), _xlfn.POISSON.DIST({0,1,2,3,4,5,6,7,8,9},$O21, TRUE),1), 0) -> 0 | Z21: =_xlfn.IFNA(MATCH(RAND(), _xlfn.POISSON.DIST({0,1,2,3,4,5,6,7,8,9},$O21, TRUE),1), 0) -> 1 | AA21: =_xlfn.IFNA(MATCH(RAND(), _xlfn.POISSON.DIST({0,1,2,3,4,5,6,7,8,9},$O21, TRUE),1), 0) -> 0 | AB21: =_xlfn.IFNA(MATCH(RAND(), _xlfn.POISSON.DIST({0,1,2,3,4,5,6,7,8,9},$O21, TRUE),1), 0) -> 0 | AC21: =_xlfn.IFNA(MATCH(RAND(), _xlfn.POISSON.DIST({0,1,2,3,4,5,6,7,8,9},$O21, TRUE),1), 0) -> 1 | AD21: =_xlfn.IFNA(MATCH(RAND(), _xlfn.POISSON.DIST({0,1,2,3,4,5,6,7,8,9},$O21, TRUE),1), 0) -> 1 | AE21: =_xlfn.IFNA(MATCH(RAND(), _xlfn.POISSON.DIST({0,1,2,3,4,5,6,7,8,9},$O21, TRUE),1), 0) -> 2 | AF21: =_xlfn.IFNA(MATCH(RAND(), _xlfn.POISSON.DIST({0,1,2,3,4,5,6,7,8,9},$O21, TRUE),1), 0) -> 4 | AG21: =_xlfn.IFNA(MATCH(RAND(), _xlfn.POISSON.DIST({0,1,2,3,4,5,6,7,8,9},$O21, TRUE),1), 0) -> 0 | AH21: =_xlfn.IFNA(MATCH(RAND(), _xlfn.POISSON.DIST({0,1,2,3,4,5,6,7,8,9},$O21, TRUE),1), 0) -> 0 | AI21: =_xlfn.IFNA(MATCH(RAND(), _xlfn.POISSON.DIST({0,1,2,3,4,5,6,7,8,9},$O21, TRUE),1), 0) -> 0 | AJ21: =_xlfn.IFNA(MATCH(RAND(), _xlfn.POISSON.DIST({0,1,2,3,4,5,6,7,8,9},$O21, TRUE),1), 0) -> 2 | AK21: =_xlfn.IFNA(MATCH(RAND(), _xlfn.POISSON.DIST({0,1,2,3,4,5,6,7,8,9},$O21, TRUE),1), 0) -> 2 | AL21: =_xlfn.IFNA(MATCH(RAND(), _xlfn.POISSON.DIST({0,1,2,3,4,5,6,7,8,9},$O21, TRUE),1), 0) -> 2 | AM21: =_xlfn.IFNA(MATCH(RAND(), _xlfn.POISSON.DIST({0,1,2,3,4,5,6,7,8,9},$O21, TRUE),1), 0) -> 3 | AN21: =_xlfn.IFNA(MATCH(RAND(), _xlfn.POISSON.DIST({0,1,2,3,4,5,6,7,8,9},$O21, TRUE),1), 0) -> 2 | AO21: =_xlfn.IFNA(MATCH(RAND(), _xlfn.POISSON.DIST({0,1,2,3,4,5,6,7,8,9},$O21, TRUE),1), 0) -> 0 | AP21: =_xlfn.IFNA(MATCH(RAND(), _xlfn.POISSON.DIST({0,1,2,3,4,5,6,7,8,9},$O21, TRUE),1), 0) -> 3 | AQ21: =_xlfn.IFNA(MATCH(RAND(), _xlfn.POISSON.DIST({0,1,2,3,4,5,6,7,8,9},$O21, TRUE),1), 0) -> 1 | AR21: =_xlfn.IFNA(MATCH(RAND(), _xlfn.POISSON.DIST({0,1,2,3,4,5,6,7,8,9},$O21, TRUE),1), 0) -> 2 | AS21: =_xlfn.IFNA(MATCH(RAND(), _xlfn.POISSON.DIST({0,1,2,3,4,5,6,7,8,9},$O21, TRUE),1), 0) -> 0 | AT21: =_xlfn.IFNA(MATCH(RAND(), _xlfn.POISSON.DIST({0,1,2,3,4,5,6,7,8,9},$O21, TRUE),1), 0) -> 2 | AU21: =_xlfn.IFNA(MATCH(RAND(), _xlfn.POISSON.DIST({0,1,2,3,4,5,6,7,8,9},$O21, TRUE),1), 0) -> 0 | AV21: =_xlfn.IFNA(MATCH(RAND(), _xlfn.POISSON.DIST({0,1,2,3,4,5,6,7,8,9},$O21, TRUE),1), 0) -> 3 | AW21: =_xlfn.IFNA(MATCH(RAND(), _xlfn.POISSON.DIST({0,1,2,3,4,5,6,7,8,9},$O21, TRUE),1), 0) -> 2 | AX21: =_xlfn.IFNA(MATCH(RAND(), _xlfn.POISSON.DIST({0,1,2,3,4,5,6,7,8,9},$O21, TRUE),1), 0) -> 2 | AY21: =_xlfn.IFNA(MATCH(RAND(), _xlfn.POISSON.DIST({0,1,2,3,4,5,6,7,8,9},$O21, TRUE),1), 0) -> 3 | AZ21: =_xlfn.IFNA(MATCH(RAND(), _xlfn.POISSON.DIST({0,1,2,3,4,5,6,7,8,9},$O21, TRUE),1), 0) -> 4 | BA21: =_xlfn.IFNA(MATCH(RAND(), _xlfn.POISSON.DIST({0,1,2,3,4,5,6,7,8,9},$O21, TRUE),1), 0) -> 3 | BB21: =_xlfn.IFNA(MATCH(RAND(), _xlfn.POISSON.DIST({0,1,2,3,4,5,6,7,8,9},$O21, TRUE),1), 0) -> 1 | BC21: =_xlfn.IFNA(MATCH(RAND(), _xlfn.POISSON.DIST({0,1,2,3,4,5,6,7,8,9},$O21, TRUE),1), 0) -> 2 | BD21: =_xlfn.IFNA(MATCH(RAND(), _xlfn.POISSON.DIST({0,1,2,3,4,5,6,7,8,9},$O21, TRUE),1), 0) -> 2 | BE21: =_xlfn.IFNA(MATCH(RAND(), _xlfn.POISSON.DIST({0,1,2,3,4,5,6,7,8,9},$O21, TRUE),1), 0) -> 1 | BF21: =_xlfn.IFNA(MATCH(RAND(), _xlfn.POISSON.DIST({0,1,2,3,4,5,6,7,8,9},$O21, TRUE),1), 0) -> 2 | BG21: =_xlfn.IFNA(MATCH(RAND(), _xlfn.POISSON.DIST({0,1,2,3,4,5,6,7,8,9},$O21, TRUE),1), 0) -> 2 | BH21: =_xlfn.IFNA(MATCH(RAND(), _xlfn.POISSON.DIST({0,1,2,3,4,5,6,7,8,9},$O21, TRUE),1), 0) -> 1 | BI21: =_xlfn.IFNA(MATCH(RAND(), _xlfn.POISSON.DIST({0,1,2,3,4,5,6,7,8,9},$O21, TRUE),1), 0) -> 1 | BJ21: =_xlfn.IFNA(MATCH(RAND(), _xlfn.POISSON.DIST({0,1,2,3,4,5,6,7,8,9},$O21, TRUE),1), 0) -> 3 | BK21: =_xlfn.IFNA(MATCH(RAND(), _xlfn.POISSON.DIST({0,1,2,3,4,5,6,7,8,9},$O21, TRUE),1), 0) -> 1 | BL21: =_xlfn.IFNA(MATCH(RAND(), _xlfn.POISSON.DIST({0,1,2,3,4,5,6,7,8,9},$O21, TRUE),1), 0) -> 0 | BM21: =_xlfn.IFNA(MATCH(RAND(), _xlfn.POISSON.DIST({0,1,2,3,4,5,6,7,8,9},$O21, TRUE),1), 0) -> 1 | BN21: =_xlfn.IFNA(MATCH(RAND(), _xlfn.POISSON.DIST({0,1,2,3,4,5,6,7,8,9},$O21, TRUE),1), 0) -> 3 | BP21: =_xlfn.IFNA(MATCH(RAND(), _xlfn.POISSON.DIST({0,1,2,3,4,5,6,7,8,9},$P21, TRUE),1), 0) -> 0 | BQ21: =_xlfn.IFNA(MATCH(RAND(), _xlfn.POISSON.DIST({0,1,2,3,4,5,6,7,8,9},$P21, TRUE),1), 0) -> 2 | BR21: =_xlfn.IFNA(MATCH(RAND(), _xlfn.POISSON.DIST({0,1,2,3,4,5,6,7,8,9},$P21, TRUE),1), 0) -> 1 | BS21: =_xlfn.IFNA(MATCH(RAND(), _xlfn.POISSON.DIST({0,1,2,3,4,5,6,7,8,9},$P21, TRUE),1), 0) -> 0 | BT21: =_xlfn.IFNA(MATCH(RAND(), _xlfn.POISSON.DIST({0,1,2,3,4,5,6,7,8,9},$P21, TRUE),1), 0) -> 3 | BU21: =_xlfn.IFNA(MATCH(RAND(), _xlfn.POISSON.DIST({0,1,2,3,4,5,6,7,8,9},$P21, TRUE),1), 0) -> 1 | BV21: =_xlfn.IFNA(MATCH(RAND(), _xlfn.POISSON.DIST({0,1,2,3,4,5,6,7,8,9},$P21, TRUE),1), 0) -> 4 | BW21: =_xlfn.IFNA(MATCH(RAND(), _xlfn.POISSON.DIST({0,1,2,3,4,5,6,7,8,9},$P21, TRUE),1), 0) -> 2 | BX21: =_xlfn.IFNA(MATCH(RAND(), _xlfn.POISSON.DIST({0,1,2,3,4,5,6,7,8,9},$P21, TRUE),1), 0) -> 2 | BY21: =_xlfn.IFNA(MATCH(RAND(), _xlfn.POISSON.DIST({0,1,2,3,4,5,6,7,8,9},$P21, TRUE),1), 0) -> 2 | BZ21: =_xlfn.IFNA(MATCH(RAND(), _xlfn.POISSON.DIST({0,1,2,3,4,5,6,7,8,9},$P21, TRUE),1), 0) -> 2 | CA21: =_xlfn.IFNA(MATCH(RAND(), _xlfn.POISSON.DIST({0,1,2,3,4,5,6,7,8,9},$P21, TRUE),1), 0) -> 3 | CB21: =_xlfn.IFNA(MATCH(RAND(), _xlfn.POISSON.DIST({0,1,2,3,4,5,6,7,8,9},$P21, TRUE),1), 0) -> 3 | CC21: =_xlfn.IFNA(MATCH(RAND(), _xlfn.POISSON.DIST({0,1,2,3,4,5,6,7,8,9},$P21, TRUE),1), 0) -> 2 | CD21: =_xlfn.IFNA(MATCH(RAND(), _xlfn.POISSON.DIST({0,1,2,3,4,5,6,7,8,9},$P21, TRUE),1), 0) -> 1 | CE21: =_xlfn.IFNA(MATCH(RAND(), _xlfn.POISSON.DIST({0,1,2,3,4,5,6,7,8,9},$P21, TRUE),1), 0) -> 1 | CF21: =_xlfn.IFNA(MATCH(RAND(), _xlfn.POISSON.DIST({0,1,2,3,4,5,6,7,8,9},$P21, TRUE),1), 0) -> 1 | CG21: =_xlfn.IFNA(MATCH(RAND(), _xlfn.POISSON.DIST({0,1,2,3,4,5,6,7,8,9},$P21, TRUE),1), 0) -> 2 | CH21: =_xlfn.IFNA(MATCH(RAND(), _xlfn.POISSON.DIST({0,1,2,3,4,5,6,7,8,9},$P21, TRUE),1), 0) -> 3 | CI21: =_xlfn.IFNA(MATCH(RAND(), _xlfn.POISSON.DIST({0,1,2,3,4,5,6,7,8,9},$P21, TRUE),1), 0) -> 3 | CJ21: =_xlfn.IFNA(MATCH(RAND(), _xlfn.POISSON.DIST({0,1,2,3,4,5,6,7,8,9},$P21, TRUE),1), 0) -> 1 | CK21: =_xlfn.IFNA(MATCH(RAND(), _xlfn.POISSON.DIST({0,1,2,3,4,5,6,7,8,9},$P21, TRUE),1), 0) -> 1 | CL21: =_xlfn.IFNA(MATCH(RAND(), _xlfn.POISSON.DIST({0,1,2,3,4,5,6,7,8,9},$P21, TRUE),1), 0) -> 0 | CM21: =_xlfn.IFNA(MATCH(RAND(), _xlfn.POISSON.DIST({0,1,2,3,4,5,6,7,8,9},$P21, TRUE),1), 0) -> 1 | CN21: =_xlfn.IFNA(MATCH(RAND(), _xlfn.POISSON.DIST({0,1,2,3,4,5,6,7,8,9},$P21, TRUE),1), 0) -> 2 | CO21: =_xlfn.IFNA(MATCH(RAND(), _xlfn.POISSON.DIST({0,1,2,3,4,5,6,7,8,9},$P21, TRUE),1), 0) -> 1 | CP21: =_xlfn.IFNA(MATCH(RAND(), _xlfn.POISSON.DIST({0,1,2,3,4,5,6,7,8,9},$P21, TRUE),1), 0) -> 1 | CQ21: =_xlfn.IFNA(MATCH(RAND(), _xlfn.POISSON.DIST({0,1,2,3,4,5,6,7,8,9},$P21, TRUE),1), 0) -> 3 | CR21: =_xlfn.IFNA(MATCH(RAND(), _xlfn.POISSON.DIST({0,1,2,3,4,5,6,7,8,9},$P21, TRUE),1), 0) -> 1 | CS21: =_xlfn.IFNA(MATCH(RAND(), _xlfn.POISSON.DIST({0,1,2,3,4,5,6,7,8,9},$P21, TRUE),1), 0) -> 1 | CT21: =_xlfn.IFNA(MATCH(RAND(), _xlfn.POISSON.DIST({0,1,2,3,4,5,6,7,8,9},$P21, TRUE),1), 0) -> 2 | CU21: =_xlfn.IFNA(MATCH(RAND(), _xlfn.POISSON.DIST({0,1,2,3,4,5,6,7,8,9},$P21, TRUE),1), 0) -> 1 | CV21: =_xlfn.IFNA(MATCH(RAND(), _xlfn.POISSON.DIST({0,1,2,3,4,5,6,7,8,9},$P21, TRUE),1), 0) -> 1 | CW21: =_xlfn.IFNA(MATCH(RAND(), _xlfn.POISSON.DIST({0,1,2,3,4,5,6,7,8,9},$P21, TRUE),1), 0) -> 2 | CX21: =_xlfn.IFNA(MATCH(RAND(), _xlfn.POISSON.DIST({0,1,2,3,4,5,6,7,8,9},$P21, TRUE),1), 0) -> 1 | CY21: =_xlfn.IFNA(MATCH(RAND(), _xlfn.POISSON.DIST({0,1,2,3,4,5,6,7,8,9},$P21, TRUE),1), 0) -> 3 | CZ21: =_xlfn.IFNA(MATCH(RAND(), _xlfn.POISSON.DIST({0,1,2,3,4,5,6,7,8,9},$P21, TRUE),1), 0) -> 3 | DA21: =_xlfn.IFNA(MATCH(RAND(), _xlfn.POISSON.DIST({0,1,2,3,4,5,6,7,8,9},$P21, TRUE),1), 0) -> 0 | DB21: =_xlfn.IFNA(MATCH(RAND(), _xlfn.POISSON.DIST({0,1,2,3,4,5,6,7,8,9},$P21, TRUE),1), 0) -> 1 | DC21: =_xlfn.IFNA(MATCH(RAND(), _xlfn.POISSON.DIST({0,1,2,3,4,5,6,7,8,9},$P21, TRUE),1), 0) -> 0 | DD21: =_xlfn.IFNA(MATCH(RAND(), _xlfn.POISSON.DIST({0,1,2,3,4,5,6,7,8,9},$P21, TRUE),1), 0) -> 2 | DE21: =_xlfn.IFNA(MATCH(RAND(), _xlfn.POISSON.DIST({0,1,2,3,4,5,6,7,8,9},$P21, TRUE),1), 0) -> 3 | DF21: =_xlfn.IFNA(MATCH(RAND(), _xlfn.POISSON.DIST({0,1,2,3,4,5,6,7,8,9},$P21, TRUE),1), 0) -> 4 | DG21: =_xlfn.IFNA(MATCH(RAND(), _xlfn.POISSON.DIST({0,1,2,3,4,5,6,7,8,9},$P21, TRUE),1), 0) -> 2 | DH21: =_xlfn.IFNA(MATCH(RAND(), _xlfn.POISSON.DIST({0,1,2,3,4,5,6,7,8,9},$P21, TRUE),1), 0) -> 0 | DI21: =_xlfn.IFNA(MATCH(RAND(), _xlfn.POISSON.DIST({0,1,2,3,4,5,6,7,8,9},$P21, TRUE),1), 0) -> 1 | DJ21: =_xlfn.IFNA(MATCH(RAND(), _xlfn.POISSON.DIST({0,1,2,3,4,5,6,7,8,9},$P21, TRUE),1), 0) -> 0 | DK21: =_xlfn.IFNA(MATCH(RAND(), _xlfn.POISSON.DIST({0,1,2,3,4,5,6,7,8,9},$P21, TRUE),1), 0) -> 3 | DL21: =_xlfn.IFNA(MATCH(RAND(), _xlfn.POISSON.DIST({0,1,2,3,4,5,6,7,8,9},$P21, TRUE),1), 0) -> 2 | DM21: =_xlfn.IFNA(MATCH(RAND(), _xlfn.POISSON.DIST({0,1,2,3,4,5,6,7,8,9},$P21, TRUE),1), 0) -> 2
C22: 2019-06-13 | D22: Б | E22: ЮАР | F22: =(AVERAGE(Q22:BN22))*(1+INDEX('Прогнозы группового этапа'!$C$4:$O$28, MATCH('Матчи за текущий год'!E22,'Прогнозы группового этапа'!$D$4:$D$28,0),3)) -> 0.36 | G22: Китай | H22: =(AVERAGE(BP22:DM22))*(1+INDEX('Прогнозы группового этапа'!$C$4:$O$28, MATCH('Матчи за текущий год'!G22,'Прогнозы группового этапа'!$D$4:$D$28,0),3)) -> 2.80 | I22: Китай | L22: 0.36 | M22: 2.8 | N22: Китай | O22: =(OFFSET('Прил. 3. Голы в группе'!$D$14,(INDEX('Прил. 1. Данные команды'!$C$13:$F$112,MATCH(G22,'Прил. 1. Данные команды'!$C$13:$C$112,0),4)/10),(INDEX('Прил. 1. Данные команды'!$C$13:$F$112,MATCH(E22,'Прил. 1. Данные команды'!$C$13:$C$112,0),4)/10))) -> 0.38 | P22: =OFFSET('Прил. 3. Голы в группе'!$D$14,(INDEX('Прил. 1. Данные команды'!$C$13:$F$112, MATCH(E22,'Прил. 1. Данные команды'!$C$13:$C$112,0),4)/10), (INDEX('Прил. 1. Данные команды'!$C$13:$F$112, MATCH(G22, 'Прил. 1. Данные команды'!$C$13:$C$112,0),4)/10)) -> 2.94 | Q22: =_xlfn.IFNA(MATCH(RAND(), _xlfn.POISSON.DIST({0,1,2,3,4,5,6,7,8,9},$O22, TRUE),1), 0) -> 0 | R22: =_xlfn.IFNA(MATCH(RAND(), _xlfn.POISSON.DIST({0,1,2,3,4,5,6,7,8,9},$O22, TRUE),1), 0) -> 0 | S22: =_xlfn.IFNA(MATCH(RAND(), _xlfn.POISSON.DIST({0,1,2,3,4,5,6,7,8,9},$O22, TRUE),1), 0) -> 0 | T22: =_xlfn.IFNA(MATCH(RAND(), _xlfn.POISSON.DIST({0,1,2,3,4,5,6,7,8,9},$O22, TRUE),1), 0) -> 0 | U22: =_xlfn.IFNA(MATCH(RAND(), _xlfn.POISSON.DIST({0,1,2,3,4,5,6,7,8,9},$O22, TRUE),1), 0) -> 2 | V22: =_xlfn.IFNA(MATCH(RAND(), _xlfn.POISSON.DIST({0,1,2,3,4,5,6,7,8,9},$O22, TRUE),1), 0) -> 1 | W22: =_xlfn.IFNA(MATCH(RAND(), _xlfn.POISSON.DIST({0,1,2,3,4,5,6,7,8,9},$O22, TRUE),1), 0) -> 1 | X22: =_xlfn.IFNA(MATCH(RAND(), _xlfn.POISSON.DIST({0,1,2,3,4,5,6,7,8,9},$O22, TRUE),1), 0) -> 1 | Y22: =_xlfn.IFNA(MATCH(RAND(), _xlfn.POISSON.DIST({0,1,2,3,4,5,6,7,8,9},$O22, TRUE),1), 0) -> 0 | Z22: =_xlfn.IFNA(MATCH(RAND(), _xlfn.POISSON.DIST({0,1,2,3,4,5,6,7,8,9},$O22, TRUE),1), 0) -> 0 | AA22: =_xlfn.IFNA(MATCH(RAND(), _xlfn.POISSON.DIST({0,1,2,3,4,5,6,7,8,9},$O22, TRUE),1), 0) -> 0 | AB22: =_xlfn.IFNA(MATCH(RAND(), _xlfn.POISSON.DIST({0,1,2,3,4,5,6,7,8,9},$O22, TRUE),1), 0) -> 1 | AC22: =_xlfn.IFNA(MATCH(RAND(), _xlfn.POISSON.DIST({0,1,2,3,4,5,6,7,8,9},$O22, TRUE),1), 0) -> 0 | AD22: =_xlfn.IFNA(MATCH(RAND(), _xlfn.POISSON.DIST({0,1,2,3,4,5,6,7,8,9},$O22, TRUE),1), 0) -> 0 | AE22: =_xlfn.IFNA(MATCH(RAND(), _xlfn.POISSON.DIST({0,1,2,3,4,5,6,7,8,9},$O22, TRUE),1), 0) -> 1 | AF22: =_xlfn.IFNA(MATCH(RAND(), _xlfn.POISSON.DIST({0,1,2,3,4,5,6,7,8,9},$O22, TRUE),1), 0) -> 0 | AG22: =_xlfn.IFNA(MATCH(RAND(), _xlfn.POISSON.DIST({0,1,2,3,4,5,6,7,8,9},$O22, TRUE),1), 0) -> 1 | AH22: =_xlfn.IFNA(MATCH(RAND(), _xlfn.POISSON.DIST({0,1,2,3,4,5,6,7,8,9},$O22, TRUE),1), 0) -> 0 | AI22: =_xlfn.IFNA(MATCH(RAND(), _xlfn.POISSON.DIST({0,1,2,3,4,5,6,7,8,9},$O22, TRUE),1), 0) -> 0 | AJ22: =_xlfn.IFNA(MATCH(RAND(), _xlfn.POISSON.DIST({0,1,2,3,4,5,6,7,8,9},$O22, TRUE),1), 0) -> 1 | AK22: =_xlfn.IFNA(MATCH(RAND(), _xlfn.POISSON.DIST({0,1,2,3,4,5,6,7,8,9},$O22, TRUE),1), 0) -> 1 | AL22: =_xlfn.IFNA(MATCH(RAND(), _xlfn.POISSON.DIST({0,1,2,3,4,5,6,7,8,9},$O22, TRUE),1), 0) -> 0 | AM22: =_xlfn.IFNA(MATCH(RAND(), _xlfn.POISSON.DIST({0,1,2,3,4,5,6,7,8,9},$O22, TRUE),1), 0) -> 1 | AN22: =_xlfn.IFNA(MATCH(RAND(), _xlfn.POISSON.DIST({0,1,2,3,4,5,6,7,8,9},$O22, TRUE),1), 0) -> 1 | AO22: =_xlfn.IFNA(MATCH(RAND(), _xlfn.POISSON.DIST({0,1,2,3,4,5,6,7,8,9},$O22, TRUE),1), 0) -> 0 | AP22: =_xlfn.IFNA(MATCH(RAND(), _xlfn.POISSON.DIST({0,1,2,3,4,5,6,7,8,9},$O22, TRUE),1), 0) -> 0 | AQ22: =_xlfn.IFNA(MATCH(RAND(), _xlfn.POISSON.DIST({0,1,2,3,4,5,6,7,8,9},$O22, TRUE),1), 0) -> 1 | AR22: =_xlfn.IFNA(MATCH(RAND(), _xlfn.POISSON.DIST({0,1,2,3,4,5,6,7,8,9},$O22, TRUE),1), 0) -> 0 | AS22: =_xlfn.IFNA(MATCH(RAND(), _xlfn.POISSON.DIST({0,1,2,3,4,5,6,7,8,9},$O22, TRUE),1), 0) -> 0 | AT22: =_xlfn.IFNA(MATCH(RAND(), _xlfn.POISSON.DIST({0,1,2,3,4,5,6,7,8,9},$O22, TRUE),1), 0) -> 0 | AU22: =_xlfn.IFNA(MATCH(RAND(), _xlfn.POISSON.DIST({0,1,2,3,4,5,6,7,8,9},$O22, TRUE),1), 0) -> 1 | AV22: =_xlfn.IFNA(MATCH(RAND(), _xlfn.POISSON.DIST({0,1,2,3,4,5,6,7,8,9},$O22, TRUE),1), 0) -> 0 | AW22: =_xlfn.IFNA(MATCH(RAND(), _xlfn.POISSON.DIST({0,1,2,3,4,5,6,7,8,9},$O22, TRUE),1), 0) -> 0 | AX22: =_xlfn.IFNA(MATCH(RAND(), _xlfn.POISSON.DIST({0,1,2,3,4,5,6,7,8,9},$O22, TRUE),1), 0) -> 0 | AY22: =_xlfn.IFNA(MATCH(RAND(), _xlfn.POISSON.DIST({0,1,2,3,4,5,6,7,8,9},$O22, TRUE),1), 0) -> 0 | AZ22: =_xlfn.IFNA(MATCH(RAND(), _xlfn.POISSON.DIST({0,1,2,3,4,5,6,7,8,9},$O22, TRUE),1), 0) -> 2 | BA22: =_xlfn.IFNA(MATCH(RAND(), _xlfn.POISSON.DIST({0,1,2,3,4,5,6,7,8,9},$O22, TRUE),1), 0) -> 0 | BB22: =_xlfn.IFNA(MATCH(RAND(), _xlfn.POISSON.DIST({0,1,2,3,4,5,6,7,8,9},$O22, TRUE),1), 0) -> 0 | BC22: =_xlfn.IFNA(MATCH(RAND(), _xlfn.POISSON.DIST({0,1,2,3,4,5,6,7,8,9},$O22, TRUE),1), 0) -> 0 | BD22: =_xlfn.IFNA(MATCH(RAND(), _xlfn.POISSON.DIST({0,1,2,3,4,5,6,7,8,9},$O22, TRUE),1), 0) -> 0 | BE22: =_xlfn.IFNA(MATCH(RAND(), _xlfn.POISSON.DIST({0,1,2,3,4,5,6,7,8,9},$O22, TRUE),1), 0) -> 0 | BF22: =_xlfn.IFNA(MATCH(RAND(), _xlfn.POISSON.DIST({0,1,2,3,4,5,6,7,8,9},$O22, TRUE),1), 0) -> 0 | BG22: =_xlfn.IFNA(MATCH(RAND(), _xlfn.POISSON.DIST({0,1,2,3,4,5,6,7,8,9},$O22, TRUE),1), 0) -> 0 | BH22: =_xlfn.IFNA(MATCH(RAND(), _xlfn.POISSON.DIST({0,1,2,3,4,5,6,7,8,9},$O22, TRUE),1), 0) -> 0 | BI22: =_xlfn.IFNA(MATCH(RAND(), _xlfn.POISSON.DIST({0,1,2,3,4,5,6,7,8,9},$O22, TRUE),1), 0) -> 0 | BJ22: =_xlfn.IFNA(MATCH(RAND(), _xlfn.POISSON.DIST({0,1,2,3,4,5,6,7,8,9},$O22, TRUE),1), 0) -> 1 | BK22: =_xlfn.IFNA(MATCH(RAND(), _xlfn.POISSON.DIST({0,1,2,3,4,5,6,7,8,9},$O22, TRUE),1), 0) -> 0 | BL22: =_xlfn.IFNA(MATCH(RAND(), _xlfn.POISSON.DIST({0,1,2,3,4,5,6,7,8,9},$O22, TRUE),1), 0) -> 0 | BM22: =_xlfn.IFNA(MATCH(RAND(), _xlfn.POISSON.DIST({0,1,2,3,4,5,6,7,8,9},$O22, TRUE),1), 0) -> 0 | BN22: =_xlfn.IFNA(MATCH(RAND(), _xlfn.POISSON.DIST({0,1,2,3,4,5,6,7,8,9},$O22, TRUE),1), 0) -> 1 | BP22: =_xlfn.IFNA(MATCH(RAND(), _xlfn.POISSON.DIST({0,1,2,3,4,5,6,7,8,9},$P22, TRUE),1), 0) -> 3 | BQ22: =_xlfn.IFNA(MATCH(RAND(), _xlfn.POISSON.DIST({0,1,2,3,4,5,6,7,8,9},$P22, TRUE),1), 0) -> 1 | BR22: =_xlfn.IFNA(MATCH(RAND(), _xlfn.POISSON.DIST({0,1,2,3,4,5,6,7,8,9},$P22, TRUE),1), 0) -> 1 | BS22: =_xlfn.IFNA(MATCH(RAND(), _xlfn.POISSON.DIST({0,1,2,3,4,5,6,7,8,9},$P22, TRUE),1), 0) -> 5 | BT22: =_xlfn.IFNA(MATCH(RAND(), _xlfn.POISSON.DIST({0,1,2,3,4,5,6,7,8,9},$P22, TRUE),1), 0) -> 3 | BU22: =_xlfn.IFNA(MATCH(RAND(), _xlfn.POISSON.DIST({0,1,2,3,4,5,6,7,8,9},$P22, TRUE),1), 0) -> 4 | BV22: =_xlfn.IFNA(MATCH(RAND(), _xlfn.POISSON.DIST({0,1,2,3,4,5,6,7,8,9},$P22, TRUE),1), 0) -> 0 | BW22: =_xlfn.IFNA(MATCH(RAND(), _xlfn.POISSON.DIST({0,1,2,3,4,5,6,7,8,9},$P22, TRUE),1), 0) -> 3 | BX22: =_xlfn.IFNA(MATCH(RAND(), _xlfn.POISSON.DIST({0,1,2,3,4,5,6,7,8,9},$P22, TRUE),1), 0) -> 2 | BY22: =_xlfn.IFNA(MATCH(RAND(), _xlfn.POISSON.DIST({0,1,2,3,4,5,6,7,8,9},$P22, TRUE),1), 0) -> 4 | BZ22: =_xlfn.IFNA(MATCH(RAND(), _xlfn.POISSON.DIST({0,1,2,3,4,5,6,7,8,9},$P22, TRUE),1), 0) -> 2 | CA22: =_xlfn.IFNA(MATCH(RAND(), _xlfn.POISSON.DIST({0,1,2,3,4,5,6,7,8,9},$P22, TRUE),1), 0) -> 2 | CB22: =_xlfn.IFNA(MATCH(RAND(), _xlfn.POISSON.DIST({0,1,2,3,4,5,6,7,8,9},$P22, TRUE),1), 0) -> 2 | CC22: =_xlfn.IFNA(MATCH(RAND(), _xlfn.POISSON.DIST({0,1,2,3,4,5,6,7,8,9},$P22, TRUE),1), 0) -> 3 | CD22: =_xlfn.IFNA(MATCH(RAND(), _xlfn.POISSON.DIST({0,1,2,3,4,5,6,7,8,9},$P22, TRUE),1), 0) -> 5 | CE22: =_xlfn.IFNA(MATCH(RAND(), _xlfn.POISSON.DIST({0,1,2,3,4,5,6,7,8,9},$P22, TRUE),1), 0) -> 3 | CF22: =_xlfn.IFNA(MATCH(RAND(), _xlfn.POISSON.DIST({0,1,2,3,4,5,6,7,8,9},$P22, TRUE),1), 0) -> 3 | CG22: =_xlfn.IFNA(MATCH(RAND(), _xlfn.POISSON.DIST({0,1,2,3,4,5,6,7,8,9},$P22, TRUE),1), 0) -> 5 | CH22: =_xlfn.IFNA(MATCH(RAND(), _xlfn.POISSON.DIST({0,1,2,3,4,5,6,7,8,9},$P22, TRUE),1), 0) -> 0 | CI22: =_xlfn.IFNA(MATCH(RAND(), _xlfn.POISSON.DIST({0,1,2,3,4,5,6,7,8,9},$P22, TRUE),1), 0) -> 5 | CJ22: =_xlfn.IFNA(MATCH(RAND(), _xlfn.POISSON.DIST({0,1,2,3,4,5,6,7,8,9},$P22, TRUE),1), 0) -> 2 | CK22: =_xlfn.IFNA(MATCH(RAND(), _xlfn.POISSON.DIST({0,1,2,3,4,5,6,7,8,9},$P22, TRUE),1), 0) -> 2 | CL22: =_xlfn.IFNA(MATCH(RAND(), _xlfn.POISSON.DIST({0,1,2,3,4,5,6,7,8,9},$P22, TRUE),1), 0) -> 1 | CM22: =_xlfn.IFNA(MATCH(RAND(), _xlfn.POISSON.DIST({0,1,2,3,4,5,6,7,8,9},$P22, TRUE),1), 0) -> 2 | CN22: =_xlfn.IFNA(MATCH(RAND(), _xlfn.POISSON.DIST({0,1,2,3,4,5,6,7,8,9},$P22, TRUE),1), 0) -> 4 | CO22: =_xlfn.IFNA(MATCH(RAND(), _xlfn.POISSON.DIST({0,1,2,3,4,5,6,7,8,9},$P22, TRUE),1), 0) -> 6 | CP22: =_xlfn.IFNA(MATCH(RAND(), _xlfn.POISSON.DIST({0,1,2,3,4,5,6,7,8,9},$P22, TRUE),1), 0) -> 3 | CQ22: =_xlfn.IFNA(MATCH(RAND(), _xlfn.POISSON.DIST({0,1,2,3,4,5,6,7,8,9},$P22, TRUE),1), 0) -> 1 | CR22: =_xlfn.IFNA(MATCH(RAND(), _xlfn.POISSON.DIST({0,1,2,3,4,5,6,7,8,9},$P22, TRUE),1), 0) -> 3 | CS22: =_xlfn.IFNA(MATCH(RAND(), _xlfn.POISSON.DIST({0,1,2,3,4,5,6,7,8,9},$P22, TRUE),1), 0) -> 1 | CT22: =_xlfn.IFNA(MATCH(RAND(), _xlfn.POISSON.DIST({0,1,2,3,4,5,6,7,8,9},$P22, TRUE),1), 0) -> 2 | CU22: =_xlfn.IFNA(MATCH(RAND(), _xlfn.POISSON.DIST({0,1,2,3,4,5,6,7,8,9},$P22, TRUE),1), 0) -> 3 | CV22: =_xlfn.IFNA(MATCH(RAND(), _xlfn.POISSON.DIST({0,1,2,3,4,5,6,7,8,9},$P22, TRUE),1), 0) -> 3 | CW22: =_xlfn.IFNA(MATCH(RAND(), _xlfn.POISSON.DIST({0,1,2,3,4,5,6,7,8,9},$P22, TRUE),1), 0) -> 4 | CX22: =_xlfn.IFNA(MATCH(RAND(), _xlfn.POISSON.DIST({0,1,2,3,4,5,6,7,8,9},$P22, TRUE),1), 0) -> 4 | CY22: =_xlfn.IFNA(MATCH(RAND(), _xlfn.POISSON.DIST({0,1,2,3,4,5,6,7,8,9},$P22, TRUE),1), 0) -> 5 | CZ22: =_xlfn.IFNA(MATCH(RAND(), _xlfn.POISSON.DIST({0,1,2,3,4,5,6,7,8,9},$P22, TRUE),1), 0) -> 1 | DA22: =_xlfn.IFNA(MATCH(RAND(), _xlfn.POISSON.DIST({0,1,2,3,4,5,6,7,8,9},$P22, TRUE),1), 0) -> 3 | DB22: =_xlfn.IFNA(MATCH(RAND(), _xlfn.POISSON.DIST({0,1,2,3,4,5,6,7,8,9},$P22, TRUE),1), 0) -> 2 | DC22: =_xlfn.IFNA(MATCH(RAND(), _xlfn.POISSON.DIST({0,1,2,3,4,5,6,7,8,9},$P22, TRUE),1), 0) -> 3 | DD22: =_xlfn.IFNA(MATCH(RAND(), _xlfn.POISSON.DIST({0,1,2,3,4,5,6,7,8,9},$P22, TRUE),1), 0) -> 1 | DE22: =_xlfn.IFNA(MATCH(RAND(), _xlfn.POISSON.DIST({0,1,2,3,4,5,6,7,8,9},$P22, TRUE),1), 0) -> 2 | DF22: =_xlfn.IFNA(MATCH(RAND(), _xlfn.POISSON.DIST({0,1,2,3,4,5,6,7,8,9},$P22, TRUE),1), 0) -> 3 | DG22: =_xlfn.IFNA(MATCH(RAND(), _xlfn.POISSON.DIST({0,1,2,3,4,5,6,7,8,9},$P22, TRUE),1), 0) -> 4 | DH22: =_xlfn.IFNA(MATCH(RAND(), _xlfn.POISSON.DIST({0,1,2,3,4,5,6,7,8,9},$P22, TRUE),1), 0) -> 4 | DI22: =_xlfn.IFNA(MATCH(RAND(), _xlfn.POISSON.DIST({0,1,2,3,4,5,6,7,8,9},$P22, TRUE),1), 0) -> 3 | DJ22: =_xlfn.IFNA(MATCH(RAND(), _xlfn.POISSON.DIST({0,1,2,3,4,5,6,7,8,9},$P22, TRUE),1), 0) -> 3 | DK22: =_xlfn.IFNA(MATCH(RAND(), _xlfn.POISSON.DIST({0,1,2,3,4,5,6,7,8,9},$P22, TRUE),1), 0) -> 2 | DL22: =_xlfn.IFNA(MATCH(RAND(), _xlfn.POISSON.DIST({0,1,2,3,4,5,6,7,8,9},$P22, TRUE),1), 0) -> 4 | DM22: =_xlfn.IFNA(MATCH(RAND(), _xlfn.POISSON.DIST({0,1,2,3,4,5,6,7,8,9},$P22, TRUE),1), 0) -> 3
C23: 2019-06-14 | D23: D | E23: Япония | F23: =(AVERAGE(Q23:BN23))*(1+INDEX('Прогнозы группового этапа'!$C$4:$O$28, MATCH('Матчи за текущий год'!E23,'Прогнозы группового этапа'!$D$4:$D$28,0),3)) -> 2.06 | G23: Шотландия | H23: =(AVERAGE(BP23:DM23))*(1+INDEX('Прогнозы группового этапа'!$C$4:$O$28, MATCH('Матчи за текущий год'!G23,'Прогнозы группового этапа'!$D$4:$D$28,0),3)) -> 0.96 | I23: Япония | L23: 2.06 | M23: 0.96 | N23: Япония | O23: =(OFFSET('Прил. 3. Голы в группе'!$D$14,(INDEX('Прил. 1. Данные команды'!$C$13:$F$112,MATCH(G23,'Прил. 1. Данные команды'!$C$13:$C$112,0),4)/10),(INDEX('Прил. 1. Данные команды'!$C$13:$F$112,MATCH(E23,'Прил. 1. Данные команды'!$C$13:$C$112,0),4)/10))) -> 1.78 | P23: =OFFSET('Прил. 3. Голы в группе'!$D$14,(INDEX('Прил. 1. Данные команды'!$C$13:$F$112, MATCH(E23,'Прил. 1. Данные команды'!$C$13:$C$112,0),4)/10), (INDEX('Прил. 1. Данные команды'!$C$13:$F$112, MATCH(G23, 'Прил. 1. Данные команды'!$C$13:$C$112,0),4)/10)) -> 1.07 | Q23: =_xlfn.IFNA(MATCH(RAND(), _xlfn.POISSON.DIST({0,1,2,3,4,5,6,7,8,9},$O23, TRUE),1), 0) -> 4 | R23: =_xlfn.IFNA(MATCH(RAND(), _xlfn.POISSON.DIST({0,1,2,3,4,5,6,7,8,9},$O23, TRUE),1), 0) -> 1 | S23: =_xlfn.IFNA(MATCH(RAND(), _xlfn.POISSON.DIST({0,1,2,3,4,5,6,7,8,9},$O23, TRUE),1), 0) -> 2 | T23: =_xlfn.IFNA(MATCH(RAND(), _xlfn.POISSON.DIST({0,1,2,3,4,5,6,7,8,9},$O23, TRUE),1), 0) -> 1 | U23: =_xlfn.IFNA(MATCH(RAND(), _xlfn.POISSON.DIST({0,1,2,3,4,5,6,7,8,9},$O23, TRUE),1), 0) -> 3 | V23: =_xlfn.IFNA(MATCH(RAND(), _xlfn.POISSON.DIST({0,1,2,3,4,5,6,7,8,9},$O23, TRUE),1), 0) -> 2 | W23: =_xlfn.IFNA(MATCH(RAND(), _xlfn.POISSON.DIST({0,1,2,3,4,5,6,7,8,9},$O23, TRUE),1), 0) -> 1 | X23: =_xlfn.IFNA(MATCH(RAND(), _xlfn.POISSON.DIST({0,1,2,3,4,5,6,7,8,9},$O23, TRUE),1), 0) -> 3 | Y23: =_xlfn.IFNA(MATCH(RAND(), _xlfn.POISSON.DIST({0,1,2,3,4,5,6,7,8,9},$O23, TRUE),1), 0) -> 2 | Z23: =_xlfn.IFNA(MATCH(RAND(), _xlfn.POISSON.DIST({0,1,2,3,4,5,6,7,8,9},$O23, TRUE),1), 0) -> 1 | AA23: =_xlfn.IFNA(MATCH(RAND(), _xlfn.POISSON.DIST({0,1,2,3,4,5,6,7,8,9},$O23, TRUE),1), 0) -> 1 | AB23: =_xlfn.IFNA(MATCH(RAND(), _xlfn.POISSON.DIST({0,1,2,3,4,5,6,7,8,9},$O23, TRUE),1), 0) -> 3 | AC23: =_xlfn.IFNA(MATCH(RAND(), _xlfn.POISSON.DIST({0,1,2,3,4,5,6,7,8,9},$O23, TRUE),1), 0) -> 3 | AD23: =_xlfn.IFNA(MATCH(RAND(), _xlfn.POISSON.DIST({0,1,2,3,4,5,6,7,8,9},$O23, TRUE),1), 0) -> 2 | AE23: =_xlfn.IFNA(MATCH(RAND(), _xlfn.POISSON.DIST({0,1,2,3,4,5,6,7,8,9},$O23, TRUE),1), 0) -> 2 | AF23: =_xlfn.IFNA(MATCH(RAND(), _xlfn.POISSON.DIST({0,1,2,3,4,5,6,7,8,9},$O23, TRUE),1), 0) -> 3 | AG23: =_xlfn.IFNA(MATCH(RAND(), _xlfn.POISSON.DIST({0,1,2,3,4,5,6,7,8,9},$O23, TRUE),1), 0) -> 2 | AH23: =_xlfn.IFNA(MATCH(RAND(), _xlfn.POISSON.DIST({0,1,2,3,4,5,6,7,8,9},$O23, TRUE),1), 0) -> 2 | AI23: =_xlfn.IFNA(MATCH(RAND(), _xlfn.POISSON.DIST({0,1,2,3,4,5,6,7,8,9},$O23, TRUE),1), 0) -> 2 | AJ23: =_xlfn.IFNA(MATCH(RAND(), _xlfn.POISSON.DIST({0,1,2,3,4,5,6,7,8,9},$O23, TRUE),1), 0) -> 2 | AK23: =_xlfn.IFNA(MATCH(RAND(), _xlfn.POISSON.DIST({0,1,2,3,4,5,6,7,8,9},$O23, TRUE),1), 0) -> 2 | AL23: =_xlfn.IFNA(MATCH(RAND(), _xlfn.POISSON.DIST({0,1,2,3,4,5,6,7,8,9},$O23, TRUE),1), 0) -> 0 | AM23: =_xlfn.IFNA(MATCH(RAND(), _xlfn.POISSON.DIST({0,1,2,3,4,5,6,7,8,9},$O23, TRUE),1), 0) -> 3 | AN23: =_xlfn.IFNA(MATCH(RAND(), _xlfn.POISSON.DIST({0,1,2,3,4,5,6,7,8,9},$O23, TRUE),1), 0) -> 2 | AO23: =_xlfn.IFNA(MATCH(RAND(), _xlfn.POISSON.DIST({0,1,2,3,4,5,6,7,8,9},$O23, TRUE),1), 0) -> 0 | AP23: =_xlfn.IFNA(MATCH(RAND(), _xlfn.POISSON.DIST({0,1,2,3,4,5,6,7,8,9},$O23, TRUE),1), 0) -> 1 | AQ23: =_xlfn.IFNA(MATCH(RAND(), _xlfn.POISSON.DIST({0,1,2,3,4,5,6,7,8,9},$O23, TRUE),1), 0) -> 1 | AR23: =_xlfn.IFNA(MATCH(RAND(), _xlfn.POISSON.DIST({0,1,2,3,4,5,6,7,8,9},$O23, TRUE),1), 0) -> 2 | AS23: =_xlfn.IFNA(MATCH(RAND(), _xlfn.POISSON.DIST({0,1,2,3,4,5,6,7,8,9},$O23, TRUE),1), 0) -> 1 | AT23: =_xlfn.IFNA(MATCH(RAND(), _xlfn.POISSON.DIST({0,1,2,3,4,5,6,7,8,9},$O23, TRUE),1), 0) -> 3 | AU23: =_xlfn.IFNA(MATCH(RAND(), _xlfn.POISSON.DIST({0,1,2,3,4,5,6,7,8,9},$O23, TRUE),1), 0) -> 0 | AV23: =_xlfn.IFNA(MATCH(RAND(), _xlfn.POISSON.DIST({0,1,2,3,4,5,6,7,8,9},$O23, TRUE),1), 0) -> 4 | AW23: =_xlfn.IFNA(MATCH(RAND(), _xlfn.POISSON.DIST({0,1,2,3,4,5,6,7,8,9},$O23, TRUE),1), 0) -> 3 | AX23: =_xlfn.IFNA(MATCH(RAND(), _xlfn.POISSON.DIST({0,1,2,3,4,5,6,7,8,9},$O23, TRUE),1), 0) -> 0 | AY23: =_xlfn.IFNA(MATCH(RAND(), _xlfn.POISSON.DIST({0,1,2,3,4,5,6,7,8,9},$O23, TRUE),1), 0) -> 2 | AZ23: =_xlfn.IFNA(MATCH(RAND(), _xlfn.POISSON.DIST({0,1,2,3,4,5,6,7,8,9},$O23, TRUE),1), 0) -> 0 | BA23: =_xlfn.IFNA(MATCH(RAND(), _xlfn.POISSON.DIST({0,1,2,3,4,5,6,7,8,9},$O23, TRUE),1), 0) -> 1 | BB23: =_xlfn.IFNA(MATCH(RAND(), _xlfn.POISSON.DIST({0,1,2,3,4,5,6,7,8,9},$O23, TRUE),1), 0) -> 3 | BC23: =_xlfn.IFNA(MATCH(RAND(), _xlfn.POISSON.DIST({0,1,2,3,4,5,6,7,8,9},$O23, TRUE),1), 0) -> 2 | BD23: =_xlfn.IFNA(MATCH(RAND(), _xlfn.POISSON.DIST({0,1,2,3,4,5,6,7,8,9},$O23, TRUE),1), 0) -> 5 | BE23: =_xlfn.IFNA(MATCH(RAND(), _xlfn.POISSON.DIST({0,1,2,3,4,5,6,7,8,9},$O23, TRUE),1), 0) -> 3 | BF23: =_xlfn.IFNA(MATCH(RAND(), _xlfn.POISSON.DIST({0,1,2,3,4,5,6,7,8,9},$O23, TRUE),1), 0) -> 4 | BG23: =_xlfn.IFNA(MATCH(RAND(), _xlfn.POISSON.DIST({0,1,2,3,4,5,6,7,8,9},$O23, TRUE),1), 0) -> 2 | BH23: =_xlfn.IFNA(MATCH(RAND(), _xlfn.POISSON.DIST({0,1,2,3,4,5,6,7,8,9},$O23, TRUE),1), 0) -> 1 | BI23: =_xlfn.IFNA(MATCH(RAND(), _xlfn.POISSON.DIST({0,1,2,3,4,5,6,7,8,9},$O23, TRUE),1), 0) -> 2 | BJ23: =_xlfn.IFNA(MATCH(RAND(), _xlfn.POISSON.DIST({0,1,2,3,4,5,6,7,8,9},$O23, TRUE),1), 0) -> 3 | BK23: =_xlfn.IFNA(MATCH(RAND(), _xlfn.POISSON.DIST({0,1,2,3,4,5,6,7,8,9},$O23, TRUE),1), 0) -> 1 | BL23: =_xlfn.IFNA(MATCH(RAND(), _xlfn.POISSON.DIST({0,1,2,3,4,5,6,7,8,9},$O23, TRUE),1), 0) -> 3 | BM23: =_xlfn.IFNA(MATCH(RAND(), _xlfn.POISSON.DIST({0,1,2,3,4,5,6,7,8,9},$O23, TRUE),1), 0) -> 2 | BN23: =_xlfn.IFNA(MATCH(RAND(), _xlfn.POISSON.DIST({0,1,2,3,4,5,6,7,8,9},$O23, TRUE),1), 0) -> 5 | BP23: =_xlfn.IFNA(MATCH(RAND(), _xlfn.POISSON.DIST({0,1,2,3,4,5,6,7,8,9},$P23, TRUE),1), 0) -> 2 | BQ23: =_xlfn.IFNA(MATCH(RAND(), _xlfn.POISSON.DIST({0,1,2,3,4,5,6,7,8,9},$P23, TRUE),1), 0) -> 0 | BR23: =_xlfn.IFNA(MATCH(RAND(), _xlfn.POISSON.DIST({0,1,2,3,4,5,6,7,8,9},$P23, TRUE),1), 0) -> 3 | BS23: =_xlfn.IFNA(MATCH(RAND(), _xlfn.POISSON.DIST({0,1,2,3,4,5,6,7,8,9},$P23, TRUE),1), 0) -> 1 | BT23: =_xlfn.IFNA(MATCH(RAND(), _xlfn.POISSON.DIST({0,1,2,3,4,5,6,7,8,9},$P23, TRUE),1), 0) -> 0 | BU23: =_xlfn.IFNA(MATCH(RAND(), _xlfn.POISSON.DIST({0,1,2,3,4,5,6,7,8,9},$P23, TRUE),1), 0) -> 1 | BV23: =_xlfn.IFNA(MATCH(RAND(), _xlfn.POISSON.DIST({0,1,2,3,4,5,6,7,8,9},$P23, TRUE),1), 0) -> 2 | BW23: =_xlfn.IFNA(MATCH(RAND(), _xlfn.POISSON.DIST({0,1,2,3,4,5,6,7,8,9},$P23, TRUE),1), 0) -> 0 | BX23: =_xlfn.IFNA(MATCH(RAND(), _xlfn.POISSON.DIST({0,1,2,3,4,5,6,7,8,9},$P23, TRUE),1), 0) -> 0 | BY23: =_xlfn.IFNA(MATCH(RAND(), _xlfn.POISSON.DIST({0,1,2,3,4,5,6,7,8,9},$P23, TRUE),1), 0) -> 2 | BZ23: =_xlfn.IFNA(MATCH(RAND(), _xlfn.POISSON.DIST({0,1,2,3,4,5,6,7,8,9},$P23, TRUE),1), 0) -> 3 | CA23: =_xlfn.IFNA(MATCH(RAND(), _xlfn.POISSON.DIST({0,1,2,3,4,5,6,7,8,9},$P23, TRUE),1), 0) -> 0 | CB23: =_xlfn.IFNA(MATCH(RAND(), _xlfn.POISSON.DIST({0,1,2,3,4,5,6,7,8,9},$P23, TRUE),1), 0) -> 1 | CC23: =_xlfn.IFNA(MATCH(RAND(), _xlfn.POISSON.DIST({0,1,2,3,4,5,6,7,8,9},$P23, TRUE),1), 0) -> 2 | CD23: =_xlfn.IFNA(MATCH(RAND(), _xlfn.POISSON.DIST({0,1,2,3,4,5,6,7,8,9},$P23, TRUE),1), 0) -> 0 | CE23: =_xlfn.IFNA(MATCH(RAND(), _xlfn.POISSON.DIST({0,1,2,3,4,5,6,7,8,9},$P23, TRUE),1), 0) -> 0 | CF23: =_xlfn.IFNA(MATCH(RAND(), _xlfn.POISSON.DIST({0,1,2,3,4,5,6,7,8,9},$P23, TRUE),1), 0) -> 0 | CG23: =_xlfn.IFNA(MATCH(RAND(), _xlfn.POISSON.DIST({0,1,2,3,4,5,6,7,8,9},$P23, TRUE),1), 0) -> 1 | CH23: =_xlfn.IFNA(MATCH(RAND(), _xlfn.POISSON.DIST({0,1,2,3,4,5,6,7,8,9},$P23, TRUE),1), 0) -> 1 | CI23: =_xlfn.IFNA(MATCH(RAND(), _xlfn.POISSON.DIST({0,1,2,3,4,5,6,7,8,9},$P23, TRUE),1), 0) -> 1 | CJ23: =_xlfn.IFNA(MATCH(RAND(), _xlfn.POISSON.DIST({0,1,2,3,4,5,6,7,8,9},$P23, TRUE),1), 0) -> 0 | CK23: =_xlfn.IFNA(MATCH(RAND(), _xlfn.POISSON.DIST({0,1,2,3,4,5,6,7,8,9},$P23, TRUE),1), 0) -> 0 | CL23: =_xlfn.IFNA(MATCH(RAND(), _xlfn.POISSON.DIST({0,1,2,3,4,5,6,7,8,9},$P23, TRUE),1), 0) -> 1 | CM23: =_xlfn.IFNA(MATCH(RAND(), _xlfn.POISSON.DIST({0,1,2,3,4,5,6,7,8,9},$P23, TRUE),1), 0) -> 1 | CN23: =_xlfn.IFNA(MATCH(RAND(), _xlfn.POISSON.DIST({0,1,2,3,4,5,6,7,8,9},$P23, TRUE),1), 0) -> 2 | CO23: =_xlfn.IFNA(MATCH(RAND(), _xlfn.POISSON.DIST({0,1,2,3,4,5,6,7,8,9},$P23, TRUE),1), 0) -> 2 | CP23: =_xlfn.IFNA(MATCH(RAND(), _xlfn.POISSON.DIST({0,1,2,3,4,5,6,7,8,9},$P23, TRUE),1), 0) -> 0 | CQ23: =_xlfn.IFNA(MATCH(RAND(), _xlfn.POISSON.DIST({0,1,2,3,4,5,6,7,8,9},$P23, TRUE),1), 0) -> 1 | CR23: =_xlfn.IFNA(MATCH(RAND(), _xlfn.POISSON.DIST({0,1,2,3,4,5,6,7,8,9},$P23, TRUE),1), 0) -> 1 | CS23: =_xlfn.IFNA(MATCH(RAND(), _xlfn.POISSON.DIST({0,1,2,3,4,5,6,7,8,9},$P23, TRUE),1), 0) -> 1 | CT23: =_xlfn.IFNA(MATCH(RAND(), _xlfn.POISSON.DIST({0,1,2,3,4,5,6,7,8,9},$P23, TRUE),1), 0) -> 1 | CU23: =_xlfn.IFNA(MATCH(RAND(), _xlfn.POISSON.DIST({0,1,2,3,4,5,6,7,8,9},$P23, TRUE),1), 0) -> 1 | CV23: =_xlfn.IFNA(MATCH(RAND(), _xlfn.POISSON.DIST({0,1,2,3,4,5,6,7,8,9},$P23, TRUE),1), 0) -> 2 | CW23: =_xlfn.IFNA(MATCH(RAND(), _xlfn.POISSON.DIST({0,1,2,3,4,5,6,7,8,9},$P23, TRUE),1), 0) -> 2 | CX23: =_xlfn.IFNA(MATCH(RAND(), _xlfn.POISSON.DIST({0,1,2,3,4,5,6,7,8,9},$P23, TRUE),1), 0) -> 1 | CY23: =_xlfn.IFNA(MATCH(RAND(), _xlfn.POISSON.DIST({0,1,2,3,4,5,6,7,8,9},$P23, TRUE),1), 0) -> 1 | CZ23: =_xlfn.IFNA(MATCH(RAND(), _xlfn.POISSON.DIST({0,1,2,3,4,5,6,7,8,9},$P23, TRUE),1), 0) -> 2 | DA23: =_xlfn.IFNA(MATCH(RAND(), _xlfn.POISSON.DIST({0,1,2,3,4,5,6,7,8,9},$P23, TRUE),1), 0) -> 1 | DB23: =_xlfn.IFNA(MATCH(RAND(), _xlfn.POISSON.DIST({0,1,2,3,4,5,6,7,8,9},$P23, TRUE),1), 0) -> 0 | DC23: =_xlfn.IFNA(MATCH(RAND(), _xlfn.POISSON.DIST({0,1,2,3,4,5,6,7,8,9},$P23, TRUE),1), 0) -> 0 | DD23: =_xlfn.IFNA(MATCH(RAND(), _xlfn.POISSON.DIST({0,1,2,3,4,5,6,7,8,9},$P23, TRUE),1), 0) -> 1 | DE23: =_xlfn.IFNA(MATCH(RAND(), _xlfn.POISSON.DIST({0,1,2,3,4,5,6,7,8,9},$P23, TRUE),1), 0) -> 2 | DF23: =_xlfn.IFNA(MATCH(RAND(), _xlfn.POISSON.DIST({0,1,2,3,4,5,6,7,8,9},$P23, TRUE),1), 0) -> 1 | DG23: =_xlfn.IFNA(MATCH(RAND(), _xlfn.POISSON.DIST({0,1,2,3,4,5,6,7,8,9},$P23, TRUE),1), 0) -> 1 | DH23: =_xlfn.IFNA(MATCH(RAND(), _xlfn.POISSON.DIST({0,1,2,3,4,5,6,7,8,9},$P23, TRUE),1), 0) -> 0 | DI23: =_xlfn.IFNA(MATCH(RAND(), _xlfn.POISSON.DIST({0,1,2,3,4,5,6,7,8,9},$P23, TRUE),1), 0) -> 0 | DJ23: =_xlfn.IFNA(MATCH(RAND(), _xlfn.POISSON.DIST({0,1,2,3,4,5,6,7,8,9},$P23, TRUE),1), 0) -> 0 | DK23: =_xlfn.IFNA(MATCH(RAND(), _xlfn.POISSON.DIST({0,1,2,3,4,5,6,7,8,9},$P23, TRUE),1), 0) -> 0 | DL23: =_xlfn.IFNA(MATCH(RAND(), _xlfn.POISSON.DIST({0,1,2,3,4,5,6,7,8,9},$P23, TRUE),1), 0) -> 1 | DM23: =_xlfn.IFNA(MATCH(RAND(), _xlfn.POISSON.DIST({0,1,2,3,4,5,6,7,8,9},$P23, TRUE),1), 0) -> 2
C24: 2019-06-14 | D24: C | E24: Ямайка | F24: =(AVERAGE(Q24:BN24))*(1+INDEX('Прогнозы группового этапа'!$C$4:$O$28, MATCH('Матчи за текущий год'!E24,'Прогнозы группового этапа'!$D$4:$D$28,0),3)) -> 1.44 | G24: Италия | H24: =(AVERAGE(BP24:DM24))*(1+INDEX('Прогнозы группового этапа'!$C$4:$O$28, MATCH('Матчи за текущий год'!G24,'Прогнозы группового этапа'!$D$4:$D$28,0),3)) -> 1.38 | I24: Ямайка | L24: 1.44 | M24: 1.38 | N24: Ямайка | O24: =(OFFSET('Прил. 3. Голы в группе'!$D$14,(INDEX('Прил. 1. Данные команды'!$C$13:$F$112,MATCH(G24,'Прил. 1. Данные команды'!$C$13:$C$112,0),4)/10),(INDEX('Прил. 1. Данные команды'!$C$13:$F$112,MATCH(E24,'Прил. 1. Данные команды'!$C$13:$C$112,0),4)/10))) -> 1.50 | P24: =OFFSET('Прил. 3. Голы в группе'!$D$14,(INDEX('Прил. 1. Данные команды'!$C$13:$F$112, MATCH(E24,'Прил. 1. Данные команды'!$C$13:$C$112,0),4)/10), (INDEX('Прил. 1. Данные команды'!$C$13:$F$112, MATCH(G24, 'Прил. 1. Данные команды'!$C$13:$C$112,0),4)/10)) -> 1.50 | Q24: =_xlfn.IFNA(MATCH(RAND(), _xlfn.POISSON.DIST({0,1,2,3,4,5,6,7,8,9},$O24, TRUE),1), 0) -> 3 | R24: =_xlfn.IFNA(MATCH(RAND(), _xlfn.POISSON.DIST({0,1,2,3,4,5,6,7,8,9},$O24, TRUE),1), 0) -> 2 | S24: =_xlfn.IFNA(MATCH(RAND(), _xlfn.POISSON.DIST({0,1,2,3,4,5,6,7,8,9},$O24, TRUE),1), 0) -> 0 | T24: =_xlfn.IFNA(MATCH(RAND(), _xlfn.POISSON.DIST({0,1,2,3,4,5,6,7,8,9},$O24, TRUE),1), 0) -> 1 | U24: =_xlfn.IFNA(MATCH(RAND(), _xlfn.POISSON.DIST({0,1,2,3,4,5,6,7,8,9},$O24, TRUE),1), 0) -> 4 | V24: =_xlfn.IFNA(MATCH(RAND(), _xlfn.POISSON.DIST({0,1,2,3,4,5,6,7,8,9},$O24, TRUE),1), 0) -> 1 | W24: =_xlfn.IFNA(MATCH(RAND(), _xlfn.POISSON.DIST({0,1,2,3,4,5,6,7,8,9},$O24, TRUE),1), 0) -> 2 | X24: =_xlfn.IFNA(MATCH(RAND(), _xlfn.POISSON.DIST({0,1,2,3,4,5,6,7,8,9},$O24, TRUE),1), 0) -> 2 | Y24: =_xlfn.IFNA(MATCH(RAND(), _xlfn.POISSON.DIST({0,1,2,3,4,5,6,7,8,9},$O24, TRUE),1), 0) -> 3 | Z24: =_xlfn.IFNA(MATCH(RAND(), _xlfn.POISSON.DIST({0,1,2,3,4,5,6,7,8,9},$O24, TRUE),1), 0) -> 2 | AA24: =_xlfn.IFNA(MATCH(RAND(), _xlfn.POISSON.DIST({0,1,2,3,4,5,6,7,8,9},$O24, TRUE),1), 0) -> 3 | AB24: =_xlfn.IFNA(MATCH(RAND(), _xlfn.POISSON.DIST({0,1,2,3,4,5,6,7,8,9},$O24, TRUE),1), 0) -> 0 | AC24: =_xlfn.IFNA(MATCH(RAND(), _xlfn.POISSON.DIST({0,1,2,3,4,5,6,7,8,9},$O24, TRUE),1), 0) -> 2 | AD24: =_xlfn.IFNA(MATCH(RAND(), _xlfn.POISSON.DIST({0,1,2,3,4,5,6,7,8,9},$O24, TRUE),1), 0) -> 2 | AE24: =_xlfn.IFNA(MATCH(RAND(), _xlfn.POISSON.DIST({0,1,2,3,4,5,6,7,8,9},$O24, TRUE),1), 0) -> 0 | AF24: =_xlfn.IFNA(MATCH(RAND(), _xlfn.POISSON.DIST({0,1,2,3,4,5,6,7,8,9},$O24, TRUE),1), 0) -> 3 | AG24: =_xlfn.IFNA(MATCH(RAND(), _xlfn.POISSON.DIST({0,1,2,3,4,5,6,7,8,9},$O24, TRUE),1), 0) -> 0 | AH24: =_xlfn.IFNA(MATCH(RAND(), _xlfn.POISSON.DIST({0,1,2,3,4,5,6,7,8,9},$O24, TRUE),1), 0) -> 1 | AI24: =_xlfn.IFNA(MATCH(RAND(), _xlfn.POISSON.DIST({0,1,2,3,4,5,6,7,8,9},$O24, TRUE),1), 0) -> 0 | AJ24: =_xlfn.IFNA(MATCH(RAND(), _xlfn.POISSON.DIST({0,1,2,3,4,5,6,7,8,9},$O24, TRUE),1), 0) -> 1 | AK24: =_xlfn.IFNA(MATCH(RAND(), _xlfn.POISSON.DIST({0,1,2,3,4,5,6,7,8,9},$O24, TRUE),1), 0) -> 1 | AL24: =_xlfn.IFNA(MATCH(RAND(), _xlfn.POISSON.DIST({0,1,2,3,4,5,6,7,8,9},$O24, TRUE),1), 0) -> 1 | AM24: =_xlfn.IFNA(MATCH(RAND(), _xlfn.POISSON.DIST({0,1,2,3,4,5,6,7,8,9},$O24, TRUE),1), 0) -> 2 | AN24: =_xlfn.IFNA(MATCH(RAND(), _xlfn.POISSON.DIST({0,1,2,3,4,5,6,7,8,9},$O24, TRUE),1), 0) -> 2 | AO24: =_xlfn.IFNA(MATCH(RAND(), _xlfn.POISSON.DIST({0,1,2,3,4,5,6,7,8,9},$O24, TRUE),1), 0) -> 1 | AP24: =_xlfn.IFNA(MATCH(RAND(), _xlfn.POISSON.DIST({0,1,2,3,4,5,6,7,8,9},$O24, TRUE),1), 0) -> 1 | AQ24: =_xlfn.IFNA(MATCH(RAND(), _xlfn.POISSON.DIST({0,1,2,3,4,5,6,7,8,9},$O24, TRUE),1), 0) -> 1 | AR24: =_xlfn.IFNA(MATCH(RAND(), _xlfn.POISSON.DIST({0,1,2,3,4,5,6,7,8,9},$O24, TRUE),1), 0) -> 1 | AS24: =_xlfn.IFNA(MATCH(RAND(), _xlfn.POISSON.DIST({0,1,2,3,4,5,6,7,8,9},$O24, TRUE),1), 0) -> 2 | AT24: =_xlfn.IFNA(MATCH(RAND(), _xlfn.POISSON.DIST({0,1,2,3,4,5,6,7,8,9},$O24, TRUE),1), 0) -> 0 | AU24: =_xlfn.IFNA(MATCH(RAND(), _xlfn.POISSON.DIST({0,1,2,3,4,5,6,7,8,9},$O24, TRUE),1), 0) -> 3 | AV24: =_xlfn.IFNA(MATCH(RAND(), _xlfn.POISSON.DIST({0,1,2,3,4,5,6,7,8,9},$O24, TRUE),1), 0) -> 1 | AW24: =_xlfn.IFNA(MATCH(RAND(), _xlfn.POISSON.DIST({0,1,2,3,4,5,6,7,8,9},$O24, TRUE),1), 0) -> 1 | AX24: =_xlfn.IFNA(MATCH(RAND(), _xlfn.POISSON.DIST({0,1,2,3,4,5,6,7,8,9},$O24, TRUE),1), 0) -> 1 | AY24: =_xlfn.IFNA(MATCH(RAND(), _xlfn.POISSON.DIST({0,1,2,3,4,5,6,7,8,9},$O24, TRUE),1), 0) -> 2 | AZ24: =_xlfn.IFNA(MATCH(RAND(), _xlfn.POISSON.DIST({0,1,2,3,4,5,6,7,8,9},$O24, TRUE),1), 0) -> 1 | BA24: =_xlfn.IFNA(MATCH(RAND(), _xlfn.POISSON.DIST({0,1,2,3,4,5,6,7,8,9},$O24, TRUE),1), 0) -> 3 | BB24: =_xlfn.IFNA(MATCH(RAND(), _xlfn.POISSON.DIST({0,1,2,3,4,5,6,7,8,9},$O24, TRUE),1), 0) -> 1 | BC24: =_xlfn.IFNA(MATCH(RAND(), _xlfn.POISSON.DIST({0,1,2,3,4,5,6,7,8,9},$O24, TRUE),1), 0) -> 4 | BD24: =_xlfn.IFNA(MATCH(RAND(), _xlfn.POISSON.DIST({0,1,2,3,4,5,6,7,8,9},$O24, TRUE),1), 0) -> 2 | BE24: =_xlfn.IFNA(MATCH(RAND(), _xlfn.POISSON.DIST({0,1,2,3,4,5,6,7,8,9},$O24, TRUE),1), 0) -> 0 | BF24: =_xlfn.IFNA(MATCH(RAND(), _xlfn.POISSON.DIST({0,1,2,3,4,5,6,7,8,9},$O24, TRUE),1), 0) -> 2 | BG24: =_xlfn.IFNA(MATCH(RAND(), _xlfn.POISSON.DIST({0,1,2,3,4,5,6,7,8,9},$O24, TRUE),1), 0) -> 0 | BH24: =_xlfn.IFNA(MATCH(RAND(), _xlfn.POISSON.DIST({0,1,2,3,4,5,6,7,8,9},$O24, TRUE),1), 0) -> 0 | BI24: =_xlfn.IFNA(MATCH(RAND(), _xlfn.POISSON.DIST({0,1,2,3,4,5,6,7,8,9},$O24, TRUE),1), 0) -> 2 | BJ24: =_xlfn.IFNA(MATCH(RAND(), _xlfn.POISSON.DIST({0,1,2,3,4,5,6,7,8,9},$O24, TRUE),1), 0) -> 2 | BK24: =_xlfn.IFNA(MATCH(RAND(), _xlfn.POISSON.DIST({0,1,2,3,4,5,6,7,8,9},$O24, TRUE),1), 0) -> 1 | BL24: =_xlfn.IFNA(MATCH(RAND(), _xlfn.POISSON.DIST({0,1,2,3,4,5,6,7,8,9},$O24, TRUE),1), 0) -> 0 | BM24: =_xlfn.IFNA(MATCH(RAND(), _xlfn.POISSON.DIST({0,1,2,3,4,5,6,7,8,9},$O24, TRUE),1), 0) -> 0 | BN24: =_xlfn.IFNA(MATCH(RAND(), _xlfn.POISSON.DIST({0,1,2,3,4,5,6,7,8,9},$O24, TRUE),1), 0) -> 2 | BP24: =_xlfn.IFNA(MATCH(RAND(), _xlfn.POISSON.DIST({0,1,2,3,4,5,6,7,8,9},$P24, TRUE),1), 0) -> 0 | BQ24: =_xlfn.IFNA(MATCH(RAND(), _xlfn.POISSON.DIST({0,1,2,3,4,5,6,7,8,9},$P24, TRUE),1), 0) -> 2 | BR24: =_xlfn.IFNA(MATCH(RAND(), _xlfn.POISSON.DIST({0,1,2,3,4,5,6,7,8,9},$P24, TRUE),1), 0) -> 1 | BS24: =_xlfn.IFNA(MATCH(RAND(), _xlfn.POISSON.DIST({0,1,2,3,4,5,6,7,8,9},$P24, TRUE),1), 0) -> 1 | BT24: =_xlfn.IFNA(MATCH(RAND(), _xlfn.POISSON.DIST({0,1,2,3,4,5,6,7,8,9},$P24, TRUE),1), 0) -> 3 | BU24: =_xlfn.IFNA(MATCH(RAND(), _xlfn.POISSON.DIST({0,1,2,3,4,5,6,7,8,9},$P24, TRUE),1), 0) -> 2 | BV24: =_xlfn.IFNA(MATCH(RAND(), _xlfn.POISSON.DIST({0,1,2,3,4,5,6,7,8,9},$P24, TRUE),1), 0) -> 1 | BW24: =_xlfn.IFNA(MATCH(RAND(), _xlfn.POISSON.DIST({0,1,2,3,4,5,6,7,8,9},$P24, TRUE),1), 0) -> 0 | BX24: =_xlfn.IFNA(MATCH(RAND(), _xlfn.POISSON.DIST({0,1,2,3,4,5,6,7,8,9},$P24, TRUE),1), 0) -> 1 | BY24: =_xlfn.IFNA(MATCH(RAND(), _xlfn.POISSON.DIST({0,1,2,3,4,5,6,7,8,9},$P24, TRUE),1), 0) -> 2 | BZ24: =_xlfn.IFNA(MATCH(RAND(), _xlfn.POISSON.DIST({0,1,2,3,4,5,6,7,8,9},$P24, TRUE),1), 0) -> 0 | CA24: =_xlfn.IFNA(MATCH(RAND(), _xlfn.POISSON.DIST({0,1,2,3,4,5,6,7,8,9},$P24, TRUE),1), 0) -> 1 | CB24: =_xlfn.IFNA(MATCH(RAND(), _xlfn.POISSON.DIST({0,1,2,3,4,5,6,7,8,9},$P24, TRUE),1), 0) -> 3 | CC24: =_xlfn.IFNA(MATCH(RAND(), _xlfn.POISSON.DIST({0,1,2,3,4,5,6,7,8,9},$P24, TRUE),1), 0) -> 1 | CD24: =_xlfn.IFNA(MATCH(RAND(), _xlfn.POISSON.DIST({0,1,2,3,4,5,6,7,8,9},$P24, TRUE),1), 0) -> 2 | CE24: =_xlfn.IFNA(MATCH(RAND(), _xlfn.POISSON.DIST({0,1,2,3,4,5,6,7,8,9},$P24, TRUE),1), 0) -> 1 | CF24: =_xlfn.IFNA(MATCH(RAND(), _xlfn.POISSON.DIST({0,1,2,3,4,5,6,7,8,9},$P24, TRUE),1), 0) -> 1 | CG24: =_xlfn.IFNA(MATCH(RAND(), _xlfn.POISSON.DIST({0,1,2,3,4,5,6,7,8,9},$P24, TRUE),1), 0) -> 0 | CH24: =_xlfn.IFNA(MATCH(RAND(), _xlfn.POISSON.DIST({0,1,2,3,4,5,6,7,8,9},$P24, TRUE),1), 0) -> 2 | CI24: =_xlfn.IFNA(MATCH(RAND(), _xlfn.POISSON.DIST({0,1,2,3,4,5,6,7,8,9},$P24, TRUE),1), 0) -> 1 | CJ24: =_xlfn.IFNA(MATCH(RAND(), _xlfn.POISSON.DIST({0,1,2,3,4,5,6,7,8,9},$P24, TRUE),1), 0) -> 0 | CK24: =_xlfn.IFNA(MATCH(RAND(), _xlfn.POISSON.DIST({0,1,2,3,4,5,6,7,8,9},$P24, TRUE),1), 0) -> 1 | CL24: =_xlfn.IFNA(MATCH(RAND(), _xlfn.POISSON.DIST({0,1,2,3,4,5,6,7,8,9},$P24, TRUE),1), 0) -> 0 | CM24: =_xlfn.IFNA(MATCH(RAND(), _xlfn.POISSON.DIST({0,1,2,3,4,5,6,7,8,9},$P24, TRUE),1), 0) -> 1 | CN24: =_xlfn.IFNA(MATCH(RAND(), _xlfn.POISSON.DIST({0,1,2,3,4,5,6,7,8,9},$P24, TRUE),1), 0) -> 0 | CO24: =_xlfn.IFNA(MATCH(RAND(), _xlfn.POISSON.DIST({0,1,2,3,4,5,6,7,8,9},$P24, TRUE),1), 0) -> 0 | CP24: =_xlfn.IFNA(MATCH(RAND(), _xlfn.POISSON.DIST({0,1,2,3,4,5,6,7,8,9},$P24, TRUE),1), 0) -> 1 | CQ24: =_xlfn.IFNA(MATCH(RAND(), _xlfn.POISSON.DIST({0,1,2,3,4,5,6,7,8,9},$P24, TRUE),1), 0) -> 1 | CR24: =_xlfn.IFNA(MATCH(RAND(), _xlfn.POISSON.DIST({0,1,2,3,4,5,6,7,8,9},$P24, TRUE),1), 0) -> 4 | CS24: =_xlfn.IFNA(MATCH(RAND(), _xlfn.POISSON.DIST({0,1,2,3,4,5,6,7,8,9},$P24, TRUE),1), 0) -> 1 | CT24: =_xlfn.IFNA(MATCH(RAND(), _xlfn.POISSON.DIST({0,1,2,3,4,5,6,7,8,9},$P24, TRUE),1), 0) -> 1 | CU24: =_xlfn.IFNA(MATCH(RAND(), _xlfn.POISSON.DIST({0,1,2,3,4,5,6,7,8,9},$P24, TRUE),1), 0) -> 3 | CV24: =_xlfn.IFNA(MATCH(RAND(), _xlfn.POISSON.DIST({0,1,2,3,4,5,6,7,8,9},$P24, TRUE),1), 0) -> 2 | CW24: =_xlfn.IFNA(MATCH(RAND(), _xlfn.POISSON.DIST({0,1,2,3,4,5,6,7,8,9},$P24, TRUE),1), 0) -> 1 | CX24: =_xlfn.IFNA(MATCH(RAND(), _xlfn.POISSON.DIST({0,1,2,3,4,5,6,7,8,9},$P24, TRUE),1), 0) -> 2 | CY24: =_xlfn.IFNA(MATCH(RAND(), _xlfn.POISSON.DIST({0,1,2,3,4,5,6,7,8,9},$P24, TRUE),1), 0) -> 3 | CZ24: =_xlfn.IFNA(MATCH(RAND(), _xlfn.POISSON.DIST({0,1,2,3,4,5,6,7,8,9},$P24, TRUE),1), 0) -> 1 | DA24: =_xlfn.IFNA(MATCH(RAND(), _xlfn.POISSON.DIST({0,1,2,3,4,5,6,7,8,9},$P24, TRUE),1), 0) -> 1 | DB24: =_xlfn.IFNA(MATCH(RAND(), _xlfn.POISSON.DIST({0,1,2,3,4,5,6,7,8,9},$P24, TRUE),1), 0) -> 1 | DC24: =_xlfn.IFNA(MATCH(RAND(), _xlfn.POISSON.DIST({0,1,2,3,4,5,6,7,8,9},$P24, TRUE),1), 0) -> 2 | DD24: =_xlfn.IFNA(MATCH(RAND(), _xlfn.POISSON.DIST({0,1,2,3,4,5,6,7,8,9},$P24, TRUE),1), 0) -> 1 | DE24: =_xlfn.IFNA(MATCH(RAND(), _xlfn.POISSON.DIST({0,1,2,3,4,5,6,7,8,9},$P24, TRUE),1), 0) -> 2 | DF24: =_xlfn.IFNA(MATCH(RAND(), _xlfn.POISSON.DIST({0,1,2,3,4,5,6,7,8,9},$P24, TRUE),1), 0) -> 2 | DG24: =_xlfn.IFNA(MATCH(RAND(), _xlfn.POISSON.DIST({0,1,2,3,4,5,6,7,8,9},$P24, TRUE),1), 0) -> 2 | DH24: =_xlfn.IFNA(MATCH(RAND(), _xlfn.POISSON.DIST({0,1,2,3,4,5,6,7,8,9},$P24, TRUE),1), 0) -> 7 | DI24: =_xlfn.IFNA(MATCH(RAND(), _xlfn.POISSON.DIST({0,1,2,3,4,5,6,7,8,9},$P24, TRUE),1), 0) -> 0 | DJ24: =_xlfn.IFNA(MATCH(RAND(), _xlfn.POISSON.DIST({0,1,2,3,4,5,6,7,8,9},$P24, TRUE),1), 0) -> 1 | DK24: =_xlfn.IFNA(MATCH(RAND(), _xlfn.POISSON.DIST({0,1,2,3,4,5,6,7,8,9},$P24, TRUE),1), 0) -> 2 | DL24: =_xlfn.IFNA(MATCH(RAND(), _xlfn.POISSON.DIST({0,1,2,3,4,5,6,7,8,9},$P24, TRUE),1), 0) -> 0 | DM24: =_xlfn.IFNA(MATCH(RAND(), _xlfn.POISSON.DIST({0,1,2,3,4,5,6,7,8,9},$P24, TRUE),1), 0) -> 1
C25: 2019-06-14 | D25: D | E25: Англия | F25: =(AVERAGE(Q25:BN25))*(1+INDEX('Прогнозы группового этапа'!$C$4:$O$28, MATCH('Матчи за текущий год'!E25,'Прогнозы группового этапа'!$D$4:$D$28,0),3)) -> 3.56 | G25: Аргентина | H25: =(AVERAGE(BP25:DM25))*(1+INDEX('Прогнозы группового этапа'!$C$4:$O$28, MATCH('Матчи за текущий год'!G25,'Прогнозы группового этапа'!$D$4:$D$28,0),3)) -> 0.44 | I25: Англия | L25: 3.56 | M25: 0.44 | N25: Англия | O25: =(OFFSET('Прил. 3. Голы в группе'!$D$14,(INDEX('Прил. 1. Данные команды'!$C$13:$F$112,MATCH(G25,'Прил. 1. Данные команды'!$C$13:$C$112,0),4)/10),(INDEX('Прил. 1. Данные команды'!$C$13:$F$112,MATCH(E25,'Прил. 1. Данные команды'!$C$13:$C$112,0),4)/10))) -> 3.38 | P25: =OFFSET('Прил. 3. Голы в группе'!$D$14,(INDEX('Прил. 1. Данные команды'!$C$13:$F$112, MATCH(E25,'Прил. 1. Данные команды'!$C$13:$C$112,0),4)/10), (INDEX('Прил. 1. Данные команды'!$C$13:$F$112, MATCH(G25, 'Прил. 1. Данные команды'!$C$13:$C$112,0),4)/10)) -> 0.59 | Q25: =_xlfn.IFNA(MATCH(RAND(), _xlfn.POISSON.DIST({0,1,2,3,4,5,6,7,8,9},$O25, TRUE),1), 0) -> 2 | R25: =_xlfn.IFNA(MATCH(RAND(), _xlfn.POISSON.DIST({0,1,2,3,4,5,6,7,8,9},$O25, TRUE),1), 0) -> 3 | S25: =_xlfn.IFNA(MATCH(RAND(), _xlfn.POISSON.DIST({0,1,2,3,4,5,6,7,8,9},$O25, TRUE),1), 0) -> 4 | T25: =_xlfn.IFNA(MATCH(RAND(), _xlfn.POISSON.DIST({0,1,2,3,4,5,6,7,8,9},$O25, TRUE),1), 0) -> 3 | U25: =_xlfn.IFNA(MATCH(RAND(), _xlfn.POISSON.DIST({0,1,2,3,4,5,6,7,8,9},$O25, TRUE),1), 0) -> 2 | V25: =_xlfn.IFNA(MATCH(RAND(), _xlfn.POISSON.DIST({0,1,2,3,4,5,6,7,8,9},$O25, TRUE),1), 0) -> 4 | W25: =_xlfn.IFNA(MATCH(RAND(), _xlfn.POISSON.DIST({0,1,2,3,4,5,6,7,8,9},$O25, TRUE),1), 0) -> 2 | X25: =_xlfn.IFNA(MATCH(RAND(), _xlfn.POISSON.DIST({0,1,2,3,4,5,6,7,8,9},$O25, TRUE),1), 0) -> 5 | Y25: =_xlfn.IFNA(MATCH(RAND(), _xlfn.POISSON.DIST({0,1,2,3,4,5,6,7,8,9},$O25, TRUE),1), 0) -> 2 | Z25: =_xlfn.IFNA(MATCH(RAND(), _xlfn.POISSON.DIST({0,1,2,3,4,5,6,7,8,9},$O25, TRUE),1), 0) -> 1 | AA25: =_xlfn.IFNA(MATCH(RAND(), _xlfn.POISSON.DIST({0,1,2,3,4,5,6,7,8,9},$O25, TRUE),1), 0) -> 5 | AB25: =_xlfn.IFNA(MATCH(RAND(), _xlfn.POISSON.DIST({0,1,2,3,4,5,6,7,8,9},$O25, TRUE),1), 0) -> 4 | AC25: =_xlfn.IFNA(MATCH(RAND(), _xlfn.POISSON.DIST({0,1,2,3,4,5,6,7,8,9},$O25, TRUE),1), 0) -> 4 | AD25: =_xlfn.IFNA(MATCH(RAND(), _xlfn.POISSON.DIST({0,1,2,3,4,5,6,7,8,9},$O25, TRUE),1), 0) -> 3 | AE25: =_xlfn.IFNA(MATCH(RAND(), _xlfn.POISSON.DIST({0,1,2,3,4,5,6,7,8,9},$O25, TRUE),1), 0) -> 2 | AF25: =_xlfn.IFNA(MATCH(RAND(), _xlfn.POISSON.DIST({0,1,2,3,4,5,6,7,8,9},$O25, TRUE),1), 0) -> 5 | AG25: =_xlfn.IFNA(MATCH(RAND(), _xlfn.POISSON.DIST({0,1,2,3,4,5,6,7,8,9},$O25, TRUE),1), 0) -> 2 | AH25: =_xlfn.IFNA(MATCH(RAND(), _xlfn.POISSON.DIST({0,1,2,3,4,5,6,7,8,9},$O25, TRUE),1), 0) -> 8 | AI25: =_xlfn.IFNA(MATCH(RAND(), _xlfn.POISSON.DIST({0,1,2,3,4,5,6,7,8,9},$O25, TRUE),1), 0) -> 4 | AJ25: =_xlfn.IFNA(MATCH(RAND(), _xlfn.POISSON.DIST({0,1,2,3,4,5,6,7,8,9},$O25, TRUE),1), 0) -> 3 | AK25: =_xlfn.IFNA(MATCH(RAND(), _xlfn.POISSON.DIST({0,1,2,3,4,5,6,7,8,9},$O25, TRUE),1), 0) -> 2 | AL25: =_xlfn.IFNA(MATCH(RAND(), _xlfn.POISSON.DIST({0,1,2,3,4,5,6,7,8,9},$O25, TRUE),1), 0) -> 2 | AM25: =_xlfn.IFNA(MATCH(RAND(), _xlfn.POISSON.DIST({0,1,2,3,4,5,6,7,8,9},$O25, TRUE),1), 0) -> 3 | AN25: =_xlfn.IFNA(MATCH(RAND(), _xlfn.POISSON.DIST({0,1,2,3,4,5,6,7,8,9},$O25, TRUE),1), 0) -> 3 | AO25: =_xlfn.IFNA(MATCH(RAND(), _xlfn.POISSON.DIST({0,1,2,3,4,5,6,7,8,9},$O25, TRUE),1), 0) -> 2 | AP25: =_xlfn.IFNA(MATCH(RAND(), _xlfn.POISSON.DIST({0,1,2,3,4,5,6,7,8,9},$O25, TRUE),1), 0) -> 4 | AQ25: =_xlfn.IFNA(MATCH(RAND(), _xlfn.POISSON.DIST({0,1,2,3,4,5,6,7,8,9},$O25, TRUE),1), 0) -> 2 | AR25: =_xlfn.IFNA(MATCH(RAND(), _xlfn.POISSON.DIST({0,1,2,3,4,5,6,7,8,9},$O25, TRUE),1), 0) -> 1 | AS25: =_xlfn.IFNA(MATCH(RAND(), _xlfn.POISSON.DIST({0,1,2,3,4,5,6,7,8,9},$O25, TRUE),1), 0) -> 4 | AT25: =_xlfn.IFNA(MATCH(RAND(), _xlfn.POISSON.DIST({0,1,2,3,4,5,6,7,8,9},$O25, TRUE),1), 0) -> 7 | AU25: =_xlfn.IFNA(MATCH(RAND(), _xlfn.POISSON.DIST({0,1,2,3,4,5,6,7,8,9},$O25, TRUE),1), 0) -> 3 | AV25: =_xlfn.IFNA(MATCH(RAND(), _xlfn.POISSON.DIST({0,1,2,3,4,5,6,7,8,9},$O25, TRUE),1), 0) -> 4 | AW25: =_xlfn.IFNA(MATCH(RAND(), _xlfn.POISSON.DIST({0,1,2,3,4,5,6,7,8,9},$O25, TRUE),1), 0) -> 3 | AX25: =_xlfn.IFNA(MATCH(RAND(), _xlfn.POISSON.DIST({0,1,2,3,4,5,6,7,8,9},$O25, TRUE),1), 0) -> 5 | AY25: =_xlfn.IFNA(MATCH(RAND(), _xlfn.POISSON.DIST({0,1,2,3,4,5,6,7,8,9},$O25, TRUE),1), 0) -> 4 | AZ25: =_xlfn.IFNA(MATCH(RAND(), _xlfn.POISSON.DIST({0,1,2,3,4,5,6,7,8,9},$O25, TRUE),1), 0) -> 6 | BA25: =_xlfn.IFNA(MATCH(RAND(), _xlfn.POISSON.DIST({0,1,2,3,4,5,6,7,8,9},$O25, TRUE),1), 0) -> 6 | BB25: =_xlfn.IFNA(MATCH(RAND(), _xlfn.POISSON.DIST({0,1,2,3,4,5,6,7,8,9},$O25, TRUE),1), 0) -> 2 | BC25: =_xlfn.IFNA(MATCH(RAND(), _xlfn.POISSON.DIST({0,1,2,3,4,5,6,7,8,9},$O25, TRUE),1), 0) -> 4 | BD25: =_xlfn.IFNA(MATCH(RAND(), _xlfn.POISSON.DIST({0,1,2,3,4,5,6,7,8,9},$O25, TRUE),1), 0) -> 2 | BE25: =_xlfn.IFNA(MATCH(RAND(), _xlfn.POISSON.DIST({0,1,2,3,4,5,6,7,8,9},$O25, TRUE),1), 0) -> 3 | BF25: =_xlfn.IFNA(MATCH(RAND(), _xlfn.POISSON.DIST({0,1,2,3,4,5,6,7,8,9},$O25, TRUE),1), 0) -> 7 | BG25: =_xlfn.IFNA(MATCH(RAND(), _xlfn.POISSON.DIST({0,1,2,3,4,5,6,7,8,9},$O25, TRUE),1), 0) -> 2 | BH25: =_xlfn.IFNA(MATCH(RAND(), _xlfn.POISSON.DIST({0,1,2,3,4,5,6,7,8,9},$O25, TRUE),1), 0) -> 6 | BI25: =_xlfn.IFNA(MATCH(RAND(), _xlfn.POISSON.DIST({0,1,2,3,4,5,6,7,8,9},$O25, TRUE),1), 0) -> 1 | BJ25: =_xlfn.IFNA(MATCH(RAND(), _xlfn.POISSON.DIST({0,1,2,3,4,5,6,7,8,9},$O25, TRUE),1), 0) -> 6 | BK25: =_xlfn.IFNA(MATCH(RAND(), _xlfn.POISSON.DIST({0,1,2,3,4,5,6,7,8,9},$O25, TRUE),1), 0) -> 4 | BL25: =_xlfn.IFNA(MATCH(RAND(), _xlfn.POISSON.DIST({0,1,2,3,4,5,6,7,8,9},$O25, TRUE),1), 0) -> 2 | BM25: =_xlfn.IFNA(MATCH(RAND(), _xlfn.POISSON.DIST({0,1,2,3,4,5,6,7,8,9},$O25, TRUE),1), 0) -> 7 | BN25: =_xlfn.IFNA(MATCH(RAND(), _xlfn.POISSON.DIST({0,1,2,3,4,5,6,7,8,9},$O25, TRUE),1), 0) -> 3 | BP25: =_xlfn.IFNA(MATCH(RAND(), _xlfn.POISSON.DIST({0,1,2,3,4,5,6,7,8,9},$P25, TRUE),1), 0) -> 0 | BQ25: =_xlfn.IFNA(MATCH(RAND(), _xlfn.POISSON.DIST({0,1,2,3,4,5,6,7,8,9},$P25, TRUE),1), 0) -> 1 | BR25: =_xlfn.IFNA(MATCH(RAND(), _xlfn.POISSON.DIST({0,1,2,3,4,5,6,7,8,9},$P25, TRUE),1), 0) -> 0 | BS25: =_xlfn.IFNA(MATCH(RAND(), _xlfn.POISSON.DIST({0,1,2,3,4,5,6,7,8,9},$P25, TRUE),1), 0) -> 0 | BT25: =_xlfn.IFNA(MATCH(RAND(), _xlfn.POISSON.DIST({0,1,2,3,4,5,6,7,8,9},$P25, TRUE),1), 0) -> 0 | BU25: =_xlfn.IFNA(MATCH(RAND(), _xlfn.POISSON.DIST({0,1,2,3,4,5,6,7,8,9},$P25, TRUE),1), 0) -> 2 | BV25: =_xlfn.IFNA(MATCH(RAND(), _xlfn.POISSON.DIST({0,1,2,3,4,5,6,7,8,9},$P25, TRUE),1), 0) -> 1 | BW25: =_xlfn.IFNA(MATCH(RAND(), _xlfn.POISSON.DIST({0,1,2,3,4,5,6,7,8,9},$P25, TRUE),1), 0) -> 0 | BX25: =_xlfn.IFNA(MATCH(RAND(), _xlfn.POISSON.DIST({0,1,2,3,4,5,6,7,8,9},$P25, TRUE),1), 0) -> 1 | BY25: =_xlfn.IFNA(MATCH(RAND(), _xlfn.POISSON.DIST({0,1,2,3,4,5,6,7,8,9},$P25, TRUE),1), 0) -> 0 | BZ25: =_xlfn.IFNA(MATCH(RAND(), _xlfn.POISSON.DIST({0,1,2,3,4,5,6,7,8,9},$P25, TRUE),1), 0) -> 1 | CA25: =_xlfn.IFNA(MATCH(RAND(), _xlfn.POISSON.DIST({0,1,2,3,4,5,6,7,8,9},$P25, TRUE),1), 0) -> 0 | CB25: =_xlfn.IFNA(MATCH(RAND(), _xlfn.POISSON.DIST({0,1,2,3,4,5,6,7,8,9},$P25, TRUE),1), 0) -> 0 | CC25: =_xlfn.IFNA(MATCH(RAND(), _xlfn.POISSON.DIST({0,1,2,3,4,5,6,7,8,9},$P25, TRUE),1), 0) -> 0 | CD25: =_xlfn.IFNA(MATCH(RAND(), _xlfn.POISSON.DIST({0,1,2,3,4,5,6,7,8,9},$P25, TRUE),1), 0) -> 1 | CE25: =_xlfn.IFNA(MATCH(RAND(), _xlfn.POISSON.DIST({0,1,2,3,4,5,6,7,8,9},$P25, TRUE),1), 0) -> 0 | CF25: =_xlfn.IFNA(MATCH(RAND(), _xlfn.POISSON.DIST({0,1,2,3,4,5,6,7,8,9},$P25, TRUE),1), 0) -> 0 | CG25: =_xlfn.IFNA(MATCH(RAND(), _xlfn.POISSON.DIST({0,1,2,3,4,5,6,7,8,9},$P25, TRUE),1), 0) -> 1 | CH25: =_xlfn.IFNA(MATCH(RAND(), _xlfn.POISSON.DIST({0,1,2,3,4,5,6,7,8,9},$P25, TRUE),1), 0) -> 0 | CI25: =_xlfn.IFNA(MATCH(RAND(), _xlfn.POISSON.DIST({0,1,2,3,4,5,6,7,8,9},$P25, TRUE),1), 0) -> 1 | CJ25: =_xlfn.IFNA(MATCH(RAND(), _xlfn.POISSON.DIST({0,1,2,3,4,5,6,7,8,9},$P25, TRUE),1), 0) -> 0 | CK25: =_xlfn.IFNA(MATCH(RAND(), _xlfn.POISSON.DIST({0,1,2,3,4,5,6,7,8,9},$P25, TRUE),1), 0) -> 0 | CL25: =_xlfn.IFNA(MATCH(RAND(), _xlfn.POISSON.DIST({0,1,2,3,4,5,6,7,8,9},$P25, TRUE),1), 0) -> 1 | CM25: =_xlfn.IFNA(MATCH(RAND(), _xlfn.POISSON.DIST({0,1,2,3,4,5,6,7,8,9},$P25, TRUE),1), 0) -> 0 | CN25: =_xlfn.IFNA(MATCH(RAND(), _xlfn.POISSON.DIST({0,1,2,3,4,5,6,7,8,9},$P25, TRUE),1), 0) -> 0 | CO25: =_xlfn.IFNA(MATCH(RAND(), _xlfn.POISSON.DIST({0,1,2,3,4,5,6,7,8,9},$P25, TRUE),1), 0) -> 1 | CP25: =_xlfn.IFNA(MATCH(RAND(), _xlfn.POISSON.DIST({0,1,2,3,4,5,6,7,8,9},$P25, TRUE),1), 0) -> 1 | CQ25: =_xlfn.IFNA(MATCH(RAND(), _xlfn.POISSON.DIST({0,1,2,3,4,5,6,7,8,9},$P25, TRUE),1), 0) -> 0 | CR25: =_xlfn.IFNA(MATCH(RAND(), _xlfn.POISSON.DIST({0,1,2,3,4,5,6,7,8,9},$P25, TRUE),1), 0) -> 2 | CS25: =_xlfn.IFNA(MATCH(RAND(), _xlfn.POISSON.DIST({0,1,2,3,4,5,6,7,8,9},$P25, TRUE),1), 0) -> 1 | CT25: =_xlfn.IFNA(MATCH(RAND(), _xlfn.POISSON.DIST({0,1,2,3,4,5,6,7,8,9},$P25, TRUE),1), 0) -> 0 | CU25: =_xlfn.IFNA(MATCH(RAND(), _xlfn.POISSON.DIST({0,1,2,3,4,5,6,7,8,9},$P25, TRUE),1), 0) -> 1 | CV25: =_xlfn.IFNA(MATCH(RAND(), _xlfn.POISSON.DIST({0,1,2,3,4,5,6,7,8,9},$P25, TRUE),1), 0) -> 2 | CW25: =_xlfn.IFNA(MATCH(RAND(), _xlfn.POISSON.DIST({0,1,2,3,4,5,6,7,8,9},$P25, TRUE),1), 0) -> 0 | CX25: =_xlfn.IFNA(MATCH(RAND(), _xlfn.POISSON.DIST({0,1,2,3,4,5,6,7,8,9},$P25, TRUE),1), 0) -> 0 | CY25: =_xlfn.IFNA(MATCH(RAND(), _xlfn.POISSON.DIST({0,1,2,3,4,5,6,7,8,9},$P25, TRUE),1), 0) -> 1 | CZ25: =_xlfn.IFNA(MATCH(RAND(), _xlfn.POISSON.DIST({0,1,2,3,4,5,6,7,8,9},$P25, TRUE),1), 0) -> 0 | DA25: =_xlfn.IFNA(MATCH(RAND(), _xlfn.POISSON.DIST({0,1,2,3,4,5,6,7,8,9},$P25, TRUE),1), 0) -> 0 | DB25: =_xlfn.IFNA(MATCH(RAND(), _xlfn.POISSON.DIST({0,1,2,3,4,5,6,7,8,9},$P25, TRUE),1), 0) -> 0 | DC25: =_xlfn.IFNA(MATCH(RAND(), _xlfn.POISSON.DIST({0,1,2,3,4,5,6,7,8,9},$P25, TRUE),1), 0) -> 1 | DD25: =_xlfn.IFNA(MATCH(RAND(), _xlfn.POISSON.DIST({0,1,2,3,4,5,6,7,8,9},$P25, TRUE),1), 0) -> 0 | DE25: =_xlfn.IFNA(MATCH(RAND(), _xlfn.POISSON.DIST({0,1,2,3,4,5,6,7,8,9},$P25, TRUE),1), 0) -> 0 | DF25: =_xlfn.IFNA(MATCH(RAND(), _xlfn.POISSON.DIST({0,1,2,3,4,5,6,7,8,9},$P25, TRUE),1), 0) -> 0 | DG25: =_xlfn.IFNA(MATCH(RAND(), _xlfn.POISSON.DIST({0,1,2,3,4,5,6,7,8,9},$P25, TRUE),1), 0) -> 0 | DH25: =_xlfn.IFNA(MATCH(RAND(), _xlfn.POISSON.DIST({0,1,2,3,4,5,6,7,8,9},$P25, TRUE),1), 0) -> 1 | DI25: =_xlfn.IFNA(MATCH(RAND(), _xlfn.POISSON.DIST({0,1,2,3,4,5,6,7,8,9},$P25, TRUE),1), 0) -> 0 | DJ25: =_xlfn.IFNA(MATCH(RAND(), _xlfn.POISSON.DIST({0,1,2,3,4,5,6,7,8,9},$P25, TRUE),1), 0) -> 0 | DK25: =_xlfn.IFNA(MATCH(RAND(), _xlfn.POISSON.DIST({0,1,2,3,4,5,6,7,8,9},$P25, TRUE),1), 0) -> 0 | DL25: =_xlfn.IFNA(MATCH(RAND(), _xlfn.POISSON.DIST({0,1,2,3,4,5,6,7,8,9},$P25, TRUE),1), 0) -> 1 | DM25: =_xlfn.IFNA(MATCH(RAND(), _xlfn.POISSON.DIST({0,1,2,3,4,5,6,7,8,9},$P25, TRUE),1), 0) -> 0
C26: 2019-06-15 | D26: E | E26: Нидерланды | F26: =(AVERAGE(Q26:BN26))*(1+INDEX('Прогнозы группового этапа'!$C$4:$O$28, MATCH('Матчи за текущий год'!E26,'Прогнозы группового этапа'!$D$4:$D$28,0),3)) -> 2.42 | G26: Камерун | H26: =(AVERAGE(BP26:DM26))*(1+INDEX('Прогнозы группового этапа'!$C$4:$O$28, MATCH('Матчи за текущий год'!G26,'Прогнозы группового этапа'!$D$4:$D$28,0),3)) -> 0.56 | I26: Нидерланды | L26: 2.42 | M26: 0.56 | N26: Нидерланды | O26: =(OFFSET('Прил. 3. Голы в группе'!$D$14,(INDEX('Прил. 1. Данные команды'!$C$13:$F$112,MATCH(G26,'Прил. 1. Данные команды'!$C$13:$C$112,0),4)/10),(INDEX('Прил. 1. Данные команды'!$C$13:$F$112,MATCH(E26,'Прил. 1. Данные команды'!$C$13:$C$112,0),4)/10))) -> 2.46 | P26: =OFFSET('Прил. 3. Голы в группе'!$D$14,(INDEX('Прил. 1. Данные команды'!$C$13:$F$112, MATCH(E26,'Прил. 1. Данные команды'!$C$13:$C$112,0),4)/10), (INDEX('Прил. 1. Данные команды'!$C$13:$F$112, MATCH(G26, 'Прил. 1. Данные команды'!$C$13:$C$112,0),4)/10)) -> 0.38 | Q26: =_xlfn.IFNA(MATCH(RAND(), _xlfn.POISSON.DIST({0,1,2,3,4,5,6,7,8,9},$O26, TRUE),1), 0) -> 0 | R26: =_xlfn.IFNA(MATCH(RAND(), _xlfn.POISSON.DIST({0,1,2,3,4,5,6,7,8,9},$O26, TRUE),1), 0) -> 4 | S26: =_xlfn.IFNA(MATCH(RAND(), _xlfn.POISSON.DIST({0,1,2,3,4,5,6,7,8,9},$O26, TRUE),1), 0) -> 0 | T26: =_xlfn.IFNA(MATCH(RAND(), _xlfn.POISSON.DIST({0,1,2,3,4,5,6,7,8,9},$O26, TRUE),1), 0) -> 2 | U26: =_xlfn.IFNA(MATCH(RAND(), _xlfn.POISSON.DIST({0,1,2,3,4,5,6,7,8,9},$O26, TRUE),1), 0) -> 1 | V26: =_xlfn.IFNA(MATCH(RAND(), _xlfn.POISSON.DIST({0,1,2,3,4,5,6,7,8,9},$O26, TRUE),1), 0) -> 3 | W26: =_xlfn.IFNA(MATCH(RAND(), _xlfn.POISSON.DIST({0,1,2,3,4,5,6,7,8,9},$O26, TRUE),1), 0) -> 3 | X26: =_xlfn.IFNA(MATCH(RAND(), _xlfn.POISSON.DIST({0,1,2,3,4,5,6,7,8,9},$O26, TRUE),1), 0) -> 3 | Y26: =_xlfn.IFNA(MATCH(RAND(), _xlfn.POISSON.DIST({0,1,2,3,4,5,6,7,8,9},$O26, TRUE),1), 0) -> 0 | Z26: =_xlfn.IFNA(MATCH(RAND(), _xlfn.POISSON.DIST({0,1,2,3,4,5,6,7,8,9},$O26, TRUE),1), 0) -> 2 | AA26: =_xlfn.IFNA(MATCH(RAND(), _xlfn.POISSON.DIST({0,1,2,3,4,5,6,7,8,9},$O26, TRUE),1), 0) -> 3 | AB26: =_xlfn.IFNA(MATCH(RAND(), _xlfn.POISSON.DIST({0,1,2,3,4,5,6,7,8,9},$O26, TRUE),1), 0) -> 2 | AC26: =_xlfn.IFNA(MATCH(RAND(), _xlfn.POISSON.DIST({0,1,2,3,4,5,6,7,8,9},$O26, TRUE),1), 0) -> 2 | AD26: =_xlfn.IFNA(MATCH(RAND(), _xlfn.POISSON.DIST({0,1,2,3,4,5,6,7,8,9},$O26, TRUE),1), 0) -> 1 | AE26: =_xlfn.IFNA(MATCH(RAND(), _xlfn.POISSON.DIST({0,1,2,3,4,5,6,7,8,9},$O26, TRUE),1), 0) -> 3 | AF26: =_xlfn.IFNA(MATCH(RAND(), _xlfn.POISSON.DIST({0,1,2,3,4,5,6,7,8,9},$O26, TRUE),1), 0) -> 1 | AG26: =_xlfn.IFNA(MATCH(RAND(), _xlfn.POISSON.DIST({0,1,2,3,4,5,6,7,8,9},$O26, TRUE),1), 0) -> 3 | AH26: =_xlfn.IFNA(MATCH(RAND(), _xlfn.POISSON.DIST({0,1,2,3,4,5,6,7,8,9},$O26, TRUE),1), 0) -> 1 | AI26: =_xlfn.IFNA(MATCH(RAND(), _xlfn.POISSON.DIST({0,1,2,3,4,5,6,7,8,9},$O26, TRUE),1), 0) -> 3 | AJ26: =_xlfn.IFNA(MATCH(RAND(), _xlfn.POISSON.DIST({0,1,2,3,4,5,6,7,8,9},$O26, TRUE),1), 0) -> 3 | AK26: =_xlfn.IFNA(MATCH(RAND(), _xlfn.POISSON.DIST({0,1,2,3,4,5,6,7,8,9},$O26, TRUE),1), 0) -> 1 | AL26: =_xlfn.IFNA(MATCH(RAND(), _xlfn.POISSON.DIST({0,1,2,3,4,5,6,7,8,9},$O26, TRUE),1), 0) -> 0 | AM26: =_xlfn.IFNA(MATCH(RAND(), _xlfn.POISSON.DIST({0,1,2,3,4,5,6,7,8,9},$O26, TRUE),1), 0) -> 2 | AN26: =_xlfn.IFNA(MATCH(RAND(), _xlfn.POISSON.DIST({0,1,2,3,4,5,6,7,8,9},$O26, TRUE),1), 0) -> 4 | AO26: =_xlfn.IFNA(MATCH(RAND(), _xlfn.POISSON.DIST({0,1,2,3,4,5,6,7,8,9},$O26, TRUE),1), 0) -> 2 | AP26: =_xlfn.IFNA(MATCH(RAND(), _xlfn.POISSON.DIST({0,1,2,3,4,5,6,7,8,9},$O26, TRUE),1), 0) -> 2 | AQ26: =_xlfn.IFNA(MATCH(RAND(), _xlfn.POISSON.DIST({0,1,2,3,4,5,6,7,8,9},$O26, TRUE),1), 0) -> 2 | AR26: =_xlfn.IFNA(MATCH(RAND(), _xlfn.POISSON.DIST({0,1,2,3,4,5,6,7,8,9},$O26, TRUE),1), 0) -> 1 | AS26: =_xlfn.IFNA(MATCH(RAND(), _xlfn.POISSON.DIST({0,1,2,3,4,5,6,7,8,9},$O26, TRUE),1), 0) -> 2 | AT26: =_xlfn.IFNA(MATCH(RAND(), _xlfn.POISSON.DIST({0,1,2,3,4,5,6,7,8,9},$O26, TRUE),1), 0) -> 3 | AU26: =_xlfn.IFNA(MATCH(RAND(), _xlfn.POISSON.DIST({0,1,2,3,4,5,6,7,8,9},$O26, TRUE),1), 0) -> 0 | AV26: =_xlfn.IFNA(MATCH(RAND(), _xlfn.POISSON.DIST({0,1,2,3,4,5,6,7,8,9},$O26, TRUE),1), 0) -> 6 | AW26: =_xlfn.IFNA(MATCH(RAND(), _xlfn.POISSON.DIST({0,1,2,3,4,5,6,7,8,9},$O26, TRUE),1), 0) -> 0 | AX26: =_xlfn.IFNA(MATCH(RAND(), _xlfn.POISSON.DIST({0,1,2,3,4,5,6,7,8,9},$O26, TRUE),1), 0) -> 4 | AY26: =_xlfn.IFNA(MATCH(RAND(), _xlfn.POISSON.DIST({0,1,2,3,4,5,6,7,8,9},$O26, TRUE),1), 0) -> 4 | AZ26: =_xlfn.IFNA(MATCH(RAND(), _xlfn.POISSON.DIST({0,1,2,3,4,5,6,7,8,9},$O26, TRUE),1), 0) -> 4 | BA26: =_xlfn.IFNA(MATCH(RAND(), _xlfn.POISSON.DIST({0,1,2,3,4,5,6,7,8,9},$O26, TRUE),1), 0) -> 4 | BB26: =_xlfn.IFNA(MATCH(RAND(), _xlfn.POISSON.DIST({0,1,2,3,4,5,6,7,8,9},$O26, TRUE),1), 0) -> 3 | BC26: =_xlfn.IFNA(MATCH(RAND(), _xlfn.POISSON.DIST({0,1,2,3,4,5,6,7,8,9},$O26, TRUE),1), 0) -> 1 | BD26: =_xlfn.IFNA(MATCH(RAND(), _xlfn.POISSON.DIST({0,1,2,3,4,5,6,7,8,9},$O26, TRUE),1), 0) -> 3 | BE26: =_xlfn.IFNA(MATCH(RAND(), _xlfn.POISSON.DIST({0,1,2,3,4,5,6,7,8,9},$O26, TRUE),1), 0) -> 3 | BF26: =_xlfn.IFNA(MATCH(RAND(), _xlfn.POISSON.DIST({0,1,2,3,4,5,6,7,8,9},$O26, TRUE),1), 0) -> 5 | BG26: =_xlfn.IFNA(MATCH(RAND(), _xlfn.POISSON.DIST({0,1,2,3,4,5,6,7,8,9},$O26, TRUE),1), 0) -> 3 | BH26: =_xlfn.IFNA(MATCH(RAND(), _xlfn.POISSON.DIST({0,1,2,3,4,5,6,7,8,9},$O26, TRUE),1), 0) -> 2 | BI26: =_xlfn.IFNA(MATCH(RAND(), _xlfn.POISSON.DIST({0,1,2,3,4,5,6,7,8,9},$O26, TRUE),1), 0) -> 5 | BJ26: =_xlfn.IFNA(MATCH(RAND(), _xlfn.POISSON.DIST({0,1,2,3,4,5,6,7,8,9},$O26, TRUE),1), 0) -> 2 | BK26: =_xlfn.IFNA(MATCH(RAND(), _xlfn.POISSON.DIST({0,1,2,3,4,5,6,7,8,9},$O26, TRUE),1), 0) -> 2 | BL26: =_xlfn.IFNA(MATCH(RAND(), _xlfn.POISSON.DIST({0,1,2,3,4,5,6,7,8,9},$O26, TRUE),1), 0) -> 0 | BM26: =_xlfn.IFNA(MATCH(RAND(), _xlfn.POISSON.DIST({0,1,2,3,4,5,6,7,8,9},$O26, TRUE),1), 0) -> 8 | BN26: =_xlfn.IFNA(MATCH(RAND(), _xlfn.POISSON.DIST({0,1,2,3,4,5,6,7,8,9},$O26, TRUE),1), 0) -> 3 | BP26: =_xlfn.IFNA(MATCH(RAND(), _xlfn.POISSON.DIST({0,1,2,3,4,5,6,7,8,9},$P26, TRUE),1), 0) -> 1 | BQ26: =_xlfn.IFNA(MATCH(RAND(), _xlfn.POISSON.DIST({0,1,2,3,4,5,6,7,8,9},$P26, TRUE),1), 0) -> 1 | BR26: =_xlfn.IFNA(MATCH(RAND(), _xlfn.POISSON.DIST({0,1,2,3,4,5,6,7,8,9},$P26, TRUE),1), 0) -> 0 | BS26: =_xlfn.IFNA(MATCH(RAND(), _xlfn.POISSON.DIST({0,1,2,3,4,5,6,7,8,9},$P26, TRUE),1), 0) -> 1 | BT26: =_xlfn.IFNA(MATCH(RAND(), _xlfn.POISSON.DIST({0,1,2,3,4,5,6,7,8,9},$P26, TRUE),1), 0) -> 0 | BU26: =_xlfn.IFNA(MATCH(RAND(), _xlfn.POISSON.DIST({0,1,2,3,4,5,6,7,8,9},$P26, TRUE),1), 0) -> 0 | BV26: =_xlfn.IFNA(MATCH(RAND(), _xlfn.POISSON.DIST({0,1,2,3,4,5,6,7,8,9},$P26, TRUE),1), 0) -> 0 | BW26: =_xlfn.IFNA(MATCH(RAND(), _xlfn.POISSON.DIST({0,1,2,3,4,5,6,7,8,9},$P26, TRUE),1), 0) -> 0 | BX26: =_xlfn.IFNA(MATCH(RAND(), _xlfn.POISSON.DIST({0,1,2,3,4,5,6,7,8,9},$P26, TRUE),1), 0) -> 0 | BY26: =_xlfn.IFNA(MATCH(RAND(), _xlfn.POISSON.DIST({0,1,2,3,4,5,6,7,8,9},$P26, TRUE),1), 0) -> 2 | BZ26: =_xlfn.IFNA(MATCH(RAND(), _xlfn.POISSON.DIST({0,1,2,3,4,5,6,7,8,9},$P26, TRUE),1), 0) -> 1 | CA26: =_xlfn.IFNA(MATCH(RAND(), _xlfn.POISSON.DIST({0,1,2,3,4,5,6,7,8,9},$P26, TRUE),1), 0) -> 0 | CB26: =_xlfn.IFNA(MATCH(RAND(), _xlfn.POISSON.DIST({0,1,2,3,4,5,6,7,8,9},$P26, TRUE),1), 0) -> 0 | CC26: =_xlfn.IFNA(MATCH(RAND(), _xlfn.POISSON.DIST({0,1,2,3,4,5,6,7,8,9},$P26, TRUE),1), 0) -> 0 | CD26: =_xlfn.IFNA(MATCH(RAND(), _xlfn.POISSON.DIST({0,1,2,3,4,5,6,7,8,9},$P26, TRUE),1), 0) -> 0 | CE26: =_xlfn.IFNA(MATCH(RAND(), _xlfn.POISSON.DIST({0,1,2,3,4,5,6,7,8,9},$P26, TRUE),1), 0) -> 0 | CF26: =_xlfn.IFNA(MATCH(RAND(), _xlfn.POISSON.DIST({0,1,2,3,4,5,6,7,8,9},$P26, TRUE),1), 0) -> 1 | CG26: =_xlfn.IFNA(MATCH(RAND(), _xlfn.POISSON.DIST({0,1,2,3,4,5,6,7,8,9},$P26, TRUE),1), 0) -> 0 | CH26: =_xlfn.IFNA(MATCH(RAND(), _xlfn.POISSON.DIST({0,1,2,3,4,5,6,7,8,9},$P26, TRUE),1), 0) -> 1 | CI26: =_xlfn.IFNA(MATCH(RAND(), _xlfn.POISSON.DIST({0,1,2,3,4,5,6,7,8,9},$P26, TRUE),1), 0) -> 1 | CJ26: =_xlfn.IFNA(MATCH(RAND(), _xlfn.POISSON.DIST({0,1,2,3,4,5,6,7,8,9},$P26, TRUE),1), 0) -> 1 | CK26: =_xlfn.IFNA(MATCH(RAND(), _xlfn.POISSON.DIST({0,1,2,3,4,5,6,7,8,9},$P26, TRUE),1), 0) -> 1 | CL26: =_xlfn.IFNA(MATCH(RAND(), _xlfn.POISSON.DIST({0,1,2,3,4,5,6,7,8,9},$P26, TRUE),1), 0) -> 1 | CM26: =_xlfn.IFNA(MATCH(RAND(), _xlfn.POISSON.DIST({0,1,2,3,4,5,6,7,8,9},$P26, TRUE),1), 0) -> 1 | CN26: =_xlfn.IFNA(MATCH(RAND(), _xlfn.POISSON.DIST({0,1,2,3,4,5,6,7,8,9},$P26, TRUE),1), 0) -> 1 | CO26: =_xlfn.IFNA(MATCH(RAND(), _xlfn.POISSON.DIST({0,1,2,3,4,5,6,7,8,9},$P26, TRUE),1), 0) -> 2 | CP26: =_xlfn.IFNA(MATCH(RAND(), _xlfn.POISSON.DIST({0,1,2,3,4,5,6,7,8,9},$P26, TRUE),1), 0) -> 0 | CQ26: =_xlfn.IFNA(MATCH(RAND(), _xlfn.POISSON.DIST({0,1,2,3,4,5,6,7,8,9},$P26, TRUE),1), 0) -> 1 | CR26: =_xlfn.IFNA(MATCH(RAND(), _xlfn.POISSON.DIST({0,1,2,3,4,5,6,7,8,9},$P26, TRUE),1), 0) -> 0 | CS26: =_xlfn.IFNA(MATCH(RAND(), _xlfn.POISSON.DIST({0,1,2,3,4,5,6,7,8,9},$P26, TRUE),1), 0) -> 2 | CT26: =_xlfn.IFNA(MATCH(RAND(), _xlfn.POISSON.DIST({0,1,2,3,4,5,6,7,8,9},$P26, TRUE),1), 0) -> 1 | CU26: =_xlfn.IFNA(MATCH(RAND(), _xlfn.POISSON.DIST({0,1,2,3,4,5,6,7,8,9},$P26, TRUE),1), 0) -> 0 | CV26: =_xlfn.IFNA(MATCH(RAND(), _xlfn.POISSON.DIST({0,1,2,3,4,5,6,7,8,9},$P26, TRUE),1), 0) -> 0 | CW26: =_xlfn.IFNA(MATCH(RAND(), _xlfn.POISSON.DIST({0,1,2,3,4,5,6,7,8,9},$P26, TRUE),1), 0) -> 0 | CX26: =_xlfn.IFNA(MATCH(RAND(), _xlfn.POISSON.DIST({0,1,2,3,4,5,6,7,8,9},$P26, TRUE),1), 0) -> 0 | CY26: =_xlfn.IFNA(MATCH(RAND(), _xlfn.POISSON.DIST({0,1,2,3,4,5,6,7,8,9},$P26, TRUE),1), 0) -> 2 | CZ26: =_xlfn.IFNA(MATCH(RAND(), _xlfn.POISSON.DIST({0,1,2,3,4,5,6,7,8,9},$P26, TRUE),1), 0) -> 0 | DA26: =_xlfn.IFNA(MATCH(RAND(), _xlfn.POISSON.DIST({0,1,2,3,4,5,6,7,8,9},$P26, TRUE),1), 0) -> 0 | DB26: =_xlfn.IFNA(MATCH(RAND(), _xlfn.POISSON.DIST({0,1,2,3,4,5,6,7,8,9},$P26, TRUE),1), 0) -> 1 | DC26: =_xlfn.IFNA(MATCH(RAND(), _xlfn.POISSON.DIST({0,1,2,3,4,5,6,7,8,9},$P26, TRUE),1), 0) -> 0 | DD26: =_xlfn.IFNA(MATCH(RAND(), _xlfn.POISSON.DIST({0,1,2,3,4,5,6,7,8,9},$P26, TRUE),1), 0) -> 0 | DE26: =_xlfn.IFNA(MATCH(RAND(), _xlfn.POISSON.DIST({0,1,2,3,4,5,6,7,8,9},$P26, TRUE),1), 0) -> 0 | DF26: =_xlfn.IFNA(MATCH(RAND(), _xlfn.POISSON.DIST({0,1,2,3,4,5,6,7,8,9},$P26, TRUE),1), 0) -> 0 | DG26: =_xlfn.IFNA(MATCH(RAND(), _xlfn.POISSON.DIST({0,1,2,3,4,5,6,7,8,9},$P26, TRUE),1), 0) -> 1 | DH26: =_xlfn.IFNA(MATCH(RAND(), _xlfn.POISSON.DIST({0,1,2,3,4,5,6,7,8,9},$P26, TRUE),1), 0) -> 0 | DI26: =_xlfn.IFNA(MATCH(RAND(), _xlfn.POISSON.DIST({0,1,2,3,4,5,6,7,8,9},$P26, TRUE),1), 0) -> 1 | DJ26: =_xlfn.IFNA(MATCH(RAND(), _xlfn.POISSON.DIST({0,1,2,3,4,5,6,7,8,9},$P26, TRUE),1), 0) -> 1 | DK26: =_xlfn.IFNA(MATCH(RAND(), _xlfn.POISSON.DIST({0,1,2,3,4,5,6,7,8,9},$P26, TRUE),1), 0) -> 0 | DL26: =_xlfn.IFNA(MATCH(RAND(), _xlfn.POISSON.DIST({0,1,2,3,4,5,6,7,8,9},$P26, TRUE),1), 0) -> 0 | DM26: =_xlfn.IFNA(MATCH(RAND(), _xlfn.POISSON.DIST({0,1,2,3,4,5,6,7,8,9},$P26, TRUE),1), 0) -> 2
C27: 2019-06-15 | D27: E | E27: Канада | F27: =(AVERAGE(Q27:BN27))*(1+INDEX('Прогнозы группового этапа'!$C$4:$O$28, MATCH('Матчи за текущий год'!E27,'Прогнозы группового этапа'!$D$4:$D$28,0),3)) -> 1.68 | G27: Новая Зеландия | H27: =(AVERAGE(BP27:DM27))*(1+INDEX('Прогнозы группового этапа'!$C$4:$O$28, MATCH('Матчи за текущий год'!G27,'Прогнозы группового этапа'!$D$4:$D$28,0),3)) -> 0.90 | I27: Канада | L27: 1.68 | M27: 0.9 | N27: Канада | O27: =(OFFSET('Прил. 3. Голы в группе'!$D$14,(INDEX('Прил. 1. Данные команды'!$C$13:$F$112,MATCH(G27,'Прил. 1. Данные команды'!$C$13:$C$112,0),4)/10),(INDEX('Прил. 1. Данные команды'!$C$13:$F$112,MATCH(E27,'Прил. 1. Данные команды'!$C$13:$C$112,0),4)/10))) -> 1.78 | P27: =OFFSET('Прил. 3. Голы в группе'!$D$14,(INDEX('Прил. 1. Данные команды'!$C$13:$F$112, MATCH(E27,'Прил. 1. Данные команды'!$C$13:$C$112,0),4)/10), (INDEX('Прил. 1. Данные команды'!$C$13:$F$112, MATCH(G27, 'Прил. 1. Данные команды'!$C$13:$C$112,0),4)/10)) -> 1.07 | Q27: =_xlfn.IFNA(MATCH(RAND(), _xlfn.POISSON.DIST({0,1,2,3,4,5,6,7,8,9},$O27, TRUE),1), 0) -> 1 | R27: =_xlfn.IFNA(MATCH(RAND(), _xlfn.POISSON.DIST({0,1,2,3,4,5,6,7,8,9},$O27, TRUE),1), 0) -> 2 | S27: =_xlfn.IFNA(MATCH(RAND(), _xlfn.POISSON.DIST({0,1,2,3,4,5,6,7,8,9},$O27, TRUE),1), 0) -> 1 | T27: =_xlfn.IFNA(MATCH(RAND(), _xlfn.POISSON.DIST({0,1,2,3,4,5,6,7,8,9},$O27, TRUE),1), 0) -> 1 | U27: =_xlfn.IFNA(MATCH(RAND(), _xlfn.POISSON.DIST({0,1,2,3,4,5,6,7,8,9},$O27, TRUE),1), 0) -> 2 | V27: =_xlfn.IFNA(MATCH(RAND(), _xlfn.POISSON.DIST({0,1,2,3,4,5,6,7,8,9},$O27, TRUE),1), 0) -> 2 | W27: =_xlfn.IFNA(MATCH(RAND(), _xlfn.POISSON.DIST({0,1,2,3,4,5,6,7,8,9},$O27, TRUE),1), 0) -> 3 | X27: =_xlfn.IFNA(MATCH(RAND(), _xlfn.POISSON.DIST({0,1,2,3,4,5,6,7,8,9},$O27, TRUE),1), 0) -> 1 | Y27: =_xlfn.IFNA(MATCH(RAND(), _xlfn.POISSON.DIST({0,1,2,3,4,5,6,7,8,9},$O27, TRUE),1), 0) -> 2 | Z27: =_xlfn.IFNA(MATCH(RAND(), _xlfn.POISSON.DIST({0,1,2,3,4,5,6,7,8,9},$O27, TRUE),1), 0) -> 0 | AA27: =_xlfn.IFNA(MATCH(RAND(), _xlfn.POISSON.DIST({0,1,2,3,4,5,6,7,8,9},$O27, TRUE),1), 0) -> 1 | AB27: =_xlfn.IFNA(MATCH(RAND(), _xlfn.POISSON.DIST({0,1,2,3,4,5,6,7,8,9},$O27, TRUE),1), 0) -> 1 | AC27: =_xlfn.IFNA(MATCH(RAND(), _xlfn.POISSON.DIST({0,1,2,3,4,5,6,7,8,9},$O27, TRUE),1), 0) -> 1 | AD27: =_xlfn.IFNA(MATCH(RAND(), _xlfn.POISSON.DIST({0,1,2,3,4,5,6,7,8,9},$O27, TRUE),1), 0) -> 2 | AE27: =_xlfn.IFNA(MATCH(RAND(), _xlfn.POISSON.DIST({0,1,2,3,4,5,6,7,8,9},$O27, TRUE),1), 0) -> 3 | AF27: =_xlfn.IFNA(MATCH(RAND(), _xlfn.POISSON.DIST({0,1,2,3,4,5,6,7,8,9},$O27, TRUE),1), 0) -> 3 | AG27: =_xlfn.IFNA(MATCH(RAND(), _xlfn.POISSON.DIST({0,1,2,3,4,5,6,7,8,9},$O27, TRUE),1), 0) -> 2 | AH27: =_xlfn.IFNA(MATCH(RAND(), _xlfn.POISSON.DIST({0,1,2,3,4,5,6,7,8,9},$O27, TRUE),1), 0) -> 2 | AI27: =_xlfn.IFNA(MATCH(RAND(), _xlfn.POISSON.DIST({0,1,2,3,4,5,6,7,8,9},$O27, TRUE),1), 0) -> 1 | AJ27: =_xlfn.IFNA(MATCH(RAND(), _xlfn.POISSON.DIST({0,1,2,3,4,5,6,7,8,9},$O27, TRUE),1), 0) -> 3 | AK27: =_xlfn.IFNA(MATCH(RAND(), _xlfn.POISSON.DIST({0,1,2,3,4,5,6,7,8,9},$O27, TRUE),1), 0) -> 1 | AL27: =_xlfn.IFNA(MATCH(RAND(), _xlfn.POISSON.DIST({0,1,2,3,4,5,6,7,8,9},$O27, TRUE),1), 0) -> 2 | AM27: =_xlfn.IFNA(MATCH(RAND(), _xlfn.POISSON.DIST({0,1,2,3,4,5,6,7,8,9},$O27, TRUE),1), 0) -> 2 | AN27: =_xlfn.IFNA(MATCH(RAND(), _xlfn.POISSON.DIST({0,1,2,3,4,5,6,7,8,9},$O27, TRUE),1), 0) -> 3 | AO27: =_xlfn.IFNA(MATCH(RAND(), _xlfn.POISSON.DIST({0,1,2,3,4,5,6,7,8,9},$O27, TRUE),1), 0) -> 3 | AP27: =_xlfn.IFNA(MATCH(RAND(), _xlfn.POISSON.DIST({0,1,2,3,4,5,6,7,8,9},$O27, TRUE),1), 0) -> 2 | AQ27: =_xlfn.IFNA(MATCH(RAND(), _xlfn.POISSON.DIST({0,1,2,3,4,5,6,7,8,9},$O27, TRUE),1), 0) -> 0 | AR27: =_xlfn.IFNA(MATCH(RAND(), _xlfn.POISSON.DIST({0,1,2,3,4,5,6,7,8,9},$O27, TRUE),1), 0) -> 2 | AS27: =_xlfn.IFNA(MATCH(RAND(), _xlfn.POISSON.DIST({0,1,2,3,4,5,6,7,8,9},$O27, TRUE),1), 0) -> 1 | AT27: =_xlfn.IFNA(MATCH(RAND(), _xlfn.POISSON.DIST({0,1,2,3,4,5,6,7,8,9},$O27, TRUE),1), 0) -> 3 | AU27: =_xlfn.IFNA(MATCH(RAND(), _xlfn.POISSON.DIST({0,1,2,3,4,5,6,7,8,9},$O27, TRUE),1), 0) -> 4 | AV27: =_xlfn.IFNA(MATCH(RAND(), _xlfn.POISSON.DIST({0,1,2,3,4,5,6,7,8,9},$O27, TRUE),1), 0) -> 1 | AW27: =_xlfn.IFNA(MATCH(RAND(), _xlfn.POISSON.DIST({0,1,2,3,4,5,6,7,8,9},$O27, TRUE),1), 0) -> 2 | AX27: =_xlfn.IFNA(MATCH(RAND(), _xlfn.POISSON.DIST({0,1,2,3,4,5,6,7,8,9},$O27, TRUE),1), 0) -> 1 | AY27: =_xlfn.IFNA(MATCH(RAND(), _xlfn.POISSON.DIST({0,1,2,3,4,5,6,7,8,9},$O27, TRUE),1), 0) -> 3 | AZ27: =_xlfn.IFNA(MATCH(RAND(), _xlfn.POISSON.DIST({0,1,2,3,4,5,6,7,8,9},$O27, TRUE),1), 0) -> 0 | BA27: =_xlfn.IFNA(MATCH(RAND(), _xlfn.POISSON.DIST({0,1,2,3,4,5,6,7,8,9},$O27, TRUE),1), 0) -> 1 | BB27: =_xlfn.IFNA(MATCH(RAND(), _xlfn.POISSON.DIST({0,1,2,3,4,5,6,7,8,9},$O27, TRUE),1), 0) -> 0 | BC27: =_xlfn.IFNA(MATCH(RAND(), _xlfn.POISSON.DIST({0,1,2,3,4,5,6,7,8,9},$O27, TRUE),1), 0) -> 3 | BD27: =_xlfn.IFNA(MATCH(RAND(), _xlfn.POISSON.DIST({0,1,2,3,4,5,6,7,8,9},$O27, TRUE),1), 0) -> 1 | BE27: =_xlfn.IFNA(MATCH(RAND(), _xlfn.POISSON.DIST({0,1,2,3,4,5,6,7,8,9},$O27, TRUE),1), 0) -> 2 | BF27: =_xlfn.IFNA(MATCH(RAND(), _xlfn.POISSON.DIST({0,1,2,3,4,5,6,7,8,9},$O27, TRUE),1), 0) -> 2 | BG27: =_xlfn.IFNA(MATCH(RAND(), _xlfn.POISSON.DIST({0,1,2,3,4,5,6,7,8,9},$O27, TRUE),1), 0) -> 2 | BH27: =_xlfn.IFNA(MATCH(RAND(), _xlfn.POISSON.DIST({0,1,2,3,4,5,6,7,8,9},$O27, TRUE),1), 0) -> 3 | BI27: =_xlfn.IFNA(MATCH(RAND(), _xlfn.POISSON.DIST({0,1,2,3,4,5,6,7,8,9},$O27, TRUE),1), 0) -> 2 | BJ27: =_xlfn.IFNA(MATCH(RAND(), _xlfn.POISSON.DIST({0,1,2,3,4,5,6,7,8,9},$O27, TRUE),1), 0) -> 1 | BK27: =_xlfn.IFNA(MATCH(RAND(), _xlfn.POISSON.DIST({0,1,2,3,4,5,6,7,8,9},$O27, TRUE),1), 0) -> 0 | BL27: =_xlfn.IFNA(MATCH(RAND(), _xlfn.POISSON.DIST({0,1,2,3,4,5,6,7,8,9},$O27, TRUE),1), 0) -> 0 | BM27: =_xlfn.IFNA(MATCH(RAND(), _xlfn.POISSON.DIST({0,1,2,3,4,5,6,7,8,9},$O27, TRUE),1), 0) -> 0 | BN27: =_xlfn.IFNA(MATCH(RAND(), _xlfn.POISSON.DIST({0,1,2,3,4,5,6,7,8,9},$O27, TRUE),1), 0) -> 3 | BP27: =_xlfn.IFNA(MATCH(RAND(), _xlfn.POISSON.DIST({0,1,2,3,4,5,6,7,8,9},$P27, TRUE),1), 0) -> 2 | BQ27: =_xlfn.IFNA(MATCH(RAND(), _xlfn.POISSON.DIST({0,1,2,3,4,5,6,7,8,9},$P27, TRUE),1), 0) -> 1 | BR27: =_xlfn.IFNA(MATCH(RAND(), _xlfn.POISSON.DIST({0,1,2,3,4,5,6,7,8,9},$P27, TRUE),1), 0) -> 3 | BS27: =_xlfn.IFNA(MATCH(RAND(), _xlfn.POISSON.DIST({0,1,2,3,4,5,6,7,8,9},$P27, TRUE),1), 0) -> 1 | BT27: =_xlfn.IFNA(MATCH(RAND(), _xlfn.POISSON.DIST({0,1,2,3,4,5,6,7,8,9},$P27, TRUE),1), 0) -> 1 | BU27: =_xlfn.IFNA(MATCH(RAND(), _xlfn.POISSON.DIST({0,1,2,3,4,5,6,7,8,9},$P27, TRUE),1), 0) -> 1 | BV27: =_xlfn.IFNA(MATCH(RAND(), _xlfn.POISSON.DIST({0,1,2,3,4,5,6,7,8,9},$P27, TRUE),1), 0) -> 1 | BW27: =_xlfn.IFNA(MATCH(RAND(), _xlfn.POISSON.DIST({0,1,2,3,4,5,6,7,8,9},$P27, TRUE),1), 0) -> 1 | BX27: =_xlfn.IFNA(MATCH(RAND(), _xlfn.POISSON.DIST({0,1,2,3,4,5,6,7,8,9},$P27, TRUE),1), 0) -> 1 | BY27: =_xlfn.IFNA(MATCH(RAND(), _xlfn.POISSON.DIST({0,1,2,3,4,5,6,7,8,9},$P27, TRUE),1), 0) -> 0 | BZ27: =_xlfn.IFNA(MATCH(RAND(), _xlfn.POISSON.DIST({0,1,2,3,4,5,6,7,8,9},$P27, TRUE),1), 0) -> 1 | CA27: =_xlfn.IFNA(MATCH(RAND(), _xlfn.POISSON.DIST({0,1,2,3,4,5,6,7,8,9},$P27, TRUE),1), 0) -> 0 | CB27: =_xlfn.IFNA(MATCH(RAND(), _xlfn.POISSON.DIST({0,1,2,3,4,5,6,7,8,9},$P27, TRUE),1), 0) -> 0 | CC27: =_xlfn.IFNA(MATCH(RAND(), _xlfn.POISSON.DIST({0,1,2,3,4,5,6,7,8,9},$P27, TRUE),1), 0) -> 0 | CD27: =_xlfn.IFNA(MATCH(RAND(), _xlfn.POISSON.DIST({0,1,2,3,4,5,6,7,8,9},$P27, TRUE),1), 0) -> 1 | CE27: =_xlfn.IFNA(MATCH(RAND(), _xlfn.POISSON.DIST({0,1,2,3,4,5,6,7,8,9},$P27, TRUE),1), 0) -> 1 | CF27: =_xlfn.IFNA(MATCH(RAND(), _xlfn.POISSON.DIST({0,1,2,3,4,5,6,7,8,9},$P27, TRUE),1), 0) -> 2 | CG27: =_xlfn.IFNA(MATCH(RAND(), _xlfn.POISSON.DIST({0,1,2,3,4,5,6,7,8,9},$P27, TRUE),1), 0) -> 1 | CH27: =_xlfn.IFNA(MATCH(RAND(), _xlfn.POISSON.DIST({0,1,2,3,4,5,6,7,8,9},$P27, TRUE),1), 0) -> 3 | CI27: =_xlfn.IFNA(MATCH(RAND(), _xlfn.POISSON.DIST({0,1,2,3,4,5,6,7,8,9},$P27, TRUE),1), 0) -> 1 | CJ27: =_xlfn.IFNA(MATCH(RAND(), _xlfn.POISSON.DIST({0,1,2,3,4,5,6,7,8,9},$P27, TRUE),1), 0) -> 0 | CK27: =_xlfn.IFNA(MATCH(RAND(), _xlfn.POISSON.DIST({0,1,2,3,4,5,6,7,8,9},$P27, TRUE),1), 0) -> 1 | CL27: =_xlfn.IFNA(MATCH(RAND(), _xlfn.POISSON.DIST({0,1,2,3,4,5,6,7,8,9},$P27, TRUE),1), 0) -> 0 | CM27: =_xlfn.IFNA(MATCH(RAND(), _xlfn.POISSON.DIST({0,1,2,3,4,5,6,7,8,9},$P27, TRUE),1), 0) -> 2 | CN27: =_xlfn.IFNA(MATCH(RAND(), _xlfn.POISSON.DIST({0,1,2,3,4,5,6,7,8,9},$P27, TRUE),1), 0) -> 0 | CO27: =_xlfn.IFNA(MATCH(RAND(), _xlfn.POISSON.DIST({0,1,2,3,4,5,6,7,8,9},$P27, TRUE),1), 0) -> 1 | CP27: =_xlfn.IFNA(MATCH(RAND(), _xlfn.POISSON.DIST({0,1,2,3,4,5,6,7,8,9},$P27, TRUE),1), 0) -> 1 | CQ27: =_xlfn.IFNA(MATCH(RAND(), _xlfn.POISSON.DIST({0,1,2,3,4,5,6,7,8,9},$P27, TRUE),1), 0) -> 0 | CR27: =_xlfn.IFNA(MATCH(RAND(), _xlfn.POISSON.DIST({0,1,2,3,4,5,6,7,8,9},$P27, TRUE),1), 0) -> 1 | CS27: =_xlfn.IFNA(MATCH(RAND(), _xlfn.POISSON.DIST({0,1,2,3,4,5,6,7,8,9},$P27, TRUE),1), 0) -> 2 | CT27: =_xlfn.IFNA(MATCH(RAND(), _xlfn.POISSON.DIST({0,1,2,3,4,5,6,7,8,9},$P27, TRUE),1), 0) -> 0 | CU27: =_xlfn.IFNA(MATCH(RAND(), _xlfn.POISSON.DIST({0,1,2,3,4,5,6,7,8,9},$P27, TRUE),1), 0) -> 2 | CV27: =_xlfn.IFNA(MATCH(RAND(), _xlfn.POISSON.DIST({0,1,2,3,4,5,6,7,8,9},$P27, TRUE),1), 0) -> 0 | CW27: =_xlfn.IFNA(MATCH(RAND(), _xlfn.POISSON.DIST({0,1,2,3,4,5,6,7,8,9},$P27, TRUE),1), 0) -> 1 | CX27: =_xlfn.IFNA(MATCH(RAND(), _xlfn.POISSON.DIST({0,1,2,3,4,5,6,7,8,9},$P27, TRUE),1), 0) -> 1 | CY27: =_xlfn.IFNA(MATCH(RAND(), _xlfn.POISSON.DIST({0,1,2,3,4,5,6,7,8,9},$P27, TRUE),1), 0) -> 1 | CZ27: =_xlfn.IFNA(MATCH(RAND(), _xlfn.POISSON.DIST({0,1,2,3,4,5,6,7,8,9},$P27, TRUE),1), 0) -> 0 | DA27: =_xlfn.IFNA(MATCH(RAND(), _xlfn.POISSON.DIST({0,1,2,3,4,5,6,7,8,9},$P27, TRUE),1), 0) -> 0 | DB27: =_xlfn.IFNA(MATCH(RAND(), _xlfn.POISSON.DIST({0,1,2,3,4,5,6,7,8,9},$P27, TRUE),1), 0) -> 0 | DC27: =_xlfn.IFNA(MATCH(RAND(), _xlfn.POISSON.DIST({0,1,2,3,4,5,6,7,8,9},$P27, TRUE),1), 0) -> 0 | DD27: =_xlfn.IFNA(MATCH(RAND(), _xlfn.POISSON.DIST({0,1,2,3,4,5,6,7,8,9},$P27, TRUE),1), 0) -> 0 | DE27: =_xlfn.IFNA(MATCH(RAND(), _xlfn.POISSON.DIST({0,1,2,3,4,5,6,7,8,9},$P27, TRUE),1), 0) -> 1 | DF27: =_xlfn.IFNA(MATCH(RAND(), _xlfn.POISSON.DIST({0,1,2,3,4,5,6,7,8,9},$P27, TRUE),1), 0) -> 0 | DG27: =_xlfn.IFNA(MATCH(RAND(), _xlfn.POISSON.DIST({0,1,2,3,4,5,6,7,8,9},$P27, TRUE),1), 0) -> 0 | DH27: =_xlfn.IFNA(MATCH(RAND(), _xlfn.POISSON.DIST({0,1,2,3,4,5,6,7,8,9},$P27, TRUE),1), 0) -> 4 | DI27: =_xlfn.IFNA(MATCH(RAND(), _xlfn.POISSON.DIST({0,1,2,3,4,5,6,7,8,9},$P27, TRUE),1), 0) -> 1 | DJ27: =_xlfn.IFNA(MATCH(RAND(), _xlfn.POISSON.DIST({0,1,2,3,4,5,6,7,8,9},$P27, TRUE),1), 0) -> 2 | DK27: =_xlfn.IFNA(MATCH(RAND(), _xlfn.POISSON.DIST({0,1,2,3,4,5,6,7,8,9},$P27, TRUE),1), 0) -> 1 | DL27: =_xlfn.IFNA(MATCH(RAND(), _xlfn.POISSON.DIST({0,1,2,3,4,5,6,7,8,9},$P27, TRUE),1), 0) -> 1 | DM27: =_xlfn.IFNA(MATCH(RAND(), _xlfn.POISSON.DIST({0,1,2,3,4,5,6,7,8,9},$P27, TRUE),1), 0) -> 0
C28: 2019-06-16 | D28: F | E28: Швеция | F28: =(AVERAGE(Q28:BN28))*(1+INDEX('Прогнозы группового этапа'!$C$4:$O$28, MATCH('Матчи за текущий год'!E28,'Прогнозы группового этапа'!$D$4:$D$28,0),3)) -> 3.04 | G28: Таиланд | H28: =(AVERAGE(BP28:DM28))*(1+INDEX('Прогнозы группового этапа'!$C$4:$O$28, MATCH('Матчи за текущий год'!G28,'Прогнозы группового этапа'!$D$4:$D$28,0),3)) -> 0.46 | I28: Швеция | L28: 3.04 | M28: 0.46 | N28: Швеция | O28: =(OFFSET('Прил. 3. Голы в группе'!$D$14,(INDEX('Прил. 1. Данные команды'!$C$13:$F$112,MATCH(G28,'Прил. 1. Данные команды'!$C$13:$C$112,0),4)/10),(INDEX('Прил. 1. Данные команды'!$C$13:$F$112,MATCH(E28,'Прил. 1. Данные команды'!$C$13:$C$112,0),4)/10))) -> 3.38 | P28: =OFFSET('Прил. 3. Голы в группе'!$D$14,(INDEX('Прил. 1. Данные команды'!$C$13:$F$112, MATCH(E28,'Прил. 1. Данные команды'!$C$13:$C$112,0),4)/10), (INDEX('Прил. 1. Данные команды'!$C$13:$F$112, MATCH(G28, 'Прил. 1. Данные команды'!$C$13:$C$112,0),4)/10)) -> 0.59 | Q28: =_xlfn.IFNA(MATCH(RAND(), _xlfn.POISSON.DIST({0,1,2,3,4,5,6,7,8,9},$O28, TRUE),1), 0) -> 3 | R28: =_xlfn.IFNA(MATCH(RAND(), _xlfn.POISSON.DIST({0,1,2,3,4,5,6,7,8,9},$O28, TRUE),1), 0) -> 5 | S28: =_xlfn.IFNA(MATCH(RAND(), _xlfn.POISSON.DIST({0,1,2,3,4,5,6,7,8,9},$O28, TRUE),1), 0) -> 3 | T28: =_xlfn.IFNA(MATCH(RAND(), _xlfn.POISSON.DIST({0,1,2,3,4,5,6,7,8,9},$O28, TRUE),1), 0) -> 5 | U28: =_xlfn.IFNA(MATCH(RAND(), _xlfn.POISSON.DIST({0,1,2,3,4,5,6,7,8,9},$O28, TRUE),1), 0) -> 1 | V28: =_xlfn.IFNA(MATCH(RAND(), _xlfn.POISSON.DIST({0,1,2,3,4,5,6,7,8,9},$O28, TRUE),1), 0) -> 3 | W28: =_xlfn.IFNA(MATCH(RAND(), _xlfn.POISSON.DIST({0,1,2,3,4,5,6,7,8,9},$O28, TRUE),1), 0) -> 2 | X28: =_xlfn.IFNA(MATCH(RAND(), _xlfn.POISSON.DIST({0,1,2,3,4,5,6,7,8,9},$O28, TRUE),1), 0) -> 6 | Y28: =_xlfn.IFNA(MATCH(RAND(), _xlfn.POISSON.DIST({0,1,2,3,4,5,6,7,8,9},$O28, TRUE),1), 0) -> 2 | Z28: =_xlfn.IFNA(MATCH(RAND(), _xlfn.POISSON.DIST({0,1,2,3,4,5,6,7,8,9},$O28, TRUE),1), 0) -> 2 | AA28: =_xlfn.IFNA(MATCH(RAND(), _xlfn.POISSON.DIST({0,1,2,3,4,5,6,7,8,9},$O28, TRUE),1), 0) -> 2 | AB28: =_xlfn.IFNA(MATCH(RAND(), _xlfn.POISSON.DIST({0,1,2,3,4,5,6,7,8,9},$O28, TRUE),1), 0) -> 0 | AC28: =_xlfn.IFNA(MATCH(RAND(), _xlfn.POISSON.DIST({0,1,2,3,4,5,6,7,8,9},$O28, TRUE),1), 0) -> 2 | AD28: =_xlfn.IFNA(MATCH(RAND(), _xlfn.POISSON.DIST({0,1,2,3,4,5,6,7,8,9},$O28, TRUE),1), 0) -> 5 | AE28: =_xlfn.IFNA(MATCH(RAND(), _xlfn.POISSON.DIST({0,1,2,3,4,5,6,7,8,9},$O28, TRUE),1), 0) -> 1 | AF28: =_xlfn.IFNA(MATCH(RAND(), _xlfn.POISSON.DIST({0,1,2,3,4,5,6,7,8,9},$O28, TRUE),1), 0) -> 0 | AG28: =_xlfn.IFNA(MATCH(RAND(), _xlfn.POISSON.DIST({0,1,2,3,4,5,6,7,8,9},$O28, TRUE),1), 0) -> 4 | AH28: =_xlfn.IFNA(MATCH(RAND(), _xlfn.POISSON.DIST({0,1,2,3,4,5,6,7,8,9},$O28, TRUE),1), 0) -> 4 | AI28: =_xlfn.IFNA(MATCH(RAND(), _xlfn.POISSON.DIST({0,1,2,3,4,5,6,7,8,9},$O28, TRUE),1), 0) -> 4 | AJ28: =_xlfn.IFNA(MATCH(RAND(), _xlfn.POISSON.DIST({0,1,2,3,4,5,6,7,8,9},$O28, TRUE),1), 0) -> 4 | AK28: =_xlfn.IFNA(MATCH(RAND(), _xlfn.POISSON.DIST({0,1,2,3,4,5,6,7,8,9},$O28, TRUE),1), 0) -> 4 | AL28: =_xlfn.IFNA(MATCH(RAND(), _xlfn.POISSON.DIST({0,1,2,3,4,5,6,7,8,9},$O28, TRUE),1), 0) -> 4 | AM28: =_xlfn.IFNA(MATCH(RAND(), _xlfn.POISSON.DIST({0,1,2,3,4,5,6,7,8,9},$O28, TRUE),1), 0) -> 3 | AN28: =_xlfn.IFNA(MATCH(RAND(), _xlfn.POISSON.DIST({0,1,2,3,4,5,6,7,8,9},$O28, TRUE),1), 0) -> 3 | AO28: =_xlfn.IFNA(MATCH(RAND(), _xlfn.POISSON.DIST({0,1,2,3,4,5,6,7,8,9},$O28, TRUE),1), 0) -> 0 | AP28: =_xlfn.IFNA(MATCH(RAND(), _xlfn.POISSON.DIST({0,1,2,3,4,5,6,7,8,9},$O28, TRUE),1), 0) -> 7 | AQ28: =_xlfn.IFNA(MATCH(RAND(), _xlfn.POISSON.DIST({0,1,2,3,4,5,6,7,8,9},$O28, TRUE),1), 0) -> 2 | AR28: =_xlfn.IFNA(MATCH(RAND(), _xlfn.POISSON.DIST({0,1,2,3,4,5,6,7,8,9},$O28, TRUE),1), 0) -> 3 | AS28: =_xlfn.IFNA(MATCH(RAND(), _xlfn.POISSON.DIST({0,1,2,3,4,5,6,7,8,9},$O28, TRUE),1), 0) -> 4 | AT28: =_xlfn.IFNA(MATCH(RAND(), _xlfn.POISSON.DIST({0,1,2,3,4,5,6,7,8,9},$O28, TRUE),1), 0) -> 6 | AU28: =_xlfn.IFNA(MATCH(RAND(), _xlfn.POISSON.DIST({0,1,2,3,4,5,6,7,8,9},$O28, TRUE),1), 0) -> 3 | AV28: =_xlfn.IFNA(MATCH(RAND(), _xlfn.POISSON.DIST({0,1,2,3,4,5,6,7,8,9},$O28, TRUE),1), 0) -> 2 | AW28: =_xlfn.IFNA(MATCH(RAND(), _xlfn.POISSON.DIST({0,1,2,3,4,5,6,7,8,9},$O28, TRUE),1), 0) -> 3 | AX28: =_xlfn.IFNA(MATCH(RAND(), _xlfn.POISSON.DIST({0,1,2,3,4,5,6,7,8,9},$O28, TRUE),1), 0) -> 3 | AY28: =_xlfn.IFNA(MATCH(RAND(), _xlfn.POISSON.DIST({0,1,2,3,4,5,6,7,8,9},$O28, TRUE),1), 0) -> 1 | AZ28: =_xlfn.IFNA(MATCH(RAND(), _xlfn.POISSON.DIST({0,1,2,3,4,5,6,7,8,9},$O28, TRUE),1), 0) -> 2 | BA28: =_xlfn.IFNA(MATCH(RAND(), _xlfn.POISSON.DIST({0,1,2,3,4,5,6,7,8,9},$O28, TRUE),1), 0) -> 2 | BB28: =_xlfn.IFNA(MATCH(RAND(), _xlfn.POISSON.DIST({0,1,2,3,4,5,6,7,8,9},$O28, TRUE),1), 0) -> 2 | BC28: =_xlfn.IFNA(MATCH(RAND(), _xlfn.POISSON.DIST({0,1,2,3,4,5,6,7,8,9},$O28, TRUE),1), 0) -> 4 | BD28: =_xlfn.IFNA(MATCH(RAND(), _xlfn.POISSON.DIST({0,1,2,3,4,5,6,7,8,9},$O28, TRUE),1), 0) -> 0 | BE28: =_xlfn.IFNA(MATCH(RAND(), _xlfn.POISSON.DIST({0,1,2,3,4,5,6,7,8,9},$O28, TRUE),1), 0) -> 6 | BF28: =_xlfn.IFNA(MATCH(RAND(), _xlfn.POISSON.DIST({0,1,2,3,4,5,6,7,8,9},$O28, TRUE),1), 0) -> 5 | BG28: =_xlfn.IFNA(MATCH(RAND(), _xlfn.POISSON.DIST({0,1,2,3,4,5,6,7,8,9},$O28, TRUE),1), 0) -> 4 | BH28: =_xlfn.IFNA(MATCH(RAND(), _xlfn.POISSON.DIST({0,1,2,3,4,5,6,7,8,9},$O28, TRUE),1), 0) -> 4 | BI28: =_xlfn.IFNA(MATCH(RAND(), _xlfn.POISSON.DIST({0,1,2,3,4,5,6,7,8,9},$O28, TRUE),1), 0) -> 0 | BJ28: =_xlfn.IFNA(MATCH(RAND(), _xlfn.POISSON.DIST({0,1,2,3,4,5,6,7,8,9},$O28, TRUE),1), 0) -> 4 | BK28: =_xlfn.IFNA(MATCH(RAND(), _xlfn.POISSON.DIST({0,1,2,3,4,5,6,7,8,9},$O28, TRUE),1), 0) -> 4 | BL28: =_xlfn.IFNA(MATCH(RAND(), _xlfn.POISSON.DIST({0,1,2,3,4,5,6,7,8,9},$O28, TRUE),1), 0) -> 2 | BM28: =_xlfn.IFNA(MATCH(RAND(), _xlfn.POISSON.DIST({0,1,2,3,4,5,6,7,8,9},$O28, TRUE),1), 0) -> 4 | BN28: =_xlfn.IFNA(MATCH(RAND(), _xlfn.POISSON.DIST({0,1,2,3,4,5,6,7,8,9},$O28, TRUE),1), 0) -> 3 | BP28: =_xlfn.IFNA(MATCH(RAND(), _xlfn.POISSON.DIST({0,1,2,3,4,5,6,7,8,9},$P28, TRUE),1), 0) -> 1 | BQ28: =_xlfn.IFNA(MATCH(RAND(), _xlfn.POISSON.DIST({0,1,2,3,4,5,6,7,8,9},$P28, TRUE),1), 0) -> 0 | BR28: =_xlfn.IFNA(MATCH(RAND(), _xlfn.POISSON.DIST({0,1,2,3,4,5,6,7,8,9},$P28, TRUE),1), 0) -> 0 | BS28: =_xlfn.IFNA(MATCH(RAND(), _xlfn.POISSON.DIST({0,1,2,3,4,5,6,7,8,9},$P28, TRUE),1), 0) -> 0 | BT28: =_xlfn.IFNA(MATCH(RAND(), _xlfn.POISSON.DIST({0,1,2,3,4,5,6,7,8,9},$P28, TRUE),1), 0) -> 0 | BU28: =_xlfn.IFNA(MATCH(RAND(), _xlfn.POISSON.DIST({0,1,2,3,4,5,6,7,8,9},$P28, TRUE),1), 0) -> 0 | BV28: =_xlfn.IFNA(MATCH(RAND(), _xlfn.POISSON.DIST({0,1,2,3,4,5,6,7,8,9},$P28, TRUE),1), 0) -> 1 | BW28: =_xlfn.IFNA(MATCH(RAND(), _xlfn.POISSON.DIST({0,1,2,3,4,5,6,7,8,9},$P28, TRUE),1), 0) -> 0 | BX28: =_xlfn.IFNA(MATCH(RAND(), _xlfn.POISSON.DIST({0,1,2,3,4,5,6,7,8,9},$P28, TRUE),1), 0) -> 0 | BY28: =_xlfn.IFNA(MATCH(RAND(), _xlfn.POISSON.DIST({0,1,2,3,4,5,6,7,8,9},$P28, TRUE),1), 0) -> 0 | BZ28: =_xlfn.IFNA(MATCH(RAND(), _xlfn.POISSON.DIST({0,1,2,3,4,5,6,7,8,9},$P28, TRUE),1), 0) -> 1 | CA28: =_xlfn.IFNA(MATCH(RAND(), _xlfn.POISSON.DIST({0,1,2,3,4,5,6,7,8,9},$P28, TRUE),1), 0) -> 1 | CB28: =_xlfn.IFNA(MATCH(RAND(), _xlfn.POISSON.DIST({0,1,2,3,4,5,6,7,8,9},$P28, TRUE),1), 0) -> 1 | CC28: =_xlfn.IFNA(MATCH(RAND(), _xlfn.POISSON.DIST({0,1,2,3,4,5,6,7,8,9},$P28, TRUE),1), 0) -> 0 | CD28: =_xlfn.IFNA(MATCH(RAND(), _xlfn.POISSON.DIST({0,1,2,3,4,5,6,7,8,9},$P28, TRUE),1), 0) -> 0 | CE28: =_xlfn.IFNA(MATCH(RAND(), _xlfn.POISSON.DIST({0,1,2,3,4,5,6,7,8,9},$P28, TRUE),1), 0) -> 3 | CF28: =_xlfn.IFNA(MATCH(RAND(), _xlfn.POISSON.DIST({0,1,2,3,4,5,6,7,8,9},$P28, TRUE),1), 0) -> 0 | CG28: =_xlfn.IFNA(MATCH(RAND(), _xlfn.POISSON.DIST({0,1,2,3,4,5,6,7,8,9},$P28, TRUE),1), 0) -> 0 | CH28: =_xlfn.IFNA(MATCH(RAND(), _xlfn.POISSON.DIST({0,1,2,3,4,5,6,7,8,9},$P28, TRUE),1), 0) -> 1 | CI28: =_xlfn.IFNA(MATCH(RAND(), _xlfn.POISSON.DIST({0,1,2,3,4,5,6,7,8,9},$P28, TRUE),1), 0) -> 0 | CJ28: =_xlfn.IFNA(MATCH(RAND(), _xlfn.POISSON.DIST({0,1,2,3,4,5,6,7,8,9},$P28, TRUE),1), 0) -> 2 | CK28: =_xlfn.IFNA(MATCH(RAND(), _xlfn.POISSON.DIST({0,1,2,3,4,5,6,7,8,9},$P28, TRUE),1), 0) -> 0 | CL28: =_xlfn.IFNA(MATCH(RAND(), _xlfn.POISSON.DIST({0,1,2,3,4,5,6,7,8,9},$P28, TRUE),1), 0) -> 0 | CM28: =_xlfn.IFNA(MATCH(RAND(), _xlfn.POISSON.DIST({0,1,2,3,4,5,6,7,8,9},$P28, TRUE),1), 0) -> 1 | CN28: =_xlfn.IFNA(MATCH(RAND(), _xlfn.POISSON.DIST({0,1,2,3,4,5,6,7,8,9},$P28, TRUE),1), 0) -> 0 | CO28: =_xlfn.IFNA(MATCH(RAND(), _xlfn.POISSON.DIST({0,1,2,3,4,5,6,7,8,9},$P28, TRUE),1), 0) -> 1 | CP28: =_xlfn.IFNA(MATCH(RAND(), _xlfn.POISSON.DIST({0,1,2,3,4,5,6,7,8,9},$P28, TRUE),1), 0) -> 0 | CQ28: =_xlfn.IFNA(MATCH(RAND(), _xlfn.POISSON.DIST({0,1,2,3,4,5,6,7,8,9},$P28, TRUE),1), 0) -> 1 | CR28: =_xlfn.IFNA(MATCH(RAND(), _xlfn.POISSON.DIST({0,1,2,3,4,5,6,7,8,9},$P28, TRUE),1), 0) -> 1 | CS28: =_xlfn.IFNA(MATCH(RAND(), _xlfn.POISSON.DIST({0,1,2,3,4,5,6,7,8,9},$P28, TRUE),1), 0) -> 0 | CT28: =_xlfn.IFNA(MATCH(RAND(), _xlfn.POISSON.DIST({0,1,2,3,4,5,6,7,8,9},$P28, TRUE),1), 0) -> 1 | CU28: =_xlfn.IFNA(MATCH(RAND(), _xlfn.POISSON.DIST({0,1,2,3,4,5,6,7,8,9},$P28, TRUE),1), 0) -> 1 | CV28: =_xlfn.IFNA(MATCH(RAND(), _xlfn.POISSON.DIST({0,1,2,3,4,5,6,7,8,9},$P28, TRUE),1), 0) -> 1 | CW28: =_xlfn.IFNA(MATCH(RAND(), _xlfn.POISSON.DIST({0,1,2,3,4,5,6,7,8,9},$P28, TRUE),1), 0) -> 0 | CX28: =_xlfn.IFNA(MATCH(RAND(), _xlfn.POISSON.DIST({0,1,2,3,4,5,6,7,8,9},$P28, TRUE),1), 0) -> 0 | CY28: =_xlfn.IFNA(MATCH(RAND(), _xlfn.POISSON.DIST({0,1,2,3,4,5,6,7,8,9},$P28, TRUE),1), 0) -> 0 | CZ28: =_xlfn.IFNA(MATCH(RAND(), _xlfn.POISSON.DIST({0,1,2,3,4,5,6,7,8,9},$P28, TRUE),1), 0) -> 1 | DA28: =_xlfn.IFNA(MATCH(RAND(), _xlfn.POISSON.DIST({0,1,2,3,4,5,6,7,8,9},$P28, TRUE),1), 0) -> 0 | DB28: =_xlfn.IFNA(MATCH(RAND(), _xlfn.POISSON.DIST({0,1,2,3,4,5,6,7,8,9},$P28, TRUE),1), 0) -> 0 | DC28: =_xlfn.IFNA(MATCH(RAND(), _xlfn.POISSON.DIST({0,1,2,3,4,5,6,7,8,9},$P28, TRUE),1), 0) -> 0 | DD28: =_xlfn.IFNA(MATCH(RAND(), _xlfn.POISSON.DIST({0,1,2,3,4,5,6,7,8,9},$P28, TRUE),1), 0) -> 0 | DE28: =_xlfn.IFNA(MATCH(RAND(), _xlfn.POISSON.DIST({0,1,2,3,4,5,6,7,8,9},$P28, TRUE),1), 0) -> 0 | DF28: =_xlfn.IFNA(MATCH(RAND(), _xlfn.POISSON.DIST({0,1,2,3,4,5,6,7,8,9},$P28, TRUE),1), 0) -> 0 | DG28: =_xlfn.IFNA(MATCH(RAND(), _xlfn.POISSON.DIST({0,1,2,3,4,5,6,7,8,9},$P28, TRUE),1), 0) -> 1 | DH28: =_xlfn.IFNA(MATCH(RAND(), _xlfn.POISSON.DIST({0,1,2,3,4,5,6,7,8,9},$P28, TRUE),1), 0) -> 0 | DI28: =_xlfn.IFNA(MATCH(RAND(), _xlfn.POISSON.DIST({0,1,2,3,4,5,6,7,8,9},$P28, TRUE),1), 0) -> 1 | DJ28: =_xlfn.IFNA(MATCH(RAND(), _xlfn.POISSON.DIST({0,1,2,3,4,5,6,7,8,9},$P28, TRUE),1), 0) -> 1 | DK28: =_xlfn.IFNA(MATCH(RAND(), _xlfn.POISSON.DIST({0,1,2,3,4,5,6,7,8,9},$P28, TRUE),1), 0) -> 0 | DL28: =_xlfn.IFNA(MATCH(RAND(), _xlfn.POISSON.DIST({0,1,2,3,4,5,6,7,8,9},$P28, TRUE),1), 0) -> 0 | DM28: =_xlfn.IFNA(MATCH(RAND(), _xlfn.POISSON.DIST({0,1,2,3,4,5,6,7,8,9},$P28, TRUE),1), 0) -> 1
C29: 2019-06-16 | D29: F | E29: США | F29: =(AVERAGE(Q29:BN29))*(1+INDEX('Прогнозы группового этапа'!$C$4:$O$28, MATCH('Матчи за текущий год'!E29,'Прогнозы группового этапа'!$D$4:$D$28,0),3)) -> 3.74 | G29: Чили | H29: =(AVERAGE(BP29:DM29))*(1+INDEX('Прогнозы группового этапа'!$C$4:$O$28, MATCH('Матчи за текущий год'!G29,'Прогнозы группового этапа'!$D$4:$D$28,0),3)) -> 0.70 | I29: США | L29: 3.74 | M29: 0.7 | N29: США | O29: =(OFFSET('Прил. 3. Голы в группе'!$D$14,(INDEX('Прил. 1. Данные команды'!$C$13:$F$112,MATCH(G29,'Прил. 1. Данные команды'!$C$13:$C$112,0),4)/10),(INDEX('Прил. 1. Данные команды'!$C$13:$F$112,MATCH(E29,'Прил. 1. Данные команды'!$C$13:$C$112,0),4)/10))) -> 3.38 | P29: =OFFSET('Прил. 3. Голы в группе'!$D$14,(INDEX('Прил. 1. Данные команды'!$C$13:$F$112, MATCH(E29,'Прил. 1. Данные команды'!$C$13:$C$112,0),4)/10), (INDEX('Прил. 1. Данные команды'!$C$13:$F$112, MATCH(G29, 'Прил. 1. Данные команды'!$C$13:$C$112,0),4)/10)) -> 0.59 | Q29: =_xlfn.IFNA(MATCH(RAND(), _xlfn.POISSON.DIST({0,1,2,3,4,5,6,7,8,9},$O29, TRUE),1), 0) -> 6 | R29: =_xlfn.IFNA(MATCH(RAND(), _xlfn.POISSON.DIST({0,1,2,3,4,5,6,7,8,9},$O29, TRUE),1), 0) -> 5 | S29: =_xlfn.IFNA(MATCH(RAND(), _xlfn.POISSON.DIST({0,1,2,3,4,5,6,7,8,9},$O29, TRUE),1), 0) -> 5 | T29: =_xlfn.IFNA(MATCH(RAND(), _xlfn.POISSON.DIST({0,1,2,3,4,5,6,7,8,9},$O29, TRUE),1), 0) -> 3 | U29: =_xlfn.IFNA(MATCH(RAND(), _xlfn.POISSON.DIST({0,1,2,3,4,5,6,7,8,9},$O29, TRUE),1), 0) -> 2 | V29: =_xlfn.IFNA(MATCH(RAND(), _xlfn.POISSON.DIST({0,1,2,3,4,5,6,7,8,9},$O29, TRUE),1), 0) -> 5 | W29: =_xlfn.IFNA(MATCH(RAND(), _xlfn.POISSON.DIST({0,1,2,3,4,5,6,7,8,9},$O29, TRUE),1), 0) -> 1 | X29: =_xlfn.IFNA(MATCH(RAND(), _xlfn.POISSON.DIST({0,1,2,3,4,5,6,7,8,9},$O29, TRUE),1), 0) -> 3 | Y29: =_xlfn.IFNA(MATCH(RAND(), _xlfn.POISSON.DIST({0,1,2,3,4,5,6,7,8,9},$O29, TRUE),1), 0) -> 1 | Z29: =_xlfn.IFNA(MATCH(RAND(), _xlfn.POISSON.DIST({0,1,2,3,4,5,6,7,8,9},$O29, TRUE),1), 0) -> 2 | AA29: =_xlfn.IFNA(MATCH(RAND(), _xlfn.POISSON.DIST({0,1,2,3,4,5,6,7,8,9},$O29, TRUE),1), 0) -> 3 | AB29: =_xlfn.IFNA(MATCH(RAND(), _xlfn.POISSON.DIST({0,1,2,3,4,5,6,7,8,9},$O29, TRUE),1), 0) -> 5 | AC29: =_xlfn.IFNA(MATCH(RAND(), _xlfn.POISSON.DIST({0,1,2,3,4,5,6,7,8,9},$O29, TRUE),1), 0) -> 1 | AD29: =_xlfn.IFNA(MATCH(RAND(), _xlfn.POISSON.DIST({0,1,2,3,4,5,6,7,8,9},$O29, TRUE),1), 0) -> 4 | AE29: =_xlfn.IFNA(MATCH(RAND(), _xlfn.POISSON.DIST({0,1,2,3,4,5,6,7,8,9},$O29, TRUE),1), 0) -> 5 | AF29: =_xlfn.IFNA(MATCH(RAND(), _xlfn.POISSON.DIST({0,1,2,3,4,5,6,7,8,9},$O29, TRUE),1), 0) -> 2 | AG29: =_xlfn.IFNA(MATCH(RAND(), _xlfn.POISSON.DIST({0,1,2,3,4,5,6,7,8,9},$O29, TRUE),1), 0) -> 5 | AH29: =_xlfn.IFNA(MATCH(RAND(), _xlfn.POISSON.DIST({0,1,2,3,4,5,6,7,8,9},$O29, TRUE),1), 0) -> 9 | AI29: =_xlfn.IFNA(MATCH(RAND(), _xlfn.POISSON.DIST({0,1,2,3,4,5,6,7,8,9},$O29, TRUE),1), 0) -> 3 | AJ29: =_xlfn.IFNA(MATCH(RAND(), _xlfn.POISSON.DIST({0,1,2,3,4,5,6,7,8,9},$O29, TRUE),1), 0) -> 5 | AK29: =_xlfn.IFNA(MATCH(RAND(), _xlfn.POISSON.DIST({0,1,2,3,4,5,6,7,8,9},$O29, TRUE),1), 0) -> 3 | AL29: =_xlfn.IFNA(MATCH(RAND(), _xlfn.POISSON.DIST({0,1,2,3,4,5,6,7,8,9},$O29, TRUE),1), 0) -> 2 | AM29: =_xlfn.IFNA(MATCH(RAND(), _xlfn.POISSON.DIST({0,1,2,3,4,5,6,7,8,9},$O29, TRUE),1), 0) -> 6 | AN29: =_xlfn.IFNA(MATCH(RAND(), _xlfn.POISSON.DIST({0,1,2,3,4,5,6,7,8,9},$O29, TRUE),1), 0) -> 2 | AO29: =_xlfn.IFNA(MATCH(RAND(), _xlfn.POISSON.DIST({0,1,2,3,4,5,6,7,8,9},$O29, TRUE),1), 0) -> 5 | AP29: =_xlfn.IFNA(MATCH(RAND(), _xlfn.POISSON.DIST({0,1,2,3,4,5,6,7,8,9},$O29, TRUE),1), 0) -> 3 | AQ29: =_xlfn.IFNA(MATCH(RAND(), _xlfn.POISSON.DIST({0,1,2,3,4,5,6,7,8,9},$O29, TRUE),1), 0) -> 4 | AR29: =_xlfn.IFNA(MATCH(RAND(), _xlfn.POISSON.DIST({0,1,2,3,4,5,6,7,8,9},$O29, TRUE),1), 0) -> 3 | AS29: =_xlfn.IFNA(MATCH(RAND(), _xlfn.POISSON.DIST({0,1,2,3,4,5,6,7,8,9},$O29, TRUE),1), 0) -> 4 | AT29: =_xlfn.IFNA(MATCH(RAND(), _xlfn.POISSON.DIST({0,1,2,3,4,5,6,7,8,9},$O29, TRUE),1), 0) -> 5 | AU29: =_xlfn.IFNA(MATCH(RAND(), _xlfn.POISSON.DIST({0,1,2,3,4,5,6,7,8,9},$O29, TRUE),1), 0) -> 4 | AV29: =_xlfn.IFNA(MATCH(RAND(), _xlfn.POISSON.DIST({0,1,2,3,4,5,6,7,8,9},$O29, TRUE),1), 0) -> 2 | AW29: =_xlfn.IFNA(MATCH(RAND(), _xlfn.POISSON.DIST({0,1,2,3,4,5,6,7,8,9},$O29, TRUE),1), 0) -> 4 | AX29: =_xlfn.IFNA(MATCH(RAND(), _xlfn.POISSON.DIST({0,1,2,3,4,5,6,7,8,9},$O29, TRUE),1), 0) -> 2 | AY29: =_xlfn.IFNA(MATCH(RAND(), _xlfn.POISSON.DIST({0,1,2,3,4,5,6,7,8,9},$O29, TRUE),1), 0) -> 7 | AZ29: =_xlfn.IFNA(MATCH(RAND(), _xlfn.POISSON.DIST({0,1,2,3,4,5,6,7,8,9},$O29, TRUE),1), 0) -> 2 | BA29: =_xlfn.IFNA(MATCH(RAND(), _xlfn.POISSON.DIST({0,1,2,3,4,5,6,7,8,9},$O29, TRUE),1), 0) -> 4 | BB29: =_xlfn.IFNA(MATCH(RAND(), _xlfn.POISSON.DIST({0,1,2,3,4,5,6,7,8,9},$O29, TRUE),1), 0) -> 6 | BC29: =_xlfn.IFNA(MATCH(RAND(), _xlfn.POISSON.DIST({0,1,2,3,4,5,6,7,8,9},$O29, TRUE),1), 0) -> 1 | BD29: =_xlfn.IFNA(MATCH(RAND(), _xlfn.POISSON.DIST({0,1,2,3,4,5,6,7,8,9},$O29, TRUE),1), 0) -> 3 | BE29: =_xlfn.IFNA(MATCH(RAND(), _xlfn.POISSON.DIST({0,1,2,3,4,5,6,7,8,9},$O29, TRUE),1), 0) -> 3 | BF29: =_xlfn.IFNA(MATCH(RAND(), _xlfn.POISSON.DIST({0,1,2,3,4,5,6,7,8,9},$O29, TRUE),1), 0) -> 3 | BG29: =_xlfn.IFNA(MATCH(RAND(), _xlfn.POISSON.DIST({0,1,2,3,4,5,6,7,8,9},$O29, TRUE),1), 0) -> 7 | BH29: =_xlfn.IFNA(MATCH(RAND(), _xlfn.POISSON.DIST({0,1,2,3,4,5,6,7,8,9},$O29, TRUE),1), 0) -> 5 | BI29: =_xlfn.IFNA(MATCH(RAND(), _xlfn.POISSON.DIST({0,1,2,3,4,5,6,7,8,9},$O29, TRUE),1), 0) -> 2 | BJ29: =_xlfn.IFNA(MATCH(RAND(), _xlfn.POISSON.DIST({0,1,2,3,4,5,6,7,8,9},$O29, TRUE),1), 0) -> 6 | BK29: =_xlfn.IFNA(MATCH(RAND(), _xlfn.POISSON.DIST({0,1,2,3,4,5,6,7,8,9},$O29, TRUE),1), 0) -> 2 | BL29: =_xlfn.IFNA(MATCH(RAND(), _xlfn.POISSON.DIST({0,1,2,3,4,5,6,7,8,9},$O29, TRUE),1), 0) -> 1 | BM29: =_xlfn.IFNA(MATCH(RAND(), _xlfn.POISSON.DIST({0,1,2,3,4,5,6,7,8,9},$O29, TRUE),1), 0) -> 6 | BN29: =_xlfn.IFNA(MATCH(RAND(), _xlfn.POISSON.DIST({0,1,2,3,4,5,6,7,8,9},$O29, TRUE),1), 0) -> 5 | BP29: =_xlfn.IFNA(MATCH(RAND(), _xlfn.POISSON.DIST({0,1,2,3,4,5,6,7,8,9},$P29, TRUE),1), 0) -> 0 | BQ29: =_xlfn.IFNA(MATCH(RAND(), _xlfn.POISSON.DIST({0,1,2,3,4,5,6,7,8,9},$P29, TRUE),1), 0) -> 0 | BR29: =_xlfn.IFNA(MATCH(RAND(), _xlfn.POISSON.DIST({0,1,2,3,4,5,6,7,8,9},$P29, TRUE),1), 0) -> 1 | BS29: =_xlfn.IFNA(MATCH(RAND(), _xlfn.POISSON.DIST({0,1,2,3,4,5,6,7,8,9},$P29, TRUE),1), 0) -> 1 | BT29: =_xlfn.IFNA(MATCH(RAND(), _xlfn.POISSON.DIST({0,1,2,3,4,5,6,7,8,9},$P29, TRUE),1), 0) -> 1 | BU29: =_xlfn.IFNA(MATCH(RAND(), _xlfn.POISSON.DIST({0,1,2,3,4,5,6,7,8,9},$P29, TRUE),1), 0) -> 0 | BV29: =_xlfn.IFNA(MATCH(RAND(), _xlfn.POISSON.DIST({0,1,2,3,4,5,6,7,8,9},$P29, TRUE),1), 0) -> 3 | BW29: =_xlfn.IFNA(MATCH(RAND(), _xlfn.POISSON.DIST({0,1,2,3,4,5,6,7,8,9},$P29, TRUE),1), 0) -> 1 | BX29: =_xlfn.IFNA(MATCH(RAND(), _xlfn.POISSON.DIST({0,1,2,3,4,5,6,7,8,9},$P29, TRUE),1), 0) -> 0 | BY29: =_xlfn.IFNA(MATCH(RAND(), _xlfn.POISSON.DIST({0,1,2,3,4,5,6,7,8,9},$P29, TRUE),1), 0) -> 1 | BZ29: =_xlfn.IFNA(MATCH(RAND(), _xlfn.POISSON.DIST({0,1,2,3,4,5,6,7,8,9},$P29, TRUE),1), 0) -> 0 | CA29: =_xlfn.IFNA(MATCH(RAND(), _xlfn.POISSON.DIST({0,1,2,3,4,5,6,7,8,9},$P29, TRUE),1), 0) -> 1 | CB29: =_xlfn.IFNA(MATCH(RAND(), _xlfn.POISSON.DIST({0,1,2,3,4,5,6,7,8,9},$P29, TRUE),1), 0) -> 0 | CC29: =_xlfn.IFNA(MATCH(RAND(), _xlfn.POISSON.DIST({0,1,2,3,4,5,6,7,8,9},$P29, TRUE),1), 0) -> 1 | CD29: =_xlfn.IFNA(MATCH(RAND(), _xlfn.POISSON.DIST({0,1,2,3,4,5,6,7,8,9},$P29, TRUE),1), 0) -> 1 | CE29: =_xlfn.IFNA(MATCH(RAND(), _xlfn.POISSON.DIST({0,1,2,3,4,5,6,7,8,9},$P29, TRUE),1), 0) -> 1 | CF29: =_xlfn.IFNA(MATCH(RAND(), _xlfn.POISSON.DIST({0,1,2,3,4,5,6,7,8,9},$P29, TRUE),1), 0) -> 2 | CG29: =_xlfn.IFNA(MATCH(RAND(), _xlfn.POISSON.DIST({0,1,2,3,4,5,6,7,8,9},$P29, TRUE),1), 0) -> 0 | CH29: =_xlfn.IFNA(MATCH(RAND(), _xlfn.POISSON.DIST({0,1,2,3,4,5,6,7,8,9},$P29, TRUE),1), 0) -> 1 | CI29: =_xlfn.IFNA(MATCH(RAND(), _xlfn.POISSON.DIST({0,1,2,3,4,5,6,7,8,9},$P29, TRUE),1), 0) -> 0 | CJ29: =_xlfn.IFNA(MATCH(RAND(), _xlfn.POISSON.DIST({0,1,2,3,4,5,6,7,8,9},$P29, TRUE),1), 0) -> 0 | CK29: =_xlfn.IFNA(MATCH(RAND(), _xlfn.POISSON.DIST({0,1,2,3,4,5,6,7,8,9},$P29, TRUE),1), 0) -> 0 | CL29: =_xlfn.IFNA(MATCH(RAND(), _xlfn.POISSON.DIST({0,1,2,3,4,5,6,7,8,9},$P29, TRUE),1), 0) -> 3 | CM29: =_xlfn.IFNA(MATCH(RAND(), _xlfn.POISSON.DIST({0,1,2,3,4,5,6,7,8,9},$P29, TRUE),1), 0) -> 0 | CN29: =_xlfn.IFNA(MATCH(RAND(), _xlfn.POISSON.DIST({0,1,2,3,4,5,6,7,8,9},$P29, TRUE),1), 0) -> 0 | CO29: =_xlfn.IFNA(MATCH(RAND(), _xlfn.POISSON.DIST({0,1,2,3,4,5,6,7,8,9},$P29, TRUE),1), 0) -> 1 | CP29: =_xlfn.IFNA(MATCH(RAND(), _xlfn.POISSON.DIST({0,1,2,3,4,5,6,7,8,9},$P29, TRUE),1), 0) -> 2 | CQ29: =_xlfn.IFNA(MATCH(RAND(), _xlfn.POISSON.DIST({0,1,2,3,4,5,6,7,8,9},$P29, TRUE),1), 0) -> 0 | CR29: =_xlfn.IFNA(MATCH(RAND(), _xlfn.POISSON.DIST({0,1,2,3,4,5,6,7,8,9},$P29, TRUE),1), 0) -> 0 | CS29: =_xlfn.IFNA(MATCH(RAND(), _xlfn.POISSON.DIST({0,1,2,3,4,5,6,7,8,9},$P29, TRUE),1), 0) -> 3 | CT29: =_xlfn.IFNA(MATCH(RAND(), _xlfn.POISSON.DIST({0,1,2,3,4,5,6,7,8,9},$P29, TRUE),1), 0) -> 3 | CU29: =_xlfn.IFNA(MATCH(RAND(), _xlfn.POISSON.DIST({0,1,2,3,4,5,6,7,8,9},$P29, TRUE),1), 0) -> 0 | CV29: =_xlfn.IFNA(MATCH(RAND(), _xlfn.POISSON.DIST({0,1,2,3,4,5,6,7,8,9},$P29, TRUE),1), 0) -> 0 | CW29: =_xlfn.IFNA(MATCH(RAND(), _xlfn.POISSON.DIST({0,1,2,3,4,5,6,7,8,9},$P29, TRUE),1), 0) -> 1 | CX29: =_xlfn.IFNA(MATCH(RAND(), _xlfn.POISSON.DIST({0,1,2,3,4,5,6,7,8,9},$P29, TRUE),1), 0) -> 1 | CY29: =_xlfn.IFNA(MATCH(RAND(), _xlfn.POISSON.DIST({0,1,2,3,4,5,6,7,8,9},$P29, TRUE),1), 0) -> 0 | CZ29: =_xlfn.IFNA(MATCH(RAND(), _xlfn.POISSON.DIST({0,1,2,3,4,5,6,7,8,9},$P29, TRUE),1), 0) -> 1 | DA29: =_xlfn.IFNA(MATCH(RAND(), _xlfn.POISSON.DIST({0,1,2,3,4,5,6,7,8,9},$P29, TRUE),1), 0) -> 2 | DB29: =_xlfn.IFNA(MATCH(RAND(), _xlfn.POISSON.DIST({0,1,2,3,4,5,6,7,8,9},$P29, TRUE),1), 0) -> 0 | DC29: =_xlfn.IFNA(MATCH(RAND(), _xlfn.POISSON.DIST({0,1,2,3,4,5,6,7,8,9},$P29, TRUE),1), 0) -> 0 | DD29: =_xlfn.IFNA(MATCH(RAND(), _xlfn.POISSON.DIST({0,1,2,3,4,5,6,7,8,9},$P29, TRUE),1), 0) -> 1 | DE29: =_xlfn.IFNA(MATCH(RAND(), _xlfn.POISSON.DIST({0,1,2,3,4,5,6,7,8,9},$P29, TRUE),1), 0) -> 1 | DF29: =_xlfn.IFNA(MATCH(RAND(), _xlfn.POISSON.DIST({0,1,2,3,4,5,6,7,8,9},$P29, TRUE),1), 0) -> 0 | DG29: =_xlfn.IFNA(MATCH(RAND(), _xlfn.POISSON.DIST({0,1,2,3,4,5,6,7,8,9},$P29, TRUE),1), 0) -> 1 | DH29: =_xlfn.IFNA(MATCH(RAND(), _xlfn.POISSON.DIST({0,1,2,3,4,5,6,7,8,9},$P29, TRUE),1), 0) -> 0 | DI29: =_xlfn.IFNA(MATCH(RAND(), _xlfn.POISSON.DIST({0,1,2,3,4,5,6,7,8,9},$P29, TRUE),1), 0) -> 0 | DJ29: =_xlfn.IFNA(MATCH(RAND(), _xlfn.POISSON.DIST({0,1,2,3,4,5,6,7,8,9},$P29, TRUE),1), 0) -> 0 | DK29: =_xlfn.IFNA(MATCH(RAND(), _xlfn.POISSON.DIST({0,1,2,3,4,5,6,7,8,9},$P29, TRUE),1), 0) -> 0 | DL29: =_xlfn.IFNA(MATCH(RAND(), _xlfn.POISSON.DIST({0,1,2,3,4,5,6,7,8,9},$P29, TRUE),1), 0) -> 0 | DM29: =_xlfn.IFNA(MATCH(RAND(), _xlfn.POISSON.DIST({0,1,2,3,4,5,6,7,8,9},$P29, TRUE),1), 0) -> 0
C30: 2019-06-17 | D30: Б | E30: Китай | F30: =(AVERAGE(Q30:BN30))*(1+INDEX('Прогнозы группового этапа'!$C$4:$O$28, MATCH('Матчи за текущий год'!E30,'Прогнозы группового этапа'!$D$4:$D$28,0),3)) -> 1.48 | G30: Испания | H30: =(AVERAGE(BP30:DM30))*(1+INDEX('Прогнозы группового этапа'!$C$4:$O$28, MATCH('Матчи за текущий год'!G30,'Прогнозы группового этапа'!$D$4:$D$28,0),3)) -> 1.52 | I30: Испания | L30: 1.48 | M30: 1.52 | N30: Испания | O30: =(OFFSET('Прил. 3. Голы в группе'!$D$14,(INDEX('Прил. 1. Данные команды'!$C$13:$F$112,MATCH(G30,'Прил. 1. Данные команды'!$C$13:$C$112,0),4)/10),(INDEX('Прил. 1. Данные команды'!$C$13:$F$112,MATCH(E30,'Прил. 1. Данные команды'!$C$13:$C$112,0),4)/10))) -> 1.37 | P30: =OFFSET('Прил. 3. Голы в группе'!$D$14,(INDEX('Прил. 1. Данные команды'!$C$13:$F$112, MATCH(E30,'Прил. 1. Данные команды'!$C$13:$C$112,0),4)/10), (INDEX('Прил. 1. Данные команды'!$C$13:$F$112, MATCH(G30, 'Прил. 1. Данные команды'!$C$13:$C$112,0),4)/10)) -> 1.37 | Q30: =_xlfn.IFNA(MATCH(RAND(), _xlfn.POISSON.DIST({0,1,2,3,4,5,6,7,8,9},$O30, TRUE),1), 0) -> 3 | R30: =_xlfn.IFNA(MATCH(RAND(), _xlfn.POISSON.DIST({0,1,2,3,4,5,6,7,8,9},$O30, TRUE),1), 0) -> 1 | S30: =_xlfn.IFNA(MATCH(RAND(), _xlfn.POISSON.DIST({0,1,2,3,4,5,6,7,8,9},$O30, TRUE),1), 0) -> 4 | T30: =_xlfn.IFNA(MATCH(RAND(), _xlfn.POISSON.DIST({0,1,2,3,4,5,6,7,8,9},$O30, TRUE),1), 0) -> 4 | U30: =_xlfn.IFNA(MATCH(RAND(), _xlfn.POISSON.DIST({0,1,2,3,4,5,6,7,8,9},$O30, TRUE),1), 0) -> 0 | V30: =_xlfn.IFNA(MATCH(RAND(), _xlfn.POISSON.DIST({0,1,2,3,4,5,6,7,8,9},$O30, TRUE),1), 0) -> 0 | W30: =_xlfn.IFNA(MATCH(RAND(), _xlfn.POISSON.DIST({0,1,2,3,4,5,6,7,8,9},$O30, TRUE),1), 0) -> 0 | X30: =_xlfn.IFNA(MATCH(RAND(), _xlfn.POISSON.DIST({0,1,2,3,4,5,6,7,8,9},$O30, TRUE),1), 0) -> 0 | Y30: =_xlfn.IFNA(MATCH(RAND(), _xlfn.POISSON.DIST({0,1,2,3,4,5,6,7,8,9},$O30, TRUE),1), 0) -> 3 | Z30: =_xlfn.IFNA(MATCH(RAND(), _xlfn.POISSON.DIST({0,1,2,3,4,5,6,7,8,9},$O30, TRUE),1), 0) -> 1 | AA30: =_xlfn.IFNA(MATCH(RAND(), _xlfn.POISSON.DIST({0,1,2,3,4,5,6,7,8,9},$O30, TRUE),1), 0) -> 0 | AB30: =_xlfn.IFNA(MATCH(RAND(), _xlfn.POISSON.DIST({0,1,2,3,4,5,6,7,8,9},$O30, TRUE),1), 0) -> 4 | AC30: =_xlfn.IFNA(MATCH(RAND(), _xlfn.POISSON.DIST({0,1,2,3,4,5,6,7,8,9},$O30, TRUE),1), 0) -> 1 | AD30: =_xlfn.IFNA(MATCH(RAND(), _xlfn.POISSON.DIST({0,1,2,3,4,5,6,7,8,9},$O30, TRUE),1), 0) -> 1 | AE30: =_xlfn.IFNA(MATCH(RAND(), _xlfn.POISSON.DIST({0,1,2,3,4,5,6,7,8,9},$O30, TRUE),1), 0) -> 5 | AF30: =_xlfn.IFNA(MATCH(RAND(), _xlfn.POISSON.DIST({0,1,2,3,4,5,6,7,8,9},$O30, TRUE),1), 0) -> 0 | AG30: =_xlfn.IFNA(MATCH(RAND(), _xlfn.POISSON.DIST({0,1,2,3,4,5,6,7,8,9},$O30, TRUE),1), 0) -> 0 | AH30: =_xlfn.IFNA(MATCH(RAND(), _xlfn.POISSON.DIST({0,1,2,3,4,5,6,7,8,9},$O30, TRUE),1), 0) -> 0 | AI30: =_xlfn.IFNA(MATCH(RAND(), _xlfn.POISSON.DIST({0,1,2,3,4,5,6,7,8,9},$O30, TRUE),1), 0) -> 0 | AJ30: =_xlfn.IFNA(MATCH(RAND(), _xlfn.POISSON.DIST({0,1,2,3,4,5,6,7,8,9},$O30, TRUE),1), 0) -> 0 | AK30: =_xlfn.IFNA(MATCH(RAND(), _xlfn.POISSON.DIST({0,1,2,3,4,5,6,7,8,9},$O30, TRUE),1), 0) -> 3 | AL30: =_xlfn.IFNA(MATCH(RAND(), _xlfn.POISSON.DIST({0,1,2,3,4,5,6,7,8,9},$O30, TRUE),1), 0) -> 2 | AM30: =_xlfn.IFNA(MATCH(RAND(), _xlfn.POISSON.DIST({0,1,2,3,4,5,6,7,8,9},$O30, TRUE),1), 0) -> 3 | AN30: =_xlfn.IFNA(MATCH(RAND(), _xlfn.POISSON.DIST({0,1,2,3,4,5,6,7,8,9},$O30, TRUE),1), 0) -> 0 | AO30: =_xlfn.IFNA(MATCH(RAND(), _xlfn.POISSON.DIST({0,1,2,3,4,5,6,7,8,9},$O30, TRUE),1), 0) -> 2 | AP30: =_xlfn.IFNA(MATCH(RAND(), _xlfn.POISSON.DIST({0,1,2,3,4,5,6,7,8,9},$O30, TRUE),1), 0) -> 4 | AQ30: =_xlfn.IFNA(MATCH(RAND(), _xlfn.POISSON.DIST({0,1,2,3,4,5,6,7,8,9},$O30, TRUE),1), 0) -> 2 | AR30: =_xlfn.IFNA(MATCH(RAND(), _xlfn.POISSON.DIST({0,1,2,3,4,5,6,7,8,9},$O30, TRUE),1), 0) -> 3 | AS30: =_xlfn.IFNA(MATCH(RAND(), _xlfn.POISSON.DIST({0,1,2,3,4,5,6,7,8,9},$O30, TRUE),1), 0) -> 0 | AT30: =_xlfn.IFNA(MATCH(RAND(), _xlfn.POISSON.DIST({0,1,2,3,4,5,6,7,8,9},$O30, TRUE),1), 0) -> 2 | AU30: =_xlfn.IFNA(MATCH(RAND(), _xlfn.POISSON.DIST({0,1,2,3,4,5,6,7,8,9},$O30, TRUE),1), 0) -> 0 | AV30: =_xlfn.IFNA(MATCH(RAND(), _xlfn.POISSON.DIST({0,1,2,3,4,5,6,7,8,9},$O30, TRUE),1), 0) -> 0 | AW30: =_xlfn.IFNA(MATCH(RAND(), _xlfn.POISSON.DIST({0,1,2,3,4,5,6,7,8,9},$O30, TRUE),1), 0) -> 0 | AX30: =_xlfn.IFNA(MATCH(RAND(), _xlfn.POISSON.DIST({0,1,2,3,4,5,6,7,8,9},$O30, TRUE),1), 0) -> 0 | AY30: =_xlfn.IFNA(MATCH(RAND(), _xlfn.POISSON.DIST({0,1,2,3,4,5,6,7,8,9},$O30, TRUE),1), 0) -> 1 | AZ30: =_xlfn.IFNA(MATCH(RAND(), _xlfn.POISSON.DIST({0,1,2,3,4,5,6,7,8,9},$O30, TRUE),1), 0) -> 1 | BA30: =_xlfn.IFNA(MATCH(RAND(), _xlfn.POISSON.DIST({0,1,2,3,4,5,6,7,8,9},$O30, TRUE),1), 0) -> 2 | BB30: =_xlfn.IFNA(MATCH(RAND(), _xlfn.POISSON.DIST({0,1,2,3,4,5,6,7,8,9},$O30, TRUE),1), 0) -> 5 | BC30: =_xlfn.IFNA(MATCH(RAND(), _xlfn.POISSON.DIST({0,1,2,3,4,5,6,7,8,9},$O30, TRUE),1), 0) -> 0 | BD30: =_xlfn.IFNA(MATCH(RAND(), _xlfn.POISSON.DIST({0,1,2,3,4,5,6,7,8,9},$O30, TRUE),1), 0) -> 1 | BE30: =_xlfn.IFNA(MATCH(RAND(), _xlfn.POISSON.DIST({0,1,2,3,4,5,6,7,8,9},$O30, TRUE),1), 0) -> 1 | BF30: =_xlfn.IFNA(MATCH(RAND(), _xlfn.POISSON.DIST({0,1,2,3,4,5,6,7,8,9},$O30, TRUE),1), 0) -> 2 | BG30: =_xlfn.IFNA(MATCH(RAND(), _xlfn.POISSON.DIST({0,1,2,3,4,5,6,7,8,9},$O30, TRUE),1), 0) -> 1 | BH30: =_xlfn.IFNA(MATCH(RAND(), _xlfn.POISSON.DIST({0,1,2,3,4,5,6,7,8,9},$O30, TRUE),1), 0) -> 1 | BI30: =_xlfn.IFNA(MATCH(RAND(), _xlfn.POISSON.DIST({0,1,2,3,4,5,6,7,8,9},$O30, TRUE),1), 0) -> 1 | BJ30: =_xlfn.IFNA(MATCH(RAND(), _xlfn.POISSON.DIST({0,1,2,3,4,5,6,7,8,9},$O30, TRUE),1), 0) -> 1 | BK30: =_xlfn.IFNA(MATCH(RAND(), _xlfn.POISSON.DIST({0,1,2,3,4,5,6,7,8,9},$O30, TRUE),1), 0) -> 2 | BL30: =_xlfn.IFNA(MATCH(RAND(), _xlfn.POISSON.DIST({0,1,2,3,4,5,6,7,8,9},$O30, TRUE),1), 0) -> 0 | BM30: =_xlfn.IFNA(MATCH(RAND(), _xlfn.POISSON.DIST({0,1,2,3,4,5,6,7,8,9},$O30, TRUE),1), 0) -> 4 | BN30: =_xlfn.IFNA(MATCH(RAND(), _xlfn.POISSON.DIST({0,1,2,3,4,5,6,7,8,9},$O30, TRUE),1), 0) -> 3 | BP30: =_xlfn.IFNA(MATCH(RAND(), _xlfn.POISSON.DIST({0,1,2,3,4,5,6,7,8,9},$P30, TRUE),1), 0) -> 3 | BQ30: =_xlfn.IFNA(MATCH(RAND(), _xlfn.POISSON.DIST({0,1,2,3,4,5,6,7,8,9},$P30, TRUE),1), 0) -> 0 | BR30: =_xlfn.IFNA(MATCH(RAND(), _xlfn.POISSON.DIST({0,1,2,3,4,5,6,7,8,9},$P30, TRUE),1), 0) -> 0 | BS30: =_xlfn.IFNA(MATCH(RAND(), _xlfn.POISSON.DIST({0,1,2,3,4,5,6,7,8,9},$P30, TRUE),1), 0) -> 2 | BT30: =_xlfn.IFNA(MATCH(RAND(), _xlfn.POISSON.DIST({0,1,2,3,4,5,6,7,8,9},$P30, TRUE),1), 0) -> 1 | BU30: =_xlfn.IFNA(MATCH(RAND(), _xlfn.POISSON.DIST({0,1,2,3,4,5,6,7,8,9},$P30, TRUE),1), 0) -> 0 | BV30: =_xlfn.IFNA(MATCH(RAND(), _xlfn.POISSON.DIST({0,1,2,3,4,5,6,7,8,9},$P30, TRUE),1), 0) -> 1 | BW30: =_xlfn.IFNA(MATCH(RAND(), _xlfn.POISSON.DIST({0,1,2,3,4,5,6,7,8,9},$P30, TRUE),1), 0) -> 2 | BX30: =_xlfn.IFNA(MATCH(RAND(), _xlfn.POISSON.DIST({0,1,2,3,4,5,6,7,8,9},$P30, TRUE),1), 0) -> 7 | BY30: =_xlfn.IFNA(MATCH(RAND(), _xlfn.POISSON.DIST({0,1,2,3,4,5,6,7,8,9},$P30, TRUE),1), 0) -> 0 | BZ30: =_xlfn.IFNA(MATCH(RAND(), _xlfn.POISSON.DIST({0,1,2,3,4,5,6,7,8,9},$P30, TRUE),1), 0) -> 1 | CA30: =_xlfn.IFNA(MATCH(RAND(), _xlfn.POISSON.DIST({0,1,2,3,4,5,6,7,8,9},$P30, TRUE),1), 0) -> 2 | CB30: =_xlfn.IFNA(MATCH(RAND(), _xlfn.POISSON.DIST({0,1,2,3,4,5,6,7,8,9},$P30, TRUE),1), 0) -> 0 | CC30: =_xlfn.IFNA(MATCH(RAND(), _xlfn.POISSON.DIST({0,1,2,3,4,5,6,7,8,9},$P30, TRUE),1), 0) -> 2 | CD30: =_xlfn.IFNA(MATCH(RAND(), _xlfn.POISSON.DIST({0,1,2,3,4,5,6,7,8,9},$P30, TRUE),1), 0) -> 1 | CE30: =_xlfn.IFNA(MATCH(RAND(), _xlfn.POISSON.DIST({0,1,2,3,4,5,6,7,8,9},$P30, TRUE),1), 0) -> 1 | CF30: =_xlfn.IFNA(MATCH(RAND(), _xlfn.POISSON.DIST({0,1,2,3,4,5,6,7,8,9},$P30, TRUE),1), 0) -> 3 | CG30: =_xlfn.IFNA(MATCH(RAND(), _xlfn.POISSON.DIST({0,1,2,3,4,5,6,7,8,9},$P30, TRUE),1), 0) -> 1 | CH30: =_xlfn.IFNA(MATCH(RAND(), _xlfn.POISSON.DIST({0,1,2,3,4,5,6,7,8,9},$P30, TRUE),1), 0) -> 1 | CI30: =_xlfn.IFNA(MATCH(RAND(), _xlfn.POISSON.DIST({0,1,2,3,4,5,6,7,8,9},$P30, TRUE),1), 0) -> 3 | CJ30: =_xlfn.IFNA(MATCH(RAND(), _xlfn.POISSON.DIST({0,1,2,3,4,5,6,7,8,9},$P30, TRUE),1), 0) -> 4 | CK30: =_xlfn.IFNA(MATCH(RAND(), _xlfn.POISSON.DIST({0,1,2,3,4,5,6,7,8,9},$P30, TRUE),1), 0) -> 2 | CL30: =_xlfn.IFNA(MATCH(RAND(), _xlfn.POISSON.DIST({0,1,2,3,4,5,6,7,8,9},$P30, TRUE),1), 0) -> 1 | CM30: =_xlfn.IFNA(MATCH(RAND(), _xlfn.POISSON.DIST({0,1,2,3,4,5,6,7,8,9},$P30, TRUE),1), 0) -> 2 | CN30: =_xlfn.IFNA(MATCH(RAND(), _xlfn.POISSON.DIST({0,1,2,3,4,5,6,7,8,9},$P30, TRUE),1), 0) -> 0 | CO30: =_xlfn.IFNA(MATCH(RAND(), _xlfn.POISSON.DIST({0,1,2,3,4,5,6,7,8,9},$P30, TRUE),1), 0) -> 1 | CP30: =_xlfn.IFNA(MATCH(RAND(), _xlfn.POISSON.DIST({0,1,2,3,4,5,6,7,8,9},$P30, TRUE),1), 0) -> 3 | CQ30: =_xlfn.IFNA(MATCH(RAND(), _xlfn.POISSON.DIST({0,1,2,3,4,5,6,7,8,9},$P30, TRUE),1), 0) -> 1 | CR30: =_xlfn.IFNA(MATCH(RAND(), _xlfn.POISSON.DIST({0,1,2,3,4,5,6,7,8,9},$P30, TRUE),1), 0) -> 3 | CS30: =_xlfn.IFNA(MATCH(RAND(), _xlfn.POISSON.DIST({0,1,2,3,4,5,6,7,8,9},$P30, TRUE),1), 0) -> 0 | CT30: =_xlfn.IFNA(MATCH(RAND(), _xlfn.POISSON.DIST({0,1,2,3,4,5,6,7,8,9},$P30, TRUE),1), 0) -> 2 | CU30: =_xlfn.IFNA(MATCH(RAND(), _xlfn.POISSON.DIST({0,1,2,3,4,5,6,7,8,9},$P30, TRUE),1), 0) -> 0 | CV30: =_xlfn.IFNA(MATCH(RAND(), _xlfn.POISSON.DIST({0,1,2,3,4,5,6,7,8,9},$P30, TRUE),1), 0) -> 2 | CW30: =_xlfn.IFNA(MATCH(RAND(), _xlfn.POISSON.DIST({0,1,2,3,4,5,6,7,8,9},$P30, TRUE),1), 0) -> 2 | CX30: =_xlfn.IFNA(MATCH(RAND(), _xlfn.POISSON.DIST({0,1,2,3,4,5,6,7,8,9},$P30, TRUE),1), 0) -> 1 | CY30: =_xlfn.IFNA(MATCH(RAND(), _xlfn.POISSON.DIST({0,1,2,3,4,5,6,7,8,9},$P30, TRUE),1), 0) -> 4 | CZ30: =_xlfn.IFNA(MATCH(RAND(), _xlfn.POISSON.DIST({0,1,2,3,4,5,6,7,8,9},$P30, TRUE),1), 0) -> 3 | DA30: =_xlfn.IFNA(MATCH(RAND(), _xlfn.POISSON.DIST({0,1,2,3,4,5,6,7,8,9},$P30, TRUE),1), 0) -> 1 | DB30: =_xlfn.IFNA(MATCH(RAND(), _xlfn.POISSON.DIST({0,1,2,3,4,5,6,7,8,9},$P30, TRUE),1), 0) -> 2 | DC30: =_xlfn.IFNA(MATCH(RAND(), _xlfn.POISSON.DIST({0,1,2,3,4,5,6,7,8,9},$P30, TRUE),1), 0) -> 1 | DD30: =_xlfn.IFNA(MATCH(RAND(), _xlfn.POISSON.DIST({0,1,2,3,4,5,6,7,8,9},$P30, TRUE),1), 0) -> 0 | DE30: =_xlfn.IFNA(MATCH(RAND(), _xlfn.POISSON.DIST({0,1,2,3,4,5,6,7,8,9},$P30, TRUE),1), 0) -> 0 | DF30: =_xlfn.IFNA(MATCH(RAND(), _xlfn.POISSON.DIST({0,1,2,3,4,5,6,7,8,9},$P30, TRUE),1), 0) -> 0 | DG30: =_xlfn.IFNA(MATCH(RAND(), _xlfn.POISSON.DIST({0,1,2,3,4,5,6,7,8,9},$P30, TRUE),1), 0) -> 2 | DH30: =_xlfn.IFNA(MATCH(RAND(), _xlfn.POISSON.DIST({0,1,2,3,4,5,6,7,8,9},$P30, TRUE),1), 0) -> 2 | DI30: =_xlfn.IFNA(MATCH(RAND(), _xlfn.POISSON.DIST({0,1,2,3,4,5,6,7,8,9},$P30, TRUE),1), 0) -> 2 | DJ30: =_xlfn.IFNA(MATCH(RAND(), _xlfn.POISSON.DIST({0,1,2,3,4,5,6,7,8,9},$P30, TRUE),1), 0) -> 1 | DK30: =_xlfn.IFNA(MATCH(RAND(), _xlfn.POISSON.DIST({0,1,2,3,4,5,6,7,8,9},$P30, TRUE),1), 0) -> 1 | DL30: =_xlfn.IFNA(MATCH(RAND(), _xlfn.POISSON.DIST({0,1,2,3,4,5,6,7,8,9},$P30, TRUE),1), 0) -> 2 | DM30: =_xlfn.IFNA(MATCH(RAND(), _xlfn.POISSON.DIST({0,1,2,3,4,5,6,7,8,9},$P30, TRUE),1), 0) -> 0
